Workbook

Sheet Eingabewerte
O1: Amt für Bau und Immobilien
O2: Energiemanagement
B4: Energieverbrauchsausweis für Nichtwohngebäude | X4: 1 | Y4: 2007
X5: 2 | Y5: 2009
B6: Version 5.3 vom 25.10.2022 | E6: Klimawerte vom 01.01.2002 bis | G6: 2015-01-01 | H6: bis | I6: 2022-04-30 | K6: Referenzort Potsdam | X6: 3 | Y6: 2014
B7: gemäß den §§ 79 ff Gebäudeenergiegesetz (GEG) | K7: Rechtstand GEG | M7: 2020-08-13 | X7: 4 | Y7: 2016
B8: Um den Energieausweis korrekt zu erstellen ist es notwendig, die Makros zu aktivieren.
B9: 1. Daten eingeben: | E9: Die weißen Felder sind Eingabefelder, die grauen sind berechnete Felder.
B11: Liegenschaft
B12: Adresse
B13: Bundesland
B14: Gebäude- / Liegenschaftsteil | E14: Teil des Nichtwohngebäudes | N14: =E14 -> Teil des Nichtwohngebäudes
D15: BZK | E15: Nutzungsart | J15: =Hilfstabellen!D37 -> 1 | K15: Nr | L15: NRF | N15: Faktor
B16: Hauptnutzung (Auswahlfeld nutzen) | D16: =IF(E16="","",VLOOKUP(E16,'Klassengrenzen Heizung'!$B$10:$N$71,13)) -> 4000 | E16: Schulen und KTs | J16: 5,000 m² | K16: =IF(E16="","",VLOOKUP(E16,'Klassengrenzen Heizung'!B$10:N$71,12,)) -> 21 | L16: =IF(OR(J16="",AND(Hilfstabellen!$D$35=FALSE,Hilfstabellen!$D$36=FALSE)),"",IF(Hilfstabellen!$D$35=TRUE,J16,J16*N16)) -> 5,000 m² | N16: =IF($E16="","",VLOOKUP(E16,'Umrechnung BGF-NRF'!C$5:D$67,2,0)) -> 0.89
B17: 2. Nutzung (Auswahlfeld) | D17: =IF(E17="","",VLOOKUP(E17,'Klassengrenzen Heizung'!$B$9:$N$71,13)) ->  | K17: =IF(E17="","",VLOOKUP(E17,'Klassengrenzen Heizung'!B$10:N$71,12,)) ->  | L17: =IF(OR(J17="",AND(Hilfstabellen!$D$35=FALSE,Hilfstabellen!$D$36=FALSE)),"",IF(Hilfstabellen!$D$35=TRUE,J17,J17*N17)) ->  | N17: =IF($E17="","",VLOOKUP(E17,'Umrechnung BGF-NRF'!C$5:D$67,2,0)) -> 
B18: 3. Nutzung | D18: =IF(E18="","",VLOOKUP(E18,'Klassengrenzen Heizung'!$B$10:$N$71,13)) ->  | K18: =IF(E18="","",VLOOKUP(E18,'Klassengrenzen Heizung'!B$10:N$71,12,)) ->  | L18: =IF(OR(J18="",AND(Hilfstabellen!$D$35=FALSE,Hilfstabellen!$D$36=FALSE)),"",IF(Hilfstabellen!$D$35=TRUE,J18,J18*N18)) ->  | N18: =IF($E18="","",VLOOKUP(E18,'Umrechnung BGF-NRF'!C$5:D$67,2,0)) -> 
B19: 4. Nutzung | L19: =IF(OR(J19="",AND(Hilfstabellen!$D$35=FALSE,Hilfstabellen!$D$36=FALSE)),"",IF(Hilfstabellen!$D$35=TRUE,J19,J19*N19)) ->  | N19: =IF(E19="","",0.85) -> 
E20: Gebäude | G20: Wärmeerzeuger | I20: Summe: | J20: =SUM(J16:J19) -> 5,000 m² | L20: =ROUND(SUM(L16:L19),0) -> 5,000 m²
B21: Baualtersklasse | D21: Bj. | H21: Altersklasse
B22: Wesentliche Energieträger für Heizung & Warmwasser | G22: =IF(INDEX(Hilfstabellen!B4:D32,$B$39,1)=0,"",INDEX(Hilfstabellen!B4:D32,$B$39,1)) -> Erdgas
B23: Erneuerbare Energien | D23: Art: | E23: PV | H23: Verwendung: | J23: Stromerzeugung
B24: Art der Lüftung / Kühlung
B25: Klimaanlage inpektionspflichtig größer | J25: =IF(OR('Angaben Prüfstelle - Allgemein'!F42,'Angaben Prüfstelle - Allgemein'!F43,'Angaben Prüfstelle - Allgemein'!F44)=TRUE,IF(OR('Angaben Prüfstelle - Allgemein'!F34,'Angaben Prüfstelle - Allgemein'!F35=FALSE),"Welche Anlagenart ???","Inspektionspflichtige Anlage"),"") -> Inspektionspflichtige Anlage
B26: Inspektionpfl. Klimaanlagen | C26: 1 | E26: Nächstes Fälligkeitsdatum d.Inspektion am | J26: Zonen_Nr. | L26: für Teilbereich Lüftung / Kühlung
K28: 32
B29: =IF(AND('Mittelung Klassengrenzen'!N26=TRUE,'Mittelung Klassengrenzen'!N18=TRUE),"Warmwasser Hauptversorgung entweder mit Strom oder Heizung wählen!!","") ->  | I29: =IF(AND('Mittelung Klassengrenzen'!R26=TRUE,'Mittelung Klassengrenzen'!P18=TRUE),"Ent- u. Befeuchtung entweder Strom oder Heizung wählen!!","") -> 
B30: Heizenergie | E30: =IF(AND(E31<G6,NOT(E31="")),CONCATENATE("Keine Klimawerte vor dem ",TEXT($G$6,"TT.MM.JJJJ")," vorhanden!"),IF(G31<=$I$6,IF(I31<1072,"Zeitraum nach EnEV mindestens 3 Jahre!",""),CONCATENATE("Keine Klimawerte nach dem ",TEXT($I$6,"TT.MM.JJJJ")," vorhanden!"))) -> 
B31: Abrechnungszeitraum von | E31: 2018-01-01 | F31: bis | G31: 2020-12-31 | H31: oder | I31: =IF((G31-E31)<1,"",G31-E31) -> 1,095 | J31: Tage | K31: (nach EnEV mindestens 3 Jahre)
B32: Klimazone auswählen PLZ | C32: 60486 | E32: =IF(OR(C32="",C32=0),"",VLOOKUP(VALUE(C32),Klimafaktor!A6:B8240,2,0)) -> Frankfurt am Main, Stadt / Frankfu | I32: =IF(OR(ISERROR(E32),E32=""),"",Klimafaktor!C8256) -> 1.30 | J32: =IF(ISERROR(E32)," Klimazone nicht vorhanden","gemittelter Klimafaktor") -> gemittelter Klimafaktor
B33: Heizenergieverbrauch im Abrechnungszeitr. | E33: =E42 -> 100 | F33: kWh | G33: =IF(E33="","",E33/I31*365) -> 33 | H33: oder | I33: =IF(OR(I32="",$L$20=0,$I$31=0),"",ROUND((E33+IF(Hilfstabellen!$D$85=TRUE(),N64,0))/$L$20*365/$I$31*I32,0)) -> 0 | J33: kWh/m²a | K33: =IF(Hilfstabellen!$D$85=TRUE(),"inclusive Leerstand","") -> 
B34: Heizkosten im Abrechnungszeitraum | F34: € | H34: oder | I34: =IF(OR(E34=0,E34=""),"",E34*365/$I$31) ->  | J34: €/a | K34: Energiebezugspreis | N34: =IF(E34="",0,ROUND(E34/E33,3)*100) -> 0.00 Ct/kWh
B35: Heizenergie enthält
B36: Umrechnungsfaktorheizwert | C36: 1 | E36: =E33*0.05 -> 5 | G36: 50000
B37: Berechnung der Primärenergie (PE) | G37: =IF(B39=13,G39,IF(B40=13,G40,IF(B41=13,G41,0)))*E33/I31*365*0.33333 -> 0.00 | H37: Endenergie | I37: Klimabereinigt
B38: Heizenergie | G38: Anteil [%] | I38: spez. PE-Verbrauch | L38: CO2-Emissionen | N38: PE-Faktor
B39: 7 | E39: 100 | G39: =E39/$E$42 -> 100% | I39: =IF(OR(G39="",G39=0),"",IF(AND($B39=17,$G39>0)=TRUE,0,E$33/I$31*I$32*$G39*N39/L$20*365)-IF(B39=10,IF(B$50=3,I42,IF(B$51=3,I$51,IF(B$52=3,I$52,0))))) -> 0 | J39: kWh/m²a | L39: =IF(B39=20,"",INDEX(Hilfstabellen!$E$4:$E$31,Eingabewerte!B39)*(G39*$E$33+IF(Hilfstabellen!Leerstand, $N$64,0))/I$31*365/1000) -> 0.0 | M39: t/a | N39: =INDEX(Hilfstabellen!$D$4:$D$31,Eingabewerte!$B39) -> 1.10
B40: 18 | G40: =E40/$E$42 -> 0% | I40: =IF(OR(G40="",G40=0),"",IF(AND($B40=17,$G40>0)=TRUE,0,E$33/I$31*I$32*$G40*N40/L$20*365)-IF(B40=10,IF(B$50=3,I49,IF(B$51=3,I$51,IF(B$52=3,I$52,0))))) ->  | J40: kWh/m²a | L40: =IF(B40=20,"",INDEX(Hilfstabellen!$E$4:$E$31,Eingabewerte!B40)*G40*$E$33/I$31*365/1000) -> 0.0 | M40: t/a | N40: =INDEX(Hilfstabellen!$D$4:$D$31,Eingabewerte!$B40) -> 0.00
B41: 18 | G41: 0% | I41: =IF(OR(G41="",G41=0),"",IF(AND($B41=17,$G41>0)=TRUE,0,E$33/I$31*I$32*$G41*N41/L$20*365)-IF(B41=10,IF(B$50=3,I50,IF(B$51=3,I$51,IF(B$52=3,I$52,0))))) ->  | J41: kWh/m²a | L41: =IF(B41=20,"",INDEX(Hilfstabellen!$E$4:$E$31,Eingabewerte!B41)*G41*$E$33/I$31*365/1000) -> 0.0 | M41: t/a | N41: =INDEX(Hilfstabellen!$D$4:$D$31,Eingabewerte!$B41) -> 0.00
B42: Summe Heizenergie | E42: =SUM(E39:E41) -> 100 | G42: =IF(AND(G39="",G40="",G41=""),"",IF(SUM(G39:G41)=1,SUM(G39:G41),IF(SUM(G39:G41)=0,0))) -> 100% | I42: =ROUND(SUM(I39:I41),1) -> 0.0 | J42: kWh/m²a | L42: =ROUND(SUM(L39:L41),1) -> 0.0 | M42: t/a | N42: =N39*G39+N40*G40+N41*G41 -> 1.10
B43: Strom (ohne Heizstrom) | E43: =IF(G44<=I6,IF(I44<1072,"Zeitraum nach EnEV mindestens 3 Jahre!",""),CONCATENATE("Keine Klimawerte nach dem ",TEXT($I$6,"TT.MM.JJJJ")," verhanden!")) -> 
B44: Abrechnungszeitraum von | E44: =E31 -> 2018-01-01 | F44: bis | G44: =G31 -> 2020-12-31 | H44: oder | I44: =IF((G44-E44)<1,"",G44-E44) -> 1,095 | J44: Tage | K44: (nach EnEV mindestens 3 Jahre)
B45: Stromverbrauch im Abrechnungszeitraum | E45: =E53 -> 1,000 | F45: kWh | H45: oder | I45: =IF(OR(E45=0,E45="",$L$20=0,I44=0),"",ROUND((E45+IF(Hilfstabellen!$D$85=TRUE(),N68,0))/$L$20*365/$I$44,0)) -> 0 | J45: kWh/m²a | K45: =IF(Hilfstabellen!$D$85=TRUE(),"inclusive Leerstand","") -> 
B46: Stromkosten im Abrechnungszeitraum | F46: € | H46: oder | I46: =IF(OR(E46="",E46=0),"",E46*365/$I$44) ->  | J46: €/a | K46: Energiebezugspreis | N46: =IF(E46="",0,ROUND(E46/E45,3)*100) -> 0.00 Ct/kWh
B47: Strom enthält
I48: 500
B49: Strom | G49: Anteil [%] | I49: spez. PE-Verbrauch | L49: CO2-Emissionen | N49: PE-Faktor
B50: 2 | E50: 1000 | G50: =E50/$E$53 -> 100% | I50: =IF(OR(G50="",G50=0),"",IF(AND($B50=4,$G50>0)=TRUE,0,IF(B50=3,IF(G$37>=E$45/I$44*365*G50,E$45/I$44*365*G50/L$20*N50,"FALSCH"),$E$45/I$44*365*$G50*N50/L$20))) -> 0 | J50: kWh/m²a | L50: =IF(B50=5,"",INDEX(Hilfstabellen!$E$27:$E$32,Eingabewerte!B50)*(G50*$E$45+IF(Hilfstabellen!Leerstand, $N$68,0))/$I$44*365/1000) -> 0.2 | M50: t/a | N50: =INDEX(Hilfstabellen!$D$27:$D$31,B50) -> 1.80
B51: 5 | G51: =E51/$E$53 -> 0% | I51: =IF(OR(G51="",G51=0),"",IF(AND($B51=4,$G51>0)=TRUE,0,IF(B51=3,IF(G$37>=E$45/I$44*365*G51,E$45/I$44*365*G51/L$20*N51,"FALSCH"),$E$45/I$44*365*$G51*N51/L$20))) ->  | J51: kWh/m²a | L51: =IF(B51=5,"",INDEX(Hilfstabellen!$E$27:$E$32,Eingabewerte!B51)*G51*$E$45/$I$44*365/1000) ->  | M51: t/a | N51: =INDEX(Hilfstabellen!$D$27:$D$31,B51) -> 0.00
B52: 5 | G52: 0% | I52: =IF(OR(G52="",G52=0),"",IF(AND($B52=4,$G52>0)=TRUE,0,IF(B52=3,IF(G$37>=E$45/I$44*365*G52,E$45/I$44*365*G52/L$20*N52,"FALSCH"),$E$45/I$44*365*$G52*N52/L$20))) ->  | J52: kWh/m²a | L52: =IF(B52=5,"",INDEX(Hilfstabellen!$E$27:$E$32,Eingabewerte!B52)*G52*$E$45/$I$44*365/1000) ->  | M52: t/a | N52: =INDEX(Hilfstabellen!$D$27:$D$31,B52) -> 0.00
B53: Summe Strom | E53: =SUM(E50:E52) -> 1000 | G53: =IF(AND(G50="",G51="",G52=""),"",IF(SUM(G50:G52)=1,SUM(G50:G52),IF(SUM(G50:G52)=0,0))) -> 100% | I53: =ROUND(SUM(I50:I52),1) -> 0.1 | J53: kWh/m²a | L53: =ROUND(SUM(L50:L52),1) -> 0.2 | M53: t/a | N53: =N50*G50+N51*G51+N52*G52 -> 1.80
B54: Summe Heizenergie und Strom | I54: =I42+I53 -> 0 | J54: kWh/m²a | L54: =SUM(L42,L53) -> 0.2 | M54: t/a | N54: =ROUND(L54/L20*1000,2) -> 0 kg/(m²a)
B55: Wasser | E55: =IF(G56<=I6,IF(I56<1072,"Zeitraum nach EnEV mindestens 3 Jahre!",""),CONCATENATE("Keine Klimawerte nach dem ",TEXT($I$6,"TT.MM.JJJJ")," verhanden!")) -> 
B56: Abrechnungszeitraum von | E56: =E44 -> 2018-01-01 | F56: bis | G56: =G44 -> 2020-12-31 | H56: oder | I56: =IF((G56-E56)<1,"",G56-E56) -> 1,095 | J56: Tage | K56: (nach EnEV mindestens 3 Jahre)
B57: Wasserverbrauch im Abrechnungszeitraum | E57: 10,000 | F57: m³ | H57: oder | I57: =IF(OR(E57=0,E57="",L20=0,I56=0),"",ROUND((E57+IF(Hilfstabellen!$D$85=TRUE(),N69,0))/$L$20*365/$I$56*1000,0)) -> 667 | J57: l/m²a | K57: =IF(Hilfstabellen!$D$85=TRUE(),"inclusive Leerstand","") -> 
B58: Wasserkosten* im Abrechnungsszeitraum | F58: € | H58: oder | I58: =IF(OR(E57=0,E57=""),"",E58*365/$I$56) -> 0 | J58: €/a | K58: Wasserbezugspreis* | N58: =IF(E58="",0,ROUND(E58/E57,3)*1) -> 0.00 €/m³
B59: *incl. Abwassergebühr ohne Versiegelungsgebühr
B61: Leerstand
G63: Heizung | H63: Strom | I63: WW-Berei | J63: Therm. Kälte | L63: Leerstandszuschläge in kWh
E64: Leerstandsfaktor | G64: 0.00 | H64: 0.00 | I64: 0.00 | J64: 1.00 | M64: ges. Leerstand Heizung | N64: 0
B65: bitte auswählen | E65: Beschreibung | G65: ausfüllen | M65: Warmwasseranteil | N65: 0
E66: Fläche | G66: =L20 -> 5,000 m² | I66: =(G68-G67)/365 -> 0.00 a | J66: =N67*G69/(I66*G66) ->  | L66: Thermische Kälte | N66: 0
F67: Startdatum des Leerstandes | H67: =IF(OR(G68>G31,G67<E31),"Enddatum liegt außerhalb des Abrechnungszeitraums!","") -> Enddatum liegt außerhalb des Abrechnungszeitraums! | M67: Heizanteil | N67: 0
F68: Enddatum des Leerstandes | M68: Strom | N68: 0
F69: Klimafaktor | G69: =IF(OR(G67="",G68=""),"",(HLOOKUP((ROUND((G67-Klimafaktor!D3)/365*12+0.5,0)),Klimafaktor!D8248:CB8257,2)+HLOOKUP(ROUND((G68-Klimafaktor!D4)/365*12+0.5,0),Klimafaktor!D8248:CB8257,2))/2) ->  | M69: Wasseranteil | N69: 0 (m³)
B70: Primärenergiefaktoren | F70: Heizung | G70: =IF(G67="","",$N$39) ->  | I70: Strom | J70: =IF(G67="","",$N$50) -> 
B73: Erläuterungen
B74: Die Verbrauchswerte werden beeinflusst durch den baulichen Zustand, die Betriebsführung und das Nutzerverhalten
B80: Empfehlungen zur kosteneffizienten Modernisierung | G80: Bau- / Anlagenteil | I80: Art | J80: Lebens-dauer | K80: Medium | L80: Kosten | N80: Einsparung
B81: Lüftung nur kurz und stoßweise
B82: Abschalten der Beleuchtung bei ausreichendem Tageslicht
B83: Konsequente Nutzung der Sparfunktion an Toilettenspülungen
B87: Empfehlungen zu Nutzung und Betrieb | N87: Einsparung
B88: Lüftung nur kurz und stoßweise | N88: =IF(L20=0,"",ROUND(I34/12,-2)) -> 
B89: Abschalten der Beleuchtung bei ausreichendem Tageslicht | N89: =IF(L20=0,"",ROUND(I46/15,-2)) -> 
B90: Konsequente Nutzung der Sparfunktion an Toilettenspülungen | N90: =IF(L20=0,"",ROUND(I58/8,-2)) -> 0 €/a
B93: Aussteller und Zugang DIBt-Konto
B94: Ingenieurbüro/Amt | I94: E-Mail-Adresse | R94: https://www.dibt.de/de/wir-bieten/geg-registrierstelle
B95: Titel des Ausstellers | I95: Passwort
B96: Name des Ausstellers | I96: Anlass der Ausstellung | L96: 2
B97: Vorname des Ausstellers | N97: Login DIBt
B98: Adresse | I98: Datenerhebung
B99: PLZ, Ort
B100: Ausstellungsdatum | E100: 2022-06-27
B101: Registriernummer nach GEG 2020 | H101: (wird automatisch bei der Registrierung eingetragen)
B103: 2. Reiter setzen: | E103: Die grüne Schaltfläche "Reiter setzen" anklicken >
B104: 3. Blatt wechseln: | E104: Durch Anklicken des entsprechenden Registers in der Fußzeile das Blatt "Energieausweis" auswählen.
B105: 4. Foto einfügen: | E105: Durch Klicken auf die Schaltfläche rechts oben in Blatt "Energieausweis" ein Foto einfügen.
B106: 5. Unterschrift einfügen: | E106: Durch Klicken auf die Schaltfläche rechts unten in Blatt "Energieausweis" die Unterschrift einfügen.
B107: 6. Daten überprüfen: | E107: Grünen Haken "Energieausweis validieren" im Register "EnEV-Schnittstelle" in der Kopfzeile betätigen.
B108: 7. Datei speichern | E108: Excel-Datei wie gewohnt speichern. Zusätzlich können die Daten mit der Schaltfläche "Energieausweis exportieren" im Register "EnEV-Schnittstelle" als XML-Datei gespeichert werden.
B109: 8. Energieausweis registrieren: | E109: Blauen Pfeil "Energieausweis registrieren" im Register "EnEV-Schnittstelle" in der Kopfzeile betätigen.
B110: 9. Ausdrucken | E110: Die Seite "Energieausweis" als PDF-Dokument speichern und ausdrucken - fertig!

Sheet Energieausweis
N1: =Eingabewerte!O1 -> Amt für Bau und Immobilien
N2: =Eingabewerte!O2 -> Energiemanagement
B3: ENERGIEAUSWEIS für Nichtwohngebäude
B4: =Eingabewerte!B7 -> gemäß den §§ 79 ff Gebäudeenergiegesetz (GEG) | F4: Stand | G4: =Eingabewerte!M7 -> 2020-08-13 | I4: ='Angaben Prüfstelle - Allgemein'!F17 -> Teil des Nichtwohngebäudes
B6: =CONCATENATE("Gültig bis: ",TEXT(Eingabewerte!E100+10*365.2,"TT.MM.JJJJ")) -> Gültig bis: 26.06.2032 | G6: =CONCATENATE("Registriernummer:"," ",IF(Eingabewerte!E101="","",Eingabewerte!E101)) -> Registriernummer: | M6: Aushang
B8: Liegenschaft | D8: =IF(OR(Eingabewerte!E11="",Eingabewerte!E11=0,),"",Eingabewerte!E11) ->  | K8: Anklicken um Foto oder Zeichnung einfügen
B9: Adresse | D9: =IF(Eingabewerte!E12="", "", Eingabewerte!E12) -> 
B10: Hauptnutzung | D10: =Eingabewerte!E16 -> Schulen und KTs | I10: =Eingabewerte!L16 -> 5,000 m²
B11: =IF('Mittelung Klassengrenzen'!D6="","","2. Nutzung") -> 2. Nutzung | D11: =Eingabewerte!E17 -> 0 | I11: =Eingabewerte!L17 ->  | J11: =IF(I11="","","m²") -> 
B12: =IF('Mittelung Klassengrenzen'!D7="","","3. Nutzung") -> 3. Nutzung | D12: =Eingabewerte!E18 -> 0 | I12: =Eingabewerte!L18 ->  | J12: =IF(I12="","","m²") -> 
B13: =IF('Mittelung Klassengrenzen'!D8="","","4. Nutzung") -> 4. Nutzung | D13: =IF('Mittelung Klassengrenzen'!C8="","",(VLOOKUP('Mittelung Klassengrenzen'!$C8,#REF!,2,0))) ->  | I13: =Eingabewerte!L19 ->  | J13: =IF(I13="","","m²") -> 
B14: Baujahr Gebäude / Heizung | D14: =Eingabewerte!E21 -> 0 | E14: =Eingabewerte!G21 -> 0 | F14: Netto-Raumfläche (beheizt) | I14: =SUM(I10:I13) -> 5,000 m²
B15: Wesentliche Energieträger für Heizung & Warmwasser | G15: =IF(Eingabewerte!G22="", "", Eingabewerte!G22) -> Erdgas
B16: Erneuerbare Energien | D16: =IF(Eingabewerte!E23="", "", "Art: " &Eingabewerte!E23) -> Art: PV | G16: =IF(Eingabewerte!J23="", "",""&Eingabewerte!J23) -> Stromerzeugung
B21: Art der Lüftung / Kühlung
B22: Inspektionpfl. Klimaanlagen | D22: =SUM(Eingabewerte!C26:'Eingabewerte'!C28) -> 1 | E22: Nächstes Fälligkeitsdatum der Inspektion am | I22: =IFERROR(IF(MIN(IF(Eingabewerte!C26>0, Eingabewerte!I26, DATE(9999,12,31)), IF(Eingabewerte!C27>0, Eingabewerte!I27, DATE(9999,12,31)), IF(Eingabewerte!C28>0, Eingabewerte!I28, DATE(9999,12,31)))=DATE(9999,12,31), "", MIN(IF(Eingabewerte!C26>0, Eingabewerte!I26, DATE(9999,12,31)), IF(Eingabewerte!C27>0, Eingabewerte!I27, DATE(9999,12,31)), IF(Eingabewerte!C28>0, Eingabewerte!I28, DATE(9999,12,31)))),"") -> 
B24: Heizenergie | D24: ="Endenergie-Verbrauchskennwert " & YEAR(Eingabewerte!E31) & " - " & YEAR(Eingabewerte!G31) -> Endenergie-Verbrauchskennwert 2018 - 2020 | N24: Kosten/Jahr
B26: Diese Liegenschaft | D26: =IF(AND('Mittelung Klassengrenzen'!$A$15<=Energieausweis!E27,'Mittelung Klassengrenzen'!$A$15>Energieausweis!D27)=TRUE,'Mittelung Klassengrenzen'!$A$15,IF(B26<10000,"kWh/m²a","")) ->  | E26: =IF(AND('Mittelung Klassengrenzen'!$A$15<=Energieausweis!F27,'Mittelung Klassengrenzen'!$A$15>Energieausweis!E27)=TRUE,'Mittelung Klassengrenzen'!$A$15,IF(D26<10000,"kWh/m²a","")) ->  | F26: =IF(AND('Mittelung Klassengrenzen'!$A$15<=Energieausweis!G27,'Mittelung Klassengrenzen'!$A$15>Energieausweis!F27)=TRUE,'Mittelung Klassengrenzen'!$A$15,IF(E26<10000,"kWh/m²a","")) ->  | G26: =IF(AND('Mittelung Klassengrenzen'!$A$15<=Energieausweis!H27,'Mittelung Klassengrenzen'!$A$15>Energieausweis!G27)=TRUE,'Mittelung Klassengrenzen'!$A$15,IF(F26<10000,"kWh/m²a","")) ->  | H26: =IF(AND('Mittelung Klassengrenzen'!$A$15<=Energieausweis!I27,'Mittelung Klassengrenzen'!$A$15>Energieausweis!H27)=TRUE,'Mittelung Klassengrenzen'!$A$15,IF(G26<10000," kWh/m²a","")) ->  | I26: =IF(AND('Mittelung Klassengrenzen'!$A$15<=Energieausweis!J27,'Mittelung Klassengrenzen'!$A$15>Energieausweis!I27)=TRUE,'Mittelung Klassengrenzen'!$A$15,IF(H26<10000,"kWh/m²a","")) ->  | J26: =IF(AND('Mittelung Klassengrenzen'!$A$15<=Energieausweis!K27,'Mittelung Klassengrenzen'!$A$15>Energieausweis!J27)=TRUE,'Mittelung Klassengrenzen'!$A$15,IF(I26<10000,"kWh/m²a","")) ->  | K26: =IF(AND('Mittelung Klassengrenzen'!$A$15<=Energieausweis!L27,'Mittelung Klassengrenzen'!$A$15>Energieausweis!K27)=TRUE,'Mittelung Klassengrenzen'!$A$15,IF(J26<10000,"kWh/m²a","")) ->  | M26: ='Mittelung Klassengrenzen'!B15 ->  | N26: €/a
B27: Endenergie | D27: ='Mittelung Klassengrenzen'!C24 -> 0 | E27: ='Mittelung Klassengrenzen'!D24 -> 69 | F27: ='Mittelung Klassengrenzen'!E24 -> 87 | G27: ='Mittelung Klassengrenzen'!F24 -> 104 * | H27: ='Mittelung Klassengrenzen'!G24 -> 120 | I27: ='Mittelung Klassengrenzen'!H24 -> 142 | J27: ='Mittelung Klassengrenzen'!I24 -> 176 | K27: kWh/m²a
B28: effizient | D28: =IF(OR(D26>15,D26=""),"A", "A⁺") -> A | E28: B | F28: C | G28: D | H28: E | I28: F | J28: G | K28: ineffizient | M28: =M26/I$14 -> 
E29: =CONCATENATE("Vergleichswert GEG für Bestandsgebäude = ",ROUND('Mittelung Klassengrenzen'!$L$24,0)," kWh/(m²a)") -> Vergleichswert GEG für Bestandsgebäude = 50 kWh/(m²a)
C30: Heizenergie enthält
B31: Strom | D31: ="Endenergie-Verbrauchskennwert " & YEAR(Eingabewerte!E44) & " - " & YEAR(Eingabewerte!G44) -> Endenergie-Verbrauchskennwert 2018 - 2020 | N31: Kosten/Jahr
B33: Diese Liegenschaft | D33: =IF(AND('Mittelung Klassengrenzen'!$C$15<=Energieausweis!E34,'Mittelung Klassengrenzen'!$C$15>Energieausweis!D34)=TRUE,'Mittelung Klassengrenzen'!$C$15,IF(B33<10000,"kWh/m²a","")) ->  | E33: =IF(AND('Mittelung Klassengrenzen'!$C$15<=Energieausweis!F34,'Mittelung Klassengrenzen'!$C$15>Energieausweis!E34)=TRUE,'Mittelung Klassengrenzen'!$C$15,IF(D33<10000,"kWh/m²a","")) ->  | F33: =IF(AND('Mittelung Klassengrenzen'!$C$15<=Energieausweis!G34,'Mittelung Klassengrenzen'!$C$15>Energieausweis!F34)=TRUE,'Mittelung Klassengrenzen'!$C$15,IF(E33<10000,"kWh/m²a","")) ->  | G33: =IF(AND('Mittelung Klassengrenzen'!$C$15<=Energieausweis!H34,'Mittelung Klassengrenzen'!$C$15>Energieausweis!G34)=TRUE,'Mittelung Klassengrenzen'!$C$15,IF(F33<10000,"kWh/m²a","")) ->  | H33: =IF(AND('Mittelung Klassengrenzen'!$C$15<=Energieausweis!I34,'Mittelung Klassengrenzen'!$C$15>Energieausweis!H34)=TRUE,'Mittelung Klassengrenzen'!$C$15,IF(G33<10000,"kWh/m²a","")) ->  | I33: =IF(AND('Mittelung Klassengrenzen'!$C$15<=Energieausweis!J34,'Mittelung Klassengrenzen'!$C$15>Energieausweis!I34)=TRUE,'Mittelung Klassengrenzen'!$C$15,IF(H33<10000,"kWh/m²a","")) ->  | J33: =IF(AND('Mittelung Klassengrenzen'!$C$15<=Energieausweis!K34,'Mittelung Klassengrenzen'!$C$15>Energieausweis!J34)=TRUE,'Mittelung Klassengrenzen'!$C$15,IF(I33<10000,"kWh/m²a","")) ->  | K33: =IF(AND('Mittelung Klassengrenzen'!$C$15<=Energieausweis!L34,'Mittelung Klassengrenzen'!$C$15>Energieausweis!K34)=TRUE,'Mittelung Klassengrenzen'!$C$15,IF(J33<10000,"kWh/m²a","")) ->  | M33: ='Mittelung Klassengrenzen'!D15 ->  | N33: €/a
B34: Endenergie | D34: ='Mittelung Klassengrenzen'!C32 -> 0 | E34: ='Mittelung Klassengrenzen'!D32 -> 12 | F34: ='Mittelung Klassengrenzen'!E32 -> 15 | G34: ='Mittelung Klassengrenzen'!F32 -> 17 * | H34: ='Mittelung Klassengrenzen'!G32 -> 20 | I34: ='Mittelung Klassengrenzen'!H32 -> 25 | J34: ='Mittelung Klassengrenzen'!I32 -> 32 | K34: kWh/m²a
B35: effizient | D35: A | E35: B | F35: C | G35: D | H35: E | I35: F | J35: G | K35: ineffizient | M35: =M33/I$14 ->  | N35: €/m²a
E36: =CONCATENATE(" Vergleichswert GEG für Bestandsgebäude = ",'Mittelung Klassengrenzen'!$L$32," kWh/(m²a)") -> Vergleichswert GEG für Bestandsgebäude = 4 kWh/(m²a)
C37: Strom enthält
B38: Wasser | D38: ="Verbrauchskennwert " & YEAR(Eingabewerte!E56) & " - " & YEAR(Eingabewerte!G56) -> Verbrauchskennwert 2018 - 2020 | N38: Kosten/Jahr
B40: Diese Liegenschaft | D40: =IF(AND('Mittelung Klassengrenzen'!$E$15<=Energieausweis!E41,'Mittelung Klassengrenzen'!$E$15>Energieausweis!D41)=TRUE,'Mittelung Klassengrenzen'!$E$15,IF(B40<10000,"l/m²a","")) ->  | E40: =IF(AND('Mittelung Klassengrenzen'!$E$15<=Energieausweis!F41,'Mittelung Klassengrenzen'!$E$15>Energieausweis!E41)=TRUE,'Mittelung Klassengrenzen'!$E$15,IF(D40<10000,"l/m²a","")) ->  | F40: =IF(AND('Mittelung Klassengrenzen'!$E$15<=Energieausweis!G41,'Mittelung Klassengrenzen'!$E$15>Energieausweis!F41)=TRUE,'Mittelung Klassengrenzen'!$E$15,IF(E40<10000,"l/m²a","")) ->  | G40: =IF(AND('Mittelung Klassengrenzen'!$E$15<=Energieausweis!H41,'Mittelung Klassengrenzen'!$E$15>Energieausweis!G41)=TRUE,'Mittelung Klassengrenzen'!$E$15,IF(F40<10000,"l/m²a","")) ->  | H40: =IF(AND('Mittelung Klassengrenzen'!$E$15<=Energieausweis!I41,'Mittelung Klassengrenzen'!$E$15>Energieausweis!H41)=TRUE,'Mittelung Klassengrenzen'!$E$15,IF(G40<10000,"l/m²a","")) ->  | I40: =IF(AND('Mittelung Klassengrenzen'!$E$15<=Energieausweis!J41,'Mittelung Klassengrenzen'!$E$15>Energieausweis!I41)=TRUE,'Mittelung Klassengrenzen'!$E$15,IF(H40<10000,"l/m²a","")) ->  | J40: =IF(AND('Mittelung Klassengrenzen'!$E$15<=Energieausweis!K41,'Mittelung Klassengrenzen'!$E$15>Energieausweis!J41)=TRUE,'Mittelung Klassengrenzen'!$E$15,IF(I40<10000,"l/m²a","")) -> 667 | K40: =IF(AND('Mittelung Klassengrenzen'!$E$15<=Energieausweis!L41,'Mittelung Klassengrenzen'!$E$15>Energieausweis!K41)=TRUE,'Mittelung Klassengrenzen'!$E$15,IF(J40<10000,"l/m²a","")) -> l/m²a | M40: ='Mittelung Klassengrenzen'!F15 -> 0 | N40: €/a
D41: ='Mittelung Klassengrenzen'!C39 -> 0 | E41: ='Mittelung Klassengrenzen'!D39 -> 114 | F41: ='Mittelung Klassengrenzen'!E39 -> 157 | G41: ='Mittelung Klassengrenzen'!F39 -> 205 * | H41: ='Mittelung Klassengrenzen'!G39 -> 294 | I41: ='Mittelung Klassengrenzen'!H39 -> 447 | J41: ='Mittelung Klassengrenzen'!I39 -> 635 | K41: l/m²a
B42: effizient | D42: A | E42: B | F42: C | G42: D | H42: E | I42: F | J42: G | K42: ineffizient | M42: =M40/I$14 -> 0.00 €/(m²a) | N42: €/m²a
F43: =CONCATENATE(" Vergleichswert Deutscher Städtetag = ",'Mittelung Klassengrenzen'!$L$39," l/(m²a)") ->  | N43: incl. Abwassergebühr
B44: Primärenergieverbrauch | D44: =Eingabewerte!I54 -> 0 kWh/(m²a) | F44: =IF(Hilfstabellen!D154=FALSE(),"","CO₂-Emissionen ") -> CO₂-Emissionen | H44: =IF(Hilfstabellen!$D$154=FALSE(),"",Eingabewerte!N54) -> 0 kg/(m²a) | L44: Energie- und Wasserkosten | M44: =M26+M33+M40 ->  | N44: €/a
B46: Erläuterungen
B47: =IF(Eingabewerte!B74>0,Eingabewerte!B74,"") -> Die Verbrauchswerte werden beeinflusst durch den baulichen Zustand, die Betriebsführung und das Nutzerverhalten
B53: Empfehlungen zur kosteneffizienten Modernisierung | K53: Kosten | M53: Einsparung
B54: =IF(Eingabewerte!B81>0,Eingabewerte!B81,"") -> Lüftung nur kurz und stoßweise | K54: =IF(Eingabewerte!L81>0,Eingabewerte!L81,"") ->  | L54: =IF(K54="","","€") ->  | M54: =IF(Eingabewerte!N81>0,Eingabewerte!N81,"") ->  | N54: =IF(M54="","","€/a") -> 
B55: =IF(Eingabewerte!B82>0,Eingabewerte!B82,"") -> Abschalten der Beleuchtung bei ausreichendem Tageslicht | K55: =IF(Eingabewerte!L82>0,Eingabewerte!L82,"") ->  | L55: =IF(K55="","","€") ->  | M55: =IF(Eingabewerte!N82>0,Eingabewerte!N82,"") ->  | N55: =IF(M55="","","€/a") -> 
B56: =IF(Eingabewerte!B83>0,Eingabewerte!B83,"") -> Konsequente Nutzung der Sparfunktion an Toilettenspülungen | K56: =IF(Eingabewerte!L83>0,Eingabewerte!L83,"") ->  | L56: =IF(K56="","","€") ->  | M56: =IF(Eingabewerte!N83>0,Eingabewerte!N83,"") ->  | N56: =IF(M56="","","€/a") -> 
B57: =IF(Eingabewerte!B84>0,Eingabewerte!B84,"") ->  | K57: =IF(Eingabewerte!L84>0,Eingabewerte!L84,"") ->  | L57: =IF(K57="","","€") ->  | M57: =IF(Eingabewerte!N84>0,Eingabewerte!N84,"") ->  | N57: =IF(M57="","","€/a") -> 
B58: =IF(Eingabewerte!B85>0,Eingabewerte!B85,"") ->  | K58: =IF(Eingabewerte!L85>0,Eingabewerte!L85,"") ->  | L58: =IF(K58="","","€") ->  | M58: =IF(Eingabewerte!N85>0,Eingabewerte!N85,"") ->  | N58: =IF(M58="","","€/a") -> 
B60: Empfehlungen zu Nutzung und Betrieb | M60: Einsparung
B61: =IF(Eingabewerte!B88>0,Eingabewerte!B88,"") -> Lüftung nur kurz und stoßweise | M61: =IF(Eingabewerte!N88>0,Eingabewerte!N88,"") ->  | N61: =IF(M61="","","€/a") -> 
B62: =IF(Eingabewerte!B89>0,Eingabewerte!B89,"") -> Abschalten der Beleuchtung bei ausreichendem Tageslicht | M62: =IF(Eingabewerte!N89>0,Eingabewerte!N89,"") ->  | N62: =IF(M62="","","€/a") -> 
B63: =IF(Eingabewerte!B90>0,Eingabewerte!B90,"") -> Konsequente Nutzung der Sparfunktion an Toilettenspülungen | M63: =IF(Eingabewerte!N90>0,Eingabewerte!N90,"") ->  | N63: =IF(M63="","","€/a") -> 
B64: =IF(Eingabewerte!B91>0,Eingabewerte!B91,"") ->  | M64: =IF(Eingabewerte!N91>0,Eingabewerte!N91,"") ->  | N64: =IF(M64="","","€/a") -> 
B66: Aussteller:
B67: =IF(Eingabewerte!E94="","",Eingabewerte!E94) -> 
B68: =J70 -> 
B69: =IF(Eingabewerte!E98="","",Eingabewerte!E98) -> 
B70: =Eingabewerte!E99& " " &Eingabewerte!F99 ->  | I70: =Eingabewerte!E100 -> 2022-06-27 | J70: =Eingabewerte!E95 & " "& Eingabewerte!E97 &" " & Eingabewerte!E96 -> 
B72: Weitere Informationen erhalten Sie unter: | N72: Ihre Ideen zur Energieeinsparung bitte an:
B73: energiemanagement.stadt-frankfurt.de | J73: energiemanagement@stadt-frankfurt.de

Sheet Angaben Prüfstelle - Reg.
B2: Angaben zum Energieausweis
A4: 1 | B4: Aussteller_ID_DIBT | F4: =IF(Eingabewerte!L94=0,"",Eingabewerte!L94) -> 
A5: =A4+1 -> 2 | B5: Aussteller_PWD_DIBT | F5: =PasswordGenerateMD5(Eingabewerte!L95) -> 
A6: 3 | B6: Ausstellungsdatum | F6: =Energieausweis!I70 -> 2022-06-27
A7: 4 | B7: Bundesland | F7: =Eingabewerte!E13 -> 0
A8: 5 | B8: Postleitzahl | F8: =Eingabewerte!C32 -> 60486
A9: 6 | B9: Gebäudeart | F9: =IF(Eingabewerte!K16=6100,"Wohngebäude","Nichtwohngebäude") -> Nichtwohngebäude
A10: 7 | B10: Art | F10: Energieverbrauchsausweis
A11: 8 | B11: Neubau | F11: 0
A12: 9 | B12: Gesetzesgrundlage | F12: GEG-2020
B14: Angaben zur Registrier-Schnittstelle
B16: Testsystem | F16: https://energieausweis.dibt.de/sandbox/WebServiceEnergieausweis/DibtEnergieAusweisService.asmx
B17: Livesystem | F17: https://energieausweis.dibt.de/published/WebServiceEnergieausweis/DibtEnergieAusweisService.asmx
B18: Aktive Schnittstelle | F18: Testsystem

Sheet Angaben Prüfstelle - Allgemein
B2: Angaben zum Energieausweis | J2: Zusatz Nichtwohngebäude | P2: stellt eine Auswahl dar, die programmatisch ausgewertet wird und Einfluss auf die verwendeten XML-Daten hat
P3: hat keine Entsprechung im verbundenen XML-Schema
B4: Gebäudeart | F4: Nichtwohngebäude | P4: Zusatz Nichtwohngebäude: entspricht den Daten auf der linken Seite
B5: Allgemein | P5: Angaben zum Energieausweis: Angaben sind nur für Nichtwohngebäude relevant
B6: Projektbezeichnung | F6: =Eingabewerte!E11 -> 0 | P6: Aktualisierungsvorbehalt bis zur Veröffentlichung der "Bekanntmachung der Regeln für Energieverbrauchswerte im Wohngebäudebestand" und "Bekanntmachung der Regeln für Energieverbrauchswerte und der Vergleichswerte im Nichtwohngebäudebestand" gemäß § 82 Abs. 5"
B7: Ausstelldatum | F7: =Energieausweis!I70 -> 2022-06-27
B8: Anlass der Ausstellung | F8: =INDEX(Hilfstabellen!$B$40:$B$46,Eingabewerte!L96) -> Aushangpflicht
B9: Datenerhebung durch | F9: =IF(DatenerhebungDurchAussteller, "Austeller", "Eigentümer") -> Austeller
B10: Berufsbezeichnung | F10: =Eingabewerte!E95 -> 0
B11: Name | F11: =Eingabewerte!E96 -> 0
B12: Vorname | F12: =Eingabewerte!E97 -> 0
B13: Straße + Hausnummer | F13: =Eingabewerte!E98 -> 0
B14: Postleitzahl | F14: =Eingabewerte!E99 -> 0
B15: Ort | F15: =Eingabewerte!$F$99 -> 0
B16: Netto-Raumfläche | F16: =Eingabewerte!L20 -> 5000
B17: Gebäudeteil | F17: =Eingabewerte!E14 -> Teil des Nichtwohngebäudes | P17: Erlaubte Werte: - "Ganzes Gebäude" - "Teil des Wohngebäudes" - "Teil des Nichtwohngebäudes"
B18: Bundesland | F18: =Eingabewerte!$E$13 -> 0
B19: Strasse und Nr. | F19: =Energieausweis!D9 -> 
B20: Postleitzahl | F20: =Eingabewerte!C32 -> 60486
B21: Postleitzahl (anonymisiert) | F21: =CONCATENATE(MID(F20,1,3),"XX") -> 604XX
B22: Ort | F22: =TRIM(Eingabewerte!E32) -> Frankfurt am Main, Stadt / Frankfu | P22: 1-35 Zeichen
B23: Gesetzesgrundlage | F23: ='Angaben Prüfstelle - Reg.'!F12 -> GEG-2020
B24: Baujahr | F24: =IF(OR(Eingabewerte!E21="",Eingabewerte!E21=0),"",Eingabewerte!E21) -> 
B25: Altersklasse | F25: =Hilfstabellen!$D$80 -> 1984...1994
B26: Wesentliche Energieträger (Heizung) | F26: =Eingabewerte!$G$22 -> Erdgas
B27: Wesentliche Energieträger (Warmwasser) | F27: =F26 -> Erdgas | J27: neu eWorks | L27: geprüfen ob anders noch in Frage kommt | O27: TODO: Verknüpfung mit Eingabedaten?
B28: Baujahr (Wärmeerzeuger) | F28: =IF(Eingabewerte!$G$21="","0",Eingabewerte!$G$21) -> 0
B29: Altersklasse (Wärmeerzeuger) | F29: =Hilfstabellen!$D$81 -> 2003...2009
B30: Art (Erneuerbare Energien) | F30: =IF(Eingabewerte!E23="","keine",Eingabewerte!E23) -> PV
B31: Verwendung (Erneuerbare Energien) | F31: =IF(Eingabewerte!J23="","keine",Eingabewerte!J23) -> Stromerzeugung
B32: Fensterlüftung | F32: FALSE
B33: Schachtlüftung | F33: FALSE
B34: Lüftungsanlage m. WRG | F34: FALSE
B35: Lüftungsanlage o. WRG | F35: TRUE
B36: Passive Kühlung | F36: FALSE | J36: neu
B37: Kühlung aus Wärme | F37: TRUE | J37: neu
B38: gelieferte Kälte | F38: TRUE | J38: neu
B39: Kühlungsart Strom | F39: TRUE
B40: Keine inspektionspflichtige Klimaanlage | F40: =IF(SUM(Eingabewerte!C26:C28)>0,FALSE,TRUE) -> FALSE
B41: Inspektionpfl. Klimaanlagen | F41: =SUM(Eingabewerte!C26:'Eingabewerte'!C28) -> 1
B42: Anlage größer 12kW ohne GA | F42: TRUE
B43: Anlage größer 12kW mit GA | F43: FALSE
B44: Anlage größer 70kW | F44: FALSE
B45: Nächstes Fälligkeitsdatum der Inspektion am | F45: =Energieausweis!I22 -> 
B46: Treibhausgasemissionen | F46: =Eingabewerte!N54 -> 0.04 | K46: kg/m²a | P46: Pflichtangabe der Treibhausgasemissionen in kg als CO2 Äquivalent/(m²a) für Bedarfsausweise, Verbrauchsausweise und Aushänge (gemäß GEG § 85 (2), (3) und (6) bzw. nach Berechnungsregeln gem. Anlage 9). Dezimalzahl [-100.000,00; +100.000,00]
B47: Primärenergieverbrauch | J47: =ROUND(Eingabewerte!$I$54,1) -> 0
B48: Hauptnutzung
B49: Hauptnutzung/Gebäudekategorie | J49: =INDEX('Angaben Prüfstelle - Zusatz'!C41:C93,'Mittelung Klassengrenzen'!B5) -> 21:Schulen | P49: Pflichtangabe der Hauptnutzungsart des Gebäudes. Die Auswahl der Hauptnutzung-Gebaeudekategorie ergibt sich aus der "Bekanntmachung der Regeln für Energieverbrauchswerte und der Vergleichswerte im Nichtwohngebäudebestand" unter der Anlage 1 Tabelle 1 Teilenergiekennwerte (TEK) nach Gebäudekategorien.
B50: Hauptnutzung/Gebäudekategorie Sonstiges-Bezeichnung | J50: ='Mittelung Klassengrenzen'!A5 -> Schulen und KTs | P50: Sollte keine der 52 Gebäudekategorien laut Bekanntmachung für die Hauptnutzung zutreffend sein, muss in Hauptnutzung-Gebaeudekategorie-Sonstiges-Beschreibung eine alternative Bezeichnung eingetragen werden. Für die Seite 3 im Energieverbrauchsausweis Nichtwohngebäude darf die Gebäudekategorie '53:Sonstiges' nicht verwendet werden.
B51: Verbrauch
B52: Heizungsverbrauch | J52: =ROUND('Mittelung Klassengrenzen'!$A$15,1) -> 0
B53: Stromverbrauch | J53: =ROUND('Mittelung Klassengrenzen'!$C$15,1) -> 0
B54: Vergleichswert Heizung nach GEG | J54: =ROUND('Mittelung Klassengrenzen'!$L$24,1) -> 50.3
B55: Vergleichswert Strom nach GEG | J55: =ROUND('Mittelung Klassengrenzen'!$L$32,1) -> 4
B56: Leerstand
B57: Kein Leerstand | F57: =Hilfstabellen!KeinLeerstand -> TRUE | J57: =Hilfstabellen!KeinLeerstand -> TRUE
B58: Kein Leerstand Wert | F58: =IF(F57,"Kein längerer Leerstand Heizung zu berücksichtigen.","") -> Kein längerer Leerstand Heizung zu berücksichtigen. | G58: =IF(F57,"Kein längerer Leerstand Warmwasser zu berücksichtigen.","") -> Kein längerer Leerstand Warmwasser zu berücksichtigen. | J58: =IF(J57,"Kein längerer Leerstand Heizung zu berücksichtigen.","") -> Kein längerer Leerstand Heizung zu berücksichtigen. | K58: =IF(J57,"Kein längerer Leerstand Strom zu berücksichtigen.","") -> Kein längerer Leerstand Strom zu berücksichtigen. | L58: =IF(J57,"Kein längerer Leerstand Warmwasser zu berücksichtigen.","") -> Kein längerer Leerstand Warmwasser zu berücksichtigen. | M58: =IF(J57,"Kein längerer Leerstand thermisch erzeugte Kälte zu berücksichtigen.","") -> Kein längerer Leerstand thermisch erzeugte Kälte zu berücksichtigen.
B59: Leerstandskorrektur nach Bekanntmachung
B60: Korrektur nach Bekanntmachung | F60: =IF(LeerstandWohngebäudeKein, FALSE, Hilfstabellen!LeerstandEntsprechendBekanntmachung) -> FALSE | J60: =IF(LeerstandNichtwohngebäudeKein, FALSE, Hilfstabellen!LeerstandEntsprechendBekanntmachung) -> FALSE
F61: Heizung: | G61: WW: | J61: Heizung: | K61: Strom: | L61: WW: | M61: Th. Kälte
B62: Entsprechend der Bekanntmachung (Leerstandsfaktor) | F62: =IF(LeerstandWohngebäudeBekanntmachung=FALSE(),"",IF(Eingabewerte!$G$65="",0,Eingabewerte!$G$65)) ->  | G62: =F62 ->  | J62: =IF(LeerstandNichtwohngebäudeKein, "", IF(LeerstandNichtwohngebäudeBekanntmachung, Eingabewerte!G64, IF(Eingabewerte!$G$65="",0,ROUND(Eingabewerte!$G$65,2)))) ->  | K62: =IF(LeerstandNichtwohngebäudeKein, "", IF(LeerstandNichtwohngebäudeBekanntmachung, Eingabewerte!H64, IF(Eingabewerte!$G$65="",0,ROUND(Eingabewerte!$G$65,2)))) ->  | L62: =IF(LeerstandNichtwohngebäudeKein, "", IF(LeerstandNichtwohngebäudeBekanntmachung, Eingabewerte!I64, IF(Eingabewerte!$G$65="",0,ROUND(Eingabewerte!$G$65,2)))) ->  | M62: =IF(LeerstandNichtwohngebäudeKein, "", IF(LeerstandNichtwohngebäudeBekanntmachung, Eingabewerte!J64, IF(Eingabewerte!$G$65="",0,ROUND(Eingabewerte!$G$65,2)))) -> 
B63: Start | F63: =IF(LeerstandWohngebäudeBekanntmachung, IF(Eingabewerte!$G$67="","",Eingabewerte!$G$67), "") ->  | G63: =F63 ->  | J63: =IF(LeerstandNichtwohngebäudeBekanntmachung, IF(Eingabewerte!$G$67="","",Eingabewerte!$G$67), "") ->  | K63: =J63 -> 
B64: Enddatum | F64: =IF(LeerstandWohngebäudeBekanntmachung, IF(Eingabewerte!$G$68="","",Eingabewerte!$G$68), "") ->  | G64: =F64 ->  | J64: =IF(LeerstandNichtwohngebäudeBekanntmachung, IF(Eingabewerte!$G$68="","",Eingabewerte!$G$68), "") -> 
B65: Primärenergiefaktor | F65: =IF(LeerstandWohngebäudeBekanntmachung=FALSE(),"",IF(Hilfstabellen!LeerstandSonstiges=TRUE(),0,ROUND(Eingabewerte!$G$70,2))) ->  | G65: =F65 ->  | J65: =IF(LeerstandNichtwohngebäudeBekanntmachung=FALSE(),"",IF(Hilfstabellen!LeerstandSonstiges=TRUE(),0,ROUND(Eingabewerte!$G$70,2))) ->  | K65: =IF(LeerstandNichtwohngebäudeBekanntmachung=FALSE(),"",IF(Hilfstabellen!LeerstandSonstiges=TRUE(),0,ROUND(Eingabewerte!$J$70,2))) ->  | L65: =J65 ->  | M65: =J65 -> 
B66: Leerstandszuschläge (kWh) | F66: =IF(LeerstandWohngebäudeBekanntmachung=FALSE(),"",IF(Hilfstabellen!LeerstandSonstiges=TRUE(),0,Eingabewerte!$N$67)) ->  | G66: =IF(LeerstandWohngebäudeBekanntmachung=FALSE(),"",IF(Hilfstabellen!LeerstandSonstiges=TRUE(),0,Eingabewerte!$N$65)) ->  | J66: =IF(LeerstandNichtwohngebäudeBekanntmachung=FALSE(),"",IF(Hilfstabellen!LeerstandSonstiges=TRUE(),0,Eingabewerte!$N$67)) ->  | K66: =IF(LeerstandNichtwohngebäudeBekanntmachung=FALSE(),"",IF(Hilfstabellen!LeerstandSonstiges=TRUE(),0,Eingabewerte!$N$68)) ->  | L66: =IF(LeerstandNichtwohngebäudeBekanntmachung=FALSE(),"",ROUND(IF(Hilfstabellen!LeerstandSonstiges=TRUE(),0,Eingabewerte!$N$65),0)) ->  | M66: =IF(LeerstandNichtwohngebäudeBekanntmachung=FALSE(),"",ROUND(IF(Hilfstabellen!LeerstandSonstiges=TRUE(),0,Eingabewerte!$N$66),0)) -> 
B67: Leerstandszuschläge (kWh/Gesamt) | F67: =IF(Hilfstabellen!$D87=FALSE(),"",IF(Hilfstabellen!$D88=TRUE(),0,Eingabewerte!$N$64)) -> 0 | J67: =IF(Hilfstabellen!$D87=FALSE(),0,IF(Hilfstabellen!$D88=TRUE(),0,Eingabewerte!$N$64)) -> 0
B68: Zuschlagsfaktor | F68: =IF(LeerstandWohngebäudeBekanntmachung, ROUND(SUM(F66:G66)/Eingabewerte!E33, 2), "") ->  | J68: =IF(LeerstandNichtwohngebäudeBekanntmachung, ROUND(SUM(J66:M66)/Eingabewerte!E33, 2), "") ->  | O68: TODO: Verknüpfung it Eingabewerten | P68: Wohngebäude: Zuschlagsfaktor f(eVhb, 12mth) nach der Formel f(eVhb, 12mth) = - 0,0028 * eVhb, 12mth + 0,9147 Nichtwohngebäude: Zuschlagsfaktor f(eVhb, 12mth) nach der Formel f(eVhb, 12mth) = - 0,0083 * eVhb, 12mth + 1,3982 gemäß GEG § 82 und gemeinsamen Bekanntmachung des Bundesministeriums für Wirtschaft und Energie und des Bundesministerium für Umwelt, Naturschutz, Bau und Reaktorsicherheit.
B69: Witterungsvereinigter Endenergieverbrauchsanteil | F69: =IF(LeerstandWohngebäudeBekanntmachung, ROUND(Eingabewerte!J66, 2), "") ->  | J69: =IF(LeerstandNichtwohngebäudeBekanntmachung, ROUND(Eingabewerte!J66,2), "") ->  | O69: TODO: Verknüpfung it Eingabewerten | P69: Witterungsbereinigter Endenergieverbrauchsanteil für Heizung eVhb, 12mth ist Teil der Formel für Berechnung der Zuschlagsfaktor, Einheit in kWh/m²a; gemäß GEG § 82 und gemeinsamer Bekanntmachung des Bundesministeriums für Wirtschaft und Energie und des Bundesministerium für Umwelt, Naturschutz, Bau und Reaktorsicherheit.
B70: Leerstandszuschläge (kWh/Strom) | F70: =IF(Hilfstabellen!$D87=FALSE(),"",IF(Hilfstabellen!$D88=TRUE(),0,Eingabewerte!$N$68)) -> 0
B71: Leerstandszuschläge (m³/Wasser) | F71: =IF(Hilfstabellen!$D87=FALSE(),"",IF(Hilfstabellen!$D89=TRUE(),0,Eingabewerte!$N$69)) -> 0 | J71: =IF(Hilfstabellen!$D87=FALSE(),0,IF(Hilfstabellen!$D88=TRUE(),0,ROUND(Eingabewerte!$N$69,2))) -> 0
B72: Klimafaktor | F72: =IF(Hilfstabellen!$D87=FALSE(),"",IF(Hilfstabellen!$D88=TRUE(),0,Eingabewerte!$G$69)) ->  | J72: =IF(Hilfstabellen!$D87=FALSE(),"",IF(Hilfstabellen!$D88=TRUE(),0,Eingabewerte!$G$69)) -> 
B73: keine Nutzung von Warmwasser | F73: =$F$66<=0 -> FALSE | J73: =$L$66<=0 -> FALSE
B74: Strom enthält…
B75: Sonstiges | J75: =OR('Mittelung Klassengrenzen'!T26:U26) -> FALSE
B76: Warmwasser | J76: FALSE
B77: Lüftung | J77: =OR('Mittelung Klassengrenzen'!O26:P26) -> TRUE
B78: Beleuchtung | J78: FALSE
B79: Kühlung aus Strom | J79: =F39 -> TRUE
B80: Zusatzheizung | J80: =IFERROR(IF(Eingabewerte!D47>0, TRUE, FALSE), FALSE) -> FALSE
B81: Ent u. Befeuchtung Strom | J81: FALSE
B82: Ent u. Befeuchtung Thermisch | J82: FALSE
B83: Startdatum | J83: =Eingabewerte!E44 -> 2018-01-01
B84: Enddatum | J84: =Eingabewerte!G44 -> 2020-12-31
B85: Energieverbrauch-Strom | J85: =Eingabewerte!E45+IF(ISNUMBER(K66), K66, 0) -> 1,000
B86: Energieverbrauchsanteil elektr. erzeugte Kälte (optional) | J86: =IF(J79, ROUND(Eingabewerte!I48,0), "") -> 500 | P86: Im Verbrauchswert enthaltener Wert für elektrisch erzeugte Kälte in kWh.
B87: Heizenergie enthält…
B88: Warmwasser | J88: FALSE | P88: Ist als TRUE anzugeben, wenn mindestens einer der (ggfs. mehreren) Heizenergieträger auch zur Warmwasserbereitung dient, die entspr. Mengen sind in der Verbrauchsliste anzugeben, entspricht dem Kreuzchenfeld im Energieausweis-Nichtwohngebäude, Verbrauchsseite, direkt links unter der Verbrauchsskala Endenergieverbrauch Wärme.
B89: Kühlung aus Wärme | J89: =OR(F37,F38) -> TRUE | P89: Ist als TRUE anzugeben, wenn mindestens einer der (ggfs. mehreren) Heizenergieträger auch zur Kühlung dient, die entspr. Mengen sind in der Verbrauchsliste anzugeben, entspricht dem Kreuzchenfeld im Energieausweis-Nichtwohngebäude, Verbrauchsseite, direkt links unter der Verbrauchsskala Endenergieverbrauch Kühlung.
B90: Sanierung
B91: Sind Energetische Sanierungen zu Empfehlen | F91: =IF(Energieausweis!B54="",FALSE(), TRUE()) -> TRUE
B92: Auswahl Erweiterung-Vorhaben | F92: =INDEX(Hilfstabellen!F40:F47, Eingabewerte!L96) -> 1 | J92: neu eWorks
B93: keine Modernisierung Erweiterung Vorhaben | F93: =$F$92=1 -> TRUE | J93: neu eWorks
B94: Modernisierung Erweiterung anzeigepflichtig | F94: =$F$92=2 -> FALSE | J94: neu eWorks
B95: Modernisierung Erweiterung genehmigungspflichtig | F95: =$F$92=3 -> FALSE | J95: neu eWorks
B96: Genauere Angaben sind erhältlich bei/unter | F96: =Energieausweis!$B$73 -> energiemanagement.stadt-frankfurt.de
B97: Weitere Empfehlungen auf gesondertem Blatt | F97: FALSE
B98: Wohngebäude
B99: Energieeffizienzklasse
B100: Energieverbrauch-An
B101: Primärenergieverbrauch-An
B102: Gebäudenutzungsfläche (An)
B103: Flächenmittlung nach §19 EnEV
B104: Keller beheizt?
B105: Wohnfläche
B106: Anzahl Wohnungen
B107: Warmwasserbereitung
B108: Enthält Zuschläge
B109: Start
B110: Ende
B111: Primärenergiefaktor
B112: Warmwasserzuschlag / kWh
B113: Kühlung
B114: Enthält Zuschläge
B115: Start
B116: Ende
B117: Gebäudenutzfläche gekühlt
B118: Primärenergie
B119: Zuschlag für Kühlenergie / kWh
B120: Gesondertes Blatt
B140: Ergänzende Erläuterungen zu den Angaben im Energieausweis | F140: =CONCATENATE(Eingabewerte!B74,Eingabewerte!B75) -> Die Verbrauchswerte werden beeinflusst durch den baulichen Zustand, die Betriebsführung und das Nutzerverhalten
B160: Informationen beifügen | F160: FALSE
B161: Datenerhebung durch den Aussteller | F161: TRUE
B162: Datenerhebung durch den Eigentümer | F162: FALSE
B163: Gebäudetyp | O163: TODO: Werte prüfen | P163: Erlaubte Werte: - "Einfamilienhaus" - "Zweifamilienhaus" - "Mehrfamilienhaus" - "Wohnteil gemischt genutztes Gebäude" - "Sonstiges"
B164: Zugangskennung | F164: =Eingabewerte!L94 -> 0
B165: Registriernummer | F165: =IF(Eingabewerte!E101<>"", Eingabewerte!E101, VLOOKUP(Eingabewerte!E13, Bundesländer, 2,FALSE) & "-2000-000000000") -> 
B166: Programm-Version | F166: =Eingabewerte!$B$6 -> Version 5.3 vom 25.10.2022
B167: Rechtsstand | F167: =Energieausweis!G4 -> 2020-08-13
B168: Rechtsstand-Grund | F168: =INDEX(Hilfstabellen!AnlassZuRechtsstandGrund, Eingabewerte!L96) -> Ausweisausstellung (bei Verbrauchsausweisen und alle anderen Fälle) | O168: TODO Pflichtfeld: Rechtsstand-Grund | P168: Erlaubte Werte nach 0.2: - "Bauantrag bei genehmigungspflichtigen Vorhaben (Ausstellungsanlässe Neubau und Modernisierung)" - "Bauanzeige bei anzeigepflichtigen Vorhaben (Ausstellungsanlässe Neubau und Modernisierung)" - "Baubeginn (Ausstellungsanlass Modernisierung)" - "Fertigstellung (auf Wunsch des Bauherrn in allen vorgenannten Fällen)" - "Ausweisausstellung (bei Verbrauchsausweisen und alle anderen Fälle)"
B169: Klimaanlage größer 12 KW mit Gebäudeautomation | F169: TRUE
B170: Klimaanlage größer 12 KW ohne Gebäudeautomation | F170: TRUE
B171: Klimaanlage größer 70 KW | F171: FALSE

Sheet Angaben Prüfstelle - Zusatz
B2: Energieträger Wohngebäude | L2: Art, wie der Warmwasserwert ggfs. aus Messungen oder Berechnungen ermittelt wurde. Bei dezentraler Warmwasserbereitung in Wohngebäuden ist die Auswahl "Pauschale für dezentrale..." auszuwählen und das entsprechende Korrekturverfahren anzuwenden (siehe Element Warmwasserzuschlag-Daten). Die Auswahl "keine Warmwasserbereitung enthalten" ist bei Wohngebäuden zu wählen, wenn ein anderer ebenfalls gelisteter Energieträger die zentrale Warmwasserbereitung versorgt. | N2: (optional)
B3: Sonstiger Energieträgerverbrauch | C3: Energieträgerverbrauch | D3: Umrechnungsfaktor | E3: Primaerenergiefaktor | F3: Emissionsfaktor | G3: Startdatum | H3: Enddatum | I3: Energieverbrauch | J3: Verbrauchswert-kWh-Heizwert | K3: Warmwasserwert | L3: Warmwasser-wertermittlung | M3: Anteil thermisch erzeugte Kälte | N3: Klimafaktor | O3: Verbrauchswert-kWh-Strom | P3: Verbrauchte-Menge
B12: Energieträger Nichtwohngebäude | D12: Energieverbrauch in kWh_Heizwert, wenn schon in kWh_Heizwert angegeben, dann "1,0" (Unterer Heizwert: H_i) | E12: Primärenergiefaktor: f_p entsprechend Anlage 4 GEG | F12: gemäß Anlage 9 des GEG | I12: Verbrauchswert in kWh Heizwert als Einheit, brutto einschliesslich eventuell enthaltenem Warmwasser und ggf. enthaltene thermisch erzeugte Kälte bei Nichtwohngebäude (Energieverbrauch: E_Vg,Zeitabschnitt). | K12: Im Verbrauchswert enthaltener Wert für zentrale Warmwasserbereitung (ggfs. 0 wenn keine Warmwasserbereitung über diesen Energieträger) in kWh (Energieverbrauchsanteil für zentrale Warmwasserbereitung: E_VWW,Zeitabschnitt). | L12: Bei Nichtwohngebäuden ist sie zu wählen, wenn die Warmwasserbereitung im Stromverbrauch erfasst ist oder generell kein Warmwasser mit gebäudetechnischen Anlagen im Gebäude erzeugt wird. | M12: (optional) | N12: Klimafaktor dieser Periode entsprechend Gebäudestandort (Klimafaktor: f_Klima). | O12: Verbrauchswert Strom in kWh zum Betreiben des jeweiligen Wärmeerzeugers (Pumpen etc.), sofern dieser ermittelt wird. | P12: Erfasste verbrauchte Menge in der zum ausgewählten Energieträger gehörigen Einheit, brutto einschliesslich eventuell enthaltenem Warmwasser und ggf. enthaltene thermisch erzeugte Kälte bei Nichtwohngebäude (Verbrauchte Menge: B_Vg,Zeitabschnitt).
B13: Sonstiger Energieträgerverbrauch | C13: Energieträgerverbrauch | D13: Unterer-Heizwert | E13: Primaerenergiefaktor | F13: Emissionsfaktor in g/kWh | G13: Startdatum | H13: Enddatum | I13: Energieverbrauch | J13: Energieverbrauchsanteil-Heizung | K13: Energieverbrauchsanteil-Warmwasser-zentral | L13: Warmwasserwertermittlung | M13: Energieverbrauchsanteil-thermisch-erzeugte-Kaelte | N13: Klimafaktor | O13: Verbrauchswert-kWh-Strom | P13: Verbrauchte-Menge | Q13: Aktiv
B14: =IF(Tabelle378[[#This Row],[Energieträgerverbrauch]]="", INDEX(Hilfstabellen!$B$4:$F$31,Eingabewerte!B39, 1), "") ->  | C14: =IF(INDEX(Hilfstabellen!EnergieträgerVerbrauchHeizungEnum,Eingabewerte!B39, 2)<>"",INDEX(Hilfstabellen!EnergieträgerVerbrauchHeizungEnum,Eingabewerte!B39, 2),"") -> Erdgas in kWh Brennwert | D14: =IF(Tabelle378[[#This Row],[Aktiv]],Eingabewerte!$C$36,"") -> 1.0 | E14: =IF(Tabelle378[[#This Row],[Aktiv]],ROUND(Eingabewerte!N39,2),"") -> 1.1 | F14: =IF(Tabelle378[[#This Row],[Aktiv]],INDEX(Hilfstabellen!$B$4:$F$31,Eingabewerte!B39, 4)*1000, "") -> 240 | G14: =IF(Tabelle378[[#This Row],[Aktiv]],Eingabewerte!$E$31,"") -> 2018-01-01 | H14: =IF(Tabelle378[[#This Row],[Aktiv]],Eingabewerte!$G$31,"") -> 2020-12-31 | I14: =IF(Tabelle378[[#This Row],[Aktiv]],Tabelle378[[#This Row],[Unterer-Heizwert]]*Tabelle378[[#This Row],[Verbrauchte-Menge]],"") -> 100 | J14: =IF(Tabelle378[[#This Row],[Aktiv]], Tabelle378[[#This Row],[Energieverbrauch]]-SUM(Tabelle378[[#This Row],[Energieverbrauchsanteil-Warmwasser-zentral]]+Tabelle378[[#This Row],[Energieverbrauchsanteil-thermisch-erzeugte-Kaelte]]), "") -> -49,900 | K14: =IF(Tabelle378[[#This Row],[Aktiv]], IF('Angaben Prüfstelle - Allgemein'!$J$88, ROUND(Eingabewerte!$E$36*Eingabewerte!$G39*Tabelle378[[#This Row],[Unterer-Heizwert]],0), 0), "") -> 0 | L14: =IF(Tabelle378[[#This Row],[Aktiv]], IF('Angaben Prüfstelle - Allgemein'!$J$88=TRUE(),"sonstige Ermittlung des Verbrauchsanteils der Warmwasserbereitung","keine Warmwasserbereitung enthalten"), "") -> keine Warmwasserbereitung enthalten | M14: =IF(Tabelle378[[#This Row],[Aktiv]], IF('Angaben Prüfstelle - Allgemein'!$J$89, ROUND(SUM(Eingabewerte!$G$36,Eingabewerte!$J$36,Eingabewerte!$L$36)*Eingabewerte!$G39*Tabelle378[[#This Row],[Unterer-Heizwert]],0), 0), "") -> 50000 | N14: =IF(Tabelle378[[#This Row],[Aktiv]],ROUND(Eingabewerte!$I$32,2),"") -> 1.3 | O14: =IF(Tabelle378[[#This Row],[Aktiv]], "", "") ->  | P14: =IF(Tabelle378[[#This Row],[Aktiv]],ROUND((Eingabewerte!$E$33)*Eingabewerte!$G39,0),"") -> 100 | Q14: =OR(Tabelle378[[#This Row],[Sonstiger Energieträgerverbrauch]]<>"",Tabelle378[[#This Row],[Energieträgerverbrauch]]<>"") -> TRUE
B15: =IF(Tabelle378[[#This Row],[Energieträgerverbrauch]]="", INDEX(Hilfstabellen!$B$4:$F$31,Eingabewerte!B40, 1), "") ->  | C15: =IF(INDEX(Hilfstabellen!EnergieträgerVerbrauchHeizungEnum,Eingabewerte!B40, 2)<>"",INDEX(Hilfstabellen!EnergieträgerVerbrauchHeizungEnum,Eingabewerte!B40, 2),"") ->  | D15: =IF(Tabelle378[[#This Row],[Aktiv]],Eingabewerte!$C$36,"") ->  | E15: =IF(Tabelle378[[#This Row],[Aktiv]],ROUND(Eingabewerte!N40,2),"") ->  | F15: =IF(Tabelle378[[#This Row],[Aktiv]],INDEX(Hilfstabellen!$B$4:$F$31,Eingabewerte!B40, 4)*1000, "") ->  | G15: =IF(Tabelle378[[#This Row],[Aktiv]],Eingabewerte!$E$31,"") ->  | H15: =IF(Tabelle378[[#This Row],[Aktiv]],Eingabewerte!$G$31,"") ->  | I15: =IF(Tabelle378[[#This Row],[Aktiv]],Tabelle378[[#This Row],[Unterer-Heizwert]]*Tabelle378[[#This Row],[Verbrauchte-Menge]],"") ->  | J15: =IF(Tabelle378[[#This Row],[Aktiv]], Tabelle378[[#This Row],[Energieverbrauch]]-SUM(Tabelle378[[#This Row],[Energieverbrauchsanteil-Warmwasser-zentral]]+Tabelle378[[#This Row],[Energieverbrauchsanteil-thermisch-erzeugte-Kaelte]]), "") ->  | K15: =IF(Tabelle378[[#This Row],[Aktiv]], IF('Angaben Prüfstelle - Allgemein'!$J$88, ROUND(Eingabewerte!$E$36*Eingabewerte!$G40*Tabelle378[[#This Row],[Unterer-Heizwert]],0), 0), "") ->  | L15: =IF(Tabelle378[[#This Row],[Aktiv]], IF('Angaben Prüfstelle - Allgemein'!$J$88=TRUE(),"sonstige Ermittlung des Verbrauchsanteils der Warmwasserbereitung","keine Warmwasserbereitung enthalten"), "") ->  | M15: =IF(Tabelle378[[#This Row],[Aktiv]], IF('Angaben Prüfstelle - Allgemein'!$J$89, ROUND(SUM(Eingabewerte!$G$36,Eingabewerte!$J$36,Eingabewerte!$L$36)*Eingabewerte!$G40*Tabelle378[[#This Row],[Unterer-Heizwert]],0), 0), "") ->  | N15: =IF(Tabelle378[[#This Row],[Aktiv]],ROUND(Eingabewerte!$I$32,2),"") ->  | O15: =IF(Tabelle378[[#This Row],[Aktiv]], "", "") ->  | P15: =IF(Tabelle378[[#This Row],[Aktiv]],ROUND((Eingabewerte!$E$33)*Eingabewerte!$G40,0),"") ->  | Q15: =OR(Tabelle378[[#This Row],[Sonstiger Energieträgerverbrauch]]<>"",Tabelle378[[#This Row],[Energieträgerverbrauch]]<>"") -> FALSE
B16: =IF(Tabelle378[[#This Row],[Energieträgerverbrauch]]="", INDEX(Hilfstabellen!$B$4:$F$31,Eingabewerte!B41, 1), "") ->  | C16: =IF(INDEX(Hilfstabellen!EnergieträgerVerbrauchHeizungEnum,Eingabewerte!B41, 2)<>"",INDEX(Hilfstabellen!EnergieträgerVerbrauchHeizungEnum,Eingabewerte!B41, 2),"") ->  | D16: =IF(Tabelle378[[#This Row],[Aktiv]],Eingabewerte!$C$36,"") ->  | E16: =IF(Tabelle378[[#This Row],[Aktiv]],ROUND(Eingabewerte!N41,2),"") ->  | F16: =IF(Tabelle378[[#This Row],[Aktiv]],INDEX(Hilfstabellen!$B$4:$F$31,Eingabewerte!B41, 4)*1000, "") ->  | G16: =IF(Tabelle378[[#This Row],[Aktiv]],Eingabewerte!$E$31,"") ->  | H16: =IF(Tabelle378[[#This Row],[Aktiv]],Eingabewerte!$G$31,"") ->  | I16: =IF(Tabelle378[[#This Row],[Aktiv]],Tabelle378[[#This Row],[Unterer-Heizwert]]*Tabelle378[[#This Row],[Verbrauchte-Menge]],"") ->  | J16: =IF(Tabelle378[[#This Row],[Aktiv]], Tabelle378[[#This Row],[Energieverbrauch]]-SUM(Tabelle378[[#This Row],[Energieverbrauchsanteil-Warmwasser-zentral]]+Tabelle378[[#This Row],[Energieverbrauchsanteil-thermisch-erzeugte-Kaelte]]), "") ->  | K16: =IF(Tabelle378[[#This Row],[Aktiv]], IF('Angaben Prüfstelle - Allgemein'!$J$88, ROUND(Eingabewerte!$E$36*Eingabewerte!$G41*Tabelle378[[#This Row],[Unterer-Heizwert]],0), 0), "") ->  | L16: =IF(Tabelle378[[#This Row],[Aktiv]], IF('Angaben Prüfstelle - Allgemein'!$J$88=TRUE(),"sonstige Ermittlung des Verbrauchsanteils der Warmwasserbereitung","keine Warmwasserbereitung enthalten"), "") ->  | M16: =IF(Tabelle378[[#This Row],[Aktiv]], IF('Angaben Prüfstelle - Allgemein'!$J$89, ROUND(SUM(Eingabewerte!$G$36,Eingabewerte!$J$36,Eingabewerte!$L$36)*Eingabewerte!$G41*Tabelle378[[#This Row],[Unterer-Heizwert]],0), 0), "") ->  | N16: =IF(Tabelle378[[#This Row],[Aktiv]],ROUND(Eingabewerte!$I$32,2),"") ->  | O16: =IF(Tabelle378[[#This Row],[Aktiv]], "", "") ->  | P16: =IF(Tabelle378[[#This Row],[Aktiv]],ROUND((Eingabewerte!$E$33)*Eingabewerte!$G41,0),"") ->  | Q16: =OR(Tabelle378[[#This Row],[Sonstiger Energieträgerverbrauch]]<>"",Tabelle378[[#This Row],[Energieträgerverbrauch]]<>"") -> FALSE
B20: Modernisierung
B22: Nummer | C22: Bauteil-Anlagenteil | D22: Massnahmenbeschreibung | E22: Modernisierungskombination | F22: Amortisation | G22: spezifische-Kosten
B23: =IF(Eingabewerte!B81="","",1) -> 1 | C23: =IF(Eingabewerte!G81=0,"",Eingabewerte!G81) ->  | D23: =IF(Eingabewerte!B81="","",Eingabewerte!B81) -> Lüftung nur kurz und stoßweise | E23: =IF('Angaben Prüfstelle - Zusatz'!B23="","",IF(Hilfstabellen!D107="EM","als Einzelmaßnahme","in Zusammenhang mit größerer Modernisierung")) -> in Zusammenhang mit größerer Modernisierung | F23: =IF(Eingabewerte!$N81=0,"",ROUND(Eingabewerte!$L81/Eingabewerte!$N81,1)) ->  | G23: =IF(OR(Eingabewerte!L81="",Eingabewerte!K81="",Eingabewerte!K81="W"),"",ROUND(Eingabewerte!L81/(Eingabewerte!N81*Eingabewerte!J81/(VLOOKUP(Eingabewerte!K81,Hilfstabellen!$A$101:$D$103,4))),3)) -> 
B24: =IF(Eingabewerte!B82="","",2) -> 2 | C24: =IF(Eingabewerte!G82=0,"",Eingabewerte!G82) ->  | D24: =IF(Eingabewerte!B82="","",Eingabewerte!B82) -> Abschalten der Beleuchtung bei ausreichendem Tageslicht | E24: =IF('Angaben Prüfstelle - Zusatz'!B24="","",IF(Hilfstabellen!D108="EM","als Einzelmaßnahme","in Zusammenhang mit größerer Modernisierung")) -> in Zusammenhang mit größerer Modernisierung | F24: =IF(Eingabewerte!$N82=0,"",ROUND(Eingabewerte!$L82/Eingabewerte!$N82,1)) ->  | G24: =IF(OR(Eingabewerte!L82="",Eingabewerte!K82="",Eingabewerte!K82="W"),"",ROUND(Eingabewerte!L82/(Eingabewerte!N82*Eingabewerte!J82/(VLOOKUP(Eingabewerte!K82,Hilfstabellen!$A$101:$D$103,4))),3)) -> 
B25: =IF(Eingabewerte!B83="","",3) -> 3 | C25: =IF(Eingabewerte!G83=0,"",Eingabewerte!G83) ->  | D25: =IF(Eingabewerte!B83="","",Eingabewerte!B83) -> Konsequente Nutzung der Sparfunktion an Toilettenspülungen | E25: =IF('Angaben Prüfstelle - Zusatz'!B25="","",IF(Hilfstabellen!D109="EM","als Einzelmaßnahme","in Zusammenhang mit größerer Modernisierung")) -> in Zusammenhang mit größerer Modernisierung | F25: =IF(Eingabewerte!$N83=0,"",ROUND(Eingabewerte!$L83/Eingabewerte!$N83,1)) ->  | G25: =IF(OR(Eingabewerte!L83="",Eingabewerte!K83="",Eingabewerte!K83="W"),"",ROUND(Eingabewerte!L83/(Eingabewerte!N83*Eingabewerte!J83/(VLOOKUP(Eingabewerte!K83,Hilfstabellen!$A$101:$D$103,4))),3)) -> 
B26: =IF(Eingabewerte!B84="","",4) ->  | C26: =IF(Eingabewerte!G84=0,"",Eingabewerte!G84) ->  | D26: =IF(Eingabewerte!B84="","",Eingabewerte!B84) ->  | E26: =IF('Angaben Prüfstelle - Zusatz'!B26="","",IF(Hilfstabellen!D110="EM","als Einzelmaßnahme","in Zusammenhang mit größerer Modernisierung")) ->  | F26: =IF(Eingabewerte!$N84=0,"",ROUND(Eingabewerte!$L84/Eingabewerte!$N84,1)) ->  | G26: =IF(OR(Eingabewerte!L84="",Eingabewerte!K84="",Eingabewerte!K84="W"),"",ROUND(Eingabewerte!L84/(Eingabewerte!N84*Eingabewerte!J84/(VLOOKUP(Eingabewerte!K84,Hilfstabellen!$A$101:$D$103,4))),3)) -> 
B27: =IF(Eingabewerte!B85="","",5) ->  | C27: =IF(Eingabewerte!G85=0,"",Eingabewerte!G85) ->  | D27: =IF(Eingabewerte!B85="","",Eingabewerte!B85) ->  | E27: =IF('Angaben Prüfstelle - Zusatz'!B27="","",IF(Hilfstabellen!D111="EM","als Einzelmaßnahme","in Zusammenhang mit größerer Modernisierung")) ->  | F27: =IF(Eingabewerte!$N85=0,"",ROUND(Eingabewerte!$L85/Eingabewerte!$N85,1)) ->  | G27: =IF(OR(Eingabewerte!L85="",Eingabewerte!K85="",Eingabewerte!K85="W"),"",ROUND(Eingabewerte!L85/(Eingabewerte!N85*Eingabewerte!J85/(VLOOKUP(Eingabewerte!K85,Hilfstabellen!$A$101:$D$103,4))),3)) -> 
B31: Nutzung Gebäudekategorie
B33: Gebäudekategorie | C33: Flächenanteil-Nutzung | D33: Vergleichswert-Wärme | E33: Vergleichswert-Strom
B34: =IFERROR(INDEX('Angaben Prüfstelle - Zusatz'!C$41:C$93,'Mittelung Klassengrenzen'!B5),"") -> 21:Schulen | C34: =IF(Tabelle155[[#This Row],[Gebäudekategorie]]<>"", ROUND('Mittelung Klassengrenzen'!L5*100,0), "") -> 100 | D34: =IF(Tabelle155[[#This Row],[Flächenanteil-Nutzung]]<>"", ROUND('Mittelung Klassengrenzen'!L20, 1), "") -> 50.3 | E34: =IF(Tabelle155[[#This Row],[Vergleichswert-Wärme]]<>"", ROUND('Mittelung Klassengrenzen'!L28, 1), "") -> 4.4
B35: =IFERROR(INDEX('Angaben Prüfstelle - Zusatz'!C$41:C$93,'Mittelung Klassengrenzen'!B6),"") ->  | C35: =IF(Tabelle155[[#This Row],[Gebäudekategorie]]<>"", ROUND('Mittelung Klassengrenzen'!L6*100,0), "") ->  | D35: =IF(Tabelle155[[#This Row],[Flächenanteil-Nutzung]]<>"", ROUND('Mittelung Klassengrenzen'!L21, 1), "") ->  | E35: =IF(Tabelle155[[#This Row],[Vergleichswert-Wärme]]<>"", ROUND('Mittelung Klassengrenzen'!L29, 1), "") -> 
B36: =IFERROR(INDEX('Angaben Prüfstelle - Zusatz'!C$41:C$93,'Mittelung Klassengrenzen'!B7),"") ->  | C36: =IF(Tabelle155[[#This Row],[Gebäudekategorie]]<>"", ROUND('Mittelung Klassengrenzen'!L7*100,0), "") ->  | D36: =IF(Tabelle155[[#This Row],[Flächenanteil-Nutzung]]<>"", ROUND('Mittelung Klassengrenzen'!L22, 1), "") ->  | E36: =IF(Tabelle155[[#This Row],[Vergleichswert-Wärme]]<>"", ROUND('Mittelung Klassengrenzen'!L30, 1), "") -> 
B38: Angabe der Nutzung des Gebäudes in Reihenfolge ihres Anteils der Energiebezugsfläche. Die Auswahl der Nutzung-Gebaeudekategorie ergibt sich aus der "Bekanntmachung der Regeln für Energieverbrauchswerte und der Vergleichswerte im Nichtwohngebäudebestand" unter der Anlage 1 Tabelle 1 Teilenergiekennwerte (TEK) nach Gebäudekategorien. | C38: Prozentualer Anteil dieser Nutzung an der gesamten Nettogrundfläche des Gebäudes. | D38: Angabe zum zugehörigen Vergleichswert Wärme der angegebenen Nutzungskategorie des Gebäudes. | E38: Angabe zum zugehörigen Vergleichswert Strom der angegebenen Nutzungskategorie des Gebäudes.
A39: 1 | B39: 2 | C39: 3 | D39: 4 | E39: 5 | F39: 6 | G39: 7 | H39: 8 | I39: 9 | J39: 10 | K39: 11 | L39: 12 | M39: 13
A40: Nr. | B40: Gebäudekategorie 2 | C40: Nutzung-Gebaeudekategorie-enum | D40: TEK Heizung 3 | E40: TEK Warm-wasser 4 | F40: TEK Lüftung 5 | G40: TEK eingebaute Beleuchtung 6 | H40: TEK Kälte 7a | I40: TEK Hilfs-energie für Kälte 7b | J40: TEK Be- u. Ent-feuchtung 7c | K40: TEK Sonstiges 8 | L40: Wasser Vergleichswerte [l/m²a] | M40: Nr. 1 | N40: Spalte1
A41: 1 | B41: Verwaltungsgebäude (allgemein) | C41: =IF(NutzungGebaeudekategorieEnum[[#This Row],[Gebäudekategorie 2]]<>"", NutzungGebaeudekategorieEnum[[#This Row],[Nr.]] & ":" &NutzungGebaeudekategorieEnum[[#This Row],[Gebäudekategorie 2]], "") -> 1:Verwaltungsgebäude (allgemein) | D41: 48.5 | E41: 6.9 | F41: 3.2 | G41: 10.7 | H41: 2.6 | I41: 3.1 | J41: 0.1 | K41: 2.82 | L41: 1386 | M41: 1
A42: 2 | B42: Parlaments- und Gerichtsgebäude | C42: =IF(NutzungGebaeudekategorieEnum[[#This Row],[Gebäudekategorie 2]]<>"", NutzungGebaeudekategorieEnum[[#This Row],[Nr.]] & ":" &NutzungGebaeudekategorieEnum[[#This Row],[Gebäudekategorie 2]], "") -> 2:Parlaments- und Gerichtsgebäude | D42: 49.9 | E42: 6.8 | F42: 3 | G42: 9.5 | H42: 1.2 | I42: 0.9 | J42: 1.7 | K42: 0.63 | L42: 470 | M42: 2
A43: 3 | B43: Ministerien u. Ämter u. Behörden | C43: =IF(NutzungGebaeudekategorieEnum[[#This Row],[Gebäudekategorie 2]]<>"", NutzungGebaeudekategorieEnum[[#This Row],[Nr.]] & ":" &NutzungGebaeudekategorieEnum[[#This Row],[Gebäudekategorie 2]], "") -> 3:Ministerien u. Ämter u. Behörden | D43: 48.3 | E43: 7.4 | F43: 3.7 | G43: 10.8 | H43: 1.5 | I43: 1.2 | J43: 1 | K43: 0.74 | L43: 470 | M43: 3
A44: 4 | B44: Polizeidienstgebäude | C44: =IF(NutzungGebaeudekategorieEnum[[#This Row],[Gebäudekategorie 2]]<>"", NutzungGebaeudekategorieEnum[[#This Row],[Nr.]] & ":" &NutzungGebaeudekategorieEnum[[#This Row],[Gebäudekategorie 2]], "") -> 4:Polizeidienstgebäude | D44: 52.4 | E44: 7.4 | F44: 2.5 | G44: 10.4 | H44: 0.5 | I44: 0.4 | J44: 0 | K44: 0.75 | L44: 1691 | M44: 4
A45: 5 | B45: Gebäude für öffentliche Bereitschaftsdienste | C45: =IF(NutzungGebaeudekategorieEnum[[#This Row],[Gebäudekategorie 2]]<>"", NutzungGebaeudekategorieEnum[[#This Row],[Nr.]] & ":" &NutzungGebaeudekategorieEnum[[#This Row],[Gebäudekategorie 2]], "") -> 5:Gebäude für öffentliche Bereitschaftsdienste | D45: 51.6 | E45: 10.2 | F45: 3 | G45: 7.8 | H45: 0.3 | I45: 0.2 | J45: 0 | K45: 4.06 | L45: 458 | M45: 5
A46: 6 | B46: Feuerwehrdienstgebäude | C46: =IF(NutzungGebaeudekategorieEnum[[#This Row],[Gebäudekategorie 2]]<>"", NutzungGebaeudekategorieEnum[[#This Row],[Nr.]] & ":" &NutzungGebaeudekategorieEnum[[#This Row],[Gebäudekategorie 2]], "") -> 6:Feuerwehrdienstgebäude | D46: 50.8 | E46: 7.1 | F46: 3.2 | G46: 6.7 | H46: 0.3 | I46: 0.2 | J46: 0 | K46: 3.77 | L46: 458 | M46: 6
A47: 7 | B47: Bürogebäude | C47: =IF(NutzungGebaeudekategorieEnum[[#This Row],[Gebäudekategorie 2]]<>"", NutzungGebaeudekategorieEnum[[#This Row],[Nr.]] & ":" &NutzungGebaeudekategorieEnum[[#This Row],[Gebäudekategorie 2]], "") -> 7:Bürogebäude | D47: 49 | E47: 8.1 | F47: 4.7 | G47: 12.9 | H47: 2.9 | I47: 2.2 | J47: 0 | K47: 2.88 | L47: 227 | M47: 7
A48: 8 | B48: Bürogebäude - überwiegend Großraumbüros | C48: =IF(NutzungGebaeudekategorieEnum[[#This Row],[Gebäudekategorie 2]]<>"", NutzungGebaeudekategorieEnum[[#This Row],[Nr.]] & ":" &NutzungGebaeudekategorieEnum[[#This Row],[Gebäudekategorie 2]], "") -> 8:Bürogebäude - überwiegend Großraumbüros | D48: 47.4 | E48: 12.8 | F48: 7.3 | G48: 16.6 | H48: 6 | I48: 4.3 | J48: 0 | K48: 0.99 | L48: 227 | M48: 8
A49: 9 | B49: Bankgebäude | C49: =IF(NutzungGebaeudekategorieEnum[[#This Row],[Gebäudekategorie 2]]<>"", NutzungGebaeudekategorieEnum[[#This Row],[Nr.]] & ":" &NutzungGebaeudekategorieEnum[[#This Row],[Gebäudekategorie 2]], "") -> 9:Bankgebäude | D49: 48 | E49: 6.4 | F49: 1.6 | G49: 10.7 | H49: 1.5 | I49: 1.1 | J49: 0 | K49: 0.61 | L49: 227 | M49: 9
A50: 10 | B50: Hochschule und Forschung (allgemein) | C50: =IF(NutzungGebaeudekategorieEnum[[#This Row],[Gebäudekategorie 2]]<>"", NutzungGebaeudekategorieEnum[[#This Row],[Nr.]] & ":" &NutzungGebaeudekategorieEnum[[#This Row],[Gebäudekategorie 2]], "") -> 10:Hochschule und Forschung (allgemein) | D50: 66.5 | E50: 6.7 | F50: 13.3 | G50: 11 | H50: 3.4 | I50: 2.2 | J50: 3.8 | K50: 1.211 | L50: 391 | M50: 10
A51: 11 | B51: Gebäude für Lehre | C51: =IF(NutzungGebaeudekategorieEnum[[#This Row],[Gebäudekategorie 2]]<>"", NutzungGebaeudekategorieEnum[[#This Row],[Nr.]] & ":" &NutzungGebaeudekategorieEnum[[#This Row],[Gebäudekategorie 2]], "") -> 11:Gebäude für Lehre | D51: 57.2 | E51: 5.6 | F51: 8.7 | G51: 8.5 | H51: 2.5 | I51: 1.5 | J51: 0.4 | K51: 1.112 | L51: 391 | M51: 11
A52: 12 | B52: Institute für Lehre und Forschung | C52: =IF(NutzungGebaeudekategorieEnum[[#This Row],[Gebäudekategorie 2]]<>"", NutzungGebaeudekategorieEnum[[#This Row],[Nr.]] & ":" &NutzungGebaeudekategorieEnum[[#This Row],[Gebäudekategorie 2]], "") -> 12:Institute für Lehre und Forschung | D52: 65 | E52: 7.6 | F52: 13.8 | G52: 11.7 | H52: 3.5 | I52: 2.4 | J52: 14.7 | K52: 2.113 | L52: 4609 | M52: 12
A53: 13 | B53: Gebäude für Forschung ohne Lehre | C53: =IF(NutzungGebaeudekategorieEnum[[#This Row],[Gebäudekategorie 2]]<>"", NutzungGebaeudekategorieEnum[[#This Row],[Nr.]] & ":" &NutzungGebaeudekategorieEnum[[#This Row],[Gebäudekategorie 2]], "") -> 13:Gebäude für Forschung ohne Lehre | D53: 87.8 | E53: 7.4 | F53: 14.9 | G53: 14.8 | H53: 3.5 | I53: 2.4 | J53: 0 | K53: 1.214 | L53: 425 | M53: 13
A54: 14 | B54: Laborgebäude | C54: =IF(NutzungGebaeudekategorieEnum[[#This Row],[Gebäudekategorie 2]]<>"", NutzungGebaeudekategorieEnum[[#This Row],[Nr.]] & ":" &NutzungGebaeudekategorieEnum[[#This Row],[Gebäudekategorie 2]], "") -> 14:Laborgebäude | D54: 82.8 | E54: 8 | F54: 20.3 | G54: 13.5 | H54: 4.2 | I54: 2.9 | J54: 1.7 | K54: 1.315 | L54: 425 | M54: 14
A55: 15 | B55: Gesundheitswesen (allgemein) | C55: =IF(NutzungGebaeudekategorieEnum[[#This Row],[Gebäudekategorie 2]]<>"", NutzungGebaeudekategorieEnum[[#This Row],[Nr.]] & ":" &NutzungGebaeudekategorieEnum[[#This Row],[Gebäudekategorie 2]], "") -> 15:Gesundheitswesen (allgemein) | D55: 55.7 | E55: 15.3 | F55: 4.9 | G55: 17.4 | H55: 1.6 | I55: 1.3 | J55: 0 | K55: 1.116 | L55: 345 | M55: 15
A56: 16 | B56: Krankenhäuser (ohne Forschung und Lehre) | C56: =IF(NutzungGebaeudekategorieEnum[[#This Row],[Gebäudekategorie 2]]<>"", NutzungGebaeudekategorieEnum[[#This Row],[Nr.]] & ":" &NutzungGebaeudekategorieEnum[[#This Row],[Gebäudekategorie 2]], "") -> 16:Krankenhäuser (ohne Forschung und Lehre) | D56: 64.1 | E56: 40.8 | F56: 10.4 | G56: 15.8 | H56: 1.7 | I56: 1.6 | J56: 0 | K56: 1.217 | L56: 346 | M56: 16
A57: 17 | B57: Krankenhäuser (ohne Forschung und Lehre) und teilstationäre Versorgung | C57: =IF(NutzungGebaeudekategorieEnum[[#This Row],[Gebäudekategorie 2]]<>"", NutzungGebaeudekategorieEnum[[#This Row],[Nr.]] & ":" &NutzungGebaeudekategorieEnum[[#This Row],[Gebäudekategorie 2]], "") -> 17:Krankenhäuser (ohne Forschung und Lehre) und teilstationäre Versorgung | D57: 61.7 | E57: 33.6 | F57: 9.2 | G57: 15.9 | H57: 1.7 | I57: 1.6 | J57: 0 | K57: 0.918 | L57: 347 | M57: 17
A58: 18 | B58: Medizinische Einrichtungen für nicht stationäre Versorgung | C58: =IF(NutzungGebaeudekategorieEnum[[#This Row],[Gebäudekategorie 2]]<>"", NutzungGebaeudekategorieEnum[[#This Row],[Nr.]] & ":" &NutzungGebaeudekategorieEnum[[#This Row],[Gebäudekategorie 2]], "") -> 18:Medizinische Einrichtungen für nicht stationäre Versorgung | D58: 51.2 | E58: 8.6 | F58: 2.2 | G58: 18.3 | H58: 1.4 | I58: 1 | J58: 0 | K58: 1.319 | L58: 348 | M58: 18
A59: 19 | B59: Gebäude für Reha, Kur und Genesung | C59: =IF(NutzungGebaeudekategorieEnum[[#This Row],[Gebäudekategorie 2]]<>"", NutzungGebaeudekategorieEnum[[#This Row],[Nr.]] & ":" &NutzungGebaeudekategorieEnum[[#This Row],[Gebäudekategorie 2]], "") -> 19:Gebäude für Reha, Kur und Genesung | D59: 59.4 | E59: 22.1 | F59: 6 | G59: 14.6 | H59: 0.9 | I59: 0.7 | J59: 0 | K59: 3.52 | L59: 1906 | M59: 19
A60: 20 | B60: Bildungseinrichtungen (allgemein) | C60: =IF(NutzungGebaeudekategorieEnum[[#This Row],[Gebäudekategorie 2]]<>"", NutzungGebaeudekategorieEnum[[#This Row],[Nr.]] & ":" &NutzungGebaeudekategorieEnum[[#This Row],[Gebäudekategorie 2]], "") -> 20:Bildungseinrichtungen (allgemein) | D60: 49.7 | E60: 19.5 | F60: 4.1 | G60: 5.5 | H60: 0.2 | I60: 0.2 | J60: 0 | K60: 0.621 | L60: 393 | M60: 20
A61: 21 | B61: Schulen | C61: =IF(NutzungGebaeudekategorieEnum[[#This Row],[Gebäudekategorie 2]]<>"", NutzungGebaeudekategorieEnum[[#This Row],[Nr.]] & ":" &NutzungGebaeudekategorieEnum[[#This Row],[Gebäudekategorie 2]], "") -> 21:Schulen | D61: 49.3 | E61: 22.4 | F61: 3.9 | G61: 5.5 | H61: 0.3 | I61: 0.2 | J61: 0 | K61: 0.622 | L61: 942 | M61: 21
A62: 22 | B62: Kinderbetreuungseinrichtungen | C62: =IF(NutzungGebaeudekategorieEnum[[#This Row],[Gebäudekategorie 2]]<>"", NutzungGebaeudekategorieEnum[[#This Row],[Nr.]] & ":" &NutzungGebaeudekategorieEnum[[#This Row],[Gebäudekategorie 2]], "") -> 22:Kinderbetreuungseinrichtungen | D62: 50.4 | E62: 17.3 | F62: 4.2 | G62: 5.5 | H62: 0.1 | I62: 0.1 | J62: 0 | K62: 0.623 | L62: 979 | M62: 22
A63: 23 | B63: Kultureinrichtungen (allgemein) | C63: =IF(NutzungGebaeudekategorieEnum[[#This Row],[Gebäudekategorie 2]]<>"", NutzungGebaeudekategorieEnum[[#This Row],[Nr.]] & ":" &NutzungGebaeudekategorieEnum[[#This Row],[Gebäudekategorie 2]], "") -> 23:Kultureinrichtungen (allgemein) | D63: 55.9 | E63: 7.5 | F63: 6.7 | G63: 9 | H63: 1.6 | I63: 1.2 | J63: 0.1 | K63: 0.324 | L63: 1534 | M63: 23
A64: 24 | B64: Bibliotheken / Archive | C64: =IF(NutzungGebaeudekategorieEnum[[#This Row],[Gebäudekategorie 2]]<>"", NutzungGebaeudekategorieEnum[[#This Row],[Nr.]] & ":" &NutzungGebaeudekategorieEnum[[#This Row],[Gebäudekategorie 2]], "") -> 24:Bibliotheken / Archive | D64: 49 | E64: 5 | F64: 2.1 | G64: 14.3 | H64: 0.5 | I64: 0.4 | J64: 0 | K64: 0.325 | L64: 350 | M64: 24
A65: 25 | B65: Ausstellungsgebäude | C65: =IF(NutzungGebaeudekategorieEnum[[#This Row],[Gebäudekategorie 2]]<>"", NutzungGebaeudekategorieEnum[[#This Row],[Nr.]] & ":" &NutzungGebaeudekategorieEnum[[#This Row],[Gebäudekategorie 2]], "") -> 25:Ausstellungsgebäude | D65: 57.6 | E65: 7.7 | F65: 6.3 | G65: 7.8 | H65: 1.7 | I65: 1.3 | J65: 0.3 | K65: 0.226 | L65: 350 | M65: 25
A66: 26 | B66: Veranstaltungsgebäude | C66: =IF(NutzungGebaeudekategorieEnum[[#This Row],[Gebäudekategorie 2]]<>"", NutzungGebaeudekategorieEnum[[#This Row],[Nr.]] & ":" &NutzungGebaeudekategorieEnum[[#This Row],[Gebäudekategorie 2]], "") -> 26:Veranstaltungsgebäude | D66: 58.4 | E66: 9.1 | F66: 7 | G66: 8.9 | H66: 1.3 | I66: 0.9 | J66: 0.1 | K66: 0.327 | L66: 8467 | M66: 26
A67: 27 | B67: Gemeinschafts- / Gemeindehäuser | C67: =IF(NutzungGebaeudekategorieEnum[[#This Row],[Gebäudekategorie 2]]<>"", NutzungGebaeudekategorieEnum[[#This Row],[Nr.]] & ":" &NutzungGebaeudekategorieEnum[[#This Row],[Gebäudekategorie 2]], "") -> 27:Gemeinschafts- / Gemeindehäuser | D67: 63.6 | E67: 10 | F67: 5.6 | G67: 10.8 | H67: 0.8 | I67: 0.6 | J67: 0.1 | K67: 6.028 | L67: 311 | M67: 27
A68: 28 | B68: Opern / Theater | C68: =IF(NutzungGebaeudekategorieEnum[[#This Row],[Gebäudekategorie 2]]<>"", NutzungGebaeudekategorieEnum[[#This Row],[Nr.]] & ":" &NutzungGebaeudekategorieEnum[[#This Row],[Gebäudekategorie 2]], "") -> 28:Opern / Theater | D68: 58.8 | E68: 7.6 | F68: 9.1 | G68: 8.6 | H68: 2 | I68: 1.3 | J68: 0 | K68: 0.929 | L68: 8467 | M68: 28
A69: 29 | B69: Sporteinrichtungen (allgemein) | C69: =IF(NutzungGebaeudekategorieEnum[[#This Row],[Gebäudekategorie 2]]<>"", NutzungGebaeudekategorieEnum[[#This Row],[Nr.]] & ":" &NutzungGebaeudekategorieEnum[[#This Row],[Gebäudekategorie 2]], "") -> 29:Sporteinrichtungen (allgemein) | D69: 65.5 | E69: 27.3 | F69: 6.4 | G69: 14.5 | H69: 0.6 | I69: 0.6 | J69: 0 | K69: 1.93 | L69: 381 | M69: 29
A70: 30 | B70: Sporthallen | C70: =IF(NutzungGebaeudekategorieEnum[[#This Row],[Gebäudekategorie 2]]<>"", NutzungGebaeudekategorieEnum[[#This Row],[Nr.]] & ":" &NutzungGebaeudekategorieEnum[[#This Row],[Gebäudekategorie 2]], "") -> 30:Sporthallen | D70: 68.6 | E70: 22 | F70: 4.6 | G70: 14.3 | H70: 0.2 | I70: 0.2 | J70: 0 | K70: 0.131 | L70: 587 | M70: 30
A71: 31 | B71: Fitnessstudios | C71: =IF(NutzungGebaeudekategorieEnum[[#This Row],[Gebäudekategorie 2]]<>"", NutzungGebaeudekategorieEnum[[#This Row],[Nr.]] & ":" &NutzungGebaeudekategorieEnum[[#This Row],[Gebäudekategorie 2]], "") -> 31:Fitnessstudios | D71: 60.6 | E71: 62.2 | F71: 11.9 | G71: 24.5 | H71: 4 | I71: 4.2 | J71: 0 | K71: 8.932 | L71: 1687 | M71: 31
A72: 32 | B72: Schwimmhallen | C72: =IF(NutzungGebaeudekategorieEnum[[#This Row],[Gebäudekategorie 2]]<>"", NutzungGebaeudekategorieEnum[[#This Row],[Nr.]] & ":" &NutzungGebaeudekategorieEnum[[#This Row],[Gebäudekategorie 2]], "") -> 32:Schwimmhallen | D72: 63.8 | E72: 24.7 | F72: 8.3 | G72: 13.4 | H72: 1.1 | I72: 1.1 | J72: 30 | K72: 7.333 | L72: 1134 | M72: 32
A73: 33 | B73: Gebäude für Sportaußenanlagen | C73: =IF(NutzungGebaeudekategorieEnum[[#This Row],[Gebäudekategorie 2]]<>"", NutzungGebaeudekategorieEnum[[#This Row],[Nr.]] & ":" &NutzungGebaeudekategorieEnum[[#This Row],[Gebäudekategorie 2]], "") -> 33:Gebäude für Sportaußenanlagen | D73: 75.2 | E73: 22.5 | F73: 5.7 | G73: 10.2 | H73: 0 | I73: 0 | J73: 0 | K73: 5.534 | L73: 527 | M73: 33
A74: 34 | B74: Verpflegungseinrichtungen (allgemein) | C74: =IF(NutzungGebaeudekategorieEnum[[#This Row],[Gebäudekategorie 2]]<>"", NutzungGebaeudekategorieEnum[[#This Row],[Nr.]] & ":" &NutzungGebaeudekategorieEnum[[#This Row],[Gebäudekategorie 2]], "") -> 34:Verpflegungseinrichtungen (allgemein) | D74: 75.9 | E74: 77.7 | F74: 16.6 | G74: 18.1 | H74: 3.5 | I74: 3 | J74: 0 | K74: 24.835 | L74: 181 | M74: 34
A75: 35 | B75: Beherbergungsstätten (allgemein) | C75: =IF(NutzungGebaeudekategorieEnum[[#This Row],[Gebäudekategorie 2]]<>"", NutzungGebaeudekategorieEnum[[#This Row],[Nr.]] & ":" &NutzungGebaeudekategorieEnum[[#This Row],[Gebäudekategorie 2]], "") -> 35:Beherbergungsstätten (allgemein) | D75: 52.1 | E75: 86 | F75: 9.1 | G75: 9.1 | H75: 3.3 | I75: 2.7 | J75: 0 | K75: 7.036 | L75: 850 | M75: 35
A76: 36 | B76: Hotels / Pensionen | C76: =IF(NutzungGebaeudekategorieEnum[[#This Row],[Gebäudekategorie 2]]<>"", NutzungGebaeudekategorieEnum[[#This Row],[Nr.]] & ":" &NutzungGebaeudekategorieEnum[[#This Row],[Gebäudekategorie 2]], "") -> 36:Hotels / Pensionen | D76: 51.2 | E76: 89.1 | F76: 9.1 | G76: 8.6 | H76: 3.5 | I76: 2.9 | J76: 0 | K76: 6.837 | L76: 850 | M76: 36
A77: 37 | B77: Jugendherbergen u. Ferienhäuser | C77: =IF(NutzungGebaeudekategorieEnum[[#This Row],[Gebäudekategorie 2]]<>"", NutzungGebaeudekategorieEnum[[#This Row],[Nr.]] & ":" &NutzungGebaeudekategorieEnum[[#This Row],[Gebäudekategorie 2]], "") -> 37:Jugendherbergen u. Ferienhäuser | D77: 63.4 | E77: 50.9 | F77: 1.9 | G77: 12.6 | H77: 0 | I77: 0 | J77: 0 | K77: 8.838 | L77: 401 | M77: 37
A78: 38 | B78: Gaststätten | C78: =IF(NutzungGebaeudekategorieEnum[[#This Row],[Gebäudekategorie 2]]<>"", NutzungGebaeudekategorieEnum[[#This Row],[Nr.]] & ":" &NutzungGebaeudekategorieEnum[[#This Row],[Gebäudekategorie 2]], "") -> 38:Gaststätten | D78: 77.8 | E78: 79 | F78: 13.7 | G78: 19.7 | H78: 3.8 | I78: 3.3 | J78: 0 | K78: 25.239 | L78: 181 | M78: 38
A79: 39 | B79: Mensen u. Kantinen | C79: =IF(NutzungGebaeudekategorieEnum[[#This Row],[Gebäudekategorie 2]]<>"", NutzungGebaeudekategorieEnum[[#This Row],[Nr.]] & ":" &NutzungGebaeudekategorieEnum[[#This Row],[Gebäudekategorie 2]], "") -> 39:Mensen u. Kantinen | D79: 67 | E79: 67.3 | F79: 21 | G79: 11.4 | H79: 0.7 | I79: 0.5 | J79: 0 | K79: 22.74 | L79: 181 | M79: 39
A80: 40 | B80: Gewerbliche und industrielle Gebäude (allgemein) | C80: =IF(NutzungGebaeudekategorieEnum[[#This Row],[Gebäudekategorie 2]]<>"", NutzungGebaeudekategorieEnum[[#This Row],[Nr.]] & ":" &NutzungGebaeudekategorieEnum[[#This Row],[Gebäudekategorie 2]], "") -> 40:Gewerbliche und industrielle Gebäude (allgemein) | D80: 38.7 | E80: 12.6 | F80: 2.1 | G80: 9.6 | H80: 0.8 | I80: 0.5 | J80: 0 | K80: 12.241 | L80: 945 | M80: 40
A81: 41 | B81: Gewerbliche und industrielle Gebäude - schwere Arbeit, stehende Tätigkeit | C81: =IF(NutzungGebaeudekategorieEnum[[#This Row],[Gebäudekategorie 2]]<>"", NutzungGebaeudekategorieEnum[[#This Row],[Nr.]] & ":" &NutzungGebaeudekategorieEnum[[#This Row],[Gebäudekategorie 2]], "") -> 41:Gewerbliche und industrielle Gebäude - schwere Arbeit, stehende Tätigkeit | D81: 37.8 | E81: 20 | F81: 3.1 | G81: 11.8 | H81: 1 | I81: 0.6 | J81: 0 | K81: 22.642 | L81: 985 | M81: 41
A82: 42 | B82: Gewerbliche und industrielle Gebäude - Mischung aus leichter u. schwerer Arbeit | C82: =IF(NutzungGebaeudekategorieEnum[[#This Row],[Gebäudekategorie 2]]<>"", NutzungGebaeudekategorieEnum[[#This Row],[Nr.]] & ":" &NutzungGebaeudekategorieEnum[[#This Row],[Gebäudekategorie 2]], "") -> 42:Gewerbliche und industrielle Gebäude - Mischung aus leichter u. schwerer Arbeit | D82: 36 | E82: 24.2 | F82: 3.8 | G82: 13 | H82: 2.1 | I82: 1.2 | J82: 0 | K82: 24.943 | L82: 985 | M82: 42
A83: 43 | B83: Gewerbliche und industrielle Gebäude - leichte Arbeit, überwiegend sitzende Tätigkeit | C83: =IF(NutzungGebaeudekategorieEnum[[#This Row],[Gebäudekategorie 2]]<>"", NutzungGebaeudekategorieEnum[[#This Row],[Nr.]] & ":" &NutzungGebaeudekategorieEnum[[#This Row],[Gebäudekategorie 2]], "") -> 43:Gewerbliche und industrielle Gebäude - leichte Arbeit, überwiegend sitzende Tätigkeit | D83: 38.1 | E83: 19.8 | F83: 3.3 | G83: 15.2 | H83: 1.9 | I83: 1.1 | J83: 0 | K83: 22.344 | L83: 411 | M83: 43
A84: 44 | B84: Gebäude für Lagerung | C84: =IF(NutzungGebaeudekategorieEnum[[#This Row],[Gebäudekategorie 2]]<>"", NutzungGebaeudekategorieEnum[[#This Row],[Nr.]] & ":" &NutzungGebaeudekategorieEnum[[#This Row],[Gebäudekategorie 2]], "") -> 44:Gebäude für Lagerung | D84: 38.1 | E84: 19.3 | F84: 3.3 | G84: 13.2 | H84: 1.7 | I84: 1 | J84: 0 | K84: 21.645 | L84: 233 | M84: 44
A85: 45 | B85: Verkaufsstätten (allgemein) | C85: =IF(NutzungGebaeudekategorieEnum[[#This Row],[Gebäudekategorie 2]]<>"", NutzungGebaeudekategorieEnum[[#This Row],[Nr.]] & ":" &NutzungGebaeudekategorieEnum[[#This Row],[Gebäudekategorie 2]], "") -> 45:Verkaufsstätten (allgemein) | D85: 47.9 | E85: 7.6 | F85: 5.6 | G85: 16.3 | H85: 2.6 | I85: 2 | J85: 0 | K85: 6.946 | L85: 12894 | M85: 45
A86: 46 | B86: Kaufhäuser | C86: =IF(NutzungGebaeudekategorieEnum[[#This Row],[Gebäudekategorie 2]]<>"", NutzungGebaeudekategorieEnum[[#This Row],[Nr.]] & ":" &NutzungGebaeudekategorieEnum[[#This Row],[Gebäudekategorie 2]], "") -> 46:Kaufhäuser | D86: 45.9 | E86: 6.4 | F86: 6 | G86: 16.6 | H86: 1.1 | I86: 0.9 | J86: 0 | K86: 2.747 | L86: 12894 | M86: 46
A87: 47 | B87: Kaufhauszentren / Einkaufszentren | C87: =IF(NutzungGebaeudekategorieEnum[[#This Row],[Gebäudekategorie 2]]<>"", NutzungGebaeudekategorieEnum[[#This Row],[Nr.]] & ":" &NutzungGebaeudekategorieEnum[[#This Row],[Gebäudekategorie 2]], "") -> 47:Kaufhauszentren / Einkaufszentren | D87: 47.3 | E87: 11.1 | F87: 7.4 | G87: 16.6 | H87: 4.6 | I87: 3.5 | J87: 0.1 | K87: 5.548 | L87: 12894 | M87: 47
A88: 48 | B88: Märkte | C88: =IF(NutzungGebaeudekategorieEnum[[#This Row],[Gebäudekategorie 2]]<>"", NutzungGebaeudekategorieEnum[[#This Row],[Nr.]] & ":" &NutzungGebaeudekategorieEnum[[#This Row],[Gebäudekategorie 2]], "") -> 48:Märkte | D88: 48.7 | E88: 6.2 | F88: 7.3 | G88: 17.3 | H88: 2.8 | I88: 2.1 | J88: 0 | K88: 10.549 | L88: 358 | M88: 48
A89: 49 | B89: Märkte mit sehr hohem Anteil von Kühlung für Lebensmittel | C89: =IF(NutzungGebaeudekategorieEnum[[#This Row],[Gebäudekategorie 2]]<>"", NutzungGebaeudekategorieEnum[[#This Row],[Nr.]] & ":" &NutzungGebaeudekategorieEnum[[#This Row],[Gebäudekategorie 2]], "") -> 49:Märkte mit sehr hohem Anteil von Kühlung für Lebensmittel | D89: 48.7 | E89: 6.2 | F89: 7.3 | G89: 17.3 | H89: 2.8 | I89: 2.1 | J89: 0 | K89: 72.55 | L89: 358 | M89: 49
A90: 50 | B90: Läden | C90: =IF(NutzungGebaeudekategorieEnum[[#This Row],[Gebäudekategorie 2]]<>"", NutzungGebaeudekategorieEnum[[#This Row],[Nr.]] & ":" &NutzungGebaeudekategorieEnum[[#This Row],[Gebäudekategorie 2]], "") -> 50:Läden | D90: 46.8 | E90: 6.4 | F90: 1.9 | G90: 15.8 | H90: 0.9 | I90: 0.7 | J90: 0 | K90: 2.151 | L90: 358 | M90: 50
A91: 51 | B91: Läden mit sehr hohem Anteil von Kühlung für Lebensmittel | C91: =IF(NutzungGebaeudekategorieEnum[[#This Row],[Gebäudekategorie 2]]<>"", NutzungGebaeudekategorieEnum[[#This Row],[Nr.]] & ":" &NutzungGebaeudekategorieEnum[[#This Row],[Gebäudekategorie 2]], "") -> 51:Läden mit sehr hohem Anteil von Kühlung für Lebensmittel | D91: 46.8 | E91: 6.4 | F91: 1.9 | G91: 15.8 | H91: 0.9 | I91: 0.7 | J91: 0 | K91: 54.152 | L91: 358 | M91: 51
A92: 52 | B92: Fernmeldetechnik | C92: =IF(NutzungGebaeudekategorieEnum[[#This Row],[Gebäudekategorie 2]]<>"", NutzungGebaeudekategorieEnum[[#This Row],[Nr.]] & ":" &NutzungGebaeudekategorieEnum[[#This Row],[Gebäudekategorie 2]], "") -> 52:Fernmeldetechnik | D92: 38.4 | E92: 4 | F92: 3.4 | G92: 16 | H92: 0 | I92: 0 | J92: 0 | K92: 53.7 | L92: 216 | M92: 52
A93: 53 | B93: sonstiges | C93: 53:sonstiges | M93: 53
A95: Nr. | B95: Gültige Auswahlwerte für Energieträgerverbrauch Wohngebäude/Nichtwohngebäude:
B96: Energietraeger-Verbrauch-enum | C96: Wird nicht benötigt, da die umrechnung in kWh erfolgt
B97: Heizöl in Liter
B98: Heizöl in kWh Heizwert
B99: Heizöl in kWh Brennwert
B100: Erdgas in m³
B101: Erdgas in kWh Heizwert
B102: Erdgas in kWh Brennwert
B103: Flüssiggas in m³ gasförmig
B104: Flüssiggas in Liter flüssig
B105: Flüssiggas in kg
B106: Steinkohle in kg
B107: Steinkohle in kWh Heizwert
B108: Braunkohle in kg
B109: Braunkohle in kWh Heizwert
B110: Biogas in m³
B111: Biogas in kWh Heizwert
B112: Biogas in kWh Brennwert
B113: Biogas, gebäudenah erzeugt in m³
B114: Biogas, gebäudenah erzeugt in kWh Heizwert
B115: Biogas, gebäudenah erzeugt in kWh Brennwert
B116: biogenes Flüssiggas in m³ gasförmig
B117: biogenes Flüssiggas in Liter flüssig
B118: biogenes Flüssiggas in kg
B119: Bioöl in Liter
B120: Bioöl in kWh Heizwert
B121: Bioöl in kWh Brennwert
B122: Bioöl, gebäudenah erzeugt in Liter
B123: Bioöl, gebäudenah erzeugt in kWh Heizwert
B124: Bioöl, gebäudenah erzeugt in kWh Brennwert
B125: Holz in Raummeter
B126: Holz in kg
B127: Holz in kWh Heizwert
B128: Holz in kWh Brennwert
B129: Holz in Schüttraummeter
B130: Strom netzbezogen in kWh
B131: Strom gebäudenah erzeugt (aus Photovoltaik, Windkraft) in kWh
B132: Verdrängungsstrommix für KWK in kWh
B133: Wärme (Erdwärme, Geothermie, Solarthermie, Umgebungswärme) in kWh
B134: Kälte (Erdkälte, Umgebungskälte) in kWh
B135: Abwärme aus Prozessen (prod) in kWh
B136: Abwärme aus Prozessen (out) in kWh
B137: Wärme aus KWK, gebäudeintegriert oder gebäudenah in kWh
B138: Wärme aus Verbrennung von Siedlungsabfällen in kWh
B139: Nah-/Fernwärme aus KWK, fossiler Brennstoff (Stein-/Braunkohle) bzw. Energieträger in kWh
B140: Nah-/Fernwärme aus KWK, fossiler Brennstoff (Gasförmige und flüssige Brennstoffe) bzw. Energieträger in kWh
B141: Nah-/Fernwärme aus KWK, erneuerbarer Brennstoff bzw. Energieträger in kWh
B142: Nah-/Fernwärme aus Heizwerken, fossiler Brennstoff (Stein-/Braunkohle) bzw. Energieträger in kWh
B143: Nah-/Fernwärme aus Heizwerken, fossiler Brennstoff (Gasförmige und flüssige Brennstoffe) bzw. Energieträger in kWh
B144: Nah-/Fernwärme aus Heizwerken, erneuerbarer Brennstoff bzw. Energieträger in kWh

Sheet Mittelung Klassengrenzen
A1: Mittelung der Klassengrenzen
E3: Zu- und Abschläge für | J3: Ent- u. Befeuchtung | K3: Auswahl | L3: Zone_Nr
A4: Gebäudekategorie NR. | B4: Zone_Nr | C4: BWZK | D4: m² | E4: Wärme | F4: Strom | G4: Kühlung | H4: Warmwasser | I4: Lüftung | K4: Zonen_Nr. | L4: Flächenanteil
A5: =IF(Eingabewerte!E16="","",Eingabewerte!E16) -> Schulen und KTs | B5: =Eingabewerte!K16 -> 21 | C5: =Eingabewerte!$D$16 -> 4000 | D5: =Eingabewerte!J16 -> 5,000 | E5: =IF(D5=0,"",IF(D5<=500,1.46,IF(D5<=50000,4.53*D5^-0.215+0.27,0.71))) -> 1.00 | G5: =IF(OR('Angaben Prüfstelle - Allgemein'!$F$39,'Angaben Prüfstelle - Allgemein'!$F$38,'Angaben Prüfstelle - Allgemein'!$F$37)=FALSE,"",1) -> 1.00 | H5: =IF(N$18=TRUE,IF(B5=32,90,1),IF(N$26=TRUE,IF(B5=32,90,0.9),"")) ->  | J5: =IF(AND(P$18,R$26), NA(), IF(P$18=TRUE,IF(K$9=3,4,IF(K5>0,4,0))) + IF(R$26=TRUE,IF(K$9=3,1,IF(K5>0,1,0)))) -> 0.00 | K5: =IF(Eingabewerte!K$26=B5,B5,0) -> 0 | L5: =D5/$D$9 -> 100.00%
A6: =IF(Eingabewerte!E17="","",Eingabewerte!E17) ->  | B6: =Eingabewerte!K17 ->  | C6: =Eingabewerte!$D$17 ->  | D6: =Eingabewerte!J17 -> 0 | E6: =IF(D6=0,0,IF(D6<=500,1.46,IF(D6<=50000,4.53*D6^-0.215+0.27,0.71))) -> 0.00 | G6: =IF(OR('Angaben Prüfstelle - Allgemein'!$F$39,'Angaben Prüfstelle - Allgemein'!$F$38,'Angaben Prüfstelle - Allgemein'!$F$37)=FALSE,"",1) -> 1.00 | H6: =IF(N$18=TRUE,IF(B6=32,90,1),IF(N$26=TRUE,IF(B6=32,90,0.9),"")) ->  | J6: =IF(AND(P$18,R$26), NA(), IF(P$18=TRUE,IF(K$9=3,4,IF(K6>0,4,0))) + IF(R$26=TRUE,IF(K$9=3,1,IF(K6>0,1,0)))) -> 0.00 | K6: =IF(Eingabewerte!K$27=B6,B6,0) ->  | L6: =D6/$D$9 -> 0.00%
A7: =IF(Eingabewerte!E18="","",Eingabewerte!E18) ->  | B7: =Eingabewerte!K18 ->  | C7: =Eingabewerte!$D$18 ->  | D7: =Eingabewerte!J18 -> 0 | E7: =IF(D7=0,"",IF(D7<=500,1.46,IF(D7<=50000,4.53*D7^-0.215+0.27,0.71))) ->  | G7: =IF(OR('Angaben Prüfstelle - Allgemein'!$F$39,'Angaben Prüfstelle - Allgemein'!$F$38,'Angaben Prüfstelle - Allgemein'!$F$37)=FALSE,"",1) -> 1.00 | H7: 1.00 | J7: =IF(AND(P$18,R$26), NA(), IF(P$18=TRUE,IF(K$9=3,4,IF(K7>0,4,0))) + IF(R$26=TRUE,IF(K$9=3,1,IF(K7>0,1,0)))) -> 0.00 | K7: =IF(Eingabewerte!K$28=B7,B7,0) -> 0 | L7: =D7/$D$9 -> 0.00%
A8: =IF(Eingabewerte!E19="","",Eingabewerte!E19) ->  | B8: =Eingabewerte!D19 ->  | C8: =Eingabewerte!$D$18 ->  | D8: =Eingabewerte!J19 -> 0
A9: Summe | D9: =Eingabewerte!J20 -> 5,000 | K9: =IF(SUM(K5:K7)>0,1,3) -> 3
A11: Flächengrenze Vergleichwerte | D11: 3,500 | E11: m²
A13: Verbrauch Heizung | C13: Verbrauch Strom | E13: Verbrauch Wasser
A14: kWh/m²a | B14: €/a | C14: kWh/m²a | D14: €/a | E14: l/m²a | F14: €/a
A15: =Eingabewerte!I33 -> 0 | B15: =Eingabewerte!I34 ->  | C15: =Eingabewerte!I45 -> 0 | D15: =Eingabewerte!I46 ->  | E15: =Eingabewerte!I57 -> 667 | F15: =Eingabewerte!I58 -> 0 | L15: Mittelwertberechnung erfolgt nach den Kennwerten | X15: =IF(J16=12,2007,IF(J16=14,2009,IF(J16=16,2014,IF(J16=18,2016,"")))) -> 
J16: =IF(Eingabewerte!E7="","",Eingabewerte!E7*2+10) -> 
L17: des IFU nach TEK-Werten gemäß GEG u. Bekanntmachungen v. 03.05.21
C18: Datenquelle: Datensammlung des Deutschen Städtetages Stand: 02.05.2016 | M18: =IF($A23="","",VLOOKUP($A23,Vergleichswerte,2,)*E8) ->  | N18: ='Angaben Prüfstelle - Allgemein'!J88 -> FALSE | O18: =OR('Angaben Prüfstelle - Allgemein'!F38,'Angaben Prüfstelle - Allgemein'!F38) -> TRUE | P18: ='Angaben Prüfstelle - Allgemein'!$J$82 -> FALSE
A19: Heizung | C19: A | D19: B | E19: C | F19: D | G19: E | H19: F | I19: G | J19: =(CONCATENATE("Vergleichs-werte EnEV ",$L$15)) -> Vergleichs-werte EnEV Mittelwertberechnung erfolgt nach den Kennwerten | L19: =(CONCATENATE("Vergleichswerte GEG ",$X$15)) -> Vergleichswerte GEG | M19: TEK Heizung | N19: TEK Warm-wasser | O19: TEK Kälte geliefert | P19: TEK therm. Be- und Ent-feuchtung | Q19: aus Tabelle "Angaben Prüfstelle - Zusatz"
A20: =IF($A$5="","",$A$5) -> Schulen und KTs | C20: =IF($C5="","",VLOOKUP($C5,'Klassengrenzen Heizung'!$A$10:$L$72,4,0)) -> 0 | D20: =IF($C5="","",VLOOKUP($C5,'Klassengrenzen Heizung'!$A$10:$N$72,5,0)) -> 69 | E20: =IF($C5="","",VLOOKUP($C5,'Klassengrenzen Heizung'!$A$10:$N$72,6,0)) -> 87 | F20: =IF($C5="","",VLOOKUP($C5,'Klassengrenzen Heizung'!$A$10:$N$72,7,0)) -> 104 | G20: =IF($C5="","",VLOOKUP($C5,'Klassengrenzen Heizung'!$A$10:$N$72,8,0)) -> 120 | H20: =IF($C5="","",VLOOKUP($C5,'Klassengrenzen Heizung'!$A$10:$N$72,9,0)) -> 142 | I20: =IF($C5="","",VLOOKUP($C5,'Klassengrenzen Heizung'!$A$10:$N$72,10,0)) -> 176 | J20: =IF($C5="","",IF($D5>$D$11,ROUND(VLOOKUP($C5,'Klassengrenzen Heizung'!$A$10:$N$72,12,0),0),ROUND(VLOOKUP($C5,'Klassengrenzen Heizung'!$A$10:$N$72,12-1,0),0))) -> 105 | L20: =IF(SUM(M20:O20)=0,"",SUM(M20:P20)) -> 50.29 | M20: =IF($B5="","",VLOOKUP($B5,Vergleichswerte,4,)*E5) -> 49.09 | N20: =IF(N$18=TRUE,IF($B5="",0,VLOOKUP($B5,Vergleichswerte,5,)*H5),0) -> 0.00 | O20: =IF(O$18=FALSE,0,IF($B5="",0,VLOOKUP($B5,Vergleichswerte,8,)*$G5*4)) -> 1.20 | P20: =IF(P$18=FALSE,0,IF($B5="",0,VLOOKUP($B5,Vergleichswerte,10,)*J5)) -> 0
A21: =IF($A$6="","",$A$6) ->  | C21: =IF($C6="","",VLOOKUP($C6,'Klassengrenzen Heizung'!$A$10:$L$72,4,0)) ->  | D21: =IF($C6="","",VLOOKUP($C6,'Klassengrenzen Heizung'!$A$10:$N$72,5,0)) ->  | E21: =IF($C6="","",VLOOKUP($C6,'Klassengrenzen Heizung'!$A$10:$N$72,6,0)) ->  | F21: =IF($C6="","",VLOOKUP($C6,'Klassengrenzen Heizung'!$A$10:$N$72,7,0)) ->  | G21: =IF($C6="","",VLOOKUP($C6,'Klassengrenzen Heizung'!$A$10:$N$72,8,0)) ->  | H21: =IF($C6="","",VLOOKUP($C6,'Klassengrenzen Heizung'!$A$10:$N$72,9,0)) ->  | I21: =IF($C6="","",VLOOKUP($C6,'Klassengrenzen Heizung'!$A$10:$N$72,10,0)) ->  | J21: =IF($C6="","",IF($D6>$D$11,ROUND(VLOOKUP($C6,'Klassengrenzen Heizung'!$A$10:$N$72,12,0),0),ROUND(VLOOKUP($C6,'Klassengrenzen Heizung'!$A$10:$N$72,12-1,0),0))) ->  | L21: =IF(SUM(M21:O21)=0,"",SUM(M21:P21)) ->  | M21: =IF($B6="","",VLOOKUP($B6,Vergleichswerte,4,)*E6) ->  | N21: =IF(N$18=TRUE,IF($B6="",0,VLOOKUP($B6,Vergleichswerte,5,)*H6),0) -> 0.00 | O21: =IF(O$18=FALSE,0,IF($B6="",0,VLOOKUP($B6,Vergleichswerte,8,)*$G6*4)) -> 0.00 | P21: =IF(P$18=FALSE,0,IF($B6="",0,VLOOKUP($B6,Vergleichswerte,10,)*J6)) -> 0
A22: =IF($A$7="","",$A$7) ->  | C22: =IF($C7="","",VLOOKUP($C7,'Klassengrenzen Heizung'!$A$10:$L$72,4,0)) ->  | D22: =IF($C7="","",VLOOKUP($C7,'Klassengrenzen Heizung'!$A$10:$N$72,5,0)) ->  | E22: =IF($C7="","",VLOOKUP($C7,'Klassengrenzen Heizung'!$A$10:$N$72,6,0)) ->  | F22: =IF($C7="","",VLOOKUP($C7,'Klassengrenzen Heizung'!$A$10:$N$72,7,0)) ->  | G22: =IF($C7="","",VLOOKUP($C7,'Klassengrenzen Heizung'!$A$10:$N$72,8,0)) ->  | H22: =IF($C7="","",VLOOKUP($C7,'Klassengrenzen Heizung'!$A$10:$N$72,9,0)) ->  | I22: =IF($C7="","",VLOOKUP($C7,'Klassengrenzen Heizung'!$A$10:$N$72,10,0)) ->  | J22: =IF($C7="","",IF($D7>$D$11,ROUND(VLOOKUP($C7,'Klassengrenzen Heizung'!$A$10:$N$72,12,0),0),ROUND(VLOOKUP($C7,'Klassengrenzen Heizung'!$A$10:$N$72,12-1,0),0))) ->  | L22: =IF(SUM(M22:O22)=0,"",SUM(M22:P22)) ->  | M22: =IF($B7="","",VLOOKUP($B7,Vergleichswerte,4,)*E7) ->  | N22: =IF(N$18=TRUE,IF($B7="",0,VLOOKUP($B7,Vergleichswerte,5,)*H7),0)+(IF(B7=32,90,0)) -> 0.00 | O22: =IF(O$18=FALSE,0,IF($B7="",0,VLOOKUP($B7,Vergleichswerte,8,)*$G7*4)) -> 0.00 | P22: =IF(P$18=FALSE,0,IF($B7="",0,VLOOKUP($B7,Vergleichswerte,10,)*J7)) -> 0
A23: =IF($A$8="","",$A$8) ->  | C23: =IF($L23="","",$L23/4*1) ->  | D23: =IF($L23="","",$L23/4*2) ->  | E23: =IF($L23="","",$L23/4*3) ->  | F23: =IF($L23="","",$L23/4*4) ->  | G23: =IF($L23="","",$L23/4*5) ->  | H23: =IF($L23="","",$L23/4*6) ->  | I23: =IF($L23="","",$L23*2) ->  | L23: =IF(SUM(M18:O18)=0,"",SUM(M18:O18)) ->  | O23: =IF(OR('Angaben Prüfstelle - Allgemein'!$F$38,'Angaben Prüfstelle - Allgemein'!$F$37)=FALSE,0,IF($B8="",0,VLOOKUP($B8,Vergleichswerte,8,)*$G8*4)) -> 0.00
A24: Heiz Mittelwert | C24: =ROUND((IF(C20="",0,C20*$D$5)+IF(C21="",0,C21*$D$6)+IF(C22="",0,C22*$D$7))/$D$9,0) -> 0 | D24: 69 | E24: 87 | F24: 104 | G24: 120 | H24: 142 | I24: 176 | J24: =ROUND((IF($D$5="",0,$D$5*J20)+IF($D$6="",0,$D$6*J21)+IF($D$7="",0,$D$7*J22)+IF($D$8="",0,$D$8*J23))/$D$9,0) ->  | L24: =(IF(L20="",0,L20*$D$5)+IF(L21="",0,L21*$D$6)+IF(L22="",0,L22*$D$7))/$D$9 -> 50.29 | M24: =(IF(M20="",0,M20*$D$5)+IF(M21="",0,M21*$D$6)+IF(M22="",0,M22*$D$7))/$D$9 -> 49.09 | N24: 0.00 | O24: =(IF(O20="",0,O20*$D$5)+IF(O21="",0,O21*$D$6)+IF(O22="",0,O22*$D$7))/$D$9 -> 1.20 | P24: =(IF(P20="",0,P20*$D$5)+IF(P21="",0,P21*$D$6)+IF(P22="",0,P22*$D$7))/$D$9 -> 0.00
M26: ='Angaben Prüfstelle - Allgemein'!J78 -> FALSE | N26: ='Angaben Prüfstelle - Allgemein'!$J$76 -> FALSE | O26: ='Angaben Prüfstelle - Allgemein'!F35 -> TRUE | P26: ='Angaben Prüfstelle - Allgemein'!F34 -> FALSE | Q26: ='Angaben Prüfstelle - Allgemein'!$J$79 -> TRUE | R26: ='Angaben Prüfstelle - Allgemein'!$J$81 -> FALSE | S26: ='Angaben Prüfstelle - Allgemein'!$F$39 -> TRUE | T26: FALSE | U26: FALSE
A27: Strom | C27: A | D27: B | E27: C | F27: D | G27: E | H27: F | I27: G | J27: =J19 -> Vergleichs-werte EnEV Mittelwertberechnung erfolgt nach den Kennwerten | L27: =(CONCATENATE("Vergleichswerte GEG ",$X$15)) -> Vergleichswerte GEG | M27: TEK eingebaute Beleuchtung | N27: TEK Warm-wasser | O27: TEK Lüftung o. WRG | P27: TEK Lüftung mit WRG | Q27: TEK Hilfs-energie für Kälte | R27: TEK Be- und Ent-feuchtung | S27: TEK Kälte | T27: Sonstiges | U27: Aufzug
A28: =IF($A$5="","",$A$5) -> Schulen und KTs | C28: =IF($C5="","",ROUND(VLOOKUP($C5,'Klassengrenzen Strom'!$A$10:$T$72,4,0),0)) -> 0 | D28: =IF($C5="","",ROUND(VLOOKUP($C5,'Klassengrenzen Strom'!$A$10:$T$72,5,0),0)) -> 12 | E28: =IF($C5="","",ROUND(VLOOKUP($C5,'Klassengrenzen Strom'!$A$10:$T$72,6,0),0)) -> 15 | F28: =IF($C5="","",ROUND(VLOOKUP($C5,'Klassengrenzen Strom'!$A$10:$T$72,7,0),0)) -> 17 | G28: =IF($C5="","",ROUND(VLOOKUP($C5,'Klassengrenzen Strom'!$A$10:$T$72,8,0),0)) -> 20 | H28: =IF($C5="","",ROUND(VLOOKUP($C5,'Klassengrenzen Strom'!$A$10:$T$72,9,0),0)) -> 25 | I28: =IF($C5="","",ROUND(VLOOKUP($C5,'Klassengrenzen Strom'!$A$10:$T$72,10,0),0)) -> 32 | J28: =IF($C5="","",IF(D5>D$11,ROUND(VLOOKUP($C5,'Klassengrenzen Strom'!$A$10:$L$72,12,0),0),ROUND(VLOOKUP($C5,'Klassengrenzen Strom'!$A$10:$L$72,12-1,0),0))) -> 0 | L28: =IF(SUM(M28:U28)=0,"",SUM(M28:U28)) -> 4.40 | M28: =IF('Angaben Prüfstelle - Allgemein'!J$78=FALSE,0,IF($B5="",0,VLOOKUP($B5,Vergleichswerte,7,))) -> 0 | N28: =IF($B5="",0,IF(N$26=TRUE,VLOOKUP($B5,Vergleichswerte,5,)*H5,0)) -> 0.00 | O28: =IF(O$26=FALSE,0,IF($B5="",0,VLOOKUP($B5,Vergleichswerte,6,))) -> 3.9 | P28: 0 | Q28: =IF($B5="","",IF(Q$26, IF($G5="",0,VLOOKUP($B5,Vergleichswerte,9,)*$G5), 0)) -> 0.2 | R28: =IF(R$26=FALSE,0,IF($B5="",0,VLOOKUP($B5,Vergleichswerte,10,)*J5)) -> 0 | S28: =IF($B5="","",IF(S$26, IF($G5="",0,VLOOKUP($B5,Vergleichswerte,8,)*$G5), 0)) -> 0.3 | T28: =IF(T$26=FALSE,0,IF($B5="",0,VLOOKUP($B5,Vergleichswerte,11,))) -> 0 | U28: =IF($B5="","", IF(U$26=FALSE,0,2)) -> 0
A29: =IF($A$6="","",$A$6) ->  | C29: =IF($C6="","",ROUND(VLOOKUP($C6,'Klassengrenzen Strom'!$A$10:$T$72,4,0),0)) ->  | D29: =IF($C6="","",ROUND(VLOOKUP($C6,'Klassengrenzen Strom'!$A$10:$T$72,5,0),0)) ->  | E29: =IF($C6="","",ROUND(VLOOKUP($C6,'Klassengrenzen Strom'!$A$10:$T$72,6,0),0)) ->  | F29: =IF($C6="","",ROUND(VLOOKUP($C6,'Klassengrenzen Strom'!$A$10:$T$72,7,0),0)) ->  | G29: =IF($C6="","",ROUND(VLOOKUP($C6,'Klassengrenzen Strom'!$A$10:$T$72,8,0),0)) ->  | H29: =IF($C6="","",ROUND(VLOOKUP($C6,'Klassengrenzen Strom'!$A$10:$T$72,9,0),0)) ->  | I29: =IF($C6="","",ROUND(VLOOKUP($C6,'Klassengrenzen Strom'!$A$10:$T$72,10,0),0)) ->  | J29: =IF($C6="","",IF(D6>D$11,ROUND(VLOOKUP($C6,'Klassengrenzen Strom'!$A$10:$L$72,12,0),0),ROUND(VLOOKUP($C6,'Klassengrenzen Strom'!$A$10:$L$72,12-1,0),0))) ->  | L29: =IF(SUM(M29:U29)=0,"",SUM(M29:U29)) ->  | M29: =IF('Angaben Prüfstelle - Allgemein'!J$78=FALSE,0,IF($B6="",0,VLOOKUP($B6,Vergleichswerte,7,))) -> 0 | N29: =IF($B6="",0,IF(N$26=TRUE,VLOOKUP($B6,Vergleichswerte,5,)*H6,0)) -> 0.00 | O29: 0 | P29: 0 | Q29: =IF($B6="","",IF(Q$26, IF($G6="",0,VLOOKUP($B6,Vergleichswerte,9,)*$G6), 0)) ->  | R29: =IF(R$26=FALSE,0,IF($B6="",0,VLOOKUP($B6,Vergleichswerte,10,)*J6)) -> 0 | S29: =IF($B6="","",IF(S$26, IF($G6="",0,VLOOKUP($B6,Vergleichswerte,8,)*$G6), 0)) ->  | T29: =IF(T$26=FALSE,0,IF($B6="",0,VLOOKUP($B6,Vergleichswerte,11,))) -> 0 | U29: =IF($B6="","", IF(U$26=FALSE,0,2)) -> 
A30: =IF($A$7="","",$A$7) ->  | C30: =IF($C7="","",ROUND(VLOOKUP($C7,'Klassengrenzen Strom'!$A$10:$T$72,4,0),0)) ->  | D30: =IF($C7="","",ROUND(VLOOKUP($C7,'Klassengrenzen Strom'!$A$10:$T$72,5,0),0)) ->  | E30: =IF($C7="","",ROUND(VLOOKUP($C7,'Klassengrenzen Strom'!$A$10:$T$72,6,0),0)) ->  | F30: =IF($C7="","",ROUND(VLOOKUP($C7,'Klassengrenzen Strom'!$A$10:$T$72,7,0),0)) ->  | G30: =IF($C7="","",ROUND(VLOOKUP($C7,'Klassengrenzen Strom'!$A$10:$T$72,8,0),0)) ->  | H30: =IF($C7="","",ROUND(VLOOKUP($C7,'Klassengrenzen Strom'!$A$10:$T$72,9,0),0)) ->  | I30: =IF($C7="","",ROUND(VLOOKUP($C7,'Klassengrenzen Strom'!$A$10:$T$72,10,0),0)) ->  | J30: =IF($C7="","",IF(D7>D$11,ROUND(VLOOKUP($C7,'Klassengrenzen Strom'!$A$10:$L$72,12,0),0),ROUND(VLOOKUP($C7,'Klassengrenzen Strom'!$A$10:$L$72,12-1,0),0))) ->  | L30: =IF(SUM(M30:U30)=0,"",SUM(M30:U30)) ->  | M30: =IF('Angaben Prüfstelle - Allgemein'!J$78=FALSE,0,IF($B7="",0,VLOOKUP($B7,Vergleichswerte,7,))) -> 0 | N30: =IF($B7="",0,IF(N$26=TRUE,VLOOKUP($B7,Vergleichswerte,5,)*H7,0)) -> 0.00 | O30: 0 | P30: 0 | Q30: =IF($B7="","",IF(Q$26, IF($G7="",0,VLOOKUP($B7,Vergleichswerte,9,)*$G7), 0)) ->  | R30: =IF(R$26=FALSE,0,IF($B7="",0,VLOOKUP($B7,Vergleichswerte,10,)*J7)) -> 0 | S30: =IF($B7="","",IF(S$26, IF($G7="",0,VLOOKUP($B7,Vergleichswerte,8,)*$G7), 0)) ->  | T30: =IF(T$26=FALSE,0,IF($B7="",0,VLOOKUP($B7,Vergleichswerte,11,))) -> 0 | U30: =IF($B7="","", IF(U$26=FALSE,0,2)) -> 
A31: =IF($A$8="","",$A$8) ->  | C31: 0 | D31: =IF($L31="","",$L31/4*2) ->  | E31: =IF($L31="","",$L31/4*3) ->  | F31: =IF($L31="","",$L31/4*4) ->  | G31: =IF($L31="","",$L31/4*5) ->  | H31: =IF($L31="","",$L31/4*6) ->  | I31: =IF($L31="","",$L31*2) ->  | L31: =IF(SUM(M26:Q26)=0,"",SUM(M26:T26)) -> 
A32: Strom Mittelwert | C32: =ROUND((IF(C28="",0,C28*$D$5)+IF(C29="",0,C29*$D$6)+IF(C30="",0,C30*$D$7))/$D$9,0) -> 0 | D32: =ROUND((IF(D28="",0,D28*$D$5)+IF(D29="",0,D29*$D$6)+IF(D30="",0,D30*$D$7))/$D$9,0) -> 12 | E32: 15 | F32: 17 | G32: 20 | H32: 25 | I32: 32 | J32: =ROUND((IF($D$5="",0,$D$5*J28)+IF($D$6="",0,$D$6*J29)+IF($D$7="",0,$D$7*J30)+IF($D$8="",0,$D$8*J31))/$D$9,0) ->  | L32: =ROUND((IF(L28="",0,L28*$D$5)+IF(L29="",0,L29*$D$6)+IF(L30="",0,L30*$D$7))/$D$9,0) -> 4
A34: Wasser | C34: A | D34: B | E34: C | F34: D | G34: E | H34: F | I34: G | J34: =(CONCATENATE("Vergleichswerte EnEV ",$L$15)) -> Vergleichswerte EnEV Mittelwertberechnung erfolgt nach den Kennwerten | L34: =(CONCATENATE("Vergleichswerte Deutscher Städtetag ",$X$15)) -> Vergleichswerte Deutscher Städtetag | M34: TEK Sonstiges
A35: =IF($A$5="","",$A$5) -> Schulen und KTs | C35: 0 | D35: =IF($C5="","",ROUND(VLOOKUP($C5,'Klassengrenzen Wasser'!$A$10:$L$72,5,0),0)) -> 114 | E35: =IF($C5="","",ROUND(VLOOKUP($C5,'Klassengrenzen Wasser'!$A$10:$L$72,6,0),0)) -> 157 | F35: =IF($C5="","",ROUND(VLOOKUP($C5,'Klassengrenzen Wasser'!$A$10:$L$72,7,0),0)) -> 205 | G35: =IF($C5="","",ROUND(VLOOKUP($C5,'Klassengrenzen Wasser'!$A$10:$L$72,8,0),0)) -> 294 | H35: =IF($C5="","",ROUND(VLOOKUP($C5,'Klassengrenzen Wasser'!$A$10:$L$72,9,0),0)) -> 447 | I35: =IF($C5="","",ROUND(VLOOKUP($C5,'Klassengrenzen Wasser'!$A$10:$L$72,10,0),0)) -> 635 | J35: =IF($C5="","",ROUND(VLOOKUP($C5,'Klassengrenzen Wasser'!$A$10:$L$72,11,0),0)) -> 358 | L35: =M35 -> 358 | M35: =J35 -> 358.00
A36: =IF($A$6="","",$A$6) ->  | C36: 0 | D36: =IF($C6="","",ROUND(VLOOKUP($C6,'Klassengrenzen Wasser'!$A$10:$L$72,5,0),0)) ->  | E36: =IF($C6="","",ROUND(VLOOKUP($C6,'Klassengrenzen Wasser'!$A$10:$L$72,6,0),0)) ->  | F36: =IF($C6="","",ROUND(VLOOKUP($C6,'Klassengrenzen Wasser'!$A$10:$L$72,7,0),0)) ->  | G36: =IF($C6="","",ROUND(VLOOKUP($C6,'Klassengrenzen Wasser'!$A$10:$L$72,8,0),0)) ->  | H36: =IF($C6="","",ROUND(VLOOKUP($C6,'Klassengrenzen Wasser'!$A$10:$L$72,9,0),0)) ->  | I36: =IF($C6="","",ROUND(VLOOKUP($C6,'Klassengrenzen Wasser'!$A$10:$L$72,10,0),0)) ->  | J36: =IF($C6="","",ROUND(VLOOKUP($C6,'Klassengrenzen Wasser'!$A$10:$L$72,11,0),0)) ->  | L36: =M36 ->  | M36: =J36 -> 
A37: =IF($A$7="","",$A$7) ->  | C37: 0 | D37: =IF($C7="","",ROUND(VLOOKUP($C7,'Klassengrenzen Wasser'!$A$10:$L$72,5,0),0)) ->  | E37: =IF($C7="","",ROUND(VLOOKUP($C7,'Klassengrenzen Wasser'!$A$10:$L$72,6,0),0)) ->  | F37: =IF($C7="","",ROUND(VLOOKUP($C7,'Klassengrenzen Wasser'!$A$10:$L$72,7,0),0)) ->  | G37: =IF($C7="","",ROUND(VLOOKUP($C7,'Klassengrenzen Wasser'!$A$10:$L$72,8,0),0)) ->  | H37: =IF($C7="","",ROUND(VLOOKUP($C7,'Klassengrenzen Wasser'!$A$10:$L$72,9,0),0)) ->  | I37: =IF($C7="","",ROUND(VLOOKUP($C7,'Klassengrenzen Wasser'!$A$10:$L$72,10,0),0)) ->  | J37: =IF($C7="","",ROUND(VLOOKUP($C7,'Klassengrenzen Wasser'!$A$10:$L$72,11,0),0)) ->  | L37: =M37 ->  | M37: =J37 -> 
A38: =IF($A$8="","",$A$8) ->  | C38: =IF($L38="","",$L38/4*1) ->  | D38: =IF($L38="","",$L38/4*2) ->  | E38: =IF($L38="","",$L38/4*3) ->  | F38: =IF($L38="","",$L38/4*4) ->  | G38: =IF($L38="","",$L38/4*5) ->  | H38: =IF($L38="","",$L38/4*6) ->  | I38: =IF($L38="","",$L38*2) -> 
A39: Wasser Mittelwert | C39: =ROUND((IF(C35="",0,C35*$D$5)+IF(C36="",0,C36*$D$6)+IF(C37="",0,C37*$D$7))/$D$9,0) -> 0 | D39: =ROUND((IF(D35="",0,D35*$D$5)+IF(D36="",0,D36*$D$6)+IF(D37="",0,D37*$D$7))/$D$9,0) -> 114 | E39: 157 | F39: 205 | G39: 294 | H39: 447 | I39: 635 | J39: =ROUND((IF($D$5="",0,$D$5*J35)+IF($D$6="",0,$D$6*J36)+IF($D$7="",0,$D$7*J37)+IF($D$8="",0,$D$8*J38))/$D$9,0) ->  | L39: =J39 -> 

Sheet Klassengrenzen Heizung
A1: Klassengrenzen für Heizung
B3: Bezugsjahr: | C3: 2011-2014
B4: Bezugsgröße: | C4: Nettogrundfläche (beheizt)
B5: Bezugsklima: | C5: Potsdam (TRY 2011) | H5: NWG-Regeln-Energieverbrauchskennwerte.pdf
C6: Datenquelle: Datensammlung des Deutschen Städtetages Stand: 02.05.2016 | K6: nach BBSR 07.04.2015
A7: BZK | B7: Bauwerkszuordnung | C7: Anzahl | D7: Untergrenzen der Klassen | K7: Vergleichswerte EnEV | M7: Nr | N7: BZK
C8: Werte | D8: (kWh/m²a) | K8: (kWh/m²a) | L8: (kWh/m²a)
D9: A | E9: B | F9: C | G9: D | H9: E | I9: F | J9: G | K9: <=3.500 m² | L9: >3.500 m² | M9: Gebäudekategorie
A10: 4100 | B10: Allgemeinbildende Schulen | C10: 7,309 | D10: 0 | E10: 69 | F10: 87 | G10: 102 | H10: 117 | I10: 136 | J10: 165 | K10: 105 | L10: 90 | M10: 21 | N10: 4100
A11: 6430 | B11: Altentagesstätten | C11: 60 | D11: 0 | E11: 114 | F11: 139 | G11: 161 | H11: 184 | I11: 216 | J11: 237 | K11: 105 | L11: 105 | M11: 36 | N11: 6430
A12: 7740 | B12: Bauhöfe | C12: 211 | D12: 0 | E12: 108 | F12: 140 | G12: 173 | H12: 215 | I12: 267 | J12: 329 | K12: 100 | L12: 100 | M12: 5 | N12: 7740
A13: 4200 | B13: Berufliche Schulen | C13: 915 | D13: 0 | E13: 62 | F13: 77 | G13: 87 | H13: 99 | I13: 116 | J13: 153 | K13: 80 | L13: 80 | M13: 21 | N13: 4200
A14: 4210 | B14: Berufsfachschulen* | C14: 14 | D14: 0 | E14: 86 | F14: 100 | G14: 115 | H14: 118 | I14: 140 | J14: 150 | K14: 80 | L14: 80 | M14: 21 | N14: 4210
A15: 6400 | B15: Betreuungseinrichtungen | C15: 744 | D15: 0 | E15: 73 | F15: 96 | G15: 125 | H15: 150 | I15: 181 | J15: 227 | K15: 105 | L15: 105 | M15: 35 | N15: 6400
A16: 7300 | B16: Betriebs- und Werkstätten | C16: 136 | D16: 0 | E16: 75 | F16: 109 | G16: 152 | H16: 179 | I16: 211 | J16: 290 | K16: 110 | L16: 110 | M16: 42 | N16: 7300
A17: 9130 | B17: Bibliotheksgebäude | C17: 116 | D17: 0 | E17: 54 | F17: 70 | G17: 85 | H17: 121 | I17: 148 | J17: 185 | K17: 55 | L17: 55 | M17: 24 | N17: 9130
A18: 7760 | B18: Feuerwehren | C18: 609 | D18: 0 | E18: 86 | F18: 127 | G18: 154 | H18: 188 | I18: 229 | J18: 287 | K18: 100 | L18: 100 | M18: 6 | N18: 7760
A19: 5500 | B19: Freibadanlagen | C19: 28 | D19: 0 | E19: 87 | F19: 95 | G19: 213 | H19: 312 | I19: 460 | J19: 2151 | K19: 135 | L19: 135 | M19: 33 | N19: 5500
A20: 9700 | B20: Friedhofsanlagen | C20: 263 | D20: 0 | E20: 111 | F20: 140 | G20: 169 | H20: 212 | I20: 260 | J20: 351 | K20: 150 | L20: 150 | M20: 33 | N20: 9700
A21: 7600 | B21: Garagengebäude* | C21: 45 | D21: 0 | E21: 78 | F21: 114 | G21: 147 | H21: 166 | I21: 192 | J21: 368 | K21: 110 | L21: 110 | M21: 44 | N21: 7600
A22: 9100 | B22: Geb. f. kulturelle u. musische Zwecke | C22: 379 | D22: 0 | E22: 63 | F22: 81 | G22: 98 | H22: 126 | I22: 163 | J22: 212 | K22: 65 | L22: 65 | M22: 28 | N22: 9100
A23: 7700 | B23: Geb. f. öff. Bereitschaftsdienste | C23: 952 | D23: 0 | E23: 94 | F23: 131 | G23: 159 | H23: 194 | I23: 233 | J23: 299 | K23: 100 | L23: 100 | M23: 5 | N23: 7700
A24: 5300 | B24: Geb. f. Sportplatz- u. Freibadanl. | C24: 262 | D24: 0 | E24: 70 | F24: 99 | G24: 130 | H24: 164 | I24: 215 | J24: 316 | K24: 135 | L24: 135 | M24: 33 | N24: 5300
A25: 2000 | B25: Geb. f. wiss. Lehre u. Forschung | C25: 187 | D25: 0 | E25: 82 | F25: 99 | G25: 113 | H25: 153 | I25: 182 | J25: 230 | K25: 90 | L25: 90 | M25: 12 | N25: 2000
A26: 9400 | B26: Gebäude für Pflanzenhaltung | C26: 33 | D26: 0 | E26: 148 | F26: 172 | G26: 195 | H26: 238 | I26: 288 | J26: 378 | K26: 180 | L26: 180 | M26: 44 | N26: 9400
A27: 9150 | B27: Gemeinschaftshäuser | C27: 134 | D27: 0 | E27: 84 | F27: 109 | G27: 144 | H27: 161 | I27: 208 | J27: 329 | K27: 135 | L27: 135 | M27: 27 | N27: 9150
A28: 6300 | B28: Gemeinschaftsunterkünfte | C28: 16 | D28: 0 | E28: 68 | F28: 160 | G28: 169 | H28: 174 | I28: 217 | J28: 271 | K28: 105 | L28: 105 | M28: 35 | N28: 6300
A29: 1200 | B29: Gerichtsgebäude | C29: 46 | D29: 0 | E29: 90 | F29: 114 | G29: 153 | H29: 162 | I29: 169 | J29: 193 | K29: 90 | L29: 70 | M29: 2 | N29: 1200
A30: 4150 | B30: Gesamtschulen | C30: 210 | D30: 0 | E30: 66 | F30: 81 | G30: 94 | H30: 109 | I30: 125 | J30: 154 | K30: 105 | L30: 90 | M30: 21 | N30: 4150
A31: 4115 | B31: Grund- u. Hauptschulen mit Turnhalle | C31: 811 | D31: 0 | E31: 70 | F31: 86 | G31: 100 | H31: 116 | I31: 136 | J31: 166 | K31: 105 | L31: 90 | M31: 21 | N31: 4115
A32: 4112 | B32: Grund- und Hauptschulen | C32: 202 | D32: 0 | E32: 80 | F32: 92 | G32: 101 | H32: 111 | I32: 119 | J32: 143 | K32: 105 | L32: 90 | M32: 21 | N32: 4112
A33: 4121 | B33: Grund-, Haupt- und Realschulen | C33: 1,142 | D33: 0 | E33: 83 | F33: 102 | G33: 119 | H33: 138 | I33: 158 | J33: 184 | K33: 105 | L33: 90 | M33: 21 | N33: 4121
A34: 4110 | B34: Grundschulen | C34: 2,900 | D34: 0 | E34: 69 | F34: 89 | G34: 105 | H34: 121 | I34: 140 | J34: 167 | K34: 105 | L34: 90 | M34: 21 | N34: 4110
A35: 4140 | B35: Gymnasien | C35: 1,163 | D35: 0 | E35: 67 | F35: 83 | G35: 95 | H35: 107 | I35: 124 | J35: 149 | K35: 105 | L35: 90 | M35: 21 | N35: 4140
A36: 5100 | B36: Hallen (ohne Schwimmh.) | C36: 1,352 | D36: 0 | E36: 75 | F36: 101 | G36: 120 | H36: 143 | I36: 171 | J36: 224 | K36: 110 | L36: 110 | M36: 30 | N36: 5100
A37: 4120 | B37: Hauptschulen | C37: 1,377 | D37: 0 | E37: 82 | F37: 99 | G37: 115 | H37: 135 | I37: 156 | J37: 182 | K37: 105 | L37: 90 | M37: 21 | N37: 4120
A38: 2100 | B38: Hörsaalgebäude* | C38: 41 | D38: 0 | E38: 68 | F38: 96 | G38: 112 | H38: 136 | I38: 160 | J38: 213 | K38: 90 | L38: 90 | M38: 11 | N38: 2100
A39: 2300 | B39: Institutsgeb. f. Forsch. u. Unters.* | C39: 153 | D39: 0 | E39: 92 | F39: 129 | G39: 154 | H39: 178 | I39: 223 | J39: 299 | K39: 135 | L39: 135 | M39: 13 | N39: 2300
A40: 2200 | B40: Institutsgebäude f. Lehre u. Forsch. | C40: 176 | D40: 0 | E40: 82 | F40: 99 | G40: 113 | H40: 148 | I40: 182 | J40: 231 | K40: 105 | L40: 105 | M40: 14 | N40: 2200
A41: 6415 | B41: Jugendhäuser/Jugendzentren | C41: 559 | D41: 0 | E41: 73 | F41: 92 | G41: 116 | H41: 142 | I41: 174 | J41: 227 | K41: 105 | L41: 105 | M41: 37 | N41: 6430
A42: 9600 | B42: Justizvollzugsanstalten* | C42: 209 | D42: 0 | E42: 152 | F42: 191 | G42: 218 | H42: 251 | I42: 297 | J42: 378 | K42: 180 | L42: 180 | M42: 35 | N42: 9600
A43: 4410 | B43: Kindergärten | C43: 788 | D43: 0 | E43: 71 | F43: 87 | G43: 105 | H43: 122 | I43: 149 | J43: 191 | K43: 110 | L43: 110 | M43: 22 | N43: 4410
A44: 4400 | B44: Kindertagesstätten | C44: 4,244 | D44: 0 | E44: 71 | F44: 90 | G44: 110 | H44: 130 | I44: 156 | J44: 200 | K44: 110 | L44: 110 | M44: 22 | N44: 4400
A45: 3200 | B45: Krankenhäuser für Akutkranke | C45: 16 | D45: 0 | E45: 190 | F45: 196 | G45: 238 | H45: 271 | I45: 303 | J45: 363 | K45: 250 | L45: 250 | M45: 15 | N45: 3200
A46: 7500 | B46: Lagergebäude* | C46: 57 | D46: 0 | E46: 53 | F46: 67 | G46: 89 | H46: 132 | I46: 189 | J46: 317 | K46: 110 | L46: 110 | M46: 44 | N46: 7500
A47: 7100 | B47: Landwirtschaftl. Produktionsstätten* | C47: 50 | D47: 0 | E47: 57 | F47: 98 | G47: 110 | H47: 151 | I47: 201 | J47: 303 | K47: 110 | L47: 110 | M47: 42 | N47: 7100
A48: 5130 | B48: Mehrzweckhallen | C48: 156 | D48: 0 | E48: 93 | F48: 108 | G48: 129 | H48: 161 | I48: 177 | J48: 252 | K48: 110 | L48: 110 | M48: 30 | N48: 5130
A49: 9121 | B49: Museen | C49: 148 | D49: 0 | E49: 70 | F49: 84 | G49: 99 | H49: 138 | I49: 166 | J49: 201 | K49: 75 | L49: 75 | M49: 25 | N49: 9121
A50: 1100 | B50: Parlamentsgebäude* | C50: 27 | D50: 0 | E50: 87 | F50: 99 | G50: 104 | H50: 121 | I50: 124 | J50: 138 | K50: 70 | L50: 70 | M50: 2 | N50: 1100
A51: 3400 | B51: Pflegeheime (Alte, Behinderte) | C51: 39 | D51: 0 | E51: 76 | F51: 89 | G51: 102 | H51: 116 | I51: 133 | J51: 185 | K51: 135 | L51: 135 | M51: 19 | N51: 3400
A52: 1340 | B52: Polizeidienstgebäude | C52: 100 | D52: 0 | E52: 98 | F52: 136 | G52: 154 | H52: 172 | I52: 229 | J52: 266 | K52: 90 | L52: 90 | M52: 4 | N52: 1340
A53: 1313 | B53: Rathäuser | C53: 101 | D53: 0 | E53: 59 | F53: 75 | G53: 88 | H53: 98 | I53: 109 | J53: 127 | K53: 80 | L53: 85 | M53: 3 | N53: 1313
A54: 4130 | B54: Realschulen | C54: 568 | D54: 0 | E54: 64 | F54: 80 | G54: 93 | H54: 106 | I54: 120 | J54: 146 | K54: 105 | L54: 90 | M54: 21 | N54: 4130
A55: 1350 | B55: Rechenzentren | C55: 8 | D55: 0 | E55: 31 | F55: 32 | G55: 47 | H55: 58 | I55: 59 | J55: 62 | K55: 90 | L55: 90 | M55: 10 | N55: 1350
A56: 4000 | B56: Schulen und KTs | C56: 13,102 | D56: 0 | E56: 69 | F56: 87 | G56: 104 | H56: 120 | I56: 142 | J56: 176 | K56: 110 | L56: 105 | M56: 21 | N56: 4000
A57: 5200 | B57: Schwimmhallen | C57: 204 | D57: 0 | E57: 166 | F57: 220 | G57: 320 | H57: 527 | I57: 1549 | J57: 2958 | K57: 425 | L57: 425 | M57: 32 | N57: 5200
A58: 3300 | B58: Sonderkrankenhäuser* (z.B. Sucht) | C58: 30 | D58: 0 | E58: 201 | F58: 256 | G58: 277 | H58: 314 | I58: 345 | J58: 389 | K58: 135 | L58: 135 | M58: 19 | N58: 3300
A59: 4300 | B59: Sonderschulen | C59: 536 | D59: 0 | E59: 81 | F59: 104 | G59: 118 | H59: 134 | I59: 156 | J59: 196 | K59: 105 | L59: 105 | M59: 22 | N59: 4300
A60: 5000 | B60: Sportbauten | C60: 2,208 | D60: 0 | E60: 84 | F60: 112 | G60: 140 | H60: 174 | I60: 227 | J60: 345 | K60: 120 | L60: 120 | M60: 29 | N60: 5000
A61: 5400 | B61: Sportplatzanlagen (Außenanlagen) | C61: 349 | D61: 0 | E61: 150 | F61: 194 | G61: 259 | H61: 324 | I61: 380 | J61: 506 | K61: 135 | L61: 135 | M61: 33 | N61: 5400
A62: 5110 | B62: Turn- und Sporthallen | C62: 1,098 | D62: 0 | E62: 73 | F62: 100 | G62: 120 | H62: 141 | I62: 169 | J62: 222 | K62: 110 | L62: 110 | M62: 30 | N62: 5110
A63: 9140 | B63: Veranstaltungsgebäude | C63: 169 | D63: 0 | E63: 74 | F63: 106 | G63: 117 | H63: 142 | I63: 158 | J63: 201 | K63: 110 | L63: 110 | M63: 26 | N63: 9140
A64: 7200 | B64: Verkaufsstätten | C64: 15 | D64: 0 | E64: 92 | F64: 175 | G64: 234 | H64: 282 | I64: 342 | J64: 359 | K64: 110 | L64: 110 | M64: 50 | N64: 7200
A65: 6500 | B65: Verpflegungseinrichtungen | C65: 80 | D65: 0 | E65: 67 | F65: 86 | G65: 103 | H65: 152 | I65: 176 | J65: 222 | K65: 105 | L65: 105 | M65: 34 | N65: 6500
A66: 1320 | B66: Verwaltungsgeb. m. höh. techn. Ausst. | C66: 124 | D66: 0 | E66: 60 | F66: 77 | G66: 94 | H66: 112 | I66: 131 | J66: 150 | K66: 85 | L66: 85 | M66: 8 | N66: 1320
A67: 1310 | B67: Verwaltungsgeb. m. norm. techn. Ausst. | C67: 815 | D67: 0 | E67: 74 | F67: 93 | G67: 111 | H67: 134 | I67: 167 | J67: 220 | K67: 80 | L67: 85 | M67: 3 | N67: 1310
A68: 1300 | B68: Verwaltungsgebäude | C68: 1,893 | D68: 0 | E68: 68 | F68: 89 | G68: 105 | H68: 130 | I68: 157 | J68: 200 | K68: 80 | L68: 85 | M68: 1 | N68: 1300
A69: 4500 | B69: Weiterbildungseinrichtungen | C69: 67 | D69: 0 | E69: 63 | F69: 86 | G69: 106 | H69: 137 | I69: 175 | J69: 213 | K69: 90 | L69: 90 | M69: 21 | N69: 4500
A70: 6100 | B70: Wohnhäuser | C70: 0 | D70: 0 | E70: 35 | F70: 80 | G70: 110 | H70: 140 | I70: 210 | J70: 250 | K70: 70 | L70: 60 | M70: 0 | N70: 6100
A71: 6200 | B71: Wohnheime | C71: 0 | D71: 0 | E71: 35 | F71: 80 | G71: 110 | H71: 140 | I71: 210 | J71: 250 | K71: 70 | L71: 60 | M71: 0 | N71: 6200
B72: Summe | C72: =SUM(C10:C71) -> 49,746
B73: *alte Vergleichsdaten aus der IEMB-Datensammlung von 2004

Sheet Klassengrenzen Strom
A1: Klassengrenzen für Strom
B3: Bezugsjahr: | C3: 2011-2014
B4: Bezugsgröße: | C4: Nettogrundfläche (beheizt)
H5: NWG-Regeln-Energieverbrauchskennwerte.pdf
C6: Datenquelle: Datensammlung des Deutschen Städtetages Stand: 02.05.2016 | K6: nach BBSR 07.04.2015 | M6: 2014 nach BBr 30.7.2009 | O6: 2016 nach BBr 30.7.2009
A7: BZK | B7: Bauwerkszuordnung | C7: Anzahl | D7: Untergrenzen der Klassen | K7: Vergleichswerte EnEV | M7: Vergleichswerte EnEV | O7: Vergleichswerte EnEV
C8: Werte | D8: (kWh/m²a) | K8: (kWh/m²a) | L8: (kWh/m²a) | M8: (kWh/m²a) | N8: (kWh/m²a) | O8: (kWh/m²a) | P8: (kWh/m²a)
D9: A | E9: B | F9: C | G9: D | H9: E | I9: F | J9: G | K9: <=3.500 m² | L9: >3.500 m² | M9: <=3.500 m² | N9: >3.500 m² | O9: <=3.500 m² | P9: >3.500 m²
A10: 4100 | B10: Allgemeinbildende Schulen | C10: 6,210 | D10: 0.0 | E10: 11.5 | F10: 13.2 | G10: 15.0 | H10: 17.0 | I10: 19.6 | J10: 23.8 | K10: 10 | L10: 10 | M10: 40 | N10: 40 | O10: 40 | P10: 40
A11: 6430 | B11: Altentagesstätten | C11: 92 | D11: 0.0 | E11: 15.5 | F11: 19.9 | G11: 24.1 | H11: 27.6 | I11: 33.4 | J11: 42.5 | K11: 20 | L11: 20 | M11: 20
A12: 7740 | B12: Bauhöfe | C12: 187 | D12: 0.0 | E12: 14.1 | F12: 17.6 | G12: 25.5 | H12: 31.1 | I12: 42.0 | J12: 59.0 | K12: 20 | L12: 20 | M12: 20 | N12: 30 | O12: 20 | P12: 30
A13: 4200 | B13: Berufliche Schulen | C13: 782 | D13: 0.0 | E13: 14.0 | F13: 16.7 | G13: 19.6 | H13: 23.2 | I13: 27.3 | J13: 36.1 | K13: 20 | L13: 20 | M13: 20 | N13: 30 | O13: 20 | P13: 30
A14: 4210 | B14: Berufsfachschulen* | C14: 11 | D14: 0.0 | E14: 8.4 | F14: 8.8 | G14: 13.2 | H14: 16.3 | I14: 18.4 | J14: 28.9 | K14: 20 | L14: 20 | M14: 35 | N14: 35 | O14: 35 | P14: 35
A15: 6400 | B15: Betreuungseinrichtungen | C15: 756 | D15: 0.0 | E15: 14.6 | F15: 20.0 | G15: 24.0 | H15: 29.0 | I15: 37.2 | J15: 51.0 | K15: 20 | L15: 20 | M15: 40 | N15: 40 | O15: 40 | P15: 40
A16: 7300 | B16: Betriebs- und Werkstätten | C16: 102 | D16: 0.0 | E16: 12.9 | F16: 17.9 | G16: 22.2 | H16: 25.2 | I16: 33.0 | J16: 54.9 | K16: 20 | L16: 65 | M16: 30 | N16: 30 | O16: 30 | P16: 30
A17: 9130 | B17: Bibliotheksgebäude | C17: 115 | D17: 0.0 | E17: 19.0 | F17: 25.1 | G17: 32.2 | H17: 39.9 | I17: 52.7 | J17: 83.5 | K17: 40 | L17: 40 | M17: 155 | N17: 155 | O17: 155 | P17: 155
A18: 7760 | B18: Feuerwehren | C18: 550 | D18: 0.0 | E18: 15.0 | F18: 19.5 | G18: 26.0 | H18: 35.5 | I18: 52.5 | J18: 72.8 | K18: 20 | L18: 20 | M18: 65 | N18: 65 | O18: 65 | P18: 65
A19: 5500 | B19: Freibadanlagen | C19: 27 | D19: 0.0 | E19: 98.8 | F19: 124.1 | G19: 132.2 | H19: 144.9 | I19: 189.2 | J19: 242.7 | M19: 40 | N19: 40 | O19: 40 | P19: 40
A20: 9700 | B20: Friedhofsanlagen | C20: 337 | D20: 0.0 | E20: 15.4 | F20: 20.2 | G20: 28.7 | H20: 41.8 | I20: 77.6 | J20: 111.9 | M20: 65 | N20: 65 | O20: 65 | P20: 65
A21: 7600 | B21: Garagengebäude* | C21: 52 | D21: 0.0 | E21: 10.5 | F21: 15.0 | G21: 19.1 | H21: 31.3 | I21: 42.2 | J21: 77.0 | K21: 20 | L21: 65 | M21: 65 | N21: 65 | O21: 65 | P21: 65
A22: 9100 | B22: Geb. f. kulturelle u. musische Zwecke | C22: 357 | D22: 0.0 | E22: 18.8 | F22: 28.4 | G22: 36.1 | H22: 48.5 | I22: 64.7 | J22: 93.8 | K22: 20 | L22: 20 | M22: 125 | N22: 80 | O22: 125 | P22: 80
A23: 7700 | B23: Geb. f. öff. Bereitschaftsdienste | C23: 849 | D23: 0.0 | E23: 14.5 | F23: 18.7 | G23: 24.9 | H23: 33.0 | I23: 46.8 | J23: 67.8 | K23: 20 | L23: 20 | M23: 135 | N23: 135 | O23: 135 | P23: 135
A24: 5300 | B24: Geb. f. Sportplatz- u. Freibadanl. | C24: 249 | D24: 0.0 | E24: 15.0 | F24: 19.7 | G24: 27.5 | H24: 36.3 | I24: 49.8 | J24: 88.1 | K24: 30 | L24: 30 | M24: 40 | N24: 40 | O24: 40 | P24: 40
A25: 2000 | B25: Geb. f. wiss. Lehre u. Forschung | C25: 103 | D25: 0.0 | E25: 20.8 | F25: 30.3 | G25: 52.0 | H25: 69.3 | I25: 131.2 | J25: 258.5 | M25: 15 | N25: 15 | O25: 15 | P25: 15
A26: 9400 | B26: Gebäude für Pflanzenhaltung | C26: 20 | D26: 0.0 | E26: 13.5 | F26: 14.7 | G26: 25.5 | H26: 29.6 | I26: 48.1 | J26: 56.2
A27: 9150 | B27: Gemeinschaftshäuser | C27: 107 | D27: 0.0 | E27: 14.5 | F27: 18.4 | G27: 22.3 | H27: 28.4 | I27: 33.4 | J27: 46.0 | K27: 40 | L27: 40 | M27: 10 | N27: 10 | O27: 10 | P27: 10
A28: 6300 | B28: Gemeinschaftsunterkünfte | C28: 7 | D28: 0.0 | E28: 10.0 | F28: 11.0 | G28: 28.0 | H28: 29.0 | I28: 32.0 | J28: 35.0 | K28: 20 | L28: 20 | M28: 10 | N28: 10 | O28: 10 | P28: 10
A29: 1200 | B29: Gerichtsgebäude | C29: 38 | D29: 0.0 | E29: 21.5 | F29: 25.2 | G29: 30.2 | H29: 40.6 | I29: 42.3 | J29: 47.2 | K29: 20 | L29: 25 | M29: 10 | N29: 10 | O29: 10 | P29: 10
A30: 4150 | B30: Gesamtschulen | C30: 182 | D30: 0.0 | E30: 12.6 | F30: 15.7 | G30: 19.6 | H30: 22.6 | I30: 26.4 | J30: 33.4 | K30: 10 | L30: 10 | M30: 10 | N30: 10 | O30: 10 | P30: 10
A31: 4115 | B31: Grund- u. Hauptschulen mit Turnhalle | C31: 738 | D31: 0.0 | E31: 11.9 | F31: 14.3 | G31: 16.2 | H31: 18.1 | I31: 20.0 | J31: 23.8 | K31: 10 | L31: 10 | M31: 10 | N31: 10 | O31: 10 | P31: 10
A32: 4112 | B32: Grund- und Hauptschulen | C32: 203 | D32: 0.0 | E32: 12.0 | F32: 13.1 | G32: 14.4 | H32: 16.0 | I32: 17.9 | J32: 21.2 | K32: 10 | L32: 10 | M32: 10 | N32: 10 | O32: 10 | P32: 10
A33: 4121 | B33: Grund-, Haupt- und Realschulen | C33: 862 | D33: 0.0 | E33: 10.9 | F33: 12.0 | G33: 13.4 | H33: 15.1 | I33: 17.3 | J33: 21.2 | K33: 10 | L33: 10 | M33: 10 | N33: 10 | O33: 10 | P33: 10
A34: 4110 | B34: Grundschulen | C34: 2,465 | D34: 0.0 | E34: 11.4 | F34: 12.9 | G34: 14.6 | H34: 16.6 | I34: 18.9 | J34: 22.8 | K34: 10 | L34: 10 | M34: 10 | N34: 10 | O34: 10 | P34: 10
A35: 4140 | B35: Gymnasien | C35: 1,076 | D35: 0.0 | E35: 12.4 | F35: 14.6 | G35: 16.8 | H35: 19.1 | I35: 21.4 | J35: 26.3 | K35: 10 | L35: 10 | M35: 10 | N35: 10 | O35: 10 | P35: 10
A36: 5100 | B36: Hallen (ohne Schwimmh.) | C36: 1,239 | D36: 0.0 | E36: 14.9 | F36: 18.4 | G36: 22.4 | H36: 26.9 | I36: 32.1 | J36: 43.8 | K36: 25 | L36: 25 | M36: 20 | N36: 20 | O36: 20 | P36: 20
A37: 4120 | B37: Hauptschulen | C37: 1,067 | D37: 0.0 | E37: 11.0 | F37: 12.2 | G37: 13.6 | H37: 15.3 | I37: 17.4 | J37: 21.9 | K37: 10 | L37: 10 | M37: 30 | N37: 30 | O37: 30 | P37: 30
A38: 2100 | B38: Hörsaalgebäude* | C38: 37 | D38: 0.0 | E38: 19.5 | F38: 29.1 | G38: 42.7 | H38: 46.5 | I38: 52.9 | J38: 103.1 | K38: 40 | L38: 40 | M38: 15 | N38: 15 | O38: 15 | P38: 15
A39: 2300 | B39: Institutsgeb. f. Forsch. u. Unters.* | C39: 149 | D39: 0.0 | E39: 16.8 | F39: 35.8 | G39: 56.8 | H39: 81.2 | I39: 108.8 | J39: 147.8 | K39: 65 | L39: 65 | M39: 20 | N39: 20 | O39: 20 | P39: 20
A40: 2200 | B40: Institutsgebäude f. Lehre u. Forsch. | C40: 93 | D40: 0.0 | E40: 20.8 | F40: 30.3 | G40: 56.1 | H40: 70.2 | I40: 125.8 | J40: 256.8 | K40: 65 | L40: 65 | M40: 20 | N40: 20 | O40: 20 | P40: 20
A41: 6415 | B41: Jugendhäuser/Jugendzentren | C41: 525 | D41: 0.0 | E41: 15.4 | F41: 20.6 | G41: 25.5 | H41: 31.2 | I41: 38.8 | J41: 52.1 | K41: 20 | L41: 20 | M41: 20 | N41: 20 | O41: 20 | P41: 20
A42: 9600 | B42: Justizvollzugsanstalten* | C42: 188 | D42: 0.0 | E42: 32.7 | F42: 45.3 | G42: 50.9 | H42: 60.7 | I42: 70.5 | J42: 80.4 | K42: 40 | L42: 40 | M42: 30 | N42: 30 | O42: 30 | P42: 30
A43: 4410 | B43: Kindergärten | C43: 784 | D43: 0.0 | E43: 15.8 | F43: 19.8 | G43: 23.7 | H43: 27.8 | I43: 32.8 | J43: 42.0 | K43: 20 | L43: 20 | M43: 25 | N43: 25 | O43: 25 | P43: 25
A44: 4400 | B44: Kindertagesstätten | C44: 4,301 | D44: 0.0 | E44: 15.8 | F44: 19.7 | G44: 23.0 | H44: 26.8 | I44: 31.1 | J44: 37.9 | K44: 20 | L44: 20 | M44: 35 | N44: 35 | O44: 35 | P44: 35
A45: 3200 | B45: Krankenhäuser für Akutkranke | C45: 16 | D45: 0.0 | E45: 62.7 | F45: 95.4 | G45: 100.7 | H45: 106.6 | I45: 135.3 | J45: 139.6 | K45: 125 | L45: 125 | M45: 40 | N45: 40 | O45: 40 | P45: 40
A46: 7500 | B46: Lagergebäude* | C46: 89 | D46: 0.0 | E46: 5.0 | F46: 6.5 | G46: 8.7 | H46: 13.4 | I46: 20.3 | J46: 40.5 | K46: 20 | L46: 65 | M46: 155 | N46: 155 | O46: 155 | P46: 155
A47: 7100 | B47: Landwirtschaftl. Produktionsstätten* | C47: 41 | D47: 0.0 | E47: 3.4 | F47: 8.0 | G47: 22.7 | H47: 24.7 | I47: 35.6 | J47: 45.3 | K47: 20 | L47: 65 | M47: 30 | N47: 30 | O47: 30 | P47: 30
A48: 5130 | B48: Mehrzweckhallen | C48: 145 | D48: 0.0 | E48: 16.6 | F48: 19.4 | G48: 22.4 | H48: 24.4 | I48: 32.0 | J48: 55.3 | K48: 25 | L48: 25 | M48: 52 | N48: 45 | O48: 52 | P48: 45
A49: 9121 | B49: Museen | C49: 150 | D49: 0.0 | E49: 28.3 | F49: 35.1 | G49: 48.7 | H49: 66.1 | I49: 85.3 | J49: 158.6 | K49: 40 | L49: 40 | M49: 20 | N49: 25 | O49: 20 | P49: 25
A50: 1100 | B50: Parlamentsgebäude* | C50: 34 | D50: 0.0 | E50: 19.0 | F50: 25.2 | G50: 30.0 | H50: 33.5 | I50: 49.2 | J50: 67.1 | K50: 40 | L50: 40 | M50: 30 | N50: 30 | O50: 30 | P50: 30
A51: 3400 | B51: Pflegeheime (Alte, Behinderte) | C51: 39 | D51: 0.0 | E51: 23.4 | F51: 28.0 | G51: 37.8 | H51: 47.3 | I51: 53.6 | J51: 61.2 | K51: 50 | L51: 50 | M51: 17 | N51: 30 | O51: 17 | P51: 30
A52: 1340 | B52: Polizeidienstgebäude | C52: 63 | D52: 0.0 | E52: 32.1 | F52: 55.7 | G52: 70.1 | H52: 84.0 | I52: 112.8 | J52: 125.5 | K52: 30 | L52: 30 | M52: 20 | N52: 20 | O52: 20 | P52: 20
A53: 1313 | B53: Rathäuser | C53: 88 | D53: 0.0 | E53: 17.8 | F53: 21.7 | G53: 35.3 | H53: 39.5 | I53: 45.2 | J53: 65.8 | K53: 20 | L53: 30 | M53: 20 | N53: 20 | O53: 20 | P53: 20
A54: 4130 | B54: Realschulen | C54: 480 | D54: 0.0 | E54: 11.0 | F54: 12.5 | G54: 13.9 | H54: 15.8 | I54: 18.2 | J54: 22.0 | K54: 10 | L54: 10 | M54: 20 | N54: 20 | O54: 20 | P54: 20
A55: 1350 | B55: Rechenzentren | C55: 8 | D55: 0.0 | E55: 134.8 | F55: 137.0 | G55: 145.3 | H55: 173.3 | I55: 174.0 | J55: 195.2 | K55: 155 | L55: 155 | M55: 20 | N55: 20 | O55: 20 | P55: 20
A56: 4000 | B56: Schulen und KTs | C56: 11,858 | D56: 0.0 | E56: 12.3 | F56: 14.7 | G56: 17.4 | H56: 20.4 | I56: 24.6 | J56: 31.5 | M56: 75 | N56: 75 | O56: 75 | P56: 75
A57: 5200 | B57: Schwimmhallen | C57: 204 | D57: 0.0 | E57: 44.1 | F57: 81.8 | G57: 142.1 | H57: 227.1 | I57: 456.9 | J57: 847.2 | K57: 155 | L57: 155 | M57: 20 | N57: 65 | O57: 20 | P57: 65
A58: 3300 | B58: Sonderkrankenhäuser* (z.B. Sucht) | C58: 30 | D58: 0.0 | E58: 39.3 | F58: 43.8 | G58: 51.0 | H58: 55.7 | I58: 61.1 | J58: 71.8 | K58: 125 | L58: 125 | M58: 75 | N58: 265 | O58: 75 | P58: 265
A59: 4300 | B59: Sonderschulen | C59: 446 | D59: 0.0 | E59: 11.0 | F59: 12.9 | G59: 14.8 | H59: 17.2 | I59: 20.5 | J59: 24.9 | K59: 15 | L59: 15 | M59: 20 | N59: 65 | O59: 20 | P59: 65
A60: 5000 | B60: Sportbauten | C60: 2,108 | D60: 0.0 | E60: 15.8 | F60: 20.9 | G60: 26.8 | H60: 34.3 | I60: 48.8 | J60: 84.5 | K60: 30 | L60: 30 | M60: 20 | N60: 65 | O60: 20 | P60: 65
A61: 5400 | B61: Sportplatzanlagen (Außenanlagen) | C61: 376 | D61: 0.0 | E61: 20.3 | F61: 28.4 | G61: 42.6 | H61: 54.7 | I61: 70.3 | J61: 90.0 | M61: 20 | N61: 20 | O61: 20 | P61: 20
A62: 5110 | B62: Turn- und Sporthallen | C62: 1,020 | D62: 0.0 | E62: 15.0 | F62: 18.4 | G62: 22.5 | H62: 27.1 | I62: 32.0 | J62: 42.1 | K62: 25 | L62: 25 | M62: 20 | N62: 65 | O62: 20 | P62: 65
A63: 9140 | B63: Veranstaltungsgebäude | C63: 161 | D63: 0.0 | E63: 22.3 | F63: 34.6 | G63: 41.7 | H63: 47.7 | I63: 68.7 | J63: 140.6 | K63: 40 | L63: 40 | M63: 20 | N63: 65 | O63: 20 | P63: 65
A64: 7200 | B64: Verkaufsstätten | C64: 15 | D64: 0.0 | E64: 48.1 | F64: 57.7 | G64: 63.4 | H64: 252.2 | I64: 395.5 | J64: 444.0 | K64: 20 | L64: 65 | M64: 20 | N64: 65 | O64: 20 | P64: 65
A65: 6500 | B65: Verpflegungseinrichtungen | C65: 68 | D65: 0.0 | E65: 19.4 | F65: 22.9 | G65: 28.8 | H65: 45.4 | I65: 55.2 | J65: 73.2 | K65: 20 | L65: 20 | M65: 20 | N65: 20 | O65: 20 | P65: 20
A66: 1320 | B66: Verwaltungsgeb. m. höh. techn. Ausst. | C66: 121 | D66: 0.0 | E66: 19.9 | F66: 24.6 | G66: 35.6 | H66: 41.9 | I66: 50.3 | J66: 62.6 | K66: 40 | L66: 40 | M66: 40 | N66: 40 | O66: 40 | P66: 40
A67: 1310 | B67: Verwaltungsgeb. m. norm. techn. Ausst. | C67: 787 | D67: 0.0 | E67: 15.9 | F67: 20.2 | G67: 26.2 | H67: 33.5 | I67: 42.4 | J67: 63.6 | K67: 20 | L67: 30 | M67: 40 | N67: 40 | O67: 40 | P67: 40
A68: 1300 | B68: Verwaltungsgebäude | C68: 1,806 | D68: 0.0 | E68: 16.3 | F68: 21.5 | G68: 26.7 | H68: 33.2 | I68: 41.4 | J68: 61.1 | K68: 20 | L68: 30 | M68: 40 | N68: 40 | O68: 40 | P68: 40
A69: 4500 | B69: Weiterbildungseinrichtungen | C69: 57 | D69: 0.0 | E69: 15.7 | F69: 19.2 | G69: 23.4 | H69: 31.3 | I69: 34.6 | J69: 47.5 | K69: 20 | L69: 20 | M69: 30 | N69: 30 | O69: 30 | P69: 30
A70: 6100 | B70: Wohnhäuser | C70: 173 | D70: 0.0 | E70: 14.4 | F70: 20.6 | G70: 31.6 | H70: 39.4 | I70: 44.6 | J70: 60.2 | M70: 40 | N70: 40 | O70: 40 | P70: 40
A71: 6200 | B71: Wohnheime | C71: 97 | D71: 0.0 | E71: 17.8 | F71: 24.4 | G71: 30.1 | H71: 43.2 | I71: 52.7 | J71: 76.2 | M71: 40 | N71: 40 | O71: 40 | P71: 40
B72: Summe | C72: =SUM(C10:C71) -> 45,340

Sheet Klassengrenzen Wasser
A1: Klassengrenzen für Wasser
B3: Bezugsjahr: | C3: 2011-2014
B4: Bezugsgröße: | C4: Nettogrundfläche (beheizt)
C6: Datenquelle: Datensammlung des Deutschen Städtetages Stand: 02.05.2016
A7: BZK | B7: Bauwerkszuordnung | C7: Anzahl | D7: Untergrenzen der Klassen | K7: Mittelwert
C8: Werte | D8: (l/m²a) | K8: (l/m²a)
D9: A | E9: B | F9: C | G9: D | H9: E | I9: F | J9: G
A10: 4100 | B10: Allgemeinbildende Schulen | C10: 6,245 | D10: 0 | E10: 100 | F10: 129 | G10: 157 | H10: 187 | I10: 227 | J10: 311 | K10: 217
A11: 6430 | B11: Altentagesstätten | C11: 35 | D11: 0 | E11: 349 | F11: 384 | G11: 400 | H11: 464 | I11: 638 | J11: 713 | K11: 470
A12: 7740 | B12: Bauhöfe | C12: 173 | D12: 0 | E12: 100 | F12: 167 | G12: 244 | H12: 430 | I12: 610 | J12: 1,099 | K12: 1,386
A13: 4200 | B13: Berufliche Schulen | C13: 823 | D13: 0 | E13: 90 | F13: 124 | G13: 156 | H13: 188 | I13: 238 | J13: 313 | K13: 227
A14: 4210 | B14: Berufsfachschulen* | C14: 13 | D14: 0 | E14: 143 | F14: 169 | G14: 177 | H14: 180 | I14: 279 | J14: 374 | K14: 237
A15: 6400 | B15: Betreuungseinrichtungen | C15: 680 | D15: 0 | E15: 121 | F15: 175 | G15: 238 | H15: 329 | I15: 447 | J15: 673 | K15: 411
A16: 7300 | B16: Betriebs- und Werkstätten | C16: 123 | D16: 0 | E16: 118 | F16: 222 | G16: 418 | H16: 657 | I16: 1,709 | J16: 2,442 | K16: 1,691
A17: 9130 | B17: Bibliotheksgebäude | C17: 100 | D17: 0 | E17: 65 | F17: 134 | G17: 165 | H17: 195 | I17: 249 | J17: 368 | K17: 216
A18: 7760 | B18: Feuerwehren | C18: 537 | D18: 0 | E18: 97 | F18: 169 | G18: 277 | H18: 365 | I18: 492 | J18: 653 | K18: 391
A19: 5500 | B19: Freibadanlagen | C19: 23 | D19: 0 | E19: 2,347 | F19: 4,777 | G19: 7,021 | H19: 7,724 | I19: 8,342 | J19: 26,616 | K19: 9,014
A20: 9700 | B20: Friedhofsanlagen | C20: 430 | D20: 0 | E20: 1,140 | F20: 1,706 | G20: 2,346 | H20: 3,295 | I20: 4,650 | J20: 6,915 | K20: 4,609
A21: 7600 | B21: Garagengebäude* | C21: 51 | D21: 0 | E21: 111 | F21: 193 | G21: 291 | H21: 387 | I21: 491 | J21: 895 | K21: 425
A22: 9100 | B22: Geb. f. kulturelle u. musische Zwecke | C22: 342 | D22: 0 | E22: 70 | F22: 112 | G22: 162 | H22: 223 | I22: 294 | J22: 432 | K22: 345
A23: 7700 | B23: Geb. f. öff. Bereitschaftsdienste | C23: 843 | D23: 0 | E23: 92 | F23: 152 | G23: 254 | H23: 354 | I23: 492 | J23: 720 | K23: 594
A24: 5300 | B24: Geb. f. Sportplatz- u. Freibadanl. | C24: 239 | D24: 0 | E24: 170 | F24: 220 | G24: 220 | H24: 615 | I24: 1,587 | J24: 4,315 | K24: 1,906
A25: 2000 | B25: Geb. f. wiss. Lehre u. Forschung | C25: 59 | D25: 0 | E25: 135 | F25: 159 | G25: 229 | H25: 288 | I25: 376 | J25: 828 | K25: 393
A26: 9400 | B26: Gebäude für Pflanzenhaltung | C26: 29 | D26: 0 | E26: 404 | F26: 556 | G26: 685 | H26: 823 | I26: 977 | J26: 1,643 | K26: 942
A27: 9150 | B27: Gemeinschaftshäuser | C27: 112 | D27: 0 | E27: 90 | F27: 125 | G27: 202 | H27: 266 | I27: 363 | J27: 925 | K27: 480
A28: 6300 | B28: Gemeinschaftsunterkünfte | C28: 7 | D28: 0 | E28: 419 | F28: 423 | G28: 428 | H28: 453 | I28: 812 | J28: 1,378 | K28: 589
A29: 1200 | B29: Gerichtsgebäude | C29: 12 | D29: 0 | E29: 142 | F29: 154 | G29: 202 | H29: 218 | I29: 307 | J29: 309 | K29: 205
A30: 4150 | B30: Gesamtschulen | C30: 207 | D30: 0 | E30: 101 | F30: 127 | G30: 152 | H30: 181 | I30: 219 | J30: 313 | K30: 212
A31: 4115 | B31: Grund- u. Hauptschulen mit Turnhalle | C31: 811 | D31: 0 | E31: 126 | F31: 167 | G31: 197 | H31: 227 | I31: 280 | J31: 351 | K31: 246
A32: 4112 | B32: Grund- und Hauptschulen | C32: 193 | D32: 0 | E32: 109 | F32: 144 | G32: 176 | H32: 196 | I32: 220 | J32: 277 | K32: 202
A33: 4121 | B33: Grund-, Haupt- und Realschulen | C33: 662 | D33: 0 | E33: 74 | F33: 110 | G33: 136 | H33: 163 | I33: 202 | J33: 298 | K33: 239
A34: 4110 | B34: Grundschulen | C34: 2,725 | D34: 0 | E34: 115 | F34: 149 | G34: 178 | H34: 209 | I34: 251 | J34: 328 | K34: 232
A35: 4140 | B35: Gymnasien | C35: 999 | D35: 0 | E35: 97 | F35: 120 | G35: 143 | H35: 171 | I35: 211 | J35: 301 | K35: 210
A36: 5100 | B36: Hallen (ohne Schwimmh.) | C36: 1,284 | D36: 0 | E36: 117 | F36: 152 | G36: 191 | H36: 230 | I36: 281 | J36: 401 | K36: 308
A37: 4120 | B37: Hauptschulen | C37: 891 | D37: 0 | E37: 76 | F37: 113 | G37: 139 | H37: 170 | I37: 207 | J37: 299 | K37: 232
A38: 2100 | B38: Hörsaalgebäude* | C38: 44 | D38: 0 | E38: 135 | F38: 183 | G38: 214 | H38: 251 | I38: 279 | J38: 394 | K38: 247
A39: 2300 | B39: Institutsgeb. f. Forsch. u. Unters.* | C39: 150 | D39: 0 | E39: 103 | F39: 163 | G39: 256 | H39: 398 | I39: 648 | J39: 1,113 | K39: 979
A40: 2200 | B40: Institutsgebäude f. Lehre u. Forsch. | C40: 51 | D40: 0 | E40: 132 | F40: 172 | G40: 234 | H40: 288 | I40: 407 | J40: 858 | K40: 417
A41: 6415 | B41: Jugendhäuser/Jugendzentren | C41: 537 | D41: 0 | E41: 115 | F41: 168 | G41: 220 | H41: 298 | I41: 396 | J41: 567 | K41: 381
A42: 9600 | B42: Justizvollzugsanstalten* | C42: 122 | D42: 0 | E42: 655 | F42: 1,163 | G42: 1,474 | H42: 1,645 | I42: 2,000 | J42: 2,527 | K42: 1,687
A43: 4410 | B43: Kindergärten | C43: 780 | D43: 0 | E43: 301 | F43: 401 | G43: 469 | H43: 568 | I43: 661 | J43: 839 | K43: 587
A44: 4400 | B44: Kindertagesstätten | C44: 4,130 | D44: 0 | E44: 351 | F44: 441 | G44: 518 | H44: 591 | I44: 683 | J44: 831 | K44: 613
A45: 3200 | B45: Krankenhäuser für Akutkranke | C45: 16 | D45: 0 | E45: 778 | F45: 969 | G45: 1,068 | H45: 1,243 | I45: 1,341 | J45: 1,512 | K45: 1,134
A46: 7500 | B46: Lagergebäude* | C46: 67 | D46: 0 | E46: 55 | F46: 125 | G46: 158 | H46: 258 | I46: 429 | J46: 651 | K46: 441
A47: 7100 | B47: Landwirtschaftl. Produktionsstätten* | C47: 29 | D47: 0 | E47: 166 | F47: 200 | G47: 368 | H47: 439 | I47: 662 | J47: 1,073 | K47: 527
A48: 5130 | B48: Mehrzweckhallen | C48: 149 | D48: 0 | E48: 105 | F48: 135 | G48: 164 | H48: 209 | I48: 264 | J48: 387 | K48: 379
A49: 9121 | B49: Museen | C49: 134 | D49: 0 | E49: 66 | F49: 110 | G49: 154 | H49: 206 | I49: 351 | J49: 441 | K49: 295
A50: 1100 | B50: Parlamentsgebäude* | C50: 32 | D50: 0 | E50: 135 | F50: 181 | G50: 221 | H50: 238 | I50: 281 | J50: 494 | K50: 277
A51: 3400 | B51: Pflegeheime (Alte, Behinderte) | C51: 39 | D51: 0 | E51: 633 | F51: 775 | G51: 848 | H51: 896 | I51: 954 | J51: 1,093 | K51: 849
A52: 1340 | B52: Polizeidienstgebäude | C52: 25 | D52: 0 | E52: 229 | F52: 248 | G52: 370 | H52: 422 | I52: 479 | J52: 589 | K52: 401
A53: 1313 | B53: Rathäuser | C53: 92 | D53: 0 | E53: 102 | F53: 134 | G53: 160 | H53: 187 | I53: 221 | J53: 272 | K53: 196
A54: 4130 | B54: Realschulen | C54: 565 | D54: 0 | E54: 95 | F54: 114 | G54: 135 | H54: 163 | I54: 196 | J54: 256 | K54: 176
A55: 1350 | B55: Rechenzentren | C55: 8 | D55: 0 | E55: 106 | F55: 191 | G55: 200 | H55: 204 | I55: 206 | J55: 236 | K55: 181
A56: 4000 | B56: Schulen und KTs | C56: 11,735 | D56: 0 | E56: 114 | F56: 157 | G56: 205 | H56: 294 | I56: 447 | J56: 635 | K56: 358
A57: 5200 | B57: Schwimmhallen | C57: 205 | D57: 0 | E57: 793 | F57: 1,550 | G57: 3,457 | H57: 7,372 | I57: 19,331 | J57: 30,481 | K57: 12,894
A58: 3300 | B58: Sonderkrankenhäuser* (z.B. Sucht) | C58: 45 | D58: 0 | E58: 646 | F58: 796 | G58: 969 | H58: 1,132 | I58: 1,170 | J58: 1,225 | K58: 985
A59: 4300 | B59: Sonderschulen | C59: 454 | D59: 0 | E59: 83 | F59: 121 | G59: 154 | H59: 188 | I59: 241 | J59: 368 | K59: 233
A60: 5000 | B60: Sportbauten | C60: 2,136 | D60: 0 | E60: 136 | F60: 186 | G60: 248 | H60: 359 | I60: 1,230 | J60: 5,184 | K60: 3,065
A61: 5400 | B61: Sportplatzanlagen (Außenanlagen) | C61: 372 | D61: 0 | E61: 1,133 | F61: 2,007 | G61: 3,543 | H61: 5,184 | I61: 7,623 | J61: 12,062 | K61: 7,560
A62: 5110 | B62: Turn- und Sporthallen | C62: 1,053 | D62: 0 | E62: 125 | F62: 158 | G62: 199 | H62: 237 | I62: 286 | J62: 399 | K62: 285
A63: 9140 | B63: Veranstaltungsgebäude | C63: 163 | D63: 0 | E63: 145 | F63: 215 | G63: 280 | H63: 367 | I63: 428 | J63: 786 | K63: 458
A64: 7200 | B64: Verkaufsstätten | C64: 15 | D64: 0 | E64: 202 | F64: 684 | G64: 1,022 | H64: 1,552 | I64: 27,829 | J64: 28,729 | K64: 8,467
A65: 6500 | B65: Verpflegungseinrichtungen | C65: 80 | D65: 0 | E65: 391 | F65: 898 | G65: 1,175 | H65: 1,517 | I65: 1,978 | J65: 2,637 | K65: 1,534
A66: 1320 | B66: Verwaltungsgeb. m. höh. techn. Ausst. | C66: 120 | D66: 0 | E66: 132 | F66: 192 | G66: 213 | H66: 253 | I66: 322 | J66: 670 | K66: 350
A67: 1310 | B67: Verwaltungsgeb. m. norm. techn. Ausst. | C67: 570 | D67: 0 | E67: 98 | F67: 141 | G67: 181 | H67: 234 | I67: 288 | J67: 421 | K67: 281
A68: 1300 | B68: Verwaltungsgebäude | C68: 1,491 | D68: 0 | E68: 102 | F68: 155 | G68: 195 | H68: 241 | I68: 303 | J68: 458 | K68: 311
A69: 4500 | B69: Weiterbildungseinrichtungen | C69: 56 | D69: 0 | E69: 36 | F69: 62 | G69: 65 | H69: 16 | I69: 18 | J69: 20 | K69: 322
A70: 6100 | B70: Wohnhäuser | C70: 275 | D70: 0 | E70: 351 | F70: 625 | G70: 858 | H70: 1,288 | I70: 1,629 | J70: 2,320 | K70: 1,298
A71: 6200 | B71: Wohnheime | C71: 90 | D71: 0 | E71: 452 | F71: 685 | G71: 796 | H71: 1,230 | I71: 1,447 | J71: 2,260 | K71: 1,296
B72: Summe | C72: =SUM(C10:C71) -> 44,478

Sheet Umrechnung BGF-NRF
B1: Umrechnungsfaktoren Fläche
B2: nach der Bekanntmachung des Bundesministeriums für Wirtschaft und Energie sowie des Bundesministeriums für Umwelt, Naturschutz, Bau und Reaktorsicherheit "Regeln für Energieverbrauchswerte und Vergleichswerte im Nichtwohngebäudebestand" vom 07.04.2015; Tabelle 1
A3: n. TEK | D3: Umrechnungsfaktor
A4: Gebäude NR | B4: BZK | C4: Bauwerkszuordnung | D4: BGF in NRF
A5: =VLOOKUP(C5,'Klassengrenzen Heizung'!B$10:N$71,12) -> 21 | B5: 4100 | C5: Allgemeinbildende Schulen | D5: 0.90 | E5: =B5 -> 4100.00
A6: =VLOOKUP(C6,'Klassengrenzen Heizung'!B$10:N$71,12) -> 36 | B6: 6430 | C6: Altentagesstätten | D6: 0.95
A7: =VLOOKUP(C7,'Klassengrenzen Heizung'!B$10:N$71,12) -> 36 | B7: 1312 | C7: Ämtergebäude | D7: 0.84 | E7: =B7 -> 1312.00
A8: =VLOOKUP(C8,'Klassengrenzen Heizung'!B$10:N$71,12) -> 25 | B8: 9121 | C8: Museen | D8: 0.87 | E8: 9121.00
A9: =VLOOKUP(C9,'Klassengrenzen Heizung'!B$10:N$71,12) -> 5 | B9: 7740 | C9: Bauhöfe | D9: 0.86 | E9: 7740.00
A10: =VLOOKUP(C10,'Klassengrenzen Heizung'!B$10:N$71,12) -> 21 | B10: 4200 | C10: Berufliche Schulen | D10: 0.90 | E10: 4200.00
A11: =VLOOKUP(C11,'Klassengrenzen Heizung'!B$10:N$71,12) -> 21 | B11: 4210 | C11: Berufsfachschulen | D11: 0.90 | E11: 4210.00
A12: =VLOOKUP(C12,'Klassengrenzen Heizung'!B$10:N$71,12) -> 35 | B12: 6400 | C12: Betreuungseinrichtungen | D12: 0.85 | E12: 6400.00
A13: =VLOOKUP(C13,'Klassengrenzen Heizung'!B$10:N$71,12) -> 42 | B13: 7300 | C13: Betriebs- und Werkstätten | D13: 0.91 | E13: 7300.00
A14: =VLOOKUP(C14,'Klassengrenzen Heizung'!B$10:N$71,12) -> 24 | B14: 9130 | C14: Bibliotheksgebäude | D14: 0.90 | E14: 9130.00
A15: =VLOOKUP(C15,'Klassengrenzen Heizung'!B$10:N$71,12) -> 6 | B15: 7760 | C15: Feuerwehren | D15: 0.86 | E15: 7760.00
A16: =VLOOKUP(C16,'Klassengrenzen Heizung'!B$10:N$71,12) -> 33 | B16: 5500 | C16: Freibadanlagen | D16: 0.88 | E16: 5500.00
A17: =VLOOKUP(C17,'Klassengrenzen Heizung'!B$10:N$71,12) -> 33 | B17: 9700 | C17: Friedhofsanlagen | D17: 0.84 | E17: 9700.00
A18: =VLOOKUP(C18,'Klassengrenzen Heizung'!B$10:N$71,12) -> 33 | B18: 7600 | C18: Garagengebäude | D18: 0.89 | E18: 7600.00
A19: =VLOOKUP(C19,'Klassengrenzen Heizung'!B$10:N$71,12) -> 28 | B19: 9100 | C19: Geb. f. kulturelle u. musische Zwecke | D19: 0.88 | E19: 9100.00
A20: =VLOOKUP(C20,'Klassengrenzen Heizung'!B$10:N$71,12) -> 5 | B20: 7700 | C20: Geb. f. öff. Bereitschaftsdienste | D20: 0.87 | E20: 7700.00
A21: =VLOOKUP(C21,'Klassengrenzen Heizung'!B$10:N$71,12) -> 33 | B21: 5300 | C21: Geb. f. Sportplatz- u. Freibadanl. | D21: 0.88 | E21: 5300.00
A22: =VLOOKUP(C22,'Klassengrenzen Heizung'!B$10:N$71,12) -> 12 | B22: 2000 | C22: Geb. f. wiss. Lehre u. Forschung | D22: 0.88 | E22: 2000.00
A23: =VLOOKUP(C23,'Klassengrenzen Heizung'!B$10:N$71,12) -> 44 | B23: 9400 | C23: Gebäude für Pflanzenhaltung | D23: 0.88 | E23: 9400.00
A24: =VLOOKUP(C24,'Klassengrenzen Heizung'!B$10:N$71,12) -> 27 | B24: 9150 | C24: Gemeinschaftshäuser | D24: 0.88 | E24: 9150.00
A25: =VLOOKUP(C25,'Klassengrenzen Heizung'!B$10:N$71,12) -> 35 | B25: 6300 | C25: Gemeinschaftsunterkünfte | D25: 0.85 | E25: 6300.00
A26: =VLOOKUP(C26,'Klassengrenzen Heizung'!B$10:N$71,12) -> 2 | B26: 1200 | C26: Gerichtsgebäude | D26: 0.83 | E26: 1200.00
A27: =VLOOKUP(C27,'Klassengrenzen Heizung'!B$10:N$71,12) -> 21 | B27: 4150 | C27: Gesamtschulen | D27: 0.90 | E27: 4150.00
A28: =VLOOKUP(C28,'Klassengrenzen Heizung'!B$10:N$71,12) -> 21 | B28: 4115 | C28: Grund- u. Hauptschulen mit Turnhalle | D28: 0.90 | E28: 4115.00
A29: =VLOOKUP(C29,'Klassengrenzen Heizung'!B$10:N$71,12) -> 21 | B29: 4112 | C29: Grund- und Hauptschulen | D29: 0.90 | E29: 4112.00
A30: =VLOOKUP(C30,'Klassengrenzen Heizung'!B$10:N$71,12) -> 21 | B30: 4121 | C30: Grund-, Haupt- und Realschulen | D30: 0.90 | E30: 4121.00
A31: =VLOOKUP(C31,'Klassengrenzen Heizung'!B$10:N$71,12) -> 21 | B31: 4110 | C31: Grundschulen | D31: 0.90 | E31: 4110.00
A32: =VLOOKUP(C32,'Klassengrenzen Heizung'!B$10:N$71,12) -> 21 | B32: 4140 | C32: Gymnasien | D32: 0.90 | E32: 4140.00
A33: =VLOOKUP(C33,'Klassengrenzen Heizung'!B$10:N$71,12) -> 30 | B33: 5100 | C33: Hallen (ohne Schwimmh.) | D33: 0.91 | E33: 5100.00
A34: =VLOOKUP(C34,'Klassengrenzen Heizung'!B$10:N$71,12) -> 21 | B34: 4120 | C34: Hauptschulen | D34: 0.90 | E34: 4120.00
A35: =VLOOKUP(C35,'Klassengrenzen Heizung'!B$10:N$71,12) -> 21 | B35: 2100 | C35: Hörsaalgebäude | D35: 0.88 | E35: 2100.00
A36: =VLOOKUP(C36,'Klassengrenzen Heizung'!B$10:N$71,12) -> 11 | B36: 2300 | C36: Institutsgeb. f. Forsch. u. Unters. | D36: 0.87 | E36: 2300.00
A37: =VLOOKUP(C37,'Klassengrenzen Heizung'!B$10:N$71,12) -> 14 | B37: 2200 | C37: Institutsgebäude f. Lehre u. Forsch. | D37: 0.89 | E37: 2200.00
A38: =VLOOKUP(C38,'Klassengrenzen Heizung'!B$10:N$71,12) -> 37 | B38: 6430 | C38: Jugendhäuser/Jugendzentren | D38: 0.85 | E38: 6430.00
A39: =VLOOKUP(C39,'Klassengrenzen Heizung'!B$10:N$71,12) -> 35 | B39: 9600 | C39: Justizvollzugsanstalten* | D39: 0.84 | E39: 9600.00
A40: =VLOOKUP(C40,'Klassengrenzen Heizung'!B$10:N$71,12) -> 22 | B40: 4410 | C40: Kindergärten | D40: 0.86 | E40: 4410.00
A41: =VLOOKUP(C41,'Klassengrenzen Heizung'!B$10:N$71,12) -> 22 | B41: 4400 | C41: Kindertagesstätten | D41: 0.86 | E41: 4400.00
A42: =VLOOKUP(C42,'Klassengrenzen Heizung'!B$10:N$71,12) -> 15 | B42: 3200 | C42: Krankenhäuser für Akutkranke | D42: 0.86 | E42: 3200.00
A43: =VLOOKUP(C43,'Klassengrenzen Heizung'!B$10:N$71,12) -> 15 | B43: 7500 | C43: Lagergebäude | D43: 0.89 | E43: 7500.00
A44: =VLOOKUP(C44,'Klassengrenzen Heizung'!B$10:N$71,12) -> 44 | B44: 7100 | C44: Landwirtschaftl. Produktionsstätten | D44: 0.90 | E44: 7100.00
A45: =VLOOKUP(C45,'Klassengrenzen Heizung'!B$10:N$71,12) -> 30 | B45: 5130 | C45: Mehrzweckhallen | D45: 0.91 | E45: 5130.00
A46: =VLOOKUP(C46,'Klassengrenzen Heizung'!B$10:N$71,12) -> 25 | B46: 1100 | C46: Parlamentsgebäude | D46: 0.85 | E46: 1100.00
A47: =VLOOKUP(C47,'Klassengrenzen Heizung'!B$10:N$71,12) -> 19 | B47: 3400 | C47: Pflegeheime (Alte, Behinderte) | D47: 0.86 | E47: 3400.00
A48: =VLOOKUP(C48,'Klassengrenzen Heizung'!B$10:N$71,12) -> 4 | B48: 1340 | C48: Polizeidienstgebäude | D48: 0.84 | E48: 1340.00
A49: =VLOOKUP(C49,'Klassengrenzen Heizung'!B$10:N$71,12) -> 3 | B49: 1313 | C49: Rathäuser | D49: 0.84 | E49: 1313.00
A50: =VLOOKUP(C50,'Klassengrenzen Heizung'!B$10:N$71,12) -> 21 | B50: 4130 | C50: Realschulen | D50: 0.90 | E50: 4130.00
A51: =VLOOKUP(C51,'Klassengrenzen Heizung'!B$10:N$71,12) -> 10 | B51: 1350 | C51: Rechenzentren | D51: 0.88 | E51: 1350.00
A52: =VLOOKUP(C52,'Klassengrenzen Heizung'!B$10:N$71,12) -> 21 | B52: 4000 | C52: Schulen und KTs | D52: 0.89 | E52: 4000.00
A53: =VLOOKUP(C53,'Klassengrenzen Heizung'!B$10:N$71,12) -> 32 | B53: 5200 | C53: Schwimmhallen | D53: 0.88 | E53: 5200.00
A54: =VLOOKUP(C54,'Klassengrenzen Heizung'!B$10:N$71,12) -> 32 | B54: 3300 | C54: Sonderkrankenhäuser (z.B. Sucht) | D54: 0.86 | E54: 3300.00
A55: =VLOOKUP(C55,'Klassengrenzen Heizung'!B$10:N$71,12) -> 22 | B55: 4300 | C55: Sonderschulen | D55: 0.88 | E55: 4300.00
A56: =VLOOKUP(C56,'Klassengrenzen Heizung'!B$10:N$71,12) -> 29 | B56: 5000 | C56: Sportbauten | D56: 0.91 | E56: 5000.00
A57: =VLOOKUP(C57,'Klassengrenzen Heizung'!B$10:N$71,12) -> 30 | B57: 5110 | C57: Turn- und Sporthallen | D57: 0.91 | E57: 5110.00
A58: =VLOOKUP(C58,'Klassengrenzen Heizung'!B$10:N$71,12) -> 33 | B58: 5400 | C58: Sportplatzanlagen (Außenanlagen) | D58: 0.88 | E58: 5400.00
A59: =VLOOKUP(C59,'Klassengrenzen Heizung'!B$10:N$71,12) -> 26 | B59: 9140 | C59: Veranstaltungsgebäude | D59: 0.88 | E59: 9140.00
A60: =VLOOKUP(C60,'Klassengrenzen Heizung'!B$10:N$71,12) -> 50 | B60: 7200 | C60: Verkaufsstätten | D60: 0.89 | E60: 7200.00
A61: =VLOOKUP(C61,'Klassengrenzen Heizung'!B$10:N$71,12) -> 34 | B61: 6500 | C61: Verpflegungseinrichtungen | D61: 0.91 | E61: 6500.00
A62: =VLOOKUP(C62,'Klassengrenzen Heizung'!B$10:N$71,12) -> 8 | B62: 1320 | C62: Verwaltungsgeb. m. höh. techn. Ausst. | D62: 0.86 | E62: 1320.00
A63: =VLOOKUP(C63,'Klassengrenzen Heizung'!B$10:N$71,12) -> 1 | B63: 1300 | C63: Verwaltungsgebäude | D63: 0.85 | E63: 1300.00
A64: =VLOOKUP(C64,'Klassengrenzen Heizung'!B$10:N$71,12) -> 3 | B64: 1310 | C64: Verwaltungsgeb. m. norm. techn. Ausst. | D64: 0.85 | E64: 1310.00
A65: =VLOOKUP(C65,'Klassengrenzen Heizung'!B$10:N$71,12) -> 21 | B65: 4500 | C65: Weiterbildungseinrichtungen | D65: 0.88 | E65: 4500.00
A66: =VLOOKUP(C66,'Klassengrenzen Heizung'!B$10:N$71,12) -> 0 | B66: 6100 | C66: Wohnhäuser | D66: 0.84 | E66: 6100.00
A67: =VLOOKUP(C67,'Klassengrenzen Heizung'!B$10:N$71,12) -> 0 | B67: 6200 | C67: Wohnheime | D67: 0.84 | E67: 6200.00

Sheet Hilfstabellen
A1: Hilfstabellen | G1: entspricht der Tabelle 9
A3: Primärenergiefaktoren (nicht erneuerbarer Anteil nach DIN V 18599-1:2011-12 in kWhprimär pro kWhend) | C3: Endenergie in kWhEnd | E3: CO2-Äquivalent in kg/kWhend | F3: Nr. | G3: Quellen für CO2-Aquivalente | J3: Nummer
A4: Brennstoffe | B4: Biogas | C4: Biogas in kWh Brennwert | D4: 0.50 | E4: 0.140 | F4: 6 | G4: keine Daten vorhanden
B5: Biogas gebäudenah erzeugt | C5: Biogas gebäudenah in kWh Brennwert | D5: 0.10 | E5: 0.075 | F5: 7
B6: Biogenes Flüssiggas | C6: Erdgas in kWh Brennwert | D6: 1.10 | E6: 0.180 | F6: 8
B7: Bioöl | C7: Bioöl in kWh Brennwert | D7: 0.50 | E7: 0.210 | F7: 9
B8: Bioöl, gebäudenah erzeugt | C8: Bioöl gebäudenah in kWh Brennwert | D8: 0.10 | E8: 0.105 | F8: 10
B9: Braunkohle | C9: Braunkohle in kWh Brennwert | D9: 1.20 | E9: 0.430 | F9: 5 | G9: http://www.iwu.de/fileadmin/user_upload/dateien/energie/werkzeuge/kea.pdf
B10: Erdgas | C10: Erdgas in kWh Brennwert | D10: 1.10 | E10: 0.240 | F10: 2
B11: Flüssiggas | C11: Flüssiggas in kWh Brennwert | D11: 1.10 | E11: 0.270 | F11: 3
B12: Heizöl | C12: Heizöl in kWh Brennwert | D12: 1.10 | E12: 0.310 | F12: 1
B13: Holz | C13: Holz in kWh Brennwert | D13: 0.20 | E13: 0.020 | F13: 11
B14: Steinkohle | C14: Steinkohle in kWh Brennwert | D14: 1.10 | E14: 0.400 | F14: 4
A15: Nah/Fernwärme aus KWK zu > = 70% beteiligt an Wärme-zeugung beteiligt | B15: Wärme aus KWK Stein-/Braunkohle | C15: Nah-/Fernwärme aus KWK, fossiler Brennstoff (Stein-/Braunkohle) bzw. Energieträger in kWh | D15: 2.80 | E15: 0.300 | F15: 20 | G15: keine Daten vorhanden
B16: Wärme KWK Gasförmige u. fl. Brennstoffe | C16: Wärme aus KWK, gebäudeintegriert oder gebäudenah in kWh | D16: 1.10 | E16: 0.170 | F16: 21
B17: Wärme aus KWK erneuerbarer Brennst. | C17: Nah-/Fernwärme aus KWK, erneuerbarer Brennstoff bzw. Energieträger in kWh | D17: 0.00 | E17: 0.040 | F17: 22 | G17: berechnet
A18: Nah-/Fernwärme aus Heizkraftwerk | B18: Nah-/Fernwärme erneuerbarer Brennstoff | C18: Nah-/Fernwärme aus KWK, erneuerbarer Brennstoff bzw. Energieträger in kWh | D18: 0.10 | E18: 0.060 | F18: 25 | G18: keine Daten vorhanden
B19: Nah-/Fernwärme gasförmig und flüssige Brennstoffe | C19: Nah-/Fernwärme aus KWK, fossiler Brennstoff (Gasförmige und flüssige Brennstoffe) bzw. Energieträger in kWh | E19: 0.300 | F19: 24
B20: Wärme aus Verbrennung von Siedlungsabfällen (unter pauschaler Berücksichtigung von Hilfsenergie u. Stützfeuerung) | C20: Wärme aus Verbrennung von Siedlungsabfällen in kWh | D20: 0.10 | E20: 0.020 | F20: 19
A21: Umweltenergie | G21: http://www.iwu.de/fileadmin/user_upload/dateien/energie/werkzeuge/kea.pdf
B22: Abwärme aus Prozessen (out) | C22: Abwärme aus Prozessen (out) in kWh | D22: 0.00 | E22: 0.040 | F22: 26
B23: Abwärme aus Prozessen [prod] | C23: Abwärme aus Prozessen (prod) in kWh | D23: 0.00 | E23: 0.040 | F23: 17
B24: Erdkälte, Umgebungskälte | C24: Kälte (Erdkälte, Umgebungskälte) in kWh | D24: 0.00 | E24: 0.000 | F24: 16
B25: Erdkälte, Umgegungsklälte | C25: Kälte (Erdkälte, Umgebungskälte) in kWh | D25: 0.00 | E25: =1/2.1*E29 -> 0.124 | F25: 18
A26: Leer | B26: Erdwärme, Geothermie, Solarthermie, Umgebungswärme | C26: Wärme (Erdwärme, Geothermie, Solarthermie, Umgebungswärme) in kWh | D26: 0.00 | E26: 0.000 | F26: 15
A27: Strom | B27: gebäudenah erzeugt Photovoltaik oder Windkraft (Eigenverbrauch) | C27: Strom gebäudenah erzeugt (aus Photovoltaik, Windkraft) in kWh | D27: 0.00 | E27: 0.000 | F27: 13 | G27: http://www.iwu.de/fileadmin/user_upload/dateien/energie/werkzeuge/kea.pdf
B28: Strom (Bezug EVU-Netz) seit 01.01.2016 | C28: Strom netzbezogen in kWh | D28: 1.80 | E28: 0.560 | F28: 12
B29: Strom aus BHWK Eigenverbrauch | D29: 1.10 | E29: 0.260 | F29: 2 | G29: nur Eigenverbrauch, rückgerechnet auf den Gasbezug = 0,170 +0,090
B30: Verdrängungsstrommix | C30: Verdrängungsstrommix für KWK in kWh | D30: 2.80 | E30: 0.860 | F30: 14 | G30: berechnet
A31: Leer | D31: 0.00 | E31: 0.000 | F31: 0 | G31: Leerfeld
E33: * ersetzte Werte
A34: Flächenangabe in
B35: NGF | D35: TRUE
B36: BGF | D36: FALSE
B37: markiert | D37: =IF(OR(AND(D35=TRUE(),D36=TRUE()),AND(D35=FALSE(),D36=FALSE())),2,1) -> 1
A39: Anlass der Ausstellung | E39: Rechtsstand-Grund
D40: 1
B41: Aushangpflicht | D41: 2 | E41: Ausweisausstellung (bei Verbrauchsausweisen und alle anderen Fälle) | F41: 1
B42: Modernisierung-Erweiterung (bis 140% Verbesserung) | D42: 3 | E42: Ausweisausstellung (bei Verbrauchsausweisen und alle anderen Fälle) | F42: 2
B43: Modernisierung-Erweiterung (über 140% Verbesserung) | D43: 4 | E43: Ausweisausstellung (bei Verbrauchsausweisen und alle anderen Fälle) | F43: 3
B44: Neubau | D44: 5 | E44: Ausweisausstellung (bei Verbrauchsausweisen und alle anderen Fälle) | F44: 1
B45: Sonstiges | D45: 6 | E45: Ausweisausstellung (bei Verbrauchsausweisen und alle anderen Fälle) | F45: 1
B46: Vermietung-Verkauf | D46: 7 | E46: Ausweisausstellung (bei Verbrauchsausweisen und alle anderen Fälle) | F46: 1
A48: Bundesland
D49: 1
B50: Baden-Württemberg | C50: BW | D50: 2
B51: Bayern | C51: BY | D51: 3
B52: Berlin | C52: BE | D52: 4
B53: Brandenburg | C53: BB | D53: 5
B54: Bremen | C54: HB | D54: 6
B55: Hamburg | C55: HH | D55: 7
B56: Hessen | C56: HE | D56: 8
B57: Mecklenburg-Vorpommern | C57: MV | D57: 9
B58: Niedersachsen | C58: NI | D58: 10
B59: Nordrhein-Westfalen | C59: NW | D59: 11
B60: Rheinland-Pfalz | C60: RP | D60: 12
B61: Saarland | C61: SL | D61: 13
B62: Sachsen | C62: SN | D62: 14
B63: Sachsen-Anhalt | C63: ST | D63: 15
B64: Schleswig-Holstein | C64: SH | D64: 16
B65: Thüringen | C65: TH | D65: 17
A67: Altersklasse für Gebäude und Wärmeerzeuger
A68: von | B68: bis
B69: 1918 | D69: =IF(A69<>"", IF(B69 <>"", A69 & "..."&B69, "ab " & A69), "bis " & B69) -> bis 1918
A70: 1919 | B70: 1948 | D70: =IF(A70<>"", IF(B70 <>"", A70 & "..."&B70, "ab " & A70), "bis " & B70) -> 1919...1948
A71: 1949 | B71: 1957 | D71: =IF(A71<>"", IF(B71 <>"", A71 & "..."&B71, "ab " & A71), "bis " & B71) -> 1949...1957
A72: 1958 | B72: 1968 | D72: 1958...1968
A73: 1969 | B73: 1978 | D73: 1969...1978
A74: 1979 | B74: 1983 | D74: 1979...1983
A75: 1984 | B75: 1994 | D75: 1984...1994
A76: 1995 | B76: 2002 | D76: 1995...2002
A77: 2003 | B77: 2009 | D77: 2003...2009
A78: 2010 | B78: 2016 | D78: 2010...2016
A79: 2017 | D79: ab 2017
A80: 7 | B80: ausgewählt Gebäude | D80: =INDEX(D$69:D$79,A80) -> 1984...1994
A81: 9 | B81: ausgewählt Wärmeerzeuger | D81: =INDEX(D$69:D$79,A81) -> 2003...2009
A84: Leerstand
B85: Leerstand | D85: FALSE
B86: kein Leerstand | D86: TRUE
B87: entsprechend der Bekanntmachung | D87: TRUE
B88: Sonstiges | D88: FALSE
A90: Datenerhebung
B91: Durch den Aussteller | D91: TRUE
B92: Durch den Eigentümer | D92: FALSE
A94: Gebäudeteil
D95: 0
A96: Ganzes Gebäude | D96: 1
A97: Teil des Wohngebäudes | D97: 2
A98: Teil des Nichtwohngebäudes | D98: 3
A100: spezifische Kosten [in €/kWh bzw €/m³]
A101: H | B101: Heizenergie | D101: =Eingabewerte!N34/100 -> 0.0000
A102: S | B102: Strom | D102: =Eingabewerte!N46/100 -> 0.0000
A103: W | B103: Wasser | D103: =Eingabewerte!N58/100 -> 0
B104: Leer | D104: 0
A106: Modernisierungskombination
B107: 1 | D107: =IF(Eingabewerte!I81="","",Eingabewerte!I81) -> 
B108: 2 | D108: =IF(Eingabewerte!I82="","",Eingabewerte!I82) -> 
B109: 3 | D109: =IF(Eingabewerte!I83="","",Eingabewerte!I83) -> 
B110: 4 | D110: =IF(Eingabewerte!I84="","",Eingabewerte!I84) -> 
B111: 5 | D111: =IF(Eingabewerte!I85="","",Eingabewerte!I85) -> 
A113: Bauteil, Anlagenteil
B114: Abseiten
B115: Anlagenregelung
B116: Außenwand gg. Außenluft
B117: Außenwand gg. Erdreich
B118: Be- / Entfeuchtung
B119: Beleuchtung
B120: Boden gg. Außenluft
B121: Dach
B122: Dachfenster
B123: Eingangstür
B124: Fenster
B125: Gauben
B126: Gebäudeautomation
B127: Heizung
B128: Kälteerzeugung
B129: Kälteverteilung / -abgabe
B130: Kellerdecke
B131: Kühlung
B132: Luftundichtigkeiten
B133: Lüftung
B134: Lüftungsanlage
B135: Lüftungskonzept
B136: Luftverteilung / -abgabe
B137: Nebentür
B138: oberste Geschossdecke
B139: Rollladen und -kästen
B140: Sonstiges
B141: Wärmeerzeuger
B142: Wärmeverteilung / -abgabe
B143: Warmwasserbereitung
A146: Modernisierungskombination Auswahl
A147: EM | B147: als Einzelmaßnahme
A148: GM | B148: in Zusammenhang mit größerer Modernisierung
A153: CO2-Emissionen (Äquivalente)
B154: anzeigen? | D154: TRUE
A156: Energieeffizienzklasse

Sheet Klimafaktor
B1: Berechnung des Klimafaktors | L1: Klimafaktoren für Potsdam nach den Bekanntmachungen für Energieverbrauchskennwerte verfügbar unter http://www.dwd.de/klimafaktoren
D2: 1 | E2: =IF(E3="","",D2+1) -> 2 | F2: 3 | G2: 4 | H2: 5 | I2: 6 | J2: 7 | K2: 8 | L2: 9 | M2: 10 | N2: 11 | O2: 12 | P2: 13 | Q2: 14 | R2: 15 | S2: 16 | T2: 17 | U2: 18 | V2: 19 | W2: 20 | X2: 21 | Y2: 22 | Z2: 23 | AA2: 24 | AB2: 25 | AC2: 26 | AD2: 27 | AE2: 28 | AF2: 29 | AG2: 30 | AH2: 31 | AI2: 32 | AJ2: 33 | AK2: =IF(AK3="","",AJ2+1) -> 34 | AL2: 35 | AM2: 36 | AN2: 37 | AO2: 38 | AP2: 39 | AQ2: 40 | AR2: 41 | AS2: 42 | AT2: 43 | AU2: 44 | AV2: 45 | AW2: 46 | AX2: 47 | AY2: 48 | AZ2: 49 | BA2: 50 | BB2: 51 | BC2: 52 | BD2: 53 | BE2: 54 | BF2: 55 | BG2: 56 | BH2: 57 | BI2: 58 | BJ2: 59 | BK2: 60 | BL2: 61 | BM2: 62 | BN2: 63 | BO2: 64 | BP2: 65 | BQ2: =IF(BQ3="","",BP2+1) -> 66 | BR2: 67 | BS2: 68 | BT2: 69 | BU2: 70 | BV2: 71 | BW2: 72 | BX2: 73 | BY2: 74 | BZ2: 75 | CA2: 76 | CB2: 77
B3: Zeitraum Stationsname | C3: von | D3: 01.01.2015 | E3: 01.02.2015 | F3: 01.03.2015 | G3: 01.04.2015 | H3: 01.05.2015 | I3: 01.06.2015 | J3: 01.07.2015 | K3: 01.08.2015 | L3: 01.09.2015 | M3: 01.10.2015 | N3: 01.11.2015 | O3: 01.12.2015 | P3: 01.01.2016 | Q3: 01.02.2016 | R3: 01.03.2016 | S3: 01.04.2016 | T3: 01.05.2016 | U3: 01.06.2016 | V3: 01.07.2016 | W3: 01.08.2016 | X3: 01.09.2016 | Y3: 01.10.2016 | Z3: 01.11.2016 | AA3: 01.12.2016 | AB3: 01.01.2017 | AC3: 01.02.2017 | AD3: 01.03.2017 | AE3: 01.04.2017 | AF3: 01.05.2017 | AG3: 01.06.2017 | AH3: 01.07.2017 | AI3: 01.08.2017 | AJ3: 01.09.2017 | AK3: 01.10.2017 | AL3: 01.11.2017 | AM3: 01.12.2017 | AN3: 01.01.2018 | AO3: 01.02.2018 | AP3: 01.03.2018 | AQ3: 01.04.2018 | AR3: 01.05.2018 | AS3: 01.06.2018 | AT3: 01.07.2018 | AU3: 01.08.2018 | AV3: 01.09.2018 | AW3: 01.10.2018 | AX3: 01.11.2018 | AY3: 01.12.2018 | AZ3: 01.01.2019 | BA3: 01.02.2019 | BB3: 01.03.2019 | BC3: 01.04.2019 | BD3: 01.05.2019 | BE3: 01.06.2019 | BF3: 01.07.2019 | BG3: 01.08.2019 | BH3: 2019-08-31 | BI3: 2019-10-01 | BJ3: 2019-10-31 | BK3: 2019-12-01 | BL3: 2020-01-01 | BM3: 2020-02-01 | BN3: 2020-03-01 | BO3: 2020-04-01 | BP3: 2020-05-01 | BQ3: 2020-06-01 | BR3: 2020-07-01 | BS3: 2020-08-01 | BT3: 2020-09-01 | BU3: 2020-10-01 | BV3: 2020-11-01 | BW3: 2020-12-01 | BX3: 2021-01-01 | BY3: 2021-02-01 | BZ3: 2021-03-01 | CA3: 2021-04-01 | CB3: 2021-05-01
C4: bis | D4: 31.12.2015 | E4: 31.01.2016 | F4: 29.02.2016 | G4: 31.03.2016 | H4: 30.04.2016 | I4: 31.05.2016 | J4: 30.06.2016 | K4: 31.07.2016 | L4: 31.08.2016 | M4: 30.09.2016 | N4: 31.10.2016 | O4: 30.11.2016 | P4: 31.12.2016 | Q4: 31.01.2017 | R4: 28.02.2017 | S4: 31.03.2017 | T4: 30.04.2017 | U4: 31.05.2017 | V4: 30.06.2017 | W4: 31.07.2017 | X4: 31.08.2017 | Y4: 30.09.2017 | Z4: 31.10.2017 | AA4: 30.11.2017 | AB4: 31.12.2017 | AC4: 31.01.2018 | AD4: 28.02.2018 | AE4: 31.03.2018 | AF4: 30.04.2018 | AG4: 31.05.2018 | AH4: 30.06.2018 | AI4: 31.07.2018 | AJ4: 31.08.2018 | AK4: 30.09.2018 | AL4: 31.10.2018 | AM4: 30.11.2018 | AN4: 31.12.2018 | AO4: 31.01.2019 | AP4: 28.02.2019 | AQ4: 31.03.2019 | AR4: 30.04.2019 | AS4: 31.05.2019 | AT4: 30.06.2019 | AU4: 31.07.2019 | AV4: 31.08.2019 | AW4: 30.09.2019 | AX4: 31.10.2019 | AY4: 30.11.2019 | AZ4: 31.12.2019 | BA4: 31.01.2020 | BB4: 29.02.2020 | BC4: 31.03.2020 | BD4: 30.04.2020 | BE4: 31.05.2020 | BF4: 30.06.2020 | BG4: 31.07.2020 | BH4: 2020-08-31 | BI4: 2020-09-30 | BJ4: 2020-10-31 | BK4: 2020-11-30 | BL4: 2020-12-31 | BM4: 2021-01-31 | BN4: 2021-02-28 | BO4: 2021-03-31 | BP4: 2021-04-30 | BQ4: 2021-05-31 | BR4: 2021-06-30 | BS4: 2021-07-31 | BT4: 2021-08-31 | BU4: 2021-09-30 | BV4: 2021-10-31 | BW4: 2021-11-30 | BX4: 2021-12-31 | BY4: 2022-01-31 | BZ4: 2022-02-28 | CA4: 2022-03-31 | CB4: 2022-04-30
B5: Kreis / Ort | C5: PLZ
A6: =C6 -> 1067 | B6: Dresden, Stadt / Dresden | C6: 1067 | D6: 1.16 | E6: 1.14 | F6: 1.16 | G6: 1.15 | H6: 1.15 | I6: 1.16 | J6: 1.19 | K6: 1.19 | L6: 1.18 | M6: 1.21 | N6: 1.22 | O6: 1.17 | P6: 1.13 | Q6: 1.10 | R6: 1.09 | S6: 1.11 | T6: 1.11 | U6: 1.10 | V6: 1.10 | W6: 1.10 | X6: 1.10 | Y6: 1.07 | Z6: 1.09 | AA6: 1.11 | AB6: 1.13 | AC6: 1.20 | AD6: 1.16 | AE6: 1.10 | AF6: 1.17 | AG6: 1.19 | AH6: 1.19 | AI6: 1.18 | AJ6: 1.18 | AK6: 1.21 | AL6: 1.21 | AM6: 1.21 | AN6: 1.22 | AO6: 1.18 | AP6: 1.24 | AQ6: 1.31 | AR6: 1.25 | AS6: 1.19 | AT6: 1.20 | AU6: 1.21 | AV6: 1.21 | AW6: 1.21 | AX6: 1.21 | AY6: 1.22 | AZ6: 1.22 | BA6: 1.25 | BB6: 1.27 | BC6: 1.25 | BD6: 1.25 | BE6: 1.26 | BF6: 1.24 | BG6: 1.24 | BH6: 1.24 | BI6: 1.24 | BJ6: 1.23 | BK6: 1.23 | BL6: 1.22 | BM6: 1.19 | BN6: 1.14 | BO6: 1.13 | BP6: 1.09 | BQ6: 1.07 | BR6: 1.08 | BS6: 1.08 | BT6: 1.08 | BU6: 1.09 | BV6: 1.08 | BW6: 1.07 | BX6: 1.06 | BY6: 1.08 | BZ6: 1.12 | CA6: 1.12 | CB6: 1.13
A7: =C7 -> 1069 | B7: Dresden, Stadt / Dresden | C7: 1069 | D7: 1.16 | E7: 1.13 | F7: 1.16 | G7: 1.15 | H7: 1.14 | I7: 1.16 | J7: 1.18 | K7: 1.18 | L7: 1.17 | M7: 1.21 | N7: 1.21 | O7: 1.17 | P7: 1.12 | Q7: 1.09 | R7: 1.08 | S7: 1.11 | T7: 1.10 | U7: 1.10 | V7: 1.09 | W7: 1.09 | X7: 1.10 | Y7: 1.06 | Z7: 1.09 | AA7: 1.11 | AB7: 1.12 | AC7: 1.19 | AD7: 1.15 | AE7: 1.09 | AF7: 1.16 | AG7: 1.19 | AH7: 1.18 | AI7: 1.18 | AJ7: 1.18 | AK7: 1.21 | AL7: 1.21 | AM7: 1.20 | AN7: 1.21 | AO7: 1.18 | AP7: 1.23 | AQ7: 1.30 | AR7: 1.25 | AS7: 1.19 | AT7: 1.20 | AU7: 1.20 | AV7: 1.21 | AW7: 1.20 | AX7: 1.21 | AY7: 1.22 | AZ7: 1.21 | BA7: 1.24 | BB7: 1.27 | BC7: 1.25 | BD7: 1.25 | BE7: 1.25 | BF7: 1.24 | BG7: 1.24 | BH7: 1.23 | BI7: 1.24 | BJ7: 1.22 | BK7: 1.22 | BL7: 1.21 | BM7: 1.18 | BN7: 1.13 | BO7: 1.13 | BP7: 1.08 | BQ7: 1.07 | BR7: 1.08 | BS7: 1.08 | BT7: 1.07 | BU7: 1.08 | BV7: 1.07 | BW7: 1.07 | BX7: 1.06 | BY7: 1.08 | BZ7: 1.12 | CA7: 1.12 | CB7: 1.13
A8: 1097 | B8: Dresden, Stadt / Dresden | C8: 1097 | D8: 1.15 | E8: 1.13 | F8: 1.15 | G8: 1.14 | H8: 1.14 | I8: 1.15 | J8: 1.18 | K8: 1.18 | L8: 1.17 | M8: 1.20 | N8: 1.21 | O8: 1.16 | P8: 1.12 | Q8: 1.09 | R8: 1.08 | S8: 1.11 | T8: 1.10 | U8: 1.09 | V8: 1.09 | W8: 1.09 | X8: 1.09 | Y8: 1.06 | Z8: 1.09 | AA8: 1.11 | AB8: 1.12 | AC8: 1.19 | AD8: 1.15 | AE8: 1.09 | AF8: 1.16 | AG8: 1.18 | AH8: 1.18 | AI8: 1.17 | AJ8: 1.17 | AK8: 1.20 | AL8: 1.20 | AM8: 1.20 | AN8: 1.21 | AO8: 1.17 | AP8: 1.23 | AQ8: 1.30 | AR8: 1.24 | AS8: 1.18 | AT8: 1.19 | AU8: 1.20 | AV8: 1.20 | AW8: 1.20 | AX8: 1.20 | AY8: 1.21 | AZ8: 1.21 | BA8: 1.24 | BB8: 1.26 | BC8: 1.24 | BD8: 1.24 | BE8: 1.24 | BF8: 1.23 | BG8: 1.23 | BH8: 1.23 | BI8: 1.23 | BJ8: 1.22 | BK8: 1.22 | BL8: 1.21 | BM8: 1.18 | BN8: 1.13 | BO8: 1.12 | BP8: 1.08 | BQ8: 1.07 | BR8: 1.07 | BS8: 1.07 | BT8: 1.07 | BU8: 1.08 | BV8: 1.07 | BW8: 1.06 | BX8: 1.06 | BY8: 1.08 | BZ8: 1.11 | CA8: 1.11 | CB8: 1.12
A9: 1099 | B9: Dresden, Stadt / Dresden | C9: 1099 | D9: 1.01 | E9: 0.99 | F9: 1.01 | G9: 1.00 | H9: 1.00 | I9: 1.01 | J9: 1.03 | K9: 1.03 | L9: 1.02 | M9: 1.06 | N9: 1.06 | O9: 1.03 | P9: 0.99 | Q9: 0.97 | R9: 0.96 | S9: 0.98 | T9: 0.98 | U9: 0.97 | V9: 0.98 | W9: 0.97 | X9: 0.98 | Y9: 0.94 | Z9: 0.97 | AA9: 0.98 | AB9: 0.99 | AC9: 1.04 | AD9: 1.01 | AE9: 0.96 | AF9: 1.01 | AG9: 1.04 | AH9: 1.03 | AI9: 1.04 | AJ9: 1.04 | AK9: 1.07 | AL9: 1.07 | AM9: 1.06 | AN9: 1.08 | AO9: 1.05 | AP9: 1.09 | AQ9: 1.15 | AR9: 1.11 | AS9: 1.06 | AT9: 1.07 | AU9: 1.06 | AV9: 1.07 | AW9: 1.06 | AX9: 1.06 | AY9: 1.06 | AZ9: 1.06 | BA9: 1.09 | BB9: 1.10 | BC9: 1.08 | BD9: 1.08 | BE9: 1.08 | BF9: 1.07 | BG9: 1.07 | BH9: 1.07 | BI9: 1.07 | BJ9: 1.07 | BK9: 1.07 | BL9: 1.06 | BM9: 1.03 | BN9: 1.00 | BO9: 0.99 | BP9: 0.96 | BQ9: 0.96 | BR9: 0.96 | BS9: 0.97 | BT9: 0.96 | BU9: 0.97 | BV9: 0.96 | BW9: 0.95 | BX9: 0.95 | BY9: 0.97 | BZ9: 0.99 | CA9: 0.99 | CB9: 1.00
A10: 1108 | B10: Dresden, Stadt / Dresden | C10: 1108 | D10: 1.04 | E10: 1.02 | F10: 1.04 | G10: 1.03 | H10: 1.03 | I10: 1.05 | J10: 1.07 | K10: 1.07 | L10: 1.06 | M10: 1.09 | N10: 1.10 | O10: 1.06 | P10: 1.02 | Q10: 1.00 | R10: 0.99 | S10: 1.01 | T10: 1.01 | U10: 1.00 | V10: 1.00 | W10: 1.00 | X10: 1.01 | Y10: 0.97 | Z10: 1.00 | AA10: 1.01 | AB10: 1.02 | AC10: 1.08 | AD10: 1.04 | AE10: 0.99 | AF10: 1.05 | AG10: 1.07 | AH10: 1.07 | AI10: 1.07 | AJ10: 1.07 | AK10: 1.10 | AL10: 1.10 | AM10: 1.10 | AN10: 1.11 | AO10: 1.08 | AP10: 1.13 | AQ10: 1.18 | AR10: 1.14 | AS10: 1.09 | AT10: 1.10 | AU10: 1.10 | AV10: 1.10 | AW10: 1.09 | AX10: 1.09 | AY10: 1.10 | AZ10: 1.10 | BA10: 1.13 | BB10: 1.14 | BC10: 1.12 | BD10: 1.12 | BE10: 1.12 | BF10: 1.11 | BG10: 1.11 | BH10: 1.10 | BI10: 1.11 | BJ10: 1.10 | BK10: 1.10 | BL10: 1.09 | BM10: 1.07 | BN10: 1.03 | BO10: 1.02 | BP10: 0.99 | BQ10: 0.98 | BR10: 0.99 | BS10: 1.00 | BT10: 0.99 | BU10: 0.99 | BV10: 0.99 | BW10: 0.98 | BX10: 0.97 | BY10: 0.99 | BZ10: 1.02 | CA10: 1.02 | CB10: 1.03
A11: 1109 | B11: Dresden, Stadt / Dresden | C11: 1109 | D11: 1.04 | E11: 1.02 | F11: 1.04 | G11: 1.03 | H11: 1.03 | I11: 1.04 | J11: 1.06 | K11: 1.06 | L11: 1.05 | M11: 1.09 | N11: 1.09 | O11: 1.05 | P11: 1.02 | Q11: 0.99 | R11: 0.99 | S11: 1.01 | T11: 1.00 | U11: 1.00 | V11: 1.00 | W11: 1.00 | X11: 1.00 | Y11: 0.97 | Z11: 0.99 | AA11: 1.01 | AB11: 1.01 | AC11: 1.07 | AD11: 1.03 | AE11: 0.99 | AF11: 1.04 | AG11: 1.07 | AH11: 1.06 | AI11: 1.07 | AJ11: 1.07 | AK11: 1.09 | AL11: 1.09 | AM11: 1.09 | AN11: 1.10 | AO11: 1.07 | AP11: 1.12 | AQ11: 1.18 | AR11: 1.14 | AS11: 1.08 | AT11: 1.09 | AU11: 1.09 | AV11: 1.09 | AW11: 1.09 | AX11: 1.09 | AY11: 1.09 | AZ11: 1.09 | BA11: 1.12 | BB11: 1.13 | BC11: 1.12 | BD11: 1.11 | BE11: 1.12 | BF11: 1.10 | BG11: 1.10 | BH11: 1.10 | BI11: 1.10 | BJ11: 1.10 | BK11: 1.10 | BL11: 1.09 | BM11: 1.06 | BN11: 1.02 | BO11: 1.02 | BP11: 0.99 | BQ11: 0.98 | BR11: 0.99 | BS11: 0.99 | BT11: 0.98 | BU11: 0.99 | BV11: 0.98 | BW11: 0.98 | BX11: 0.97 | BY11: 0.99 | BZ11: 1.02 | CA11: 1.02 | CB11: 1.03
A12: 1127 | B12: Dresden, Stadt / Dresden | C12: 1127 | D12: 1.16 | E12: 1.14 | F12: 1.16 | G12: 1.15 | H12: 1.15 | I12: 1.16 | J12: 1.19 | K12: 1.19 | L12: 1.18 | M12: 1.21 | N12: 1.22 | O12: 1.17 | P12: 1.12 | Q12: 1.10 | R12: 1.09 | S12: 1.11 | T12: 1.11 | U12: 1.10 | V12: 1.10 | W12: 1.10 | X12: 1.10 | Y12: 1.07 | Z12: 1.09 | AA12: 1.11 | AB12: 1.13 | AC12: 1.20 | AD12: 1.15 | AE12: 1.10 | AF12: 1.17 | AG12: 1.19 | AH12: 1.19 | AI12: 1.18 | AJ12: 1.18 | AK12: 1.21 | AL12: 1.21 | AM12: 1.21 | AN12: 1.22 | AO12: 1.18 | AP12: 1.24 | AQ12: 1.30 | AR12: 1.25 | AS12: 1.19 | AT12: 1.20 | AU12: 1.21 | AV12: 1.21 | AW12: 1.21 | AX12: 1.21 | AY12: 1.22 | AZ12: 1.22 | BA12: 1.25 | BB12: 1.27 | BC12: 1.25 | BD12: 1.25 | BE12: 1.25 | BF12: 1.24 | BG12: 1.24 | BH12: 1.24 | BI12: 1.24 | BJ12: 1.23 | BK12: 1.23 | BL12: 1.22 | BM12: 1.19 | BN12: 1.14 | BO12: 1.13 | BP12: 1.09 | BQ12: 1.07 | BR12: 1.08 | BS12: 1.08 | BT12: 1.08 | BU12: 1.09 | BV12: 1.07 | BW12: 1.07 | BX12: 1.06 | BY12: 1.08 | BZ12: 1.12 | CA12: 1.12 | CB12: 1.13
A13: 1129 | B13: Dresden, Stadt / Dresden | C13: 1129 | D13: 1.10 | E13: 1.08 | F13: 1.10 | G13: 1.09 | H13: 1.09 | I13: 1.10 | J13: 1.13 | K13: 1.13 | L13: 1.12 | M13: 1.15 | N13: 1.16 | O13: 1.12 | P13: 1.07 | Q13: 1.05 | R13: 1.04 | S13: 1.06 | T13: 1.06 | U13: 1.05 | V13: 1.05 | W13: 1.05 | X13: 1.05 | Y13: 1.02 | Z13: 1.04 | AA13: 1.06 | AB13: 1.07 | AC13: 1.14 | AD13: 1.10 | AE13: 1.04 | AF13: 1.11 | AG13: 1.13 | AH13: 1.13 | AI13: 1.13 | AJ13: 1.13 | AK13: 1.16 | AL13: 1.16 | AM13: 1.15 | AN13: 1.16 | AO13: 1.13 | AP13: 1.18 | AQ13: 1.24 | AR13: 1.20 | AS13: 1.14 | AT13: 1.15 | AU13: 1.15 | AV13: 1.16 | AW13: 1.15 | AX13: 1.15 | AY13: 1.16 | AZ13: 1.16 | BA13: 1.19 | BB13: 1.20 | BC13: 1.19 | BD13: 1.18 | BE13: 1.19 | BF13: 1.17 | BG13: 1.17 | BH13: 1.17 | BI13: 1.17 | BJ13: 1.17 | BK13: 1.16 | BL13: 1.16 | BM13: 1.13 | BN13: 1.08 | BO13: 1.08 | BP13: 1.04 | BQ13: 1.03 | BR13: 1.04 | BS13: 1.04 | BT13: 1.03 | BU13: 1.04 | BV13: 1.03 | BW13: 1.03 | BX13: 1.02 | BY13: 1.04 | BZ13: 1.07 | CA13: 1.07 | CB13: 1.08
A14: 1139 | B14: Dresden, Stadt / Dresden | C14: 1139 | D14: 1.13 | E14: 1.11 | F14: 1.13 | G14: 1.12 | H14: 1.12 | I14: 1.13 | J14: 1.16 | K14: 1.16 | L14: 1.15 | M14: 1.19 | N14: 1.19 | O14: 1.15 | P14: 1.10 | Q14: 1.07 | R14: 1.06 | S14: 1.09 | T14: 1.08 | U14: 1.08 | V14: 1.08 | W14: 1.07 | X14: 1.08 | Y14: 1.04 | Z14: 1.07 | AA14: 1.09 | AB14: 1.10 | AC14: 1.17 | AD14: 1.13 | AE14: 1.07 | AF14: 1.14 | AG14: 1.17 | AH14: 1.16 | AI14: 1.16 | AJ14: 1.16 | AK14: 1.19 | AL14: 1.19 | AM14: 1.18 | AN14: 1.20 | AO14: 1.16 | AP14: 1.21 | AQ14: 1.28 | AR14: 1.23 | AS14: 1.17 | AT14: 1.18 | AU14: 1.18 | AV14: 1.19 | AW14: 1.18 | AX14: 1.18 | AY14: 1.19 | AZ14: 1.19 | BA14: 1.22 | BB14: 1.24 | BC14: 1.22 | BD14: 1.22 | BE14: 1.22 | BF14: 1.21 | BG14: 1.21 | BH14: 1.20 | BI14: 1.21 | BJ14: 1.20 | BK14: 1.20 | BL14: 1.19 | BM14: 1.16 | BN14: 1.11 | BO14: 1.11 | BP14: 1.07 | BQ14: 1.06 | BR14: 1.06 | BS14: 1.07 | BT14: 1.06 | BU14: 1.07 | BV14: 1.06 | BW14: 1.05 | BX14: 1.05 | BY14: 1.07 | BZ14: 1.10 | CA14: 1.10 | CB14: 1.11
A15: 1156 | B15: Dresden, Stadt / Dresden | C15: 1156 | D15: 1.00 | E15: 0.97 | F15: 0.99 | G15: 0.98 | H15: 0.98 | I15: 1.00 | J15: 1.02 | K15: 1.02 | L15: 1.01 | M15: 1.04 | N15: 1.05 | O15: 1.01 | P15: 0.98 | Q15: 0.96 | R15: 0.95 | S15: 0.97 | T15: 0.97 | U15: 0.96 | V15: 0.97 | W15: 0.96 | X15: 0.97 | Y15: 0.93 | Z15: 0.95 | AA15: 0.97 | AB15: 0.97 | AC15: 1.03 | AD15: 0.99 | AE15: 0.95 | AF15: 1.00 | AG15: 1.02 | AH15: 1.02 | AI15: 1.03 | AJ15: 1.03 | AK15: 1.06 | AL15: 1.06 | AM15: 1.05 | AN15: 1.06 | AO15: 1.03 | AP15: 1.08 | AQ15: 1.13 | AR15: 1.10 | AS15: 1.04 | AT15: 1.06 | AU15: 1.05 | AV15: 1.05 | AW15: 1.04 | AX15: 1.04 | AY15: 1.05 | AZ15: 1.05 | BA15: 1.07 | BB15: 1.09 | BC15: 1.07 | BD15: 1.07 | BE15: 1.07 | BF15: 1.05 | BG15: 1.05 | BH15: 1.05 | BI15: 1.06 | BJ15: 1.05 | BK15: 1.05 | BL15: 1.04 | BM15: 1.02 | BN15: 0.98 | BO15: 0.98 | BP15: 0.95 | BQ15: 0.95 | BR15: 0.96 | BS15: 0.96 | BT15: 0.95 | BU15: 0.96 | BV15: 0.95 | BW15: 0.94 | BX15: 0.94 | BY15: 0.96 | BZ15: 0.98 | CA15: 0.98 | CB15: 0.99
A16: 1157 | B16: Dresden, Stadt / Dresden | C16: 1157 | D16: 1.11 | E16: 1.08 | F16: 1.11 | G16: 1.10 | H16: 1.10 | I16: 1.11 | J16: 1.13 | K16: 1.14 | L16: 1.13 | M16: 1.16 | N16: 1.17 | O16: 1.13 | P16: 1.08 | Q16: 1.06 | R16: 1.05 | S16: 1.07 | T16: 1.06 | U16: 1.06 | V16: 1.06 | W16: 1.06 | X16: 1.06 | Y16: 1.03 | Z16: 1.05 | AA16: 1.07 | AB16: 1.08 | AC16: 1.15 | AD16: 1.11 | AE16: 1.05 | AF16: 1.12 | AG16: 1.14 | AH16: 1.14 | AI16: 1.14 | AJ16: 1.14 | AK16: 1.17 | AL16: 1.17 | AM16: 1.16 | AN16: 1.18 | AO16: 1.14 | AP16: 1.19 | AQ16: 1.25 | AR16: 1.21 | AS16: 1.15 | AT16: 1.16 | AU16: 1.16 | AV16: 1.17 | AW16: 1.16 | AX16: 1.16 | AY16: 1.17 | AZ16: 1.17 | BA16: 1.20 | BB16: 1.22 | BC16: 1.20 | BD16: 1.19 | BE16: 1.20 | BF16: 1.18 | BG16: 1.18 | BH16: 1.18 | BI16: 1.18 | BJ16: 1.18 | BK16: 1.17 | BL16: 1.17 | BM16: 1.14 | BN16: 1.09 | BO16: 1.09 | BP16: 1.05 | BQ16: 1.04 | BR16: 1.05 | BS16: 1.05 | BT16: 1.04 | BU16: 1.05 | BV16: 1.04 | BW16: 1.04 | BX16: 1.03 | BY16: 1.05 | BZ16: 1.08 | CA16: 1.08 | CB16: 1.09
A17: 1159 | B17: Dresden, Stadt / Dresden | C17: 1159 | D17: 1.14 | E17: 1.11 | F17: 1.13 | G17: 1.12 | H17: 1.12 | I17: 1.13 | J17: 1.16 | K17: 1.16 | L17: 1.15 | M17: 1.19 | N17: 1.19 | O17: 1.15 | P17: 1.10 | Q17: 1.07 | R17: 1.06 | S17: 1.09 | T17: 1.08 | U17: 1.08 | V17: 1.08 | W17: 1.08 | X17: 1.08 | Y17: 1.04 | Z17: 1.07 | AA17: 1.09 | AB17: 1.10 | AC17: 1.17 | AD17: 1.13 | AE17: 1.07 | AF17: 1.14 | AG17: 1.17 | AH17: 1.16 | AI17: 1.16 | AJ17: 1.16 | AK17: 1.19 | AL17: 1.19 | AM17: 1.18 | AN17: 1.19 | AO17: 1.16 | AP17: 1.21 | AQ17: 1.28 | AR17: 1.23 | AS17: 1.17 | AT17: 1.18 | AU17: 1.18 | AV17: 1.19 | AW17: 1.18 | AX17: 1.18 | AY17: 1.19 | AZ17: 1.19 | BA17: 1.22 | BB17: 1.24 | BC17: 1.22 | BD17: 1.22 | BE17: 1.23 | BF17: 1.21 | BG17: 1.21 | BH17: 1.21 | BI17: 1.21 | BJ17: 1.20 | BK17: 1.20 | BL17: 1.19 | BM17: 1.16 | BN17: 1.11 | BO17: 1.11 | BP17: 1.07 | BQ17: 1.05 | BR17: 1.06 | BS17: 1.06 | BT17: 1.06 | BU17: 1.07 | BV17: 1.06 | BW17: 1.05 | BX17: 1.04 | BY17: 1.06 | BZ17: 1.10 | CA17: 1.10 | CB17: 1.11
A18: 1169 | B18: Dresden, Stadt / Dresden | C18: 1169 | D18: 1.06 | E18: 1.04 | F18: 1.06 | G18: 1.05 | H18: 1.05 | I18: 1.06 | J18: 1.08 | K18: 1.08 | L18: 1.08 | M18: 1.11 | N18: 1.11 | O18: 1.08 | P18: 1.04 | Q18: 1.01 | R18: 1.00 | S18: 1.03 | T18: 1.02 | U18: 1.02 | V18: 1.02 | W18: 1.02 | X18: 1.02 | Y18: 0.99 | Z18: 1.01 | AA18: 1.02 | AB18: 1.03 | AC18: 1.09 | AD18: 1.06 | AE18: 1.01 | AF18: 1.07 | AG18: 1.09 | AH18: 1.09 | AI18: 1.09 | AJ18: 1.09 | AK18: 1.12 | AL18: 1.12 | AM18: 1.11 | AN18: 1.12 | AO18: 1.09 | AP18: 1.14 | AQ18: 1.20 | AR18: 1.16 | AS18: 1.10 | AT18: 1.11 | AU18: 1.11 | AV18: 1.12 | AW18: 1.11 | AX18: 1.11 | AY18: 1.12 | AZ18: 1.12 | BA18: 1.14 | BB18: 1.16 | BC18: 1.14 | BD18: 1.14 | BE18: 1.14 | BF18: 1.13 | BG18: 1.12 | BH18: 1.12 | BI18: 1.13 | BJ18: 1.12 | BK18: 1.12 | BL18: 1.11 | BM18: 1.08 | BN18: 1.04 | BO18: 1.04 | BP18: 1.01 | BQ18: 1.00 | BR18: 1.01 | BS18: 1.01 | BT18: 1.00 | BU18: 1.01 | BV18: 1.00 | BW18: 0.99 | BX18: 0.99 | BY18: 1.01 | BZ18: 1.04 | CA18: 1.04 | CB18: 1.05
A19: 1187 | B19: Dresden, Stadt / Dresden | C19: 1187 | D19: 1.12 | E19: 1.09 | F19: 1.12 | G19: 1.11 | H19: 1.10 | I19: 1.12 | J19: 1.14 | K19: 1.14 | L19: 1.13 | M19: 1.17 | N19: 1.17 | O19: 1.13 | P19: 1.09 | Q19: 1.06 | R19: 1.05 | S19: 1.08 | T19: 1.07 | U19: 1.06 | V19: 1.06 | W19: 1.06 | X19: 1.06 | Y19: 1.03 | Z19: 1.06 | AA19: 1.07 | AB19: 1.09 | AC19: 1.15 | AD19: 1.11 | AE19: 1.06 | AF19: 1.12 | AG19: 1.15 | AH19: 1.14 | AI19: 1.14 | AJ19: 1.14 | AK19: 1.17 | AL19: 1.17 | AM19: 1.17 | AN19: 1.18 | AO19: 1.14 | AP19: 1.20 | AQ19: 1.26 | AR19: 1.21 | AS19: 1.15 | AT19: 1.17 | AU19: 1.17 | AV19: 1.17 | AW19: 1.16 | AX19: 1.17 | AY19: 1.17 | AZ19: 1.17 | BA19: 1.20 | BB19: 1.22 | BC19: 1.20 | BD19: 1.20 | BE19: 1.20 | BF19: 1.19 | BG19: 1.19 | BH19: 1.19 | BI19: 1.19 | BJ19: 1.18 | BK19: 1.18 | BL19: 1.17 | BM19: 1.14 | BN19: 1.10 | BO19: 1.09 | BP19: 1.05 | BQ19: 1.04 | BR19: 1.05 | BS19: 1.05 | BT19: 1.04 | BU19: 1.05 | BV19: 1.04 | BW19: 1.04 | BX19: 1.03 | BY19: 1.05 | BZ19: 1.08 | CA19: 1.08 | CB19: 1.10
A20: 1189 | B20: Dresden, Stadt / Dresden | C20: 1189 | D20: 1.04 | E20: 1.02 | F20: 1.04 | G20: 1.03 | H20: 1.03 | I20: 1.04 | J20: 1.06 | K20: 1.06 | L20: 1.05 | M20: 1.09 | N20: 1.09 | O20: 1.05 | P20: 1.02 | Q20: 0.99 | R20: 0.99 | S20: 1.01 | T20: 1.00 | U20: 1.00 | V20: 1.00 | W20: 1.00 | X20: 1.00 | Y20: 0.97 | Z20: 0.99 | AA20: 1.00 | AB20: 1.01 | AC20: 1.07 | AD20: 1.03 | AE20: 0.99 | AF20: 1.04 | AG20: 1.07 | AH20: 1.06 | AI20: 1.06 | AJ20: 1.07 | AK20: 1.09 | AL20: 1.09 | AM20: 1.09 | AN20: 1.10 | AO20: 1.07 | AP20: 1.12 | AQ20: 1.18 | AR20: 1.14 | AS20: 1.08 | AT20: 1.09 | AU20: 1.09 | AV20: 1.09 | AW20: 1.08 | AX20: 1.09 | AY20: 1.09 | AZ20: 1.09 | BA20: 1.12 | BB20: 1.13 | BC20: 1.12 | BD20: 1.11 | BE20: 1.12 | BF20: 1.10 | BG20: 1.10 | BH20: 1.10 | BI20: 1.11 | BJ20: 1.10 | BK20: 1.10 | BL20: 1.09 | BM20: 1.06 | BN20: 1.02 | BO20: 1.02 | BP20: 0.99 | BQ20: 0.98 | BR20: 0.99 | BS20: 0.99 | BT20: 0.98 | BU20: 0.99 | BV20: 0.98 | BW20: 0.97 | BX20: 0.97 | BY20: 0.99 | BZ20: 1.02 | CA20: 1.02 | CB20: 1.03
A21: 1217 | B21: Dresden, Stadt / Dresden | C21: 1217 | D21: 1.09 | E21: 1.07 | F21: 1.09 | G21: 1.08 | H21: 1.08 | I21: 1.09 | J21: 1.12 | K21: 1.12 | L21: 1.11 | M21: 1.14 | N21: 1.15 | O21: 1.11 | P21: 1.07 | Q21: 1.04 | R21: 1.03 | S21: 1.06 | T21: 1.05 | U21: 1.04 | V21: 1.04 | W21: 1.04 | X21: 1.04 | Y21: 1.01 | Z21: 1.04 | AA21: 1.05 | AB21: 1.06 | AC21: 1.13 | AD21: 1.09 | AE21: 1.04 | AF21: 1.10 | AG21: 1.12 | AH21: 1.12 | AI21: 1.12 | AJ21: 1.12 | AK21: 1.15 | AL21: 1.15 | AM21: 1.15 | AN21: 1.16 | AO21: 1.12 | AP21: 1.17 | AQ21: 1.24 | AR21: 1.19 | AS21: 1.13 | AT21: 1.15 | AU21: 1.14 | AV21: 1.15 | AW21: 1.14 | AX21: 1.14 | AY21: 1.15 | AZ21: 1.15 | BA21: 1.18 | BB21: 1.20 | BC21: 1.18 | BD21: 1.17 | BE21: 1.18 | BF21: 1.16 | BG21: 1.16 | BH21: 1.16 | BI21: 1.16 | BJ21: 1.16 | BK21: 1.16 | BL21: 1.15 | BM21: 1.12 | BN21: 1.07 | BO21: 1.07 | BP21: 1.03 | BQ21: 1.02 | BR21: 1.03 | BS21: 1.03 | BT21: 1.03 | BU21: 1.03 | BV21: 1.03 | BW21: 1.02 | BX21: 1.01 | BY21: 1.03 | BZ21: 1.07 | CA21: 1.07 | CB21: 1.08
A22: 1219 | B22: Dresden, Stadt / Dresden | C22: 1219 | D22: 1.12 | E22: 1.10 | F22: 1.12 | G22: 1.11 | H22: 1.11 | I22: 1.12 | J22: 1.15 | K22: 1.15 | L22: 1.14 | M22: 1.17 | N22: 1.18 | O22: 1.14 | P22: 1.09 | Q22: 1.06 | R22: 1.05 | S22: 1.08 | T22: 1.07 | U22: 1.07 | V22: 1.07 | W22: 1.07 | X22: 1.07 | Y22: 1.03 | Z22: 1.06 | AA22: 1.08 | AB22: 1.09 | AC22: 1.16 | AD22: 1.12 | AE22: 1.06 | AF22: 1.13 | AG22: 1.16 | AH22: 1.15 | AI22: 1.15 | AJ22: 1.15 | AK22: 1.18 | AL22: 1.18 | AM22: 1.17 | AN22: 1.19 | AO22: 1.15 | AP22: 1.20 | AQ22: 1.27 | AR22: 1.22 | AS22: 1.16 | AT22: 1.17 | AU22: 1.17 | AV22: 1.18 | AW22: 1.17 | AX22: 1.17 | AY22: 1.18 | AZ22: 1.18 | BA22: 1.21 | BB22: 1.23 | BC22: 1.21 | BD22: 1.21 | BE22: 1.21 | BF22: 1.20 | BG22: 1.20 | BH22: 1.19 | BI22: 1.20 | BJ22: 1.19 | BK22: 1.19 | BL22: 1.18 | BM22: 1.15 | BN22: 1.10 | BO22: 1.10 | BP22: 1.06 | BQ22: 1.05 | BR22: 1.05 | BS22: 1.06 | BT22: 1.05 | BU22: 1.06 | BV22: 1.05 | BW22: 1.04 | BX22: 1.04 | BY22: 1.06 | BZ22: 1.09 | CA22: 1.09 | CB22: 1.10
A23: 1237 | B23: Dresden, Stadt / Dresden | C23: 1237 | D23: 1.14 | E23: 1.12 | F23: 1.14 | G23: 1.13 | H23: 1.13 | I23: 1.14 | J23: 1.17 | K23: 1.17 | L23: 1.16 | M23: 1.19 | N23: 1.20 | O23: 1.15 | P23: 1.11 | Q23: 1.08 | R23: 1.07 | S23: 1.10 | T23: 1.09 | U23: 1.08 | V23: 1.08 | W23: 1.08 | X23: 1.08 | Y23: 1.05 | Z23: 1.08 | AA23: 1.09 | AB23: 1.11 | AC23: 1.18 | AD23: 1.14 | AE23: 1.08 | AF23: 1.15 | AG23: 1.17 | AH23: 1.17 | AI23: 1.17 | AJ23: 1.17 | AK23: 1.19 | AL23: 1.19 | AM23: 1.19 | AN23: 1.20 | AO23: 1.16 | AP23: 1.22 | AQ23: 1.28 | AR23: 1.23 | AS23: 1.18 | AT23: 1.19 | AU23: 1.19 | AV23: 1.19 | AW23: 1.19 | AX23: 1.19 | AY23: 1.20 | AZ23: 1.20 | BA23: 1.23 | BB23: 1.25 | BC23: 1.23 | BD23: 1.23 | BE23: 1.23 | BF23: 1.22 | BG23: 1.22 | BH23: 1.21 | BI23: 1.22 | BJ23: 1.21 | BK23: 1.21 | BL23: 1.20 | BM23: 1.17 | BN23: 1.12 | BO23: 1.11 | BP23: 1.07 | BQ23: 1.06 | BR23: 1.07 | BS23: 1.07 | BT23: 1.06 | BU23: 1.07 | BV23: 1.06 | BW23: 1.06 | BX23: 1.05 | BY23: 1.07 | BZ23: 1.10 | CA23: 1.10 | CB23: 1.12
A24: 1239 | B24: Dresden, Stadt / Dresden | C24: 1239 | D24: 1.08 | E24: 1.05 | F24: 1.08 | G24: 1.07 | H24: 1.06 | I24: 1.08 | J24: 1.10 | K24: 1.10 | L24: 1.09 | M24: 1.13 | N24: 1.13 | O24: 1.10 | P24: 1.05 | Q24: 1.03 | R24: 1.02 | S24: 1.04 | T24: 1.04 | U24: 1.03 | V24: 1.03 | W24: 1.03 | X24: 1.03 | Y24: 1.00 | Z24: 1.02 | AA24: 1.04 | AB24: 1.05 | AC24: 1.11 | AD24: 1.08 | AE24: 1.03 | AF24: 1.09 | AG24: 1.11 | AH24: 1.11 | AI24: 1.11 | AJ24: 1.11 | AK24: 1.14 | AL24: 1.14 | AM24: 1.13 | AN24: 1.15 | AO24: 1.11 | AP24: 1.16 | AQ24: 1.22 | AR24: 1.18 | AS24: 1.12 | AT24: 1.13 | AU24: 1.13 | AV24: 1.14 | AW24: 1.13 | AX24: 1.13 | AY24: 1.14 | AZ24: 1.14 | BA24: 1.16 | BB24: 1.18 | BC24: 1.16 | BD24: 1.16 | BE24: 1.16 | BF24: 1.15 | BG24: 1.14 | BH24: 1.14 | BI24: 1.15 | BJ24: 1.14 | BK24: 1.14 | BL24: 1.13 | BM24: 1.10 | BN24: 1.06 | BO24: 1.06 | BP24: 1.02 | BQ24: 1.01 | BR24: 1.02 | BS24: 1.02 | BT24: 1.02 | BU24: 1.02 | BV24: 1.01 | BW24: 1.01 | BX24: 1.00 | BY24: 1.02 | BZ24: 1.06 | CA24: 1.05 | CB24: 1.07
A25: 1257 | B25: Dresden, Stadt / Dresden | C25: 1257 | D25: 1.12 | E25: 1.09 | F25: 1.12 | G25: 1.11 | H25: 1.11 | I25: 1.12 | J25: 1.15 | K25: 1.15 | L25: 1.14 | M25: 1.17 | N25: 1.18 | O25: 1.14 | P25: 1.09 | Q25: 1.06 | R25: 1.05 | S25: 1.08 | T25: 1.07 | U25: 1.07 | V25: 1.06 | W25: 1.06 | X25: 1.07 | Y25: 1.03 | Z25: 1.06 | AA25: 1.07 | AB25: 1.09 | AC25: 1.16 | AD25: 1.12 | AE25: 1.06 | AF25: 1.13 | AG25: 1.15 | AH25: 1.15 | AI25: 1.15 | AJ25: 1.15 | AK25: 1.18 | AL25: 1.18 | AM25: 1.17 | AN25: 1.19 | AO25: 1.15 | AP25: 1.20 | AQ25: 1.26 | AR25: 1.22 | AS25: 1.16 | AT25: 1.17 | AU25: 1.17 | AV25: 1.18 | AW25: 1.17 | AX25: 1.17 | AY25: 1.18 | AZ25: 1.18 | BA25: 1.21 | BB25: 1.23 | BC25: 1.21 | BD25: 1.20 | BE25: 1.21 | BF25: 1.20 | BG25: 1.19 | BH25: 1.19 | BI25: 1.20 | BJ25: 1.19 | BK25: 1.18 | BL25: 1.17 | BM25: 1.15 | BN25: 1.10 | BO25: 1.09 | BP25: 1.06 | BQ25: 1.04 | BR25: 1.05 | BS25: 1.06 | BT25: 1.05 | BU25: 1.06 | BV25: 1.05 | BW25: 1.04 | BX25: 1.03 | BY25: 1.06 | BZ25: 1.09 | CA25: 1.09 | CB25: 1.10
A26: 1259 | B26: Dresden, Stadt / Dresden | C26: 1259 | D26: 1.13 | E26: 1.10 | F26: 1.13 | G26: 1.11 | H26: 1.11 | I26: 1.13 | J26: 1.15 | K26: 1.15 | L26: 1.14 | M26: 1.18 | N26: 1.19 | O26: 1.14 | P26: 1.10 | Q26: 1.07 | R26: 1.06 | S26: 1.08 | T26: 1.08 | U26: 1.07 | V26: 1.07 | W26: 1.07 | X26: 1.07 | Y26: 1.04 | Z26: 1.06 | AA26: 1.08 | AB26: 1.09 | AC26: 1.16 | AD26: 1.12 | AE26: 1.07 | AF26: 1.14 | AG26: 1.16 | AH26: 1.16 | AI26: 1.15 | AJ26: 1.16 | AK26: 1.18 | AL26: 1.18 | AM26: 1.18 | AN26: 1.19 | AO26: 1.16 | AP26: 1.21 | AQ26: 1.27 | AR26: 1.22 | AS26: 1.17 | AT26: 1.18 | AU26: 1.18 | AV26: 1.18 | AW26: 1.18 | AX26: 1.18 | AY26: 1.19 | AZ26: 1.19 | BA26: 1.21 | BB26: 1.23 | BC26: 1.21 | BD26: 1.21 | BE26: 1.22 | BF26: 1.20 | BG26: 1.20 | BH26: 1.20 | BI26: 1.20 | BJ26: 1.19 | BK26: 1.19 | BL26: 1.18 | BM26: 1.15 | BN26: 1.11 | BO26: 1.10 | BP26: 1.06 | BQ26: 1.05 | BR26: 1.06 | BS26: 1.06 | BT26: 1.05 | BU26: 1.06 | BV26: 1.05 | BW26: 1.05 | BX26: 1.04 | BY26: 1.06 | BZ26: 1.10 | CA26: 1.09 | CB26: 1.11
A27: 1277 | B27: Dresden, Stadt / Dresden | C27: 1277 | D27: 1.15 | E27: 1.13 | F27: 1.15 | G27: 1.14 | H27: 1.14 | I27: 1.15 | J27: 1.18 | K27: 1.18 | L27: 1.17 | M27: 1.20 | N27: 1.21 | O27: 1.16 | P27: 1.12 | Q27: 1.09 | R27: 1.08 | S27: 1.11 | T27: 1.10 | U27: 1.09 | V27: 1.09 | W27: 1.09 | X27: 1.09 | Y27: 1.06 | Z27: 1.09 | AA27: 1.10 | AB27: 1.12 | AC27: 1.19 | AD27: 1.15 | AE27: 1.09 | AF27: 1.16 | AG27: 1.18 | AH27: 1.18 | AI27: 1.17 | AJ27: 1.18 | AK27: 1.20 | AL27: 1.20 | AM27: 1.20 | AN27: 1.21 | AO27: 1.17 | AP27: 1.23 | AQ27: 1.30 | AR27: 1.24 | AS27: 1.19 | AT27: 1.20 | AU27: 1.20 | AV27: 1.20 | AW27: 1.20 | AX27: 1.20 | AY27: 1.21 | AZ27: 1.21 | BA27: 1.24 | BB27: 1.26 | BC27: 1.24 | BD27: 1.24 | BE27: 1.24 | BF27: 1.23 | BG27: 1.23 | BH27: 1.23 | BI27: 1.23 | BJ27: 1.22 | BK27: 1.22 | BL27: 1.21 | BM27: 1.18 | BN27: 1.13 | BO27: 1.12 | BP27: 1.08 | BQ27: 1.07 | BR27: 1.07 | BS27: 1.08 | BT27: 1.07 | BU27: 1.08 | BV27: 1.07 | BW27: 1.06 | BX27: 1.06 | BY27: 1.08 | BZ27: 1.11 | CA27: 1.11 | CB27: 1.13
A28: 1279 | B28: Dresden, Stadt / Dresden | C28: 1279 | D28: 1.14 | E28: 1.11 | F28: 1.14 | G28: 1.13 | H28: 1.12 | I28: 1.14 | J28: 1.16 | K28: 1.16 | L28: 1.16 | M28: 1.19 | N28: 1.20 | O28: 1.15 | P28: 1.11 | Q28: 1.08 | R28: 1.07 | S28: 1.09 | T28: 1.09 | U28: 1.08 | V28: 1.08 | W28: 1.08 | X28: 1.08 | Y28: 1.05 | Z28: 1.07 | AA28: 1.09 | AB28: 1.10 | AC28: 1.18 | AD28: 1.13 | AE28: 1.08 | AF28: 1.15 | AG28: 1.17 | AH28: 1.17 | AI28: 1.16 | AJ28: 1.17 | AK28: 1.19 | AL28: 1.19 | AM28: 1.19 | AN28: 1.20 | AO28: 1.16 | AP28: 1.22 | AQ28: 1.28 | AR28: 1.23 | AS28: 1.18 | AT28: 1.19 | AU28: 1.19 | AV28: 1.19 | AW28: 1.19 | AX28: 1.19 | AY28: 1.20 | AZ28: 1.20 | BA28: 1.23 | BB28: 1.25 | BC28: 1.23 | BD28: 1.22 | BE28: 1.23 | BF28: 1.22 | BG28: 1.21 | BH28: 1.21 | BI28: 1.21 | BJ28: 1.21 | BK28: 1.20 | BL28: 1.19 | BM28: 1.16 | BN28: 1.12 | BO28: 1.11 | BP28: 1.07 | BQ28: 1.06 | BR28: 1.07 | BS28: 1.07 | BT28: 1.06 | BU28: 1.07 | BV28: 1.06 | BW28: 1.05 | BX28: 1.05 | BY28: 1.07 | BZ28: 1.10 | CA28: 1.10 | CB28: 1.12
A29: 1307 | B29: Dresden, Stadt / Dresden | C29: 1307 | D29: 1.14 | E29: 1.12 | F29: 1.14 | G29: 1.13 | H29: 1.13 | I29: 1.14 | J29: 1.17 | K29: 1.17 | L29: 1.16 | M29: 1.19 | N29: 1.20 | O29: 1.15 | P29: 1.11 | Q29: 1.08 | R29: 1.07 | S29: 1.10 | T29: 1.09 | U29: 1.08 | V29: 1.08 | W29: 1.08 | X29: 1.08 | Y29: 1.05 | Z29: 1.08 | AA29: 1.09 | AB29: 1.11 | AC29: 1.18 | AD29: 1.14 | AE29: 1.08 | AF29: 1.15 | AG29: 1.17 | AH29: 1.17 | AI29: 1.17 | AJ29: 1.17 | AK29: 1.19 | AL29: 1.19 | AM29: 1.19 | AN29: 1.20 | AO29: 1.16 | AP29: 1.22 | AQ29: 1.29 | AR29: 1.24 | AS29: 1.18 | AT29: 1.19 | AU29: 1.19 | AV29: 1.19 | AW29: 1.19 | AX29: 1.19 | AY29: 1.20 | AZ29: 1.20 | BA29: 1.23 | BB29: 1.25 | BC29: 1.23 | BD29: 1.23 | BE29: 1.23 | BF29: 1.22 | BG29: 1.22 | BH29: 1.21 | BI29: 1.22 | BJ29: 1.21 | BK29: 1.21 | BL29: 1.20 | BM29: 1.17 | BN29: 1.12 | BO29: 1.11 | BP29: 1.07 | BQ29: 1.06 | BR29: 1.07 | BS29: 1.07 | BT29: 1.06 | BU29: 1.07 | BV29: 1.06 | BW29: 1.06 | BX29: 1.05 | BY29: 1.07 | BZ29: 1.11 | CA29: 1.10 | CB29: 1.12
A30: 1309 | B30: Dresden, Stadt / Dresden | C30: 1309 | D30: 1.15 | E30: 1.12 | F30: 1.14 | G30: 1.13 | H30: 1.13 | I30: 1.15 | J30: 1.17 | K30: 1.17 | L30: 1.16 | M30: 1.20 | N30: 1.20 | O30: 1.16 | P30: 1.11 | Q30: 1.08 | R30: 1.07 | S30: 1.10 | T30: 1.09 | U30: 1.09 | V30: 1.08 | W30: 1.08 | X30: 1.09 | Y30: 1.05 | Z30: 1.08 | AA30: 1.10 | AB30: 1.11 | AC30: 1.18 | AD30: 1.14 | AE30: 1.08 | AF30: 1.15 | AG30: 1.18 | AH30: 1.17 | AI30: 1.17 | AJ30: 1.17 | AK30: 1.20 | AL30: 1.20 | AM30: 1.19 | AN30: 1.20 | AO30: 1.17 | AP30: 1.22 | AQ30: 1.29 | AR30: 1.24 | AS30: 1.18 | AT30: 1.19 | AU30: 1.19 | AV30: 1.20 | AW30: 1.19 | AX30: 1.19 | AY30: 1.20 | AZ30: 1.20 | BA30: 1.23 | BB30: 1.25 | BC30: 1.23 | BD30: 1.23 | BE30: 1.24 | BF30: 1.23 | BG30: 1.22 | BH30: 1.22 | BI30: 1.22 | BJ30: 1.21 | BK30: 1.21 | BL30: 1.20 | BM30: 1.17 | BN30: 1.12 | BO30: 1.12 | BP30: 1.08 | BQ30: 1.06 | BR30: 1.07 | BS30: 1.07 | BT30: 1.07 | BU30: 1.07 | BV30: 1.06 | BW30: 1.06 | BX30: 1.05 | BY30: 1.07 | BZ30: 1.11 | CA30: 1.11 | CB30: 1.12
A31: 1324 | B31: Dresden, Stadt / Dresden | C31: 1324 | D31: 1.01 | E31: 0.99 | F31: 1.01 | G31: 1.00 | H31: 1.00 | I31: 1.01 | J31: 1.03 | K31: 1.03 | L31: 1.02 | M31: 1.06 | N31: 1.06 | O31: 1.03 | P31: 0.99 | Q31: 0.97 | R31: 0.96 | S31: 0.98 | T31: 0.98 | U31: 0.97 | V31: 0.97 | W31: 0.97 | X31: 0.98 | Y31: 0.94 | Z31: 0.96 | AA31: 0.98 | AB31: 0.98 | AC31: 1.04 | AD31: 1.01 | AE31: 0.96 | AF31: 1.01 | AG31: 1.04 | AH31: 1.03 | AI31: 1.04 | AJ31: 1.04 | AK31: 1.07 | AL31: 1.07 | AM31: 1.06 | AN31: 1.07 | AO31: 1.04 | AP31: 1.09 | AQ31: 1.15 | AR31: 1.11 | AS31: 1.05 | AT31: 1.07 | AU31: 1.06 | AV31: 1.07 | AW31: 1.06 | AX31: 1.06 | AY31: 1.06 | AZ31: 1.06 | BA31: 1.09 | BB31: 1.10 | BC31: 1.08 | BD31: 1.08 | BE31: 1.08 | BF31: 1.07 | BG31: 1.07 | BH31: 1.06 | BI31: 1.07 | BJ31: 1.07 | BK31: 1.06 | BL31: 1.06 | BM31: 1.03 | BN31: 0.99 | BO31: 0.99 | BP31: 0.96 | BQ31: 0.95 | BR31: 0.96 | BS31: 0.97 | BT31: 0.96 | BU31: 0.96 | BV31: 0.96 | BW31: 0.95 | BX31: 0.95 | BY31: 0.97 | BZ31: 0.99 | CA31: 0.99 | CB31: 1.00
A32: 1326 | B32: Dresden, Stadt / Dresden | C32: 1326 | D32: 1.12 | E32: 1.09 | F32: 1.12 | G32: 1.11 | H32: 1.11 | I32: 1.12 | J32: 1.15 | K32: 1.15 | L32: 1.14 | M32: 1.17 | N32: 1.18 | O32: 1.14 | P32: 1.09 | Q32: 1.06 | R32: 1.05 | S32: 1.08 | T32: 1.07 | U32: 1.07 | V32: 1.06 | W32: 1.06 | X32: 1.07 | Y32: 1.03 | Z32: 1.06 | AA32: 1.07 | AB32: 1.09 | AC32: 1.16 | AD32: 1.12 | AE32: 1.06 | AF32: 1.13 | AG32: 1.15 | AH32: 1.15 | AI32: 1.15 | AJ32: 1.15 | AK32: 1.18 | AL32: 1.18 | AM32: 1.17 | AN32: 1.19 | AO32: 1.15 | AP32: 1.20 | AQ32: 1.26 | AR32: 1.22 | AS32: 1.16 | AT32: 1.17 | AU32: 1.17 | AV32: 1.18 | AW32: 1.17 | AX32: 1.17 | AY32: 1.18 | AZ32: 1.18 | BA32: 1.21 | BB32: 1.23 | BC32: 1.21 | BD32: 1.20 | BE32: 1.21 | BF32: 1.19 | BG32: 1.19 | BH32: 1.19 | BI32: 1.19 | BJ32: 1.19 | BK32: 1.18 | BL32: 1.17 | BM32: 1.15 | BN32: 1.10 | BO32: 1.09 | BP32: 1.06 | BQ32: 1.05 | BR32: 1.05 | BS32: 1.06 | BT32: 1.05 | BU32: 1.06 | BV32: 1.05 | BW32: 1.04 | BX32: 1.04 | BY32: 1.06 | BZ32: 1.09 | CA32: 1.09 | CB32: 1.10
A33: 1328 | B33: Dresden, Stadt / Dresden | C33: 1328 | D33: 0.97 | E33: 0.95 | F33: 0.97 | G33: 0.96 | H33: 0.96 | I33: 0.97 | J33: 0.99 | K33: 0.99 | L33: 0.98 | M33: 1.01 | N33: 1.02 | O33: 0.98 | P33: 0.95 | Q33: 0.93 | R33: 0.93 | S33: 0.95 | T33: 0.94 | U33: 0.94 | V33: 0.94 | W33: 0.94 | X33: 0.94 | Y33: 0.91 | Z33: 0.93 | AA33: 0.94 | AB33: 0.95 | AC33: 1.00 | AD33: 0.96 | AE33: 0.92 | AF33: 0.97 | AG33: 0.99 | AH33: 0.99 | AI33: 0.99 | AJ33: 1.00 | AK33: 1.02 | AL33: 1.02 | AM33: 1.02 | AN33: 1.03 | AO33: 1.01 | AP33: 1.05 | AQ33: 1.10 | AR33: 1.07 | AS33: 1.01 | AT33: 1.03 | AU33: 1.02 | AV33: 1.02 | AW33: 1.01 | AX33: 1.01 | AY33: 1.02 | AZ33: 1.02 | BA33: 1.04 | BB33: 1.05 | BC33: 1.04 | BD33: 1.03 | BE33: 1.04 | BF33: 1.02 | BG33: 1.02 | BH33: 1.02 | BI33: 1.02 | BJ33: 1.02 | BK33: 1.02 | BL33: 1.01 | BM33: 0.99 | BN33: 0.96 | BO33: 0.95 | BP33: 0.92 | BQ33: 0.92 | BR33: 0.93 | BS33: 0.93 | BT33: 0.92 | BU33: 0.93 | BV33: 0.92 | BW33: 0.92 | BX33: 0.91 | BY33: 0.93 | BZ33: 0.95 | CA33: 0.95 | CB33: 0.96
A34: 1445 | B34: Meißen / Radebeul | C34: 1445 | D34: 1.11 | E34: 1.09 | F34: 1.11 | G34: 1.10 | H34: 1.10 | I34: 1.11 | J34: 1.14 | K34: 1.14 | L34: 1.13 | M34: 1.17 | N34: 1.17 | O34: 1.13 | P34: 1.08 | Q34: 1.06 | R34: 1.05 | S34: 1.07 | T34: 1.07 | U34: 1.06 | V34: 1.06 | W34: 1.06 | X34: 1.06 | Y34: 1.03 | Z34: 1.05 | AA34: 1.07 | AB34: 1.08 | AC34: 1.15 | AD34: 1.11 | AE34: 1.06 | AF34: 1.12 | AG34: 1.15 | AH34: 1.14 | AI34: 1.14 | AJ34: 1.14 | AK34: 1.17 | AL34: 1.17 | AM34: 1.16 | AN34: 1.18 | AO34: 1.14 | AP34: 1.19 | AQ34: 1.26 | AR34: 1.21 | AS34: 1.15 | AT34: 1.16 | AU34: 1.16 | AV34: 1.17 | AW34: 1.16 | AX34: 1.16 | AY34: 1.17 | AZ34: 1.17 | BA34: 1.20 | BB34: 1.22 | BC34: 1.20 | BD34: 1.20 | BE34: 1.20 | BF34: 1.19 | BG34: 1.18 | BH34: 1.18 | BI34: 1.19 | BJ34: 1.18 | BK34: 1.18 | BL34: 1.17 | BM34: 1.14 | BN34: 1.09 | BO34: 1.09 | BP34: 1.05 | BQ34: 1.04 | BR34: 1.05 | BS34: 1.05 | BT34: 1.04 | BU34: 1.05 | BV34: 1.04 | BW34: 1.04 | BX34: 1.03 | BY34: 1.05 | BZ34: 1.09 | CA34: 1.08 | CB34: 1.10
A35: 1454 | B35: Kamenz / Radeberg | C35: 1454 | D35: 1.01 | E35: 0.98 | F35: 1.00 | G35: 0.99 | H35: 0.99 | I35: 1.01 | J35: 1.03 | K35: 1.03 | L35: 1.02 | M35: 1.05 | N35: 1.06 | O35: 1.02 | P35: 0.99 | Q35: 0.97 | R35: 0.96 | S35: 0.98 | T35: 0.98 | U35: 0.97 | V35: 0.97 | W35: 0.97 | X35: 0.97 | Y35: 0.94 | Z35: 0.96 | AA35: 0.97 | AB35: 0.98 | AC35: 1.04 | AD35: 1.00 | AE35: 0.96 | AF35: 1.01 | AG35: 1.03 | AH35: 1.03 | AI35: 1.04 | AJ35: 1.04 | AK35: 1.07 | AL35: 1.07 | AM35: 1.06 | AN35: 1.07 | AO35: 1.04 | AP35: 1.09 | AQ35: 1.15 | AR35: 1.11 | AS35: 1.06 | AT35: 1.07 | AU35: 1.06 | AV35: 1.07 | AW35: 1.05 | AX35: 1.05 | AY35: 1.06 | AZ35: 1.06 | BA35: 1.09 | BB35: 1.10 | BC35: 1.08 | BD35: 1.08 | BE35: 1.08 | BF35: 1.06 | BG35: 1.06 | BH35: 1.06 | BI35: 1.07 | BJ35: 1.06 | BK35: 1.06 | BL35: 1.05 | BM35: 1.03 | BN35: 0.99 | BO35: 0.99 | BP35: 0.96 | BQ35: 0.95 | BR35: 0.96 | BS35: 0.97 | BT35: 0.96 | BU35: 0.96 | BV35: 0.96 | BW35: 0.95 | BX35: 0.95 | BY35: 0.97 | BZ35: 0.99 | CA35: 0.99 | CB35: 1.00
A36: 1458 | B36: Kamenz / Ottendorf-Okrilla | C36: 1458 | D36: 1.04 | E36: 1.02 | F36: 1.04 | G36: 1.03 | H36: 1.03 | I36: 1.04 | J36: 1.07 | K36: 1.07 | L36: 1.06 | M36: 1.09 | N36: 1.10 | O36: 1.06 | P36: 1.02 | Q36: 1.00 | R36: 0.99 | S36: 1.01 | T36: 1.01 | U36: 1.00 | V36: 1.00 | W36: 1.00 | X36: 1.00 | Y36: 0.97 | Z36: 0.99 | AA36: 1.01 | AB36: 1.02 | AC36: 1.08 | AD36: 1.04 | AE36: 0.99 | AF36: 1.05 | AG36: 1.07 | AH36: 1.07 | AI36: 1.07 | AJ36: 1.08 | AK36: 1.10 | AL36: 1.10 | AM36: 1.10 | AN36: 1.11 | AO36: 1.08 | AP36: 1.13 | AQ36: 1.18 | AR36: 1.14 | AS36: 1.09 | AT36: 1.10 | AU36: 1.10 | AV36: 1.10 | AW36: 1.09 | AX36: 1.09 | AY36: 1.10 | AZ36: 1.10 | BA36: 1.13 | BB36: 1.14 | BC36: 1.12 | BD36: 1.12 | BE36: 1.12 | BF36: 1.11 | BG36: 1.10 | BH36: 1.10 | BI36: 1.11 | BJ36: 1.10 | BK36: 1.10 | BL36: 1.09 | BM36: 1.07 | BN36: 1.03 | BO36: 1.02 | BP36: 0.99 | BQ36: 0.98 | BR36: 0.99 | BS36: 1.00 | BT36: 0.99 | BU36: 1.00 | BV36: 0.99 | BW36: 0.98 | BX36: 0.98 | BY36: 1.00 | BZ36: 1.03 | CA36: 1.03 | CB36: 1.04
A37: 1465 | B37: Meißen / Moritzburg | C37: 1465 | D37: 1.01 | E37: 0.99 | F37: 1.01 | G37: 1.00 | H37: 1.00 | I37: 1.02 | J37: 1.04 | K37: 1.04 | L37: 1.03 | M37: 1.06 | N37: 1.07 | O37: 1.03 | P37: 1.00 | Q37: 0.97 | R37: 0.97 | S37: 0.99 | T37: 0.98 | U37: 0.98 | V37: 0.98 | W37: 0.98 | X37: 0.98 | Y37: 0.95 | Z37: 0.97 | AA37: 0.98 | AB37: 0.99 | AC37: 1.05 | AD37: 1.01 | AE37: 0.97 | AF37: 1.02 | AG37: 1.04 | AH37: 1.04 | AI37: 1.04 | AJ37: 1.05 | AK37: 1.07 | AL37: 1.07 | AM37: 1.07 | AN37: 1.08 | AO37: 1.05 | AP37: 1.10 | AQ37: 1.15 | AR37: 1.11 | AS37: 1.06 | AT37: 1.07 | AU37: 1.07 | AV37: 1.07 | AW37: 1.06 | AX37: 1.06 | AY37: 1.07 | AZ37: 1.07 | BA37: 1.09 | BB37: 1.11 | BC37: 1.09 | BD37: 1.09 | BE37: 1.09 | BF37: 1.07 | BG37: 1.07 | BH37: 1.07 | BI37: 1.08 | BJ37: 1.07 | BK37: 1.07 | BL37: 1.06 | BM37: 1.04 | BN37: 1.00 | BO37: 1.00 | BP37: 0.97 | BQ37: 0.96 | BR37: 0.97 | BS37: 0.97 | BT37: 0.96 | BU37: 0.97 | BV37: 0.96 | BW37: 0.96 | BX37: 0.95 | BY37: 0.97 | BZ37: 1.00 | CA37: 1.00 | CB37: 1.01
A38: 1468 | B38: Meißen / Moritzburg | C38: 1468 | D38: 1.03 | E38: 1.01 | F38: 1.03 | G38: 1.02 | H38: 1.02 | I38: 1.04 | J38: 1.06 | K38: 1.06 | L38: 1.05 | M38: 1.08 | N38: 1.09 | O38: 1.05 | P38: 1.02 | Q38: 0.99 | R38: 0.98 | S38: 1.01 | T38: 1.00 | U38: 1.00 | V38: 1.00 | W38: 1.00 | X38: 1.00 | Y38: 0.96 | Z38: 0.99 | AA38: 1.00 | AB38: 1.01 | AC38: 1.07 | AD38: 1.03 | AE38: 0.99 | AF38: 1.04 | AG38: 1.06 | AH38: 1.06 | AI38: 1.07 | AJ38: 1.07 | AK38: 1.10 | AL38: 1.10 | AM38: 1.09 | AN38: 1.10 | AO38: 1.07 | AP38: 1.12 | AQ38: 1.18 | AR38: 1.13 | AS38: 1.08 | AT38: 1.10 | AU38: 1.09 | AV38: 1.10 | AW38: 1.08 | AX38: 1.08 | AY38: 1.09 | AZ38: 1.09 | BA38: 1.12 | BB38: 1.13 | BC38: 1.11 | BD38: 1.11 | BE38: 1.11 | BF38: 1.09 | BG38: 1.09 | BH38: 1.09 | BI38: 1.10 | BJ38: 1.09 | BK38: 1.09 | BL38: 1.08 | BM38: 1.06 | BN38: 1.02 | BO38: 1.02 | BP38: 0.98 | BQ38: 0.98 | BR38: 0.99 | BS38: 0.99 | BT38: 0.98 | BU38: 0.99 | BV38: 0.98 | BW38: 0.98 | BX38: 0.97 | BY38: 0.99 | BZ38: 1.02 | CA38: 1.02 | CB38: 1.03
A39: 1471 | B39: Meißen / Radeburg | C39: 1471 | D39: 1.05 | E39: 1.03 | F39: 1.05 | G39: 1.04 | H39: 1.04 | I39: 1.06 | J39: 1.08 | K39: 1.08 | L39: 1.07 | M39: 1.11 | N39: 1.11 | O39: 1.07 | P39: 1.04 | Q39: 1.01 | R39: 1.00 | S39: 1.02 | T39: 1.02 | U39: 1.01 | V39: 1.01 | W39: 1.01 | X39: 1.02 | Y39: 0.98 | Z39: 1.00 | AA39: 1.02 | AB39: 1.03 | AC39: 1.09 | AD39: 1.05 | AE39: 1.01 | AF39: 1.06 | AG39: 1.09 | AH39: 1.08 | AI39: 1.09 | AJ39: 1.09 | AK39: 1.12 | AL39: 1.12 | AM39: 1.11 | AN39: 1.13 | AO39: 1.09 | AP39: 1.14 | AQ39: 1.20 | AR39: 1.16 | AS39: 1.11 | AT39: 1.12 | AU39: 1.11 | AV39: 1.12 | AW39: 1.11 | AX39: 1.11 | AY39: 1.12 | AZ39: 1.11 | BA39: 1.14 | BB39: 1.16 | BC39: 1.14 | BD39: 1.13 | BE39: 1.13 | BF39: 1.12 | BG39: 1.12 | BH39: 1.12 | BI39: 1.12 | BJ39: 1.12 | BK39: 1.12 | BL39: 1.11 | BM39: 1.08 | BN39: 1.04 | BO39: 1.04 | BP39: 1.00 | BQ39: 1.00 | BR39: 1.01 | BS39: 1.01 | BT39: 1.00 | BU39: 1.01 | BV39: 1.00 | BW39: 1.00 | BX39: 0.99 | BY39: 1.01 | BZ39: 1.04 | CA39: 1.04 | CB39: 1.05
A40: 1477 | B40: Kamenz / Arnsdorf | C40: 1477 | D40: 1.00 | E40: 0.97 | F40: 0.99 | G40: 0.99 | H40: 0.98 | I40: 1.00 | J40: 1.02 | K40: 1.02 | L40: 1.01 | M40: 1.04 | N40: 1.05 | O40: 1.01 | P40: 0.98 | Q40: 0.96 | R40: 0.95 | S40: 0.97 | T40: 0.97 | U40: 0.96 | V40: 0.96 | W40: 0.96 | X40: 0.97 | Y40: 0.93 | Z40: 0.95 | AA40: 0.97 | AB40: 0.97 | AC40: 1.03 | AD40: 0.99 | AE40: 0.95 | AF40: 1.00 | AG40: 1.02 | AH40: 1.02 | AI40: 1.03 | AJ40: 1.03 | AK40: 1.05 | AL40: 1.06 | AM40: 1.05 | AN40: 1.06 | AO40: 1.04 | AP40: 1.08 | AQ40: 1.13 | AR40: 1.10 | AS40: 1.04 | AT40: 1.06 | AU40: 1.05 | AV40: 1.06 | AW40: 1.04 | AX40: 1.04 | AY40: 1.05 | AZ40: 1.05 | BA40: 1.08 | BB40: 1.09 | BC40: 1.07 | BD40: 1.07 | BE40: 1.07 | BF40: 1.05 | BG40: 1.05 | BH40: 1.05 | BI40: 1.06 | BJ40: 1.05 | BK40: 1.05 | BL40: 1.04 | BM40: 1.02 | BN40: 0.98 | BO40: 0.98 | BP40: 0.95 | BQ40: 0.94 | BR40: 0.95 | BS40: 0.96 | BT40: 0.95 | BU40: 0.96 | BV40: 0.95 | BW40: 0.94 | BX40: 0.94 | BY40: 0.96 | BZ40: 0.98 | CA40: 0.98 | CB40: 0.99
A41: 1558 | B41: Riesa-Großenhain / Großenhain | C41: 1558 | D41: 1.10 | E41: 1.07 | F41: 1.10 | G41: 1.09 | H41: 1.08 | I41: 1.10 | J41: 1.12 | K41: 1.13 | L41: 1.12 | M41: 1.15 | N41: 1.16 | O41: 1.12 | P41: 1.08 | Q41: 1.05 | R41: 1.04 | S41: 1.07 | T41: 1.06 | U41: 1.05 | V41: 1.05 | W41: 1.05 | X41: 1.05 | Y41: 1.02 | Z41: 1.05 | AA41: 1.06 | AB41: 1.07 | AC41: 1.14 | AD41: 1.10 | AE41: 1.05 | AF41: 1.11 | AG41: 1.13 | AH41: 1.13 | AI41: 1.13 | AJ41: 1.13 | AK41: 1.16 | AL41: 1.16 | AM41: 1.15 | AN41: 1.16 | AO41: 1.13 | AP41: 1.18 | AQ41: 1.25 | AR41: 1.20 | AS41: 1.15 | AT41: 1.16 | AU41: 1.16 | AV41: 1.16 | AW41: 1.15 | AX41: 1.15 | AY41: 1.16 | AZ41: 1.16 | BA41: 1.19 | BB41: 1.20 | BC41: 1.19 | BD41: 1.18 | BE41: 1.19 | BF41: 1.17 | BG41: 1.17 | BH41: 1.17 | BI41: 1.17 | BJ41: 1.17 | BK41: 1.17 | BL41: 1.16 | BM41: 1.13 | BN41: 1.08 | BO41: 1.08 | BP41: 1.04 | BQ41: 1.03 | BR41: 1.04 | BS41: 1.04 | BT41: 1.04 | BU41: 1.05 | BV41: 1.04 | BW41: 1.03 | BX41: 1.02 | BY41: 1.05 | BZ41: 1.08 | CA41: 1.08 | CB41: 1.09
A42: 1561 | B42: Riesa-Großenhain / Schönfeld | C42: 1561 | D42: 1.05 | E42: 1.02 | F42: 1.04 | G42: 1.04 | H42: 1.03 | I42: 1.05 | J42: 1.08 | K42: 1.08 | L42: 1.07 | M42: 1.10 | N42: 1.11 | O42: 1.07 | P42: 1.03 | Q42: 1.01 | R42: 1.00 | S42: 1.02 | T42: 1.02 | U42: 1.01 | V42: 1.01 | W42: 1.01 | X42: 1.01 | Y42: 0.98 | Z42: 1.00 | AA42: 1.02 | AB42: 1.03 | AC42: 1.09 | AD42: 1.05 | AE42: 1.00 | AF42: 1.06 | AG42: 1.08 | AH42: 1.08 | AI42: 1.09 | AJ42: 1.09 | AK42: 1.12 | AL42: 1.12 | AM42: 1.11 | AN42: 1.12 | AO42: 1.09 | AP42: 1.14 | AQ42: 1.20 | AR42: 1.15 | AS42: 1.10 | AT42: 1.12 | AU42: 1.11 | AV42: 1.12 | AW42: 1.10 | AX42: 1.10 | AY42: 1.11 | AZ42: 1.11 | BA42: 1.14 | BB42: 1.15 | BC42: 1.13 | BD42: 1.13 | BE42: 1.13 | BF42: 1.11 | BG42: 1.11 | BH42: 1.11 | BI42: 1.12 | BJ42: 1.11 | BK42: 1.11 | BL42: 1.10 | BM42: 1.08 | BN42: 1.04 | BO42: 1.03 | BP42: 1.00 | BQ42: 0.99 | BR42: 1.00 | BS42: 1.01 | BT42: 1.00 | BU42: 1.01 | BV42: 1.00 | BW42: 0.99 | BX42: 0.99 | BY42: 1.01 | BZ42: 1.04 | CA42: 1.04 | CB42: 1.05
A43: 1587 | B43: Riesa-Großenhain / Riesa | C43: 1587 | D43: 1.08 | E43: 1.05 | F43: 1.07 | G43: 1.07 | H43: 1.06 | I43: 1.08 | J43: 1.10 | K43: 1.11 | L43: 1.10 | M43: 1.14 | N43: 1.14 | O43: 1.10 | P43: 1.06 | Q43: 1.03 | R43: 1.03 | S43: 1.05 | T43: 1.04 | U43: 1.04 | V43: 1.04 | W43: 1.04 | X43: 1.04 | Y43: 1.01 | Z43: 1.03 | AA43: 1.04 | AB43: 1.06 | AC43: 1.12 | AD43: 1.08 | AE43: 1.03 | AF43: 1.09 | AG43: 1.11 | AH43: 1.11 | AI43: 1.11 | AJ43: 1.11 | AK43: 1.14 | AL43: 1.14 | AM43: 1.13 | AN43: 1.15 | AO43: 1.12 | AP43: 1.16 | AQ43: 1.23 | AR43: 1.18 | AS43: 1.13 | AT43: 1.14 | AU43: 1.14 | AV43: 1.14 | AW43: 1.13 | AX43: 1.13 | AY43: 1.14 | AZ43: 1.14 | BA43: 1.17 | BB43: 1.18 | BC43: 1.16 | BD43: 1.16 | BE43: 1.16 | BF43: 1.15 | BG43: 1.15 | BH43: 1.15 | BI43: 1.15 | BJ43: 1.15 | BK43: 1.15 | BL43: 1.14 | BM43: 1.11 | BN43: 1.07 | BO43: 1.06 | BP43: 1.03 | BQ43: 1.02 | BR43: 1.03 | BS43: 1.03 | BT43: 1.03 | BU43: 1.03 | BV43: 1.02 | BW43: 1.02 | BX43: 1.01 | BY43: 1.03 | BZ43: 1.07 | CA43: 1.06 | CB43: 1.08
A44: 1589 | B44: Riesa-Großenhain / Riesa | C44: 1589 | D44: 1.09 | E44: 1.06 | F44: 1.09 | G44: 1.08 | H44: 1.07 | I44: 1.09 | J44: 1.12 | K44: 1.12 | L44: 1.11 | M44: 1.15 | N44: 1.16 | O44: 1.11 | P44: 1.07 | Q44: 1.04 | R44: 1.04 | S44: 1.06 | T44: 1.05 | U44: 1.05 | V44: 1.05 | W44: 1.05 | X44: 1.05 | Y44: 1.01 | Z44: 1.04 | AA44: 1.05 | AB44: 1.07 | AC44: 1.13 | AD44: 1.09 | AE44: 1.04 | AF44: 1.10 | AG44: 1.13 | AH44: 1.12 | AI44: 1.13 | AJ44: 1.13 | AK44: 1.16 | AL44: 1.16 | AM44: 1.15 | AN44: 1.16 | AO44: 1.13 | AP44: 1.18 | AQ44: 1.24 | AR44: 1.20 | AS44: 1.14 | AT44: 1.15 | AU44: 1.15 | AV44: 1.16 | AW44: 1.15 | AX44: 1.15 | AY44: 1.16 | AZ44: 1.15 | BA44: 1.18 | BB44: 1.20 | BC44: 1.18 | BD44: 1.17 | BE44: 1.18 | BF44: 1.16 | BG44: 1.16 | BH44: 1.16 | BI44: 1.17 | BJ44: 1.16 | BK44: 1.16 | BL44: 1.15 | BM44: 1.12 | BN44: 1.08 | BO44: 1.07 | BP44: 1.04 | BQ44: 1.03 | BR44: 1.04 | BS44: 1.04 | BT44: 1.04 | BU44: 1.04 | BV44: 1.04 | BW44: 1.03 | BX44: 1.02 | BY44: 1.04 | BZ44: 1.08 | CA44: 1.08 | CB44: 1.09
A45: 1591 | B45: Riesa-Großenhain / Riesa | C45: 1591 | D45: 1.09 | E45: 1.06 | F45: 1.09 | G45: 1.08 | H45: 1.07 | I45: 1.09 | J45: 1.12 | K45: 1.12 | L45: 1.11 | M45: 1.15 | N45: 1.15 | O45: 1.11 | P45: 1.07 | Q45: 1.04 | R45: 1.04 | S45: 1.06 | T45: 1.05 | U45: 1.05 | V45: 1.05 | W45: 1.05 | X45: 1.05 | Y45: 1.01 | Z45: 1.04 | AA45: 1.05 | AB45: 1.07 | AC45: 1.13 | AD45: 1.09 | AE45: 1.04 | AF45: 1.10 | AG45: 1.13 | AH45: 1.12 | AI45: 1.13 | AJ45: 1.13 | AK45: 1.16 | AL45: 1.16 | AM45: 1.15 | AN45: 1.16 | AO45: 1.13 | AP45: 1.18 | AQ45: 1.24 | AR45: 1.19 | AS45: 1.14 | AT45: 1.15 | AU45: 1.15 | AV45: 1.16 | AW45: 1.14 | AX45: 1.15 | AY45: 1.15 | AZ45: 1.15 | BA45: 1.18 | BB45: 1.20 | BC45: 1.18 | BD45: 1.17 | BE45: 1.18 | BF45: 1.16 | BG45: 1.16 | BH45: 1.16 | BI45: 1.16 | BJ45: 1.16 | BK45: 1.16 | BL45: 1.15 | BM45: 1.12 | BN45: 1.08 | BO45: 1.07 | BP45: 1.04 | BQ45: 1.03 | BR45: 1.04 | BS45: 1.04 | BT45: 1.04 | BU45: 1.04 | BV45: 1.03 | BW45: 1.03 | BX45: 1.02 | BY45: 1.04 | BZ45: 1.08 | CA45: 1.08 | CB45: 1.09
A46: 1594 | B46: Riesa-Großenhain / Hirschstein | C46: 1594 | D46: 1.06 | E46: 1.04 | F46: 1.06 | G46: 1.05 | H46: 1.05 | I46: 1.07 | J46: 1.09 | K46: 1.09 | L46: 1.09 | M46: 1.12 | N46: 1.13 | O46: 1.09 | P46: 1.05 | Q46: 1.02 | R46: 1.02 | S46: 1.04 | T46: 1.03 | U46: 1.03 | V46: 1.03 | W46: 1.03 | X46: 1.03 | Y46: 0.99 | Z46: 1.02 | AA46: 1.03 | AB46: 1.04 | AC46: 1.11 | AD46: 1.07 | AE46: 1.02 | AF46: 1.08 | AG46: 1.10 | AH46: 1.10 | AI46: 1.10 | AJ46: 1.11 | AK46: 1.14 | AL46: 1.13 | AM46: 1.12 | AN46: 1.14 | AO46: 1.11 | AP46: 1.15 | AQ46: 1.21 | AR46: 1.17 | AS46: 1.12 | AT46: 1.13 | AU46: 1.13 | AV46: 1.13 | AW46: 1.12 | AX46: 1.12 | AY46: 1.13 | AZ46: 1.13 | BA46: 1.15 | BB46: 1.17 | BC46: 1.15 | BD46: 1.15 | BE46: 1.15 | BF46: 1.13 | BG46: 1.13 | BH46: 1.13 | BI46: 1.14 | BJ46: 1.13 | BK46: 1.13 | BL46: 1.12 | BM46: 1.10 | BN46: 1.06 | BO46: 1.05 | BP46: 1.02 | BQ46: 1.01 | BR46: 1.02 | BS46: 1.03 | BT46: 1.02 | BU46: 1.03 | BV46: 1.02 | BW46: 1.01 | BX46: 1.00 | BY46: 1.03 | BZ46: 1.06 | CA46: 1.06 | CB46: 1.07
A47: 1609 | B47: Riesa-Großenhain / Gröditz | C47: 1609 | D47: 1.08 | E47: 1.05 | F47: 1.07 | G47: 1.06 | H47: 1.06 | I47: 1.08 | J47: 1.11 | K47: 1.11 | L47: 1.10 | M47: 1.14 | N47: 1.15 | O47: 1.10 | P47: 1.06 | Q47: 1.04 | R47: 1.03 | S47: 1.05 | T47: 1.05 | U47: 1.04 | V47: 1.04 | W47: 1.04 | X47: 1.04 | Y47: 1.01 | Z47: 1.03 | AA47: 1.05 | AB47: 1.06 | AC47: 1.12 | AD47: 1.08 | AE47: 1.03 | AF47: 1.09 | AG47: 1.12 | AH47: 1.11 | AI47: 1.12 | AJ47: 1.12 | AK47: 1.15 | AL47: 1.15 | AM47: 1.14 | AN47: 1.15 | AO47: 1.12 | AP47: 1.17 | AQ47: 1.23 | AR47: 1.19 | AS47: 1.14 | AT47: 1.15 | AU47: 1.14 | AV47: 1.15 | AW47: 1.14 | AX47: 1.14 | AY47: 1.15 | AZ47: 1.14 | BA47: 1.17 | BB47: 1.19 | BC47: 1.17 | BD47: 1.16 | BE47: 1.16 | BF47: 1.15 | BG47: 1.15 | BH47: 1.15 | BI47: 1.15 | BJ47: 1.15 | BK47: 1.15 | BL47: 1.14 | BM47: 1.11 | BN47: 1.07 | BO47: 1.06 | BP47: 1.03 | BQ47: 1.02 | BR47: 1.03 | BS47: 1.04 | BT47: 1.03 | BU47: 1.04 | BV47: 1.03 | BW47: 1.02 | BX47: 1.02 | BY47: 1.04 | BZ47: 1.07 | CA47: 1.07 | CB47: 1.08
A48: 1612 | B48: Riesa-Großenhain / Glaubitz | C48: 1612 | D48: 1.08 | E48: 1.06 | F48: 1.08 | G48: 1.07 | H48: 1.07 | I48: 1.09 | J48: 1.11 | K48: 1.11 | L48: 1.11 | M48: 1.14 | N48: 1.15 | O48: 1.11 | P48: 1.07 | Q48: 1.04 | R48: 1.03 | S48: 1.06 | T48: 1.05 | U48: 1.04 | V48: 1.04 | W48: 1.04 | X48: 1.04 | Y48: 1.01 | Z48: 1.03 | AA48: 1.05 | AB48: 1.06 | AC48: 1.13 | AD48: 1.09 | AE48: 1.04 | AF48: 1.10 | AG48: 1.12 | AH48: 1.12 | AI48: 1.12 | AJ48: 1.12 | AK48: 1.15 | AL48: 1.15 | AM48: 1.14 | AN48: 1.16 | AO48: 1.13 | AP48: 1.17 | AQ48: 1.23 | AR48: 1.19 | AS48: 1.14 | AT48: 1.15 | AU48: 1.15 | AV48: 1.15 | AW48: 1.14 | AX48: 1.14 | AY48: 1.15 | AZ48: 1.15 | BA48: 1.17 | BB48: 1.19 | BC48: 1.17 | BD48: 1.17 | BE48: 1.17 | BF48: 1.16 | BG48: 1.16 | BH48: 1.15 | BI48: 1.16 | BJ48: 1.15 | BK48: 1.15 | BL48: 1.15 | BM48: 1.12 | BN48: 1.07 | BO48: 1.07 | BP48: 1.03 | BQ48: 1.03 | BR48: 1.03 | BS48: 1.04 | BT48: 1.03 | BU48: 1.04 | BV48: 1.03 | BW48: 1.03 | BX48: 1.02 | BY48: 1.04 | BZ48: 1.07 | CA48: 1.07 | CB48: 1.08
A49: 1616 | B49: Riesa-Großenhain / Strehla | C49: 1616 | D49: 1.06 | E49: 1.04 | F49: 1.06 | G49: 1.05 | H49: 1.05 | I49: 1.07 | J49: 1.09 | K49: 1.10 | L49: 1.09 | M49: 1.12 | N49: 1.13 | O49: 1.09 | P49: 1.05 | Q49: 1.03 | R49: 1.02 | S49: 1.04 | T49: 1.03 | U49: 1.03 | V49: 1.03 | W49: 1.03 | X49: 1.03 | Y49: 1.00 | Z49: 1.02 | AA49: 1.03 | AB49: 1.05 | AC49: 1.11 | AD49: 1.07 | AE49: 1.02 | AF49: 1.08 | AG49: 1.10 | AH49: 1.10 | AI49: 1.10 | AJ49: 1.11 | AK49: 1.14 | AL49: 1.13 | AM49: 1.12 | AN49: 1.14 | AO49: 1.11 | AP49: 1.15 | AQ49: 1.21 | AR49: 1.17 | AS49: 1.12 | AT49: 1.13 | AU49: 1.13 | AV49: 1.13 | AW49: 1.12 | AX49: 1.12 | AY49: 1.13 | AZ49: 1.13 | BA49: 1.15 | BB49: 1.17 | BC49: 1.15 | BD49: 1.15 | BE49: 1.15 | BF49: 1.13 | BG49: 1.13 | BH49: 1.13 | BI49: 1.14 | BJ49: 1.13 | BK49: 1.13 | BL49: 1.13 | BM49: 1.10 | BN49: 1.06 | BO49: 1.05 | BP49: 1.02 | BQ49: 1.01 | BR49: 1.02 | BS49: 1.03 | BT49: 1.02 | BU49: 1.03 | BV49: 1.02 | BW49: 1.01 | BX49: 1.01 | BY49: 1.03 | BZ49: 1.06 | CA49: 1.06 | CB49: 1.07
A50: 1619 | B50: Riesa-Großenhain / Röderaue | C50: 1619 | D50: 1.09 | E50: 1.06 | F50: 1.08 | G50: 1.07 | H50: 1.07 | I50: 1.09 | J50: 1.12 | K50: 1.12 | L50: 1.11 | M50: 1.15 | N50: 1.15 | O50: 1.11 | P50: 1.07 | Q50: 1.04 | R50: 1.04 | S50: 1.06 | T50: 1.05 | U50: 1.05 | V50: 1.05 | W50: 1.05 | X50: 1.05 | Y50: 1.01 | Z50: 1.04 | AA50: 1.05 | AB50: 1.07 | AC50: 1.13 | AD50: 1.09 | AE50: 1.04 | AF50: 1.10 | AG50: 1.13 | AH50: 1.12 | AI50: 1.13 | AJ50: 1.13 | AK50: 1.16 | AL50: 1.15 | AM50: 1.14 | AN50: 1.16 | AO50: 1.13 | AP50: 1.18 | AQ50: 1.24 | AR50: 1.19 | AS50: 1.14 | AT50: 1.15 | AU50: 1.15 | AV50: 1.15 | AW50: 1.14 | AX50: 1.14 | AY50: 1.15 | AZ50: 1.15 | BA50: 1.18 | BB50: 1.20 | BC50: 1.18 | BD50: 1.17 | BE50: 1.17 | BF50: 1.16 | BG50: 1.16 | BH50: 1.16 | BI50: 1.16 | BJ50: 1.16 | BK50: 1.16 | BL50: 1.15 | BM50: 1.12 | BN50: 1.08 | BO50: 1.07 | BP50: 1.04 | BQ50: 1.03 | BR50: 1.04 | BS50: 1.04 | BT50: 1.04 | BU50: 1.04 | BV50: 1.03 | BW50: 1.03 | BX50: 1.02 | BY50: 1.04 | BZ50: 1.08 | CA50: 1.08 | CB50: 1.09
A51: 1623 | B51: Meißen / Lommatzsch | C51: 1623 | D51: 1.03 | E51: 1.01 | F51: 1.03 | G51: 1.02 | H51: 1.02 | I51: 1.03 | J51: 1.05 | K51: 1.06 | L51: 1.05 | M51: 1.08 | N51: 1.09 | O51: 1.05 | P51: 1.02 | Q51: 0.99 | R51: 0.98 | S51: 1.01 | T51: 1.00 | U51: 1.00 | V51: 1.00 | W51: 1.00 | X51: 1.00 | Y51: 0.96 | Z51: 0.99 | AA51: 1.00 | AB51: 1.01 | AC51: 1.07 | AD51: 1.03 | AE51: 0.99 | AF51: 1.04 | AG51: 1.06 | AH51: 1.06 | AI51: 1.06 | AJ51: 1.07 | AK51: 1.10 | AL51: 1.10 | AM51: 1.09 | AN51: 1.10 | AO51: 1.07 | AP51: 1.12 | AQ51: 1.17 | AR51: 1.13 | AS51: 1.08 | AT51: 1.09 | AU51: 1.09 | AV51: 1.09 | AW51: 1.08 | AX51: 1.08 | AY51: 1.09 | AZ51: 1.09 | BA51: 1.11 | BB51: 1.13 | BC51: 1.11 | BD51: 1.11 | BE51: 1.11 | BF51: 1.09 | BG51: 1.09 | BH51: 1.09 | BI51: 1.10 | BJ51: 1.09 | BK51: 1.09 | BL51: 1.09 | BM51: 1.06 | BN51: 1.02 | BO51: 1.02 | BP51: 0.99 | BQ51: 0.98 | BR51: 0.99 | BS51: 0.99 | BT51: 0.98 | BU51: 0.99 | BV51: 0.98 | BW51: 0.98 | BX51: 0.97 | BY51: 0.99 | BZ51: 1.02 | CA51: 1.02 | CB51: 1.03
A52: 1640 | B52: Meißen / Coswig | C52: 1640 | D52: 1.12 | E52: 1.09 | F52: 1.12 | G52: 1.11 | H52: 1.10 | I52: 1.12 | J52: 1.14 | K52: 1.15 | L52: 1.14 | M52: 1.17 | N52: 1.18 | O52: 1.14 | P52: 1.09 | Q52: 1.06 | R52: 1.05 | S52: 1.08 | T52: 1.07 | U52: 1.07 | V52: 1.07 | W52: 1.06 | X52: 1.07 | Y52: 1.03 | Z52: 1.06 | AA52: 1.08 | AB52: 1.09 | AC52: 1.16 | AD52: 1.12 | AE52: 1.06 | AF52: 1.13 | AG52: 1.15 | AH52: 1.15 | AI52: 1.15 | AJ52: 1.15 | AK52: 1.18 | AL52: 1.18 | AM52: 1.17 | AN52: 1.18 | AO52: 1.15 | AP52: 1.20 | AQ52: 1.26 | AR52: 1.22 | AS52: 1.16 | AT52: 1.17 | AU52: 1.17 | AV52: 1.18 | AW52: 1.17 | AX52: 1.17 | AY52: 1.18 | AZ52: 1.18 | BA52: 1.21 | BB52: 1.23 | BC52: 1.21 | BD52: 1.20 | BE52: 1.21 | BF52: 1.19 | BG52: 1.19 | BH52: 1.19 | BI52: 1.19 | BJ52: 1.19 | BK52: 1.19 | BL52: 1.18 | BM52: 1.15 | BN52: 1.10 | BO52: 1.10 | BP52: 1.06 | BQ52: 1.05 | BR52: 1.05 | BS52: 1.06 | BT52: 1.05 | BU52: 1.06 | BV52: 1.05 | BW52: 1.04 | BX52: 1.04 | BY52: 1.06 | BZ52: 1.09 | CA52: 1.09 | CB52: 1.10
A53: 1662 | B53: Meißen / Meißen | C53: 1662 | D53: 1.11 | E53: 1.09 | F53: 1.11 | G53: 1.10 | H53: 1.10 | I53: 1.12 | J53: 1.14 | K53: 1.14 | L53: 1.13 | M53: 1.17 | N53: 1.18 | O53: 1.13 | P53: 1.09 | Q53: 1.06 | R53: 1.05 | S53: 1.08 | T53: 1.07 | U53: 1.07 | V53: 1.06 | W53: 1.06 | X53: 1.07 | Y53: 1.03 | Z53: 1.06 | AA53: 1.07 | AB53: 1.09 | AC53: 1.15 | AD53: 1.11 | AE53: 1.06 | AF53: 1.12 | AG53: 1.15 | AH53: 1.15 | AI53: 1.15 | AJ53: 1.15 | AK53: 1.18 | AL53: 1.17 | AM53: 1.17 | AN53: 1.18 | AO53: 1.15 | AP53: 1.20 | AQ53: 1.26 | AR53: 1.21 | AS53: 1.16 | AT53: 1.17 | AU53: 1.17 | AV53: 1.17 | AW53: 1.17 | AX53: 1.17 | AY53: 1.18 | AZ53: 1.17 | BA53: 1.20 | BB53: 1.22 | BC53: 1.20 | BD53: 1.20 | BE53: 1.20 | BF53: 1.19 | BG53: 1.19 | BH53: 1.18 | BI53: 1.19 | BJ53: 1.18 | BK53: 1.18 | BL53: 1.17 | BM53: 1.14 | BN53: 1.10 | BO53: 1.09 | BP53: 1.05 | BQ53: 1.04 | BR53: 1.05 | BS53: 1.06 | BT53: 1.05 | BU53: 1.06 | BV53: 1.05 | BW53: 1.04 | BX53: 1.04 | BY53: 1.06 | BZ53: 1.09 | CA53: 1.09 | CB53: 1.10
A54: 1665 | B54: Meißen / Triebischtal | C54: 1665 | D54: 1.03 | E54: 1.01 | F54: 1.03 | G54: 1.02 | H54: 1.02 | I54: 1.04 | J54: 1.06 | K54: 1.06 | L54: 1.05 | M54: 1.08 | N54: 1.09 | O54: 1.05 | P54: 1.02 | Q54: 0.99 | R54: 0.98 | S54: 1.01 | T54: 1.00 | U54: 1.00 | V54: 1.00 | W54: 1.00 | X54: 1.00 | Y54: 0.97 | Z54: 0.99 | AA54: 1.00 | AB54: 1.01 | AC54: 1.07 | AD54: 1.03 | AE54: 0.99 | AF54: 1.04 | AG54: 1.06 | AH54: 1.06 | AI54: 1.06 | AJ54: 1.07 | AK54: 1.10 | AL54: 1.09 | AM54: 1.09 | AN54: 1.10 | AO54: 1.07 | AP54: 1.12 | AQ54: 1.17 | AR54: 1.13 | AS54: 1.08 | AT54: 1.09 | AU54: 1.09 | AV54: 1.09 | AW54: 1.08 | AX54: 1.08 | AY54: 1.09 | AZ54: 1.09 | BA54: 1.11 | BB54: 1.13 | BC54: 1.11 | BD54: 1.11 | BE54: 1.11 | BF54: 1.10 | BG54: 1.09 | BH54: 1.09 | BI54: 1.10 | BJ54: 1.09 | BK54: 1.09 | BL54: 1.09 | BM54: 1.06 | BN54: 1.02 | BO54: 1.02 | BP54: 0.99 | BQ54: 0.98 | BR54: 0.99 | BS54: 0.99 | BT54: 0.98 | BU54: 0.99 | BV54: 0.98 | BW54: 0.98 | BX54: 0.97 | BY54: 0.99 | BZ54: 1.02 | CA54: 1.02 | CB54: 1.03
A55: 1683 | B55: Meißen / Heynitz | C55: 1683 | D55: 1.00 | E55: 0.98 | F55: 1.00 | G55: 0.99 | H55: 0.98 | I55: 1.00 | J55: 1.02 | K55: 1.02 | L55: 1.01 | M55: 1.04 | N55: 1.05 | O55: 1.01 | P55: 0.98 | Q55: 0.96 | R55: 0.95 | S55: 0.97 | T55: 0.97 | U55: 0.97 | V55: 0.97 | W55: 0.97 | X55: 0.97 | Y55: 0.94 | Z55: 0.96 | AA55: 0.97 | AB55: 0.98 | AC55: 1.03 | AD55: 0.99 | AE55: 0.95 | AF55: 1.00 | AG55: 1.02 | AH55: 1.02 | AI55: 1.02 | AJ55: 1.03 | AK55: 1.05 | AL55: 1.05 | AM55: 1.05 | AN55: 1.06 | AO55: 1.03 | AP55: 1.08 | AQ55: 1.13 | AR55: 1.10 | AS55: 1.04 | AT55: 1.06 | AU55: 1.05 | AV55: 1.05 | AW55: 1.04 | AX55: 1.04 | AY55: 1.05 | AZ55: 1.05 | BA55: 1.07 | BB55: 1.08 | BC55: 1.07 | BD55: 1.07 | BE55: 1.07 | BF55: 1.05 | BG55: 1.05 | BH55: 1.05 | BI55: 1.06 | BJ55: 1.05 | BK55: 1.05 | BL55: 1.05 | BM55: 1.02 | BN55: 0.99 | BO55: 0.98 | BP55: 0.95 | BQ55: 0.95 | BR55: 0.96 | BS55: 0.96 | BT55: 0.95 | BU55: 0.96 | BV55: 0.95 | BW55: 0.94 | BX55: 0.94 | BY55: 0.96 | BZ55: 0.98 | CA55: 0.98 | CB55: 0.99
A56: 1689 | B56: Meißen / Weinböhla | C56: 1689 | D56: 1.09 | E56: 1.06 | F56: 1.09 | G56: 1.08 | H56: 1.07 | I56: 1.09 | J56: 1.11 | K56: 1.12 | L56: 1.11 | M56: 1.14 | N56: 1.15 | O56: 1.11 | P56: 1.07 | Q56: 1.04 | R56: 1.03 | S56: 1.06 | T56: 1.05 | U56: 1.04 | V56: 1.04 | W56: 1.04 | X56: 1.04 | Y56: 1.01 | Z56: 1.03 | AA56: 1.05 | AB56: 1.06 | AC56: 1.13 | AD56: 1.09 | AE56: 1.04 | AF56: 1.10 | AG56: 1.12 | AH56: 1.12 | AI56: 1.12 | AJ56: 1.12 | AK56: 1.15 | AL56: 1.15 | AM56: 1.14 | AN56: 1.16 | AO56: 1.12 | AP56: 1.17 | AQ56: 1.23 | AR56: 1.19 | AS56: 1.14 | AT56: 1.15 | AU56: 1.15 | AV56: 1.15 | AW56: 1.14 | AX56: 1.14 | AY56: 1.15 | AZ56: 1.15 | BA56: 1.18 | BB56: 1.19 | BC56: 1.17 | BD56: 1.17 | BE56: 1.17 | BF56: 1.16 | BG56: 1.16 | BH56: 1.16 | BI56: 1.16 | BJ56: 1.16 | BK56: 1.15 | BL56: 1.15 | BM56: 1.12 | BN56: 1.07 | BO56: 1.07 | BP56: 1.03 | BQ56: 1.02 | BR56: 1.03 | BS56: 1.04 | BT56: 1.03 | BU56: 1.04 | BV56: 1.03 | BW56: 1.02 | BX56: 1.02 | BY56: 1.04 | BZ56: 1.07 | CA56: 1.07 | CB56: 1.08
A57: 1705 | B57: Weißeritzkreis / Freital | C57: 1705 | D57: 1.08 | E57: 1.05 | F57: 1.08 | G57: 1.07 | H57: 1.06 | I57: 1.08 | J57: 1.10 | K57: 1.10 | L57: 1.09 | M57: 1.13 | N57: 1.13 | O57: 1.09 | P57: 1.05 | Q57: 1.03 | R57: 1.02 | S57: 1.04 | T57: 1.03 | U57: 1.03 | V57: 1.03 | W57: 1.03 | X57: 1.03 | Y57: 1.00 | Z57: 1.02 | AA57: 1.04 | AB57: 1.05 | AC57: 1.11 | AD57: 1.07 | AE57: 1.02 | AF57: 1.08 | AG57: 1.11 | AH57: 1.10 | AI57: 1.10 | AJ57: 1.11 | AK57: 1.13 | AL57: 1.13 | AM57: 1.13 | AN57: 1.14 | AO57: 1.11 | AP57: 1.16 | AQ57: 1.22 | AR57: 1.17 | AS57: 1.12 | AT57: 1.13 | AU57: 1.13 | AV57: 1.13 | AW57: 1.12 | AX57: 1.12 | AY57: 1.13 | AZ57: 1.13 | BA57: 1.16 | BB57: 1.18 | BC57: 1.16 | BD57: 1.16 | BE57: 1.16 | BF57: 1.15 | BG57: 1.14 | BH57: 1.14 | BI57: 1.15 | BJ57: 1.14 | BK57: 1.14 | BL57: 1.13 | BM57: 1.10 | BN57: 1.06 | BO57: 1.06 | BP57: 1.02 | BQ57: 1.01 | BR57: 1.02 | BS57: 1.02 | BT57: 1.01 | BU57: 1.02 | BV57: 1.01 | BW57: 1.01 | BX57: 1.00 | BY57: 1.02 | BZ57: 1.05 | CA57: 1.05 | CB57: 1.06
A58: 1723 | B58: Weißeritzkreis / Wilsdruff | C58: 1723 | D58: 0.97 | E58: 0.95 | F58: 0.97 | G58: 0.96 | H58: 0.96 | I58: 0.97 | J58: 0.99 | K58: 0.99 | L58: 0.98 | M58: 1.01 | N58: 1.02 | O58: 0.99 | P58: 0.95 | Q58: 0.93 | R58: 0.93 | S58: 0.95 | T58: 0.94 | U58: 0.94 | V58: 0.94 | W58: 0.94 | X58: 0.94 | Y58: 0.91 | Z58: 0.93 | AA58: 0.94 | AB58: 0.95 | AC58: 1.00 | AD58: 0.96 | AE58: 0.92 | AF58: 0.97 | AG58: 0.99 | AH58: 0.99 | AI58: 1.00 | AJ58: 1.00 | AK58: 1.03 | AL58: 1.03 | AM58: 1.03 | AN58: 1.04 | AO58: 1.01 | AP58: 1.05 | AQ58: 1.10 | AR58: 1.07 | AS58: 1.02 | AT58: 1.03 | AU58: 1.02 | AV58: 1.03 | AW58: 1.01 | AX58: 1.01 | AY58: 1.02 | AZ58: 1.02 | BA58: 1.04 | BB58: 1.05 | BC58: 1.04 | BD58: 1.04 | BE58: 1.04 | BF58: 1.02 | BG58: 1.02 | BH58: 1.02 | BI58: 1.03 | BJ58: 1.02 | BK58: 1.02 | BL58: 1.01 | BM58: 0.99 | BN58: 0.96 | BO58: 0.96 | BP58: 0.93 | BQ58: 0.92 | BR58: 0.93 | BS58: 0.94 | BT58: 0.93 | BU58: 0.93 | BV58: 0.93 | BW58: 0.92 | BX58: 0.91 | BY58: 0.93 | BZ58: 0.96 | CA58: 0.96 | CB58: 0.96
A59: 1728 | B59: Weißeritzkreis / Bannewitz | C59: 1728 | D59: 0.99 | E59: 0.97 | F59: 0.99 | G59: 0.98 | H59: 0.98 | I59: 0.99 | J59: 1.01 | K59: 1.01 | L59: 1.00 | M59: 1.04 | N59: 1.04 | O59: 1.01 | P59: 0.97 | Q59: 0.95 | R59: 0.95 | S59: 0.97 | T59: 0.96 | U59: 0.96 | V59: 0.96 | W59: 0.96 | X59: 0.96 | Y59: 0.93 | Z59: 0.95 | AA59: 0.96 | AB59: 0.97 | AC59: 1.02 | AD59: 0.99 | AE59: 0.94 | AF59: 1.00 | AG59: 1.02 | AH59: 1.01 | AI59: 1.02 | AJ59: 1.02 | AK59: 1.05 | AL59: 1.05 | AM59: 1.05 | AN59: 1.06 | AO59: 1.03 | AP59: 1.08 | AQ59: 1.13 | AR59: 1.09 | AS59: 1.04 | AT59: 1.05 | AU59: 1.05 | AV59: 1.05 | AW59: 1.04 | AX59: 1.04 | AY59: 1.04 | AZ59: 1.04 | BA59: 1.07 | BB59: 1.08 | BC59: 1.06 | BD59: 1.06 | BE59: 1.06 | BF59: 1.05 | BG59: 1.05 | BH59: 1.04 | BI59: 1.05 | BJ59: 1.05 | BK59: 1.05 | BL59: 1.04 | BM59: 1.01 | BN59: 0.98 | BO59: 0.98 | BP59: 0.95 | BQ59: 0.94 | BR59: 0.95 | BS59: 0.95 | BT59: 0.94 | BU59: 0.95 | BV59: 0.94 | BW59: 0.94 | BX59: 0.93 | BY59: 0.95 | BZ59: 0.98 | CA59: 0.98 | CB59: 0.98
A60: 1731 | B60: Weißeritzkreis / Kreischa | C60: 1731 | D60: 1.02 | E60: 1.00 | F60: 1.02 | G60: 1.01 | H60: 1.01 | I60: 1.03 | J60: 1.05 | K60: 1.05 | L60: 1.04 | M60: 1.07 | N60: 1.08 | O60: 1.04 | P60: 1.01 | Q60: 0.98 | R60: 0.97 | S60: 1.00 | T60: 0.99 | U60: 0.99 | V60: 0.99 | W60: 0.99 | X60: 0.99 | Y60: 0.96 | Z60: 0.98 | AA60: 0.99 | AB60: 1.00 | AC60: 1.06 | AD60: 1.02 | AE60: 0.98 | AF60: 1.03 | AG60: 1.06 | AH60: 1.05 | AI60: 1.06 | AJ60: 1.06 | AK60: 1.09 | AL60: 1.09 | AM60: 1.08 | AN60: 1.10 | AO60: 1.07 | AP60: 1.11 | AQ60: 1.17 | AR60: 1.12 | AS60: 1.07 | AT60: 1.09 | AU60: 1.08 | AV60: 1.09 | AW60: 1.07 | AX60: 1.07 | AY60: 1.08 | AZ60: 1.08 | BA60: 1.11 | BB60: 1.12 | BC60: 1.10 | BD60: 1.10 | BE60: 1.10 | BF60: 1.09 | BG60: 1.08 | BH60: 1.08 | BI60: 1.09 | BJ60: 1.09 | BK60: 1.08 | BL60: 1.07 | BM60: 1.05 | BN60: 1.01 | BO60: 1.01 | BP60: 0.98 | BQ60: 0.97 | BR60: 0.98 | BS60: 0.98 | BT60: 0.97 | BU60: 0.98 | BV60: 0.97 | BW60: 0.97 | BX60: 0.96 | BY60: 0.98 | BZ60: 1.01 | CA60: 1.01 | CB60: 1.02
A61: 1734 | B61: Weißeritzkreis / Rabenau | C61: 1734 | D61: 0.98 | E61: 0.96 | F61: 0.98 | G61: 0.97 | H61: 0.97 | I61: 0.98 | J61: 1.00 | K61: 1.00 | L61: 0.99 | M61: 1.02 | N61: 1.03 | O61: 0.99 | P61: 0.96 | Q61: 0.94 | R61: 0.93 | S61: 0.95 | T61: 0.95 | U61: 0.95 | V61: 0.95 | W61: 0.95 | X61: 0.95 | Y61: 0.92 | Z61: 0.94 | AA61: 0.95 | AB61: 0.96 | AC61: 1.01 | AD61: 0.97 | AE61: 0.93 | AF61: 0.98 | AG61: 1.00 | AH61: 1.00 | AI61: 1.01 | AJ61: 1.01 | AK61: 1.04 | AL61: 1.04 | AM61: 1.03 | AN61: 1.04 | AO61: 1.02 | AP61: 1.06 | AQ61: 1.11 | AR61: 1.08 | AS61: 1.02 | AT61: 1.04 | AU61: 1.03 | AV61: 1.03 | AW61: 1.02 | AX61: 1.02 | AY61: 1.03 | AZ61: 1.03 | BA61: 1.05 | BB61: 1.06 | BC61: 1.05 | BD61: 1.05 | BE61: 1.05 | BF61: 1.03 | BG61: 1.03 | BH61: 1.03 | BI61: 1.04 | BJ61: 1.03 | BK61: 1.03 | BL61: 1.02 | BM61: 1.00 | BN61: 0.97 | BO61: 0.96 | BP61: 0.94 | BQ61: 0.93 | BR61: 0.94 | BS61: 0.94 | BT61: 0.93 | BU61: 0.94 | BV61: 0.93 | BW61: 0.93 | BX61: 0.92 | BY61: 0.94 | BZ61: 0.96 | CA61: 0.96 | CB61: 0.97
A62: 1737 | B62: Weißeritzkreis / Tharandt | C62: 1737 | D62: 1.00 | E62: 0.98 | F62: 1.00 | G62: 1.00 | H62: 0.99 | I62: 1.01 | J62: 1.03 | K62: 1.03 | L62: 1.02 | M62: 1.05 | N62: 1.06 | O62: 1.02 | P62: 0.99 | Q62: 0.97 | R62: 0.96 | S62: 0.98 | T62: 0.97 | U62: 0.97 | V62: 0.97 | W62: 0.97 | X62: 0.97 | Y62: 0.94 | Z62: 0.96 | AA62: 0.97 | AB62: 0.98 | AC62: 1.04 | AD62: 1.00 | AE62: 0.96 | AF62: 1.01 | AG62: 1.03 | AH62: 1.03 | AI62: 1.04 | AJ62: 1.04 | AK62: 1.07 | AL62: 1.07 | AM62: 1.06 | AN62: 1.08 | AO62: 1.05 | AP62: 1.09 | AQ62: 1.14 | AR62: 1.10 | AS62: 1.05 | AT62: 1.07 | AU62: 1.06 | AV62: 1.06 | AW62: 1.05 | AX62: 1.05 | AY62: 1.06 | AZ62: 1.06 | BA62: 1.08 | BB62: 1.10 | BC62: 1.08 | BD62: 1.08 | BE62: 1.08 | BF62: 1.06 | BG62: 1.06 | BH62: 1.06 | BI62: 1.07 | BJ62: 1.06 | BK62: 1.06 | BL62: 1.05 | BM62: 1.03 | BN62: 0.99 | BO62: 0.99 | BP62: 0.96 | BQ62: 0.95 | BR62: 0.96 | BS62: 0.97 | BT62: 0.96 | BU62: 0.96 | BV62: 0.96 | BW62: 0.95 | BX62: 0.95 | BY62: 0.97 | BZ62: 0.99 | CA62: 0.99 | CB62: 1.00
A63: 1738 | B63: Weißeritzkreis / Dorfhain | C63: 1738 | D63: 0.97 | E63: 0.95 | F63: 0.97 | G63: 0.96 | H63: 0.96 | I63: 0.97 | J63: 0.99 | K63: 0.99 | L63: 0.98 | M63: 1.01 | N63: 1.02 | O63: 0.98 | P63: 0.95 | Q63: 0.93 | R63: 0.93 | S63: 0.94 | T63: 0.94 | U63: 0.94 | V63: 0.94 | W63: 0.94 | X63: 0.94 | Y63: 0.91 | Z63: 0.93 | AA63: 0.94 | AB63: 0.95 | AC63: 1.00 | AD63: 0.96 | AE63: 0.92 | AF63: 0.97 | AG63: 0.99 | AH63: 0.99 | AI63: 0.99 | AJ63: 1.00 | AK63: 1.02 | AL63: 1.02 | AM63: 1.02 | AN63: 1.03 | AO63: 1.01 | AP63: 1.05 | AQ63: 1.10 | AR63: 1.06 | AS63: 1.01 | AT63: 1.03 | AU63: 1.02 | AV63: 1.02 | AW63: 1.01 | AX63: 1.01 | AY63: 1.02 | AZ63: 1.02 | BA63: 1.04 | BB63: 1.05 | BC63: 1.03 | BD63: 1.03 | BE63: 1.04 | BF63: 1.02 | BG63: 1.02 | BH63: 1.02 | BI63: 1.02 | BJ63: 1.02 | BK63: 1.02 | BL63: 1.01 | BM63: 0.99 | BN63: 0.96 | BO63: 0.95 | BP63: 0.93 | BQ63: 0.92 | BR63: 0.93 | BS63: 0.93 | BT63: 0.92 | BU63: 0.93 | BV63: 0.92 | BW63: 0.92 | BX63: 0.91 | BY63: 0.93 | BZ63: 0.95 | CA63: 0.95 | CB63: 0.96
A64: 1744 | B64: Weißeritzkreis / Dippoldiswalde | C64: 1744 | D64: 0.96 | E64: 0.94 | F64: 0.96 | G64: 0.95 | H64: 0.95 | I64: 0.96 | J64: 0.98 | K64: 0.98 | L64: 0.97 | M64: 1.00 | N64: 1.00 | O64: 0.97 | P64: 0.94 | Q64: 0.92 | R64: 0.92 | S64: 0.94 | T64: 0.93 | U64: 0.93 | V64: 0.93 | W64: 0.93 | X64: 0.93 | Y64: 0.90 | Z64: 0.92 | AA64: 0.93 | AB64: 0.94 | AC64: 0.98 | AD64: 0.95 | AE64: 0.91 | AF64: 0.96 | AG64: 0.98 | AH64: 0.98 | AI64: 0.98 | AJ64: 0.98 | AK64: 1.01 | AL64: 1.01 | AM64: 1.01 | AN64: 1.02 | AO64: 0.99 | AP64: 1.04 | AQ64: 1.09 | AR64: 1.05 | AS64: 1.00 | AT64: 1.01 | AU64: 1.01 | AV64: 1.01 | AW64: 1.00 | AX64: 1.00 | AY64: 1.00 | AZ64: 1.01 | BA64: 1.03 | BB64: 1.04 | BC64: 1.02 | BD64: 1.02 | BE64: 1.03 | BF64: 1.01 | BG64: 1.01 | BH64: 1.01 | BI64: 1.01 | BJ64: 1.01 | BK64: 1.01 | BL64: 1.00 | BM64: 0.98 | BN64: 0.95 | BO64: 0.94 | BP64: 0.92 | BQ64: 0.91 | BR64: 0.92 | BS64: 0.92 | BT64: 0.91 | BU64: 0.92 | BV64: 0.91 | BW64: 0.91 | BX64: 0.90 | BY64: 0.92 | BZ64: 0.94 | CA64: 0.94 | CB64: 0.95
A65: 1762 | B65: Weißeritzkreis / Schmiedeberg | C65: 1762 | D65: 0.89 | E65: 0.88 | F65: 0.89 | G65: 0.89 | H65: 0.89 | I65: 0.90 | J65: 0.91 | K65: 0.91 | L65: 0.90 | M65: 0.93 | N65: 0.93 | O65: 0.91 | P65: 0.88 | Q65: 0.86 | R65: 0.86 | S65: 0.88 | T65: 0.87 | U65: 0.87 | V65: 0.88 | W65: 0.87 | X65: 0.88 | Y65: 0.85 | Z65: 0.86 | AA65: 0.87 | AB65: 0.87 | AC65: 0.92 | AD65: 0.89 | AE65: 0.85 | AF65: 0.89 | AG65: 0.91 | AH65: 0.91 | AI65: 0.91 | AJ65: 0.92 | AK65: 0.94 | AL65: 0.94 | AM65: 0.95 | AN65: 0.95 | AO65: 0.93 | AP65: 0.98 | AQ65: 1.02 | AR65: 0.99 | AS65: 0.94 | AT65: 0.95 | AU65: 0.94 | AV65: 0.94 | AW65: 0.93 | AX65: 0.93 | AY65: 0.93 | AZ65: 0.94 | BA65: 0.96 | BB65: 0.96 | BC65: 0.95 | BD65: 0.95 | BE65: 0.95 | BF65: 0.94 | BG65: 0.94 | BH65: 0.94 | BI65: 0.94 | BJ65: 0.94 | BK65: 0.94 | BL65: 0.93 | BM65: 0.91 | BN65: 0.89 | BO65: 0.88 | BP65: 0.86 | BQ65: 0.85 | BR65: 0.86 | BS65: 0.87 | BT65: 0.85 | BU65: 0.86 | BV65: 0.86 | BW65: 0.85 | BX65: 0.85 | BY65: 0.86 | BZ65: 0.88 | CA65: 0.88 | CB65: 0.89
A66: 1768 | B66: Weißeritzkreis / Glashütte | C66: 1768 | D66: 0.94 | E66: 0.92 | F66: 0.94 | G66: 0.93 | H66: 0.93 | I66: 0.94 | J66: 0.95 | K66: 0.95 | L66: 0.95 | M66: 0.98 | N66: 0.98 | O66: 0.95 | P66: 0.92 | Q66: 0.90 | R66: 0.90 | S66: 0.92 | T66: 0.91 | U66: 0.91 | V66: 0.91 | W66: 0.91 | X66: 0.91 | Y66: 0.88 | Z66: 0.90 | AA66: 0.91 | AB66: 0.91 | AC66: 0.96 | AD66: 0.93 | AE66: 0.89 | AF66: 0.94 | AG66: 0.96 | AH66: 0.95 | AI66: 0.96 | AJ66: 0.96 | AK66: 0.99 | AL66: 0.99 | AM66: 0.99 | AN66: 1.00 | AO66: 0.97 | AP66: 1.02 | AQ66: 1.07 | AR66: 1.03 | AS66: 0.98 | AT66: 0.99 | AU66: 0.99 | AV66: 0.99 | AW66: 0.98 | AX66: 0.98 | AY66: 0.98 | AZ66: 0.98 | BA66: 1.01 | BB66: 1.01 | BC66: 1.00 | BD66: 1.00 | BE66: 1.00 | BF66: 0.98 | BG66: 0.98 | BH66: 0.98 | BI66: 0.99 | BJ66: 0.98 | BK66: 0.99 | BL66: 0.98 | BM66: 0.95 | BN66: 0.93 | BO66: 0.92 | BP66: 0.90 | BQ66: 0.89 | BR66: 0.90 | BS66: 0.91 | BT66: 0.89 | BU66: 0.90 | BV66: 0.89 | BW66: 0.89 | BX66: 0.88 | BY66: 0.90 | BZ66: 0.92 | CA66: 0.92 | CB66: 0.93
A67: 1773 | B67: Weißeritzkreis / Altenberg | C67: 1773 | D67: 0.81 | E67: 0.80 | F67: 0.81 | G67: 0.80 | H67: 0.80 | I67: 0.81 | J67: 0.82 | K67: 0.82 | L67: 0.81 | M67: 0.84 | N67: 0.84 | O67: 0.82 | P67: 0.80 | Q67: 0.78 | R67: 0.78 | S67: 0.80 | T67: 0.79 | U67: 0.80 | V67: 0.80 | W67: 0.80 | X67: 0.80 | Y67: 0.78 | Z67: 0.79 | AA67: 0.79 | AB67: 0.79 | AC67: 0.82 | AD67: 0.80 | AE67: 0.77 | AF67: 0.80 | AG67: 0.82 | AH67: 0.81 | AI67: 0.82 | AJ67: 0.82 | AK67: 0.84 | AL67: 0.85 | AM67: 0.86 | AN67: 0.86 | AO67: 0.84 | AP67: 0.89 | AQ67: 0.92 | AR67: 0.89 | AS67: 0.84 | AT67: 0.86 | AU67: 0.85 | AV67: 0.85 | AW67: 0.84 | AX67: 0.84 | AY67: 0.84 | AZ67: 0.84 | BA67: 0.87 | BB67: 0.87 | BC67: 0.86 | BD67: 0.86 | BE67: 0.86 | BF67: 0.84 | BG67: 0.84 | BH67: 0.84 | BI67: 0.85 | BJ67: 0.84 | BK67: 0.85 | BL67: 0.84 | BM67: 0.82 | BN67: 0.80 | BO67: 0.80 | BP67: 0.78 | BQ67: 0.78 | BR67: 0.79 | BS67: 0.79 | BT67: 0.77 | BU67: 0.78 | BV67: 0.78 | BW67: 0.77 | BX67: 0.77 | BY67: 0.78 | BZ67: 0.79 | CA67: 0.79 | CB67: 0.80
A68: 1774 | B68: Weißeritzkreis / Höckendorf | C68: 1774 | D68: 0.92 | E68: 0.90 | F68: 0.91 | G68: 0.91 | H68: 0.91 | I68: 0.92 | J68: 0.93 | K68: 0.93 | L68: 0.92 | M68: 0.95 | N68: 0.96 | O68: 0.93 | P68: 0.90 | Q68: 0.88 | R68: 0.88 | S68: 0.90 | T68: 0.89 | U68: 0.89 | V68: 0.90 | W68: 0.89 | X68: 0.90 | Y68: 0.87 | Z68: 0.88 | AA68: 0.89 | AB68: 0.89 | AC68: 0.94 | AD68: 0.91 | AE68: 0.87 | AF68: 0.91 | AG68: 0.93 | AH68: 0.93 | AI68: 0.94 | AJ68: 0.94 | AK68: 0.97 | AL68: 0.97 | AM68: 0.97 | AN68: 0.98 | AO68: 0.95 | AP68: 1.00 | AQ68: 1.04 | AR68: 1.01 | AS68: 0.96 | AT68: 0.97 | AU68: 0.96 | AV68: 0.97 | AW68: 0.95 | AX68: 0.95 | AY68: 0.96 | AZ68: 0.96 | BA68: 0.98 | BB68: 0.99 | BC68: 0.98 | BD68: 0.97 | BE68: 0.98 | BF68: 0.96 | BG68: 0.96 | BH68: 0.96 | BI68: 0.97 | BJ68: 0.96 | BK68: 0.96 | BL68: 0.96 | BM68: 0.93 | BN68: 0.91 | BO68: 0.90 | BP68: 0.88 | BQ68: 0.87 | BR68: 0.88 | BS68: 0.89 | BT68: 0.88 | BU68: 0.88 | BV68: 0.88 | BW68: 0.87 | BX68: 0.87 | BY68: 0.88 | BZ68: 0.90 | CA68: 0.90 | CB68: 0.91
A69: 1776 | B69: Weißeritzkreis / Hermsdorf/Erzgebi | C69: 1776 | D69: 0.81 | E69: 0.80 | F69: 0.81 | G69: 0.81 | H69: 0.80 | I69: 0.81 | J69: 0.82 | K69: 0.82 | L69: 0.82 | M69: 0.84 | N69: 0.84 | O69: 0.82 | P69: 0.80 | Q69: 0.79 | R69: 0.79 | S69: 0.80 | T69: 0.80 | U69: 0.80 | V69: 0.80 | W69: 0.80 | X69: 0.80 | Y69: 0.78 | Z69: 0.79 | AA69: 0.80 | AB69: 0.79 | AC69: 0.83 | AD69: 0.80 | AE69: 0.77 | AF69: 0.80 | AG69: 0.82 | AH69: 0.82 | AI69: 0.82 | AJ69: 0.83 | AK69: 0.85 | AL69: 0.85 | AM69: 0.86 | AN69: 0.86 | AO69: 0.84 | AP69: 0.89 | AQ69: 0.92 | AR69: 0.90 | AS69: 0.85 | AT69: 0.86 | AU69: 0.85 | AV69: 0.85 | AW69: 0.84 | AX69: 0.84 | AY69: 0.84 | AZ69: 0.85 | BA69: 0.87 | BB69: 0.87 | BC69: 0.86 | BD69: 0.86 | BE69: 0.86 | BF69: 0.85 | BG69: 0.84 | BH69: 0.84 | BI69: 0.85 | BJ69: 0.85 | BK69: 0.85 | BL69: 0.84 | BM69: 0.82 | BN69: 0.81 | BO69: 0.80 | BP69: 0.78 | BQ69: 0.78 | BR69: 0.79 | BS69: 0.79 | BT69: 0.78 | BU69: 0.78 | BV69: 0.78 | BW69: 0.77 | BX69: 0.77 | BY69: 0.78 | BZ69: 0.80 | CA69: 0.80 | CB69: 0.80
A70: 1778 | B70: Weißeritzkreis / Geising | C70: 1778 | D70: 0.82 | E70: 0.81 | F70: 0.82 | G70: 0.82 | H70: 0.82 | I70: 0.82 | J70: 0.83 | K70: 0.83 | L70: 0.83 | M70: 0.85 | N70: 0.85 | O70: 0.83 | P70: 0.81 | Q70: 0.80 | R70: 0.80 | S70: 0.81 | T70: 0.81 | U70: 0.81 | V70: 0.81 | W70: 0.81 | X70: 0.81 | Y70: 0.79 | Z70: 0.80 | AA70: 0.81 | AB70: 0.80 | AC70: 0.84 | AD70: 0.81 | AE70: 0.78 | AF70: 0.82 | AG70: 0.83 | AH70: 0.83 | AI70: 0.83 | AJ70: 0.84 | AK70: 0.86 | AL70: 0.86 | AM70: 0.87 | AN70: 0.87 | AO70: 0.85 | AP70: 0.90 | AQ70: 0.94 | AR70: 0.91 | AS70: 0.86 | AT70: 0.87 | AU70: 0.86 | AV70: 0.87 | AW70: 0.85 | AX70: 0.85 | AY70: 0.86 | AZ70: 0.86 | BA70: 0.88 | BB70: 0.88 | BC70: 0.87 | BD70: 0.87 | BE70: 0.87 | BF70: 0.86 | BG70: 0.86 | BH70: 0.85 | BI70: 0.86 | BJ70: 0.86 | BK70: 0.86 | BL70: 0.85 | BM70: 0.83 | BN70: 0.81 | BO70: 0.81 | BP70: 0.79 | BQ70: 0.79 | BR70: 0.80 | BS70: 0.80 | BT70: 0.79 | BU70: 0.79 | BV70: 0.79 | BW70: 0.78 | BX70: 0.78 | BY70: 0.79 | BZ70: 0.80 | CA70: 0.81 | CB70: 0.81
A71: =C71 -> 1796 | B71: Sächsische Schweiz / Pirna | C71: 1796 | D71: 1.05 | E71: 1.02 | F71: 1.05 | G71: 1.04 | H71: 1.03 | I71: 1.05 | J71: 1.07 | K71: 1.07 | L71: 1.06 | M71: 1.10 | N71: 1.10 | O71: 1.07 | P71: 1.03 | Q71: 1.00 | R71: 0.99 | S71: 1.01 | T71: 1.01 | U71: 1.00 | V71: 1.01 | W71: 1.00 | X71: 1.01 | Y71: 0.97 | Z71: 0.99 | AA71: 1.01 | AB71: 1.02 | AC71: 1.08 | AD71: 1.05 | AE71: 1.00 | AF71: 1.05 | AG71: 1.08 | AH71: 1.08 | AI71: 1.08 | AJ71: 1.08 | AK71: 1.11 | AL71: 1.11 | AM71: 1.10 | AN71: 1.12 | AO71: 1.09 | AP71: 1.13 | AQ71: 1.19 | AR71: 1.15 | AS71: 1.09 | AT71: 1.11 | AU71: 1.10 | AV71: 1.11 | AW71: 1.10 | AX71: 1.10 | AY71: 1.11 | AZ71: 1.10 | BA71: 1.13 | BB71: 1.15 | BC71: 1.13 | BD71: 1.12 | BE71: 1.13 | BF71: 1.11 | BG71: 1.11 | BH71: 1.11 | BI71: 1.11 | BJ71: 1.11 | BK71: 1.11 | BL71: 1.10 | BM71: 1.07 | BN71: 1.03 | BO71: 1.03 | BP71: 0.99 | BQ71: 0.99 | BR71: 1.00 | BS71: 1.00 | BT71: 0.99 | BU71: 1.00 | BV71: 0.99 | BW71: 0.98 | BX71: 0.98 | BY71: 1.00 | BZ71: 1.03 | CA71: 1.03 | CB71: 1.04
A72: 1809 | B72: Sächsische Schweiz / Müglitztal | C72: 1809 | D72: 1.05 | E72: 1.03 | F72: 1.05 | G72: 1.04 | H72: 1.04 | I72: 1.06 | J72: 1.08 | K72: 1.08 | L72: 1.07 | M72: 1.10 | N72: 1.11 | O72: 1.07 | P72: 1.03 | Q72: 1.01 | R72: 1.00 | S72: 1.02 | T72: 1.01 | U72: 1.01 | V72: 1.01 | W72: 1.01 | X72: 1.01 | Y72: 0.98 | Z72: 1.00 | AA72: 1.01 | AB72: 1.02 | AC72: 1.09 | AD72: 1.05 | AE72: 1.00 | AF72: 1.06 | AG72: 1.09 | AH72: 1.08 | AI72: 1.09 | AJ72: 1.09 | AK72: 1.12 | AL72: 1.12 | AM72: 1.11 | AN72: 1.13 | AO72: 1.09 | AP72: 1.14 | AQ72: 1.20 | AR72: 1.15 | AS72: 1.10 | AT72: 1.11 | AU72: 1.11 | AV72: 1.11 | AW72: 1.10 | AX72: 1.10 | AY72: 1.11 | AZ72: 1.11 | BA72: 1.13 | BB72: 1.15 | BC72: 1.13 | BD72: 1.13 | BE72: 1.13 | BF72: 1.12 | BG72: 1.12 | BH72: 1.11 | BI72: 1.12 | BJ72: 1.11 | BK72: 1.11 | BL72: 1.10 | BM72: 1.08 | BN72: 1.04 | BO72: 1.03 | BP72: 1.00 | BQ72: 0.99 | BR72: 1.00 | BS72: 1.01 | BT72: 1.00 | BU72: 1.01 | BV72: 1.00 | BW72: 0.99 | BX72: 0.99 | BY72: 1.01 | BZ72: 1.04 | CA72: 1.03 | CB72: 1.04
A73: 1814 | B73: Sächsische Schweiz / Bad Schandau | C73: 1814 | D73: 1.03 | E73: 1.00 | F73: 1.02 | G73: 1.02 | H73: 1.01 | I73: 1.03 | J73: 1.05 | K73: 1.05 | L73: 1.04 | M73: 1.07 | N73: 1.08 | O73: 1.04 | P73: 1.01 | Q73: 0.98 | R73: 0.97 | S73: 1.00 | T73: 0.99 | U73: 0.99 | V73: 0.99 | W73: 0.98 | X73: 0.99 | Y73: 0.95 | Z73: 0.97 | AA73: 0.99 | AB73: 1.00 | AC73: 1.06 | AD73: 1.02 | AE73: 0.98 | AF73: 1.03 | AG73: 1.06 | AH73: 1.05 | AI73: 1.06 | AJ73: 1.06 | AK73: 1.09 | AL73: 1.09 | AM73: 1.08 | AN73: 1.10 | AO73: 1.07 | AP73: 1.11 | AQ73: 1.17 | AR73: 1.12 | AS73: 1.07 | AT73: 1.09 | AU73: 1.08 | AV73: 1.09 | AW73: 1.07 | AX73: 1.07 | AY73: 1.08 | AZ73: 1.08 | BA73: 1.11 | BB73: 1.12 | BC73: 1.10 | BD73: 1.10 | BE73: 1.10 | BF73: 1.09 | BG73: 1.08 | BH73: 1.08 | BI73: 1.09 | BJ73: 1.08 | BK73: 1.08 | BL73: 1.07 | BM73: 1.05 | BN73: 1.01 | BO73: 1.01 | BP73: 0.97 | BQ73: 0.97 | BR73: 0.98 | BS73: 0.98 | BT73: 0.97 | BU73: 0.98 | BV73: 0.97 | BW73: 0.97 | BX73: 0.96 | BY73: 0.98 | BZ73: 1.01 | CA73: 1.01 | CB73: 1.02
A74: 1816 | B74: Sächsische Schweiz / Bad Gottleuba | C74: 1816 | D74: 0.93 | E74: 0.91 | F74: 0.93 | G74: 0.92 | H74: 0.92 | I74: 0.93 | J74: 0.95 | K74: 0.95 | L74: 0.94 | M74: 0.97 | N74: 0.97 | O74: 0.94 | P74: 0.92 | Q74: 0.90 | R74: 0.89 | S74: 0.91 | T74: 0.90 | U74: 0.90 | V74: 0.91 | W74: 0.90 | X74: 0.91 | Y74: 0.88 | Z74: 0.89 | AA74: 0.90 | AB74: 0.91 | AC74: 0.95 | AD74: 0.92 | AE74: 0.89 | AF74: 0.93 | AG74: 0.95 | AH74: 0.95 | AI74: 0.95 | AJ74: 0.96 | AK74: 0.98 | AL74: 0.98 | AM74: 0.99 | AN74: 0.99 | AO74: 0.97 | AP74: 1.01 | AQ74: 1.06 | AR74: 1.02 | AS74: 0.97 | AT74: 0.99 | AU74: 0.98 | AV74: 0.98 | AW74: 0.97 | AX74: 0.97 | AY74: 0.98 | AZ74: 0.98 | BA74: 1.00 | BB74: 1.01 | BC74: 0.99 | BD74: 0.99 | BE74: 0.99 | BF74: 0.98 | BG74: 0.98 | BH74: 0.97 | BI74: 0.98 | BJ74: 0.98 | BK74: 0.98 | BL74: 0.97 | BM74: 0.95 | BN74: 0.92 | BO74: 0.92 | BP74: 0.89 | BQ74: 0.88 | BR74: 0.90 | BS74: 0.90 | BT74: 0.89 | BU74: 0.89 | BV74: 0.89 | BW74: 0.88 | BX74: 0.88 | BY74: 0.89 | BZ74: 0.91 | CA74: 0.91 | CB74: 0.92
A75: 1819 | B75: Sächsische Schweiz / Bahretal | C75: 1819 | D75: 0.97 | E75: 0.95 | F75: 0.97 | G75: 0.96 | H75: 0.96 | I75: 0.97 | J75: 0.99 | K75: 0.99 | L75: 0.98 | M75: 1.01 | N75: 1.02 | O75: 0.98 | P75: 0.95 | Q75: 0.93 | R75: 0.93 | S75: 0.94 | T75: 0.94 | U75: 0.94 | V75: 0.94 | W75: 0.94 | X75: 0.94 | Y75: 0.91 | Z75: 0.93 | AA75: 0.94 | AB75: 0.94 | AC75: 1.00 | AD75: 0.96 | AE75: 0.92 | AF75: 0.97 | AG75: 0.99 | AH75: 0.99 | AI75: 0.99 | AJ75: 1.00 | AK75: 1.02 | AL75: 1.03 | AM75: 1.03 | AN75: 1.04 | AO75: 1.01 | AP75: 1.05 | AQ75: 1.10 | AR75: 1.06 | AS75: 1.01 | AT75: 1.03 | AU75: 1.02 | AV75: 1.02 | AW75: 1.01 | AX75: 1.01 | AY75: 1.02 | AZ75: 1.02 | BA75: 1.04 | BB75: 1.05 | BC75: 1.04 | BD75: 1.03 | BE75: 1.04 | BF75: 1.02 | BG75: 1.02 | BH75: 1.02 | BI75: 1.03 | BJ75: 1.02 | BK75: 1.02 | BL75: 1.01 | BM75: 0.99 | BN75: 0.96 | BO75: 0.95 | BP75: 0.92 | BQ75: 0.92 | BR75: 0.93 | BS75: 0.93 | BT75: 0.92 | BU75: 0.93 | BV75: 0.92 | BW75: 0.92 | BX75: 0.91 | BY75: 0.93 | BZ75: 0.95 | CA75: 0.95 | CB75: 0.96
A76: 1824 | B76: Sächsische Schweiz / Gohrisch | C76: 1824 | D76: 0.99 | E76: 0.96 | F76: 0.99 | G76: 0.98 | H76: 0.98 | I76: 0.99 | J76: 1.01 | K76: 1.01 | L76: 1.00 | M76: 1.03 | N76: 1.04 | O76: 1.00 | P76: 0.97 | Q76: 0.95 | R76: 0.94 | S76: 0.96 | T76: 0.95 | U76: 0.95 | V76: 0.95 | W76: 0.95 | X76: 0.95 | Y76: 0.92 | Z76: 0.94 | AA76: 0.95 | AB76: 0.96 | AC76: 1.02 | AD76: 0.98 | AE76: 0.94 | AF76: 0.99 | AG76: 1.01 | AH76: 1.01 | AI76: 1.01 | AJ76: 1.02 | AK76: 1.04 | AL76: 1.05 | AM76: 1.04 | AN76: 1.05 | AO76: 1.03 | AP76: 1.07 | AQ76: 1.12 | AR76: 1.08 | AS76: 1.03 | AT76: 1.05 | AU76: 1.04 | AV76: 1.04 | AW76: 1.03 | AX76: 1.03 | AY76: 1.04 | AZ76: 1.04 | BA76: 1.06 | BB76: 1.08 | BC76: 1.06 | BD76: 1.06 | BE76: 1.06 | BF76: 1.04 | BG76: 1.04 | BH76: 1.04 | BI76: 1.05 | BJ76: 1.04 | BK76: 1.04 | BL76: 1.03 | BM76: 1.01 | BN76: 0.97 | BO76: 0.97 | BP76: 0.94 | BQ76: 0.93 | BR76: 0.95 | BS76: 0.95 | BT76: 0.94 | BU76: 0.94 | BV76: 0.94 | BW76: 0.93 | BX76: 0.93 | BY76: 0.95 | BZ76: 0.97 | CA76: 0.97 | CB76: 0.98
A77: 1825 | B77: Sächsische Schweiz / Liebstadt | C77: 1825 | D77: 0.96 | E77: 0.94 | F77: 0.96 | G77: 0.95 | H77: 0.95 | I77: 0.96 | J77: 0.97 | K77: 0.98 | L77: 0.97 | M77: 1.00 | N77: 1.00 | O77: 0.97 | P77: 0.94 | Q77: 0.92 | R77: 0.91 | S77: 0.93 | T77: 0.93 | U77: 0.93 | V77: 0.93 | W77: 0.93 | X77: 0.93 | Y77: 0.90 | Z77: 0.92 | AA77: 0.93 | AB77: 0.93 | AC77: 0.98 | AD77: 0.95 | AE77: 0.91 | AF77: 0.96 | AG77: 0.98 | AH77: 0.97 | AI77: 0.98 | AJ77: 0.98 | AK77: 1.01 | AL77: 1.01 | AM77: 1.01 | AN77: 1.02 | AO77: 0.99 | AP77: 1.04 | AQ77: 1.09 | AR77: 1.05 | AS77: 1.00 | AT77: 1.01 | AU77: 1.01 | AV77: 1.01 | AW77: 1.00 | AX77: 1.00 | AY77: 1.00 | AZ77: 1.00 | BA77: 1.03 | BB77: 1.04 | BC77: 1.02 | BD77: 1.02 | BE77: 1.02 | BF77: 1.01 | BG77: 1.01 | BH77: 1.00 | BI77: 1.01 | BJ77: 1.01 | BK77: 1.01 | BL77: 1.00 | BM77: 0.97 | BN77: 0.94 | BO77: 0.94 | BP77: 0.91 | BQ77: 0.91 | BR77: 0.92 | BS77: 0.92 | BT77: 0.91 | BU77: 0.92 | BV77: 0.91 | BW77: 0.90 | BX77: 0.90 | BY77: 0.92 | BZ77: 0.94 | CA77: 0.94 | CB77: 0.95
A78: 1829 | B78: Sächsische Schweiz / Stadt Wehlen | C78: 1829 | D78: 1.05 | E78: 1.03 | F78: 1.05 | G78: 1.04 | H78: 1.04 | I78: 1.06 | J78: 1.08 | K78: 1.08 | L78: 1.07 | M78: 1.11 | N78: 1.11 | O78: 1.08 | P78: 1.04 | Q78: 1.01 | R78: 1.00 | S78: 1.02 | T78: 1.02 | U78: 1.01 | V78: 1.01 | W78: 1.01 | X78: 1.01 | Y78: 0.98 | Z78: 1.00 | AA78: 1.01 | AB78: 1.03 | AC78: 1.09 | AD78: 1.06 | AE78: 1.01 | AF78: 1.07 | AG78: 1.09 | AH78: 1.09 | AI78: 1.09 | AJ78: 1.09 | AK78: 1.12 | AL78: 1.12 | AM78: 1.11 | AN78: 1.13 | AO78: 1.10 | AP78: 1.14 | AQ78: 1.20 | AR78: 1.16 | AS78: 1.11 | AT78: 1.12 | AU78: 1.11 | AV78: 1.12 | AW78: 1.11 | AX78: 1.11 | AY78: 1.12 | AZ78: 1.12 | BA78: 1.14 | BB78: 1.16 | BC78: 1.14 | BD78: 1.13 | BE78: 1.13 | BF78: 1.12 | BG78: 1.12 | BH78: 1.12 | BI78: 1.12 | BJ78: 1.12 | BK78: 1.12 | BL78: 1.11 | BM78: 1.08 | BN78: 1.04 | BO78: 1.03 | BP78: 1.00 | BQ78: 1.00 | BR78: 1.01 | BS78: 1.01 | BT78: 1.00 | BU78: 1.01 | BV78: 1.00 | BW78: 0.99 | BX78: 0.99 | BY78: 1.01 | BZ78: 1.04 | CA78: 1.04 | CB78: 1.05
A79: 1833 | B79: Sächsische Schweiz / Stolpen | C79: 1833 | D79: 0.98 | E79: 0.96 | F79: 0.98 | G79: 0.97 | H79: 0.97 | I79: 0.98 | J79: 1.00 | K79: 1.00 | L79: 0.99 | M79: 1.02 | N79: 1.03 | O79: 0.99 | P79: 0.96 | Q79: 0.94 | R79: 0.93 | S79: 0.95 | T79: 0.95 | U79: 0.95 | V79: 0.95 | W79: 0.95 | X79: 0.95 | Y79: 0.92 | Z79: 0.94 | AA79: 0.95 | AB79: 0.95 | AC79: 1.01 | AD79: 0.97 | AE79: 0.93 | AF79: 0.98 | AG79: 1.00 | AH79: 1.00 | AI79: 1.01 | AJ79: 1.01 | AK79: 1.03 | AL79: 1.04 | AM79: 1.03 | AN79: 1.04 | AO79: 1.02 | AP79: 1.06 | AQ79: 1.11 | AR79: 1.08 | AS79: 1.03 | AT79: 1.04 | AU79: 1.03 | AV79: 1.04 | AW79: 1.02 | AX79: 1.02 | AY79: 1.03 | AZ79: 1.03 | BA79: 1.05 | BB79: 1.07 | BC79: 1.05 | BD79: 1.05 | BE79: 1.05 | BF79: 1.03 | BG79: 1.03 | BH79: 1.03 | BI79: 1.04 | BJ79: 1.03 | BK79: 1.03 | BL79: 1.02 | BM79: 1.00 | BN79: 0.96 | BO79: 0.96 | BP79: 0.93 | BQ79: 0.93 | BR79: 0.94 | BS79: 0.94 | BT79: 0.93 | BU79: 0.94 | BV79: 0.93 | BW79: 0.93 | BX79: 0.92 | BY79: 0.94 | BZ79: 0.96 | CA79: 0.96 | CB79: 0.97
A80: 1844 | B80: Sächsische Schweiz / Hohwald | C80: 1844 | D80: 0.95 | E80: 0.93 | F80: 0.95 | G80: 0.94 | H80: 0.94 | I80: 0.95 | J80: 0.97 | K80: 0.97 | L80: 0.96 | M80: 0.99 | N80: 1.00 | O80: 0.97 | P80: 0.94 | Q80: 0.92 | R80: 0.91 | S80: 0.93 | T80: 0.92 | U80: 0.92 | V80: 0.92 | W80: 0.92 | X80: 0.92 | Y80: 0.89 | Z80: 0.91 | AA80: 0.92 | AB80: 0.93 | AC80: 0.98 | AD80: 0.95 | AE80: 0.91 | AF80: 0.95 | AG80: 0.97 | AH80: 0.97 | AI80: 0.97 | AJ80: 0.98 | AK80: 1.00 | AL80: 1.01 | AM80: 1.01 | AN80: 1.01 | AO80: 0.99 | AP80: 1.03 | AQ80: 1.08 | AR80: 1.05 | AS80: 1.00 | AT80: 1.01 | AU80: 1.00 | AV80: 1.01 | AW80: 0.99 | AX80: 0.99 | AY80: 1.00 | AZ80: 1.00 | BA80: 1.03 | BB80: 1.03 | BC80: 1.02 | BD80: 1.02 | BE80: 1.02 | BF80: 1.00 | BG80: 1.00 | BH80: 1.00 | BI80: 1.01 | BJ80: 1.00 | BK80: 1.00 | BL80: 0.99 | BM80: 0.97 | BN80: 0.94 | BO80: 0.93 | BP80: 0.91 | BQ80: 0.90 | BR80: 0.91 | BS80: 0.92 | BT80: 0.91 | BU80: 0.91 | BV80: 0.91 | BW80: 0.90 | BX80: 0.90 | BY80: 0.91 | BZ80: 0.94 | CA80: 0.94 | CB80: 0.94
A81: 1847 | B81: Sächsische Schweiz / Lohmen | C81: 1847 | D81: 1.00 | E81: 0.98 | F81: 1.00 | G81: 0.99 | H81: 0.99 | I81: 1.01 | J81: 1.02 | K81: 1.03 | L81: 1.02 | M81: 1.05 | N81: 1.05 | O81: 1.02 | P81: 0.99 | Q81: 0.96 | R81: 0.96 | S81: 0.98 | T81: 0.97 | U81: 0.97 | V81: 0.97 | W81: 0.97 | X81: 0.97 | Y81: 0.94 | Z81: 0.96 | AA81: 0.97 | AB81: 0.98 | AC81: 1.03 | AD81: 1.00 | AE81: 0.96 | AF81: 1.01 | AG81: 1.03 | AH81: 1.03 | AI81: 1.03 | AJ81: 1.03 | AK81: 1.06 | AL81: 1.06 | AM81: 1.06 | AN81: 1.07 | AO81: 1.04 | AP81: 1.09 | AQ81: 1.14 | AR81: 1.10 | AS81: 1.05 | AT81: 1.06 | AU81: 1.06 | AV81: 1.06 | AW81: 1.05 | AX81: 1.05 | AY81: 1.06 | AZ81: 1.06 | BA81: 1.08 | BB81: 1.09 | BC81: 1.08 | BD81: 1.07 | BE81: 1.08 | BF81: 1.06 | BG81: 1.06 | BH81: 1.06 | BI81: 1.06 | BJ81: 1.06 | BK81: 1.06 | BL81: 1.05 | BM81: 1.02 | BN81: 0.99 | BO81: 0.98 | BP81: 0.96 | BQ81: 0.95 | BR81: 0.96 | BS81: 0.96 | BT81: 0.95 | BU81: 0.96 | BV81: 0.95 | BW81: 0.95 | BX81: 0.94 | BY81: 0.96 | BZ81: 0.99 | CA81: 0.99 | CB81: 1.00
A82: 1848 | B82: Sächsische Schweiz / Hohnstein | C82: 1848 | D82: 0.96 | E82: 0.94 | F82: 0.95 | G82: 0.95 | H82: 0.94 | I82: 0.96 | J82: 0.97 | K82: 0.98 | L82: 0.97 | M82: 1.00 | N82: 1.00 | O82: 0.97 | P82: 0.94 | Q82: 0.92 | R82: 0.91 | S82: 0.93 | T82: 0.93 | U82: 0.93 | V82: 0.93 | W82: 0.93 | X82: 0.93 | Y82: 0.90 | Z82: 0.92 | AA82: 0.93 | AB82: 0.93 | AC82: 0.98 | AD82: 0.95 | AE82: 0.91 | AF82: 0.96 | AG82: 0.98 | AH82: 0.97 | AI82: 0.98 | AJ82: 0.98 | AK82: 1.01 | AL82: 1.01 | AM82: 1.01 | AN82: 1.02 | AO82: 0.99 | AP82: 1.04 | AQ82: 1.09 | AR82: 1.05 | AS82: 1.00 | AT82: 1.01 | AU82: 1.01 | AV82: 1.01 | AW82: 1.00 | AX82: 1.00 | AY82: 1.01 | AZ82: 1.01 | BA82: 1.03 | BB82: 1.04 | BC82: 1.02 | BD82: 1.02 | BE82: 1.02 | BF82: 1.01 | BG82: 1.00 | BH82: 1.00 | BI82: 1.01 | BJ82: 1.01 | BK82: 1.00 | BL82: 1.00 | BM82: 0.97 | BN82: 0.94 | BO82: 0.94 | BP82: 0.91 | BQ82: 0.91 | BR82: 0.92 | BS82: 0.92 | BT82: 0.91 | BU82: 0.92 | BV82: 0.91 | BW82: 0.90 | BX82: 0.90 | BY82: 0.92 | BZ82: 0.94 | CA82: 0.94 | CB82: 0.95
A83: 1855 | B83: Sächsische Schweiz / Kirnitzschtal | C83: 1855 | D83: 0.98 | E83: 0.96 | F83: 0.98 | G83: 0.97 | H83: 0.97 | I83: 0.98 | J83: 1.00 | K83: 1.00 | L83: 0.99 | M83: 1.02 | N83: 1.03 | O83: 0.99 | P83: 0.96 | Q83: 0.94 | R83: 0.93 | S83: 0.95 | T83: 0.95 | U83: 0.94 | V83: 0.95 | W83: 0.94 | X83: 0.95 | Y83: 0.92 | Z83: 0.93 | AA83: 0.95 | AB83: 0.95 | AC83: 1.01 | AD83: 0.97 | AE83: 0.93 | AF83: 0.98 | AG83: 1.00 | AH83: 1.00 | AI83: 1.00 | AJ83: 1.01 | AK83: 1.03 | AL83: 1.04 | AM83: 1.03 | AN83: 1.04 | AO83: 1.02 | AP83: 1.06 | AQ83: 1.11 | AR83: 1.07 | AS83: 1.02 | AT83: 1.04 | AU83: 1.03 | AV83: 1.03 | AW83: 1.02 | AX83: 1.02 | AY83: 1.03 | AZ83: 1.03 | BA83: 1.05 | BB83: 1.07 | BC83: 1.05 | BD83: 1.05 | BE83: 1.05 | BF83: 1.03 | BG83: 1.03 | BH83: 1.03 | BI83: 1.04 | BJ83: 1.03 | BK83: 1.03 | BL83: 1.02 | BM83: 1.00 | BN83: 0.96 | BO83: 0.96 | BP83: 0.93 | BQ83: 0.93 | BR83: 0.94 | BS83: 0.94 | BT83: 0.93 | BU83: 0.94 | BV83: 0.93 | BW83: 0.92 | BX83: 0.92 | BY83: 0.94 | BZ83: 0.96 | CA83: 0.96 | CB83: 0.97
A84: 1877 | B84: Bautzen / Rammenau | C84: 1877 | D84: 0.98 | E84: 0.96 | F84: 0.98 | G84: 0.97 | H84: 0.97 | I84: 0.98 | J84: 1.00 | K84: 1.00 | L84: 0.99 | M84: 1.02 | N84: 1.03 | O84: 1.00 | P84: 0.96 | Q84: 0.94 | R84: 0.94 | S84: 0.96 | T84: 0.95 | U84: 0.95 | V84: 0.95 | W84: 0.95 | X84: 0.95 | Y84: 0.92 | Z84: 0.94 | AA84: 0.95 | AB84: 0.96 | AC84: 1.01 | AD84: 0.97 | AE84: 0.93 | AF84: 0.98 | AG84: 1.00 | AH84: 1.00 | AI84: 1.01 | AJ84: 1.01 | AK84: 1.03 | AL84: 1.04 | AM84: 1.03 | AN84: 1.04 | AO84: 1.02 | AP84: 1.06 | AQ84: 1.12 | AR84: 1.08 | AS84: 1.03 | AT84: 1.04 | AU84: 1.03 | AV84: 1.04 | AW84: 1.03 | AX84: 1.03 | AY84: 1.03 | AZ84: 1.03 | BA84: 1.06 | BB84: 1.07 | BC84: 1.05 | BD84: 1.05 | BE84: 1.05 | BF84: 1.03 | BG84: 1.03 | BH84: 1.03 | BI84: 1.04 | BJ84: 1.03 | BK84: 1.03 | BL84: 1.02 | BM84: 1.00 | BN84: 0.96 | BO84: 0.96 | BP84: 0.93 | BQ84: 0.93 | BR84: 0.94 | BS84: 0.94 | BT84: 0.93 | BU84: 0.94 | BV84: 0.93 | BW84: 0.93 | BX84: 0.92 | BY84: 0.94 | BZ84: 0.96 | CA84: 0.96 | CB84: 0.97
A85: 1896 | B85: Kamenz / Lichtenberg | C85: 1896 | D85: 0.97 | E85: 0.95 | F85: 0.97 | G85: 0.96 | H85: 0.96 | I85: 0.97 | J85: 0.99 | K85: 0.99 | L85: 0.98 | M85: 1.01 | N85: 1.02 | O85: 0.99 | P85: 0.95 | Q85: 0.94 | R85: 0.93 | S85: 0.95 | T85: 0.94 | U85: 0.94 | V85: 0.94 | W85: 0.94 | X85: 0.94 | Y85: 0.91 | Z85: 0.93 | AA85: 0.94 | AB85: 0.95 | AC85: 1.00 | AD85: 0.96 | AE85: 0.92 | AF85: 0.97 | AG85: 0.99 | AH85: 0.99 | AI85: 0.99 | AJ85: 1.00 | AK85: 1.02 | AL85: 1.03 | AM85: 1.02 | AN85: 1.03 | AO85: 1.01 | AP85: 1.05 | AQ85: 1.10 | AR85: 1.07 | AS85: 1.02 | AT85: 1.03 | AU85: 1.02 | AV85: 1.03 | AW85: 1.01 | AX85: 1.01 | AY85: 1.02 | AZ85: 1.02 | BA85: 1.05 | BB85: 1.06 | BC85: 1.04 | BD85: 1.04 | BE85: 1.04 | BF85: 1.02 | BG85: 1.02 | BH85: 1.02 | BI85: 1.03 | BJ85: 1.02 | BK85: 1.02 | BL85: 1.01 | BM85: 0.99 | BN85: 0.96 | BO85: 0.95 | BP85: 0.93 | BQ85: 0.92 | BR85: 0.93 | BS85: 0.94 | BT85: 0.92 | BU85: 0.93 | BV85: 0.92 | BW85: 0.92 | BX85: 0.91 | BY85: 0.93 | BZ85: 0.96 | CA85: 0.96 | CB85: 0.96
A86: 1900 | B86: Kamenz / Großröhrsdorf | C86: 1900 | D86: 0.98 | E86: 0.96 | F86: 0.98 | G86: 0.97 | H86: 0.97 | I86: 0.98 | J86: 1.00 | K86: 1.00 | L86: 0.99 | M86: 1.03 | N86: 1.03 | O86: 1.00 | P86: 0.97 | Q86: 0.95 | R86: 0.94 | S86: 0.96 | T86: 0.95 | U86: 0.95 | V86: 0.95 | W86: 0.95 | X86: 0.95 | Y86: 0.92 | Z86: 0.94 | AA86: 0.95 | AB86: 0.96 | AC86: 1.01 | AD86: 0.98 | AE86: 0.93 | AF86: 0.98 | AG86: 1.01 | AH86: 1.00 | AI86: 1.01 | AJ86: 1.01 | AK86: 1.04 | AL86: 1.04 | AM86: 1.04 | AN86: 1.05 | AO86: 1.02 | AP86: 1.07 | AQ86: 1.12 | AR86: 1.08 | AS86: 1.03 | AT86: 1.04 | AU86: 1.04 | AV86: 1.04 | AW86: 1.03 | AX86: 1.03 | AY86: 1.03 | AZ86: 1.03 | BA86: 1.06 | BB86: 1.07 | BC86: 1.05 | BD86: 1.05 | BE86: 1.05 | BF86: 1.03 | BG86: 1.03 | BH86: 1.03 | BI86: 1.04 | BJ86: 1.03 | BK86: 1.03 | BL86: 1.02 | BM86: 1.00 | BN86: 0.97 | BO86: 0.96 | BP86: 0.94 | BQ86: 0.93 | BR86: 0.94 | BS86: 0.95 | BT86: 0.93 | BU86: 0.94 | BV86: 0.93 | BW86: 0.93 | BX86: 0.92 | BY86: 0.94 | BZ86: 0.97 | CA86: 0.97 | CB86: 0.97
A87: 1904 | B87: Bautzen / Neukirch/Lausitz | C87: 1904 | D87: 0.94 | E87: 0.92 | F87: 0.94 | G87: 0.93 | H87: 0.93 | I87: 0.94 | J87: 0.96 | K87: 0.96 | L87: 0.95 | M87: 0.98 | N87: 0.98 | O87: 0.95 | P87: 0.93 | Q87: 0.91 | R87: 0.90 | S87: 0.92 | T87: 0.91 | U87: 0.91 | V87: 0.91 | W87: 0.91 | X87: 0.91 | Y87: 0.88 | Z87: 0.90 | AA87: 0.91 | AB87: 0.92 | AC87: 0.96 | AD87: 0.93 | AE87: 0.89 | AF87: 0.94 | AG87: 0.96 | AH87: 0.96 | AI87: 0.96 | AJ87: 0.96 | AK87: 0.99 | AL87: 0.99 | AM87: 0.99 | AN87: 1.00 | AO87: 0.97 | AP87: 1.02 | AQ87: 1.07 | AR87: 1.03 | AS87: 0.98 | AT87: 1.00 | AU87: 0.99 | AV87: 0.99 | AW87: 0.98 | AX87: 0.98 | AY87: 0.99 | AZ87: 0.99 | BA87: 1.01 | BB87: 1.02 | BC87: 1.01 | BD87: 1.00 | BE87: 1.00 | BF87: 0.99 | BG87: 0.99 | BH87: 0.98 | BI87: 0.99 | BJ87: 0.99 | BK87: 0.99 | BL87: 0.98 | BM87: 0.95 | BN87: 0.92 | BO87: 0.92 | BP87: 0.90 | BQ87: 0.89 | BR87: 0.90 | BS87: 0.91 | BT87: 0.89 | BU87: 0.90 | BV87: 0.89 | BW87: 0.89 | BX87: 0.88 | BY87: 0.90 | BZ87: 0.92 | CA87: 0.92 | CB87: 0.93
A88: 1906 | B88: Bautzen / Burkau | C88: 1906 | D88: 0.99 | E88: 0.97 | F88: 0.99 | G88: 0.98 | H88: 0.98 | I88: 1.00 | J88: 1.02 | K88: 1.02 | L88: 1.01 | M88: 1.04 | N88: 1.05 | O88: 1.01 | P88: 0.98 | Q88: 0.96 | R88: 0.95 | S88: 0.97 | T88: 0.97 | U88: 0.96 | V88: 0.96 | W88: 0.96 | X88: 0.96 | Y88: 0.93 | Z88: 0.95 | AA88: 0.96 | AB88: 0.97 | AC88: 1.03 | AD88: 0.99 | AE88: 0.95 | AF88: 1.00 | AG88: 1.02 | AH88: 1.02 | AI88: 1.03 | AJ88: 1.03 | AK88: 1.05 | AL88: 1.06 | AM88: 1.05 | AN88: 1.06 | AO88: 1.03 | AP88: 1.08 | AQ88: 1.13 | AR88: 1.10 | AS88: 1.05 | AT88: 1.06 | AU88: 1.05 | AV88: 1.06 | AW88: 1.04 | AX88: 1.04 | AY88: 1.05 | AZ88: 1.05 | BA88: 1.08 | BB88: 1.09 | BC88: 1.07 | BD88: 1.07 | BE88: 1.07 | BF88: 1.05 | BG88: 1.05 | BH88: 1.05 | BI88: 1.06 | BJ88: 1.05 | BK88: 1.05 | BL88: 1.04 | BM88: 1.02 | BN88: 0.98 | BO88: 0.98 | BP88: 0.95 | BQ88: 0.94 | BR88: 0.95 | BS88: 0.96 | BT88: 0.95 | BU88: 0.96 | BV88: 0.95 | BW88: 0.94 | BX88: 0.94 | BY88: 0.96 | BZ88: 0.98 | CA88: 0.98 | CB88: 0.99
A89: 1909 | B89: Bautzen / Frankenthal | C89: 1909 | D89: 0.98 | E89: 0.96 | F89: 0.97 | G89: 0.97 | H89: 0.97 | I89: 0.98 | J89: 1.00 | K89: 1.00 | L89: 0.99 | M89: 1.02 | N89: 1.03 | O89: 0.99 | P89: 0.96 | Q89: 0.94 | R89: 0.94 | S89: 0.95 | T89: 0.95 | U89: 0.95 | V89: 0.95 | W89: 0.95 | X89: 0.95 | Y89: 0.92 | Z89: 0.94 | AA89: 0.95 | AB89: 0.95 | AC89: 1.01 | AD89: 0.97 | AE89: 0.93 | AF89: 0.98 | AG89: 1.00 | AH89: 1.00 | AI89: 1.01 | AJ89: 1.01 | AK89: 1.03 | AL89: 1.04 | AM89: 1.03 | AN89: 1.04 | AO89: 1.02 | AP89: 1.06 | AQ89: 1.11 | AR89: 1.08 | AS89: 1.03 | AT89: 1.04 | AU89: 1.03 | AV89: 1.04 | AW89: 1.02 | AX89: 1.02 | AY89: 1.03 | AZ89: 1.03 | BA89: 1.06 | BB89: 1.07 | BC89: 1.05 | BD89: 1.05 | BE89: 1.05 | BF89: 1.03 | BG89: 1.03 | BH89: 1.03 | BI89: 1.04 | BJ89: 1.03 | BK89: 1.03 | BL89: 1.02 | BM89: 1.00 | BN89: 0.96 | BO89: 0.96 | BP89: 0.93 | BQ89: 0.93 | BR89: 0.94 | BS89: 0.94 | BT89: 0.93 | BU89: 0.94 | BV89: 0.93 | BW89: 0.93 | BX89: 0.92 | BY89: 0.94 | BZ89: 0.96 | CA89: 0.96 | CB89: 0.97
A90: 1917 | B90: Kamenz / Kamenz | C90: 1917 | D90: 1.06 | E90: 1.03 | F90: 1.05 | G90: 1.04 | H90: 1.04 | I90: 1.06 | J90: 1.08 | K90: 1.08 | L90: 1.07 | M90: 1.11 | N90: 1.11 | O90: 1.07 | P90: 1.04 | Q90: 1.01 | R90: 1.00 | S90: 1.03 | T90: 1.02 | U90: 1.02 | V90: 1.01 | W90: 1.01 | X90: 1.02 | Y90: 0.98 | Z90: 1.01 | AA90: 1.02 | AB90: 1.03 | AC90: 1.09 | AD90: 1.06 | AE90: 1.01 | AF90: 1.06 | AG90: 1.09 | AH90: 1.08 | AI90: 1.09 | AJ90: 1.09 | AK90: 1.11 | AL90: 1.12 | AM90: 1.11 | AN90: 1.12 | AO90: 1.09 | AP90: 1.14 | AQ90: 1.20 | AR90: 1.16 | AS90: 1.10 | AT90: 1.12 | AU90: 1.11 | AV90: 1.12 | AW90: 1.11 | AX90: 1.11 | AY90: 1.12 | AZ90: 1.12 | BA90: 1.14 | BB90: 1.16 | BC90: 1.14 | BD90: 1.14 | BE90: 1.14 | BF90: 1.12 | BG90: 1.12 | BH90: 1.12 | BI90: 1.12 | BJ90: 1.12 | BK90: 1.12 | BL90: 1.11 | BM90: 1.08 | BN90: 1.04 | BO90: 1.03 | BP90: 1.00 | BQ90: 1.00 | BR90: 1.00 | BS90: 1.01 | BT90: 1.00 | BU90: 1.01 | BV90: 1.00 | BW90: 0.99 | BX90: 0.99 | BY90: 1.01 | BZ90: 1.04 | CA90: 1.04 | CB90: 1.05
A91: 1920 | B91: Kamenz / Crostwitz | C91: 1920 | D91: 1.02 | E91: 0.99 | F91: 1.01 | G91: 1.01 | H91: 1.01 | I91: 1.02 | J91: 1.04 | K91: 1.05 | L91: 1.04 | M91: 1.07 | N91: 1.08 | O91: 1.04 | P91: 1.01 | Q91: 0.98 | R91: 0.97 | S91: 0.99 | T91: 0.99 | U91: 0.98 | V91: 0.98 | W91: 0.98 | X91: 0.98 | Y91: 0.95 | Z91: 0.97 | AA91: 0.99 | AB91: 1.00 | AC91: 1.05 | AD91: 1.02 | AE91: 0.97 | AF91: 1.03 | AG91: 1.05 | AH91: 1.05 | AI91: 1.05 | AJ91: 1.05 | AK91: 1.08 | AL91: 1.08 | AM91: 1.08 | AN91: 1.09 | AO91: 1.06 | AP91: 1.10 | AQ91: 1.16 | AR91: 1.12 | AS91: 1.07 | AT91: 1.08 | AU91: 1.08 | AV91: 1.08 | AW91: 1.07 | AX91: 1.07 | AY91: 1.08 | AZ91: 1.08 | BA91: 1.10 | BB91: 1.12 | BC91: 1.10 | BD91: 1.09 | BE91: 1.09 | BF91: 1.08 | BG91: 1.08 | BH91: 1.08 | BI91: 1.08 | BJ91: 1.08 | BK91: 1.08 | BL91: 1.07 | BM91: 1.04 | BN91: 1.00 | BO91: 1.00 | BP91: 0.97 | BQ91: 0.97 | BR91: 0.98 | BS91: 0.98 | BT91: 0.97 | BU91: 0.98 | BV91: 0.97 | BW91: 0.97 | BX91: 0.96 | BY91: 0.98 | BZ91: 1.01 | CA91: 1.01 | CB91: 1.02
A92: 1936 | B92: Kamenz / Schwepnitz | C92: 1936 | D92: 1.02 | E92: 1.00 | F92: 1.02 | G92: 1.01 | H92: 1.01 | I92: 1.03 | J92: 1.05 | K92: 1.05 | L92: 1.04 | M92: 1.08 | N92: 1.08 | O92: 1.04 | P92: 1.01 | Q92: 0.99 | R92: 0.98 | S92: 1.00 | T92: 0.99 | U92: 0.99 | V92: 0.99 | W92: 0.99 | X92: 0.99 | Y92: 0.96 | Z92: 0.98 | AA92: 0.99 | AB92: 1.00 | AC92: 1.06 | AD92: 1.02 | AE92: 0.98 | AF92: 1.03 | AG92: 1.06 | AH92: 1.05 | AI92: 1.06 | AJ92: 1.06 | AK92: 1.09 | AL92: 1.09 | AM92: 1.08 | AN92: 1.09 | AO92: 1.06 | AP92: 1.11 | AQ92: 1.17 | AR92: 1.13 | AS92: 1.08 | AT92: 1.09 | AU92: 1.08 | AV92: 1.09 | AW92: 1.08 | AX92: 1.08 | AY92: 1.09 | AZ92: 1.08 | BA92: 1.11 | BB92: 1.12 | BC92: 1.10 | BD92: 1.10 | BE92: 1.10 | BF92: 1.09 | BG92: 1.08 | BH92: 1.08 | BI92: 1.09 | BJ92: 1.09 | BK92: 1.08 | BL92: 1.07 | BM92: 1.05 | BN92: 1.01 | BO92: 1.01 | BP92: 0.98 | BQ92: 0.97 | BR92: 0.98 | BS92: 0.99 | BT92: 0.98 | BU92: 0.98 | BV92: 0.98 | BW92: 0.97 | BX92: 0.96 | BY92: 0.98 | BZ92: 1.01 | CA92: 1.01 | CB92: 1.02
A93: 1945 | B93: Oberspreewald-Lausitz / Ruhland | C93: 1945 | D93: 1.06 | E93: 1.03 | F93: 1.06 | G93: 1.05 | H93: 1.05 | I93: 1.07 | J93: 1.09 | K93: 1.09 | L93: 1.09 | M93: 1.12 | N93: 1.13 | O93: 1.09 | P93: 1.05 | Q93: 1.02 | R93: 1.01 | S93: 1.04 | T93: 1.03 | U93: 1.02 | V93: 1.02 | W93: 1.02 | X93: 1.02 | Y93: 0.99 | Z93: 1.01 | AA93: 1.03 | AB93: 1.04 | AC93: 1.10 | AD93: 1.07 | AE93: 1.02 | AF93: 1.07 | AG93: 1.10 | AH93: 1.10 | AI93: 1.10 | AJ93: 1.10 | AK93: 1.13 | AL93: 1.13 | AM93: 1.12 | AN93: 1.14 | AO93: 1.11 | AP93: 1.15 | AQ93: 1.21 | AR93: 1.17 | AS93: 1.12 | AT93: 1.13 | AU93: 1.13 | AV93: 1.13 | AW93: 1.12 | AX93: 1.12 | AY93: 1.13 | AZ93: 1.13 | BA93: 1.15 | BB93: 1.17 | BC93: 1.15 | BD93: 1.14 | BE93: 1.15 | BF93: 1.13 | BG93: 1.13 | BH93: 1.13 | BI93: 1.13 | BJ93: 1.13 | BK93: 1.13 | BL93: 1.12 | BM93: 1.09 | BN93: 1.05 | BO93: 1.04 | BP93: 1.01 | BQ93: 1.01 | BR93: 1.02 | BS93: 1.02 | BT93: 1.01 | BU93: 1.02 | BV93: 1.01 | BW93: 1.01 | BX93: 1.00 | BY93: 1.02 | BZ93: 1.06 | CA93: 1.05 | CB93: 1.06
A94: 1968 | B94: Oberspreewald-Lausitz / Schipkau | C94: 1968 | D94: 1.08 | E94: 1.05 | F94: 1.07 | G94: 1.06 | H94: 1.06 | I94: 1.08 | J94: 1.11 | K94: 1.11 | L94: 1.10 | M94: 1.14 | N94: 1.14 | O94: 1.10 | P94: 1.06 | Q94: 1.04 | R94: 1.03 | S94: 1.05 | T94: 1.04 | U94: 1.04 | V94: 1.04 | W94: 1.03 | X94: 1.04 | Y94: 1.00 | Z94: 1.03 | AA94: 1.04 | AB94: 1.06 | AC94: 1.12 | AD94: 1.08 | AE94: 1.03 | AF94: 1.09 | AG94: 1.12 | AH94: 1.11 | AI94: 1.11 | AJ94: 1.12 | AK94: 1.14 | AL94: 1.14 | AM94: 1.13 | AN94: 1.15 | AO94: 1.12 | AP94: 1.16 | AQ94: 1.23 | AR94: 1.18 | AS94: 1.13 | AT94: 1.14 | AU94: 1.14 | AV94: 1.15 | AW94: 1.14 | AX94: 1.14 | AY94: 1.15 | AZ94: 1.14 | BA94: 1.17 | BB94: 1.19 | BC94: 1.17 | BD94: 1.16 | BE94: 1.16 | BF94: 1.15 | BG94: 1.15 | BH94: 1.14 | BI94: 1.15 | BJ94: 1.15 | BK94: 1.14 | BL94: 1.13 | BM94: 1.11 | BN94: 1.06 | BO94: 1.06 | BP94: 1.02 | BQ94: 1.02 | BR94: 1.03 | BS94: 1.03 | BT94: 1.02 | BU94: 1.03 | BV94: 1.02 | BW94: 1.02 | BX94: 1.01 | BY94: 1.03 | BZ94: 1.07 | CA94: 1.07 | CB94: 1.08
A95: 1979 | B95: Oberspreewald-Lausitz / Lauchhamme | C95: 1979 | D95: 1.10 | E95: 1.07 | F95: 1.09 | G95: 1.08 | H95: 1.08 | I95: 1.10 | J95: 1.12 | K95: 1.13 | L95: 1.12 | M95: 1.15 | N95: 1.16 | O95: 1.12 | P95: 1.07 | Q95: 1.05 | R95: 1.04 | S95: 1.07 | T95: 1.06 | U95: 1.05 | V95: 1.05 | W95: 1.05 | X95: 1.05 | Y95: 1.02 | Z95: 1.04 | AA95: 1.06 | AB95: 1.07 | AC95: 1.14 | AD95: 1.10 | AE95: 1.04 | AF95: 1.11 | AG95: 1.13 | AH95: 1.13 | AI95: 1.13 | AJ95: 1.13 | AK95: 1.16 | AL95: 1.16 | AM95: 1.15 | AN95: 1.16 | AO95: 1.13 | AP95: 1.18 | AQ95: 1.24 | AR95: 1.20 | AS95: 1.15 | AT95: 1.16 | AU95: 1.16 | AV95: 1.16 | AW95: 1.15 | AX95: 1.15 | AY95: 1.16 | AZ95: 1.16 | BA95: 1.19 | BB95: 1.21 | BC95: 1.19 | BD95: 1.18 | BE95: 1.18 | BF95: 1.17 | BG95: 1.17 | BH95: 1.16 | BI95: 1.17 | BJ95: 1.16 | BK95: 1.16 | BL95: 1.15 | BM95: 1.12 | BN95: 1.08 | BO95: 1.07 | BP95: 1.04 | BQ95: 1.03 | BR95: 1.04 | BS95: 1.04 | BT95: 1.04 | BU95: 1.04 | BV95: 1.04 | BW95: 1.03 | BX95: 1.02 | BY95: 1.05 | BZ95: 1.08 | CA95: 1.08 | CB95: 1.09
A96: 1983 | B96: Oberspreewald-Lausitz / Neu-Seelan | C96: 1983 | D96: 1.09 | E96: 1.06 | F96: 1.08 | G96: 1.07 | H96: 1.07 | I96: 1.09 | J96: 1.12 | K96: 1.12 | L96: 1.11 | M96: 1.14 | N96: 1.15 | O96: 1.11 | P96: 1.07 | Q96: 1.05 | R96: 1.04 | S96: 1.06 | T96: 1.05 | U96: 1.05 | V96: 1.04 | W96: 1.04 | X96: 1.04 | Y96: 1.01 | Z96: 1.04 | AA96: 1.05 | AB96: 1.07 | AC96: 1.13 | AD96: 1.09 | AE96: 1.04 | AF96: 1.10 | AG96: 1.12 | AH96: 1.12 | AI96: 1.12 | AJ96: 1.12 | AK96: 1.14 | AL96: 1.14 | AM96: 1.14 | AN96: 1.15 | AO96: 1.12 | AP96: 1.17 | AQ96: 1.24 | AR96: 1.19 | AS96: 1.14 | AT96: 1.15 | AU96: 1.15 | AV96: 1.15 | AW96: 1.14 | AX96: 1.14 | AY96: 1.15 | AZ96: 1.15 | BA96: 1.18 | BB96: 1.20 | BC96: 1.18 | BD96: 1.17 | BE96: 1.17 | BF96: 1.16 | BG96: 1.16 | BH96: 1.16 | BI96: 1.16 | BJ96: 1.15 | BK96: 1.15 | BL96: 1.14 | BM96: 1.11 | BN96: 1.07 | BO96: 1.06 | BP96: 1.03 | BQ96: 1.02 | BR96: 1.03 | BS96: 1.03 | BT96: 1.03 | BU96: 1.04 | BV96: 1.03 | BW96: 1.02 | BX96: 1.01 | BY96: 1.04 | BZ96: 1.07 | CA96: 1.07 | CB96: 1.08
A97: 1987 | B97: Oberspreewald-Lausitz / Schwarzhei | C97: 1987 | D97: 1.08 | E97: 1.06 | F97: 1.08 | G97: 1.07 | H97: 1.07 | I97: 1.09 | J97: 1.11 | K97: 1.11 | L97: 1.11 | M97: 1.14 | N97: 1.15 | O97: 1.11 | P97: 1.07 | Q97: 1.04 | R97: 1.03 | S97: 1.06 | T97: 1.05 | U97: 1.04 | V97: 1.04 | W97: 1.04 | X97: 1.04 | Y97: 1.01 | Z97: 1.03 | AA97: 1.05 | AB97: 1.06 | AC97: 1.12 | AD97: 1.09 | AE97: 1.03 | AF97: 1.09 | AG97: 1.12 | AH97: 1.12 | AI97: 1.12 | AJ97: 1.12 | AK97: 1.15 | AL97: 1.15 | AM97: 1.14 | AN97: 1.15 | AO97: 1.12 | AP97: 1.17 | AQ97: 1.23 | AR97: 1.19 | AS97: 1.14 | AT97: 1.15 | AU97: 1.15 | AV97: 1.15 | AW97: 1.14 | AX97: 1.14 | AY97: 1.15 | AZ97: 1.15 | BA97: 1.18 | BB97: 1.19 | BC97: 1.17 | BD97: 1.17 | BE97: 1.17 | BF97: 1.16 | BG97: 1.15 | BH97: 1.15 | BI97: 1.16 | BJ97: 1.15 | BK97: 1.15 | BL97: 1.14 | BM97: 1.11 | BN97: 1.07 | BO97: 1.06 | BP97: 1.03 | BQ97: 1.02 | BR97: 1.03 | BS97: 1.04 | BT97: 1.03 | BU97: 1.04 | BV97: 1.03 | BW97: 1.02 | BX97: 1.02 | BY97: 1.04 | BZ97: 1.07 | CA97: 1.07 | CB97: 1.08
A98: 1990 | B98: Oberspreewald-Lausitz / Ortrand | C98: 1990 | D98: 1.06 | E98: 1.04 | F98: 1.06 | G98: 1.05 | H98: 1.05 | I98: 1.07 | J98: 1.09 | K98: 1.10 | L98: 1.09 | M98: 1.12 | N98: 1.13 | O98: 1.09 | P98: 1.05 | Q98: 1.03 | R98: 1.02 | S98: 1.04 | T98: 1.03 | U98: 1.03 | V98: 1.03 | W98: 1.03 | X98: 1.03 | Y98: 0.99 | Z98: 1.02 | AA98: 1.03 | AB98: 1.04 | AC98: 1.11 | AD98: 1.07 | AE98: 1.02 | AF98: 1.08 | AG98: 1.10 | AH98: 1.10 | AI98: 1.10 | AJ98: 1.11 | AK98: 1.13 | AL98: 1.13 | AM98: 1.12 | AN98: 1.14 | AO98: 1.11 | AP98: 1.15 | AQ98: 1.21 | AR98: 1.17 | AS98: 1.12 | AT98: 1.13 | AU98: 1.13 | AV98: 1.13 | AW98: 1.12 | AX98: 1.12 | AY98: 1.13 | AZ98: 1.13 | BA98: 1.16 | BB98: 1.17 | BC98: 1.15 | BD98: 1.15 | BE98: 1.15 | BF98: 1.13 | BG98: 1.13 | BH98: 1.13 | BI98: 1.14 | BJ98: 1.13 | BK98: 1.13 | BL98: 1.12 | BM98: 1.10 | BN98: 1.05 | BO98: 1.05 | BP98: 1.02 | BQ98: 1.01 | BR98: 1.02 | BS98: 1.02 | BT98: 1.02 | BU98: 1.02 | BV98: 1.01 | BW98: 1.01 | BX98: 1.00 | BY98: 1.02 | BZ98: 1.06 | CA98: 1.06 | CB98: 1.07
A99: 1993 | B99: Oberspreewald-Lausitz / Schipkau | C99: 1993 | D99: 1.06 | E99: 1.03 | F99: 1.05 | G99: 1.04 | H99: 1.04 | I99: 1.06 | J99: 1.09 | K99: 1.09 | L99: 1.08 | M99: 1.12 | N99: 1.12 | O99: 1.08 | P99: 1.05 | Q99: 1.02 | R99: 1.01 | S99: 1.03 | T99: 1.03 | U99: 1.02 | V99: 1.02 | W99: 1.02 | X99: 1.02 | Y99: 0.99 | Z99: 1.01 | AA99: 1.03 | AB99: 1.04 | AC99: 1.10 | AD99: 1.06 | AE99: 1.01 | AF99: 1.07 | AG99: 1.10 | AH99: 1.09 | AI99: 1.10 | AJ99: 1.10 | AK99: 1.13 | AL99: 1.13 | AM99: 1.12 | AN99: 1.13 | AO99: 1.10 | AP99: 1.15 | AQ99: 1.21 | AR99: 1.17 | AS99: 1.12 | AT99: 1.13 | AU99: 1.12 | AV99: 1.13 | AW99: 1.12 | AX99: 1.12 | AY99: 1.13 | AZ99: 1.12 | BA99: 1.15 | BB99: 1.17 | BC99: 1.15 | BD99: 1.14 | BE99: 1.14 | BF99: 1.13 | BG99: 1.13 | BH99: 1.12 | BI99: 1.13 | BJ99: 1.13 | BK99: 1.13 | BL99: 1.12 | BM99: 1.09 | BN99: 1.04 | BO99: 1.04 | BP99: 1.01 | BQ99: 1.00 | BR99: 1.01 | BS99: 1.02 | BT99: 1.01 | BU99: 1.02 | BV99: 1.01 | BW99: 1.01 | BX99: 1.00 | BY99: 1.02 | BZ99: 1.05 | CA99: 1.05 | CB99: 1.06
A100: 1994 | B100: Oberspreewald-Lausitz / Schipkau | C100: 1994 | D100: 1.03 | E100: 1.00 | F100: 1.02 | G100: 1.01 | H100: 1.01 | I100: 1.03 | J100: 1.06 | K100: 1.06 | L100: 1.05 | M100: 1.08 | N100: 1.09 | O100: 1.05 | P100: 1.02 | Q100: 1.00 | R100: 0.99 | S100: 1.01 | T100: 1.00 | U100: 1.00 | V100: 1.00 | W100: 1.00 | X100: 1.00 | Y100: 0.97 | Z100: 0.99 | AA100: 1.00 | AB100: 1.01 | AC100: 1.07 | AD100: 1.03 | AE100: 0.99 | AF100: 1.04 | AG100: 1.06 | AH100: 1.06 | AI100: 1.06 | AJ100: 1.07 | AK100: 1.09 | AL100: 1.09 | AM100: 1.09 | AN100: 1.10 | AO100: 1.07 | AP100: 1.12 | AQ100: 1.18 | AR100: 1.14 | AS100: 1.09 | AT100: 1.10 | AU100: 1.09 | AV100: 1.10 | AW100: 1.09 | AX100: 1.09 | AY100: 1.09 | AZ100: 1.09 | BA100: 1.12 | BB100: 1.13 | BC100: 1.11 | BD100: 1.11 | BE100: 1.11 | BF100: 1.09 | BG100: 1.09 | BH100: 1.09 | BI100: 1.10 | BJ100: 1.09 | BK100: 1.09 | BL100: 1.08 | BM100: 1.06 | BN100: 1.02 | BO100: 1.01 | BP100: 0.98 | BQ100: 0.98 | BR100: 0.99 | BS100: 0.99 | BT100: 0.98 | BU100: 0.99 | BV100: 0.98 | BW100: 0.98 | BX100: 0.97 | BY100: 0.99 | BZ100: 1.03 | CA100: 1.02 | CB100: 1.03
A101: 1996 | B101: Oberspreewald-Lausitz / Schipkau | C101: 1996 | D101: 1.07 | E101: 1.04 | F101: 1.06 | G101: 1.05 | H101: 1.05 | I101: 1.07 | J101: 1.09 | K101: 1.10 | L101: 1.09 | M101: 1.12 | N101: 1.13 | O101: 1.09 | P101: 1.05 | Q101: 1.03 | R101: 1.02 | S101: 1.04 | T101: 1.03 | U101: 1.03 | V101: 1.02 | W101: 1.02 | X101: 1.03 | Y101: 0.99 | Z101: 1.02 | AA101: 1.03 | AB101: 1.04 | AC101: 1.11 | AD101: 1.07 | AE101: 1.02 | AF101: 1.08 | AG101: 1.10 | AH101: 1.10 | AI101: 1.10 | AJ101: 1.10 | AK101: 1.13 | AL101: 1.13 | AM101: 1.12 | AN101: 1.14 | AO101: 1.11 | AP101: 1.15 | AQ101: 1.21 | AR101: 1.17 | AS101: 1.12 | AT101: 1.13 | AU101: 1.13 | AV101: 1.13 | AW101: 1.12 | AX101: 1.12 | AY101: 1.13 | AZ101: 1.13 | BA101: 1.16 | BB101: 1.17 | BC101: 1.15 | BD101: 1.15 | BE101: 1.15 | BF101: 1.13 | BG101: 1.13 | BH101: 1.13 | BI101: 1.14 | BJ101: 1.13 | BK101: 1.13 | BL101: 1.12 | BM101: 1.09 | BN101: 1.05 | BO101: 1.04 | BP101: 1.01 | BQ101: 1.01 | BR101: 1.02 | BS101: 1.02 | BT101: 1.01 | BU101: 1.02 | BV101: 1.01 | BW101: 1.01 | BX101: 1.00 | BY101: 1.02 | BZ101: 1.06 | CA101: 1.05 | CB101: 1.06
A102: 1998 | B102: Oberspreewald-Lausitz / Schipkau | C102: 1998 | D102: 1.05 | E102: 1.02 | F102: 1.05 | G102: 1.04 | H102: 1.03 | I102: 1.06 | J102: 1.08 | K102: 1.08 | L102: 1.07 | M102: 1.11 | N102: 1.11 | O102: 1.08 | P102: 1.04 | Q102: 1.02 | R102: 1.01 | S102: 1.03 | T102: 1.02 | U102: 1.02 | V102: 1.02 | W102: 1.01 | X102: 1.02 | Y102: 0.98 | Z102: 1.01 | AA102: 1.02 | AB102: 1.03 | AC102: 1.09 | AD102: 1.06 | AE102: 1.01 | AF102: 1.06 | AG102: 1.09 | AH102: 1.08 | AI102: 1.09 | AJ102: 1.09 | AK102: 1.12 | AL102: 1.12 | AM102: 1.11 | AN102: 1.12 | AO102: 1.09 | AP102: 1.14 | AQ102: 1.20 | AR102: 1.16 | AS102: 1.11 | AT102: 1.12 | AU102: 1.12 | AV102: 1.12 | AW102: 1.11 | AX102: 1.11 | AY102: 1.12 | AZ102: 1.12 | BA102: 1.14 | BB102: 1.16 | BC102: 1.14 | BD102: 1.13 | BE102: 1.13 | BF102: 1.12 | BG102: 1.12 | BH102: 1.12 | BI102: 1.12 | BJ102: 1.12 | BK102: 1.12 | BL102: 1.11 | BM102: 1.08 | BN102: 1.04 | BO102: 1.03 | BP102: 1.00 | BQ102: 1.00 | BR102: 1.01 | BS102: 1.01 | BT102: 1.00 | BU102: 1.01 | BV102: 1.00 | BW102: 1.00 | BX102: 0.99 | BY102: 1.01 | BZ102: 1.05 | CA102: 1.04 | CB102: 1.05
A103: 2625 | B103: Bautzen / Bautzen | C103: 2625 | D103: 1.07 | E103: 1.04 | F103: 1.06 | G103: 1.05 | H103: 1.05 | I103: 1.06 | J103: 1.09 | K103: 1.09 | L103: 1.08 | M103: 1.11 | N103: 1.11 | O103: 1.08 | P103: 1.04 | Q103: 1.02 | R103: 1.01 | S103: 1.03 | T103: 1.02 | U103: 1.02 | V103: 1.02 | W103: 1.01 | X103: 1.02 | Y103: 0.99 | Z103: 1.01 | AA103: 1.03 | AB103: 1.03 | AC103: 1.09 | AD103: 1.06 | AE103: 1.01 | AF103: 1.07 | AG103: 1.09 | AH103: 1.09 | AI103: 1.08 | AJ103: 1.09 | AK103: 1.11 | AL103: 1.11 | AM103: 1.11 | AN103: 1.12 | AO103: 1.09 | AP103: 1.14 | AQ103: 1.20 | AR103: 1.16 | AS103: 1.10 | AT103: 1.11 | AU103: 1.11 | AV103: 1.12 | AW103: 1.11 | AX103: 1.11 | AY103: 1.12 | AZ103: 1.12 | BA103: 1.15 | BB103: 1.16 | BC103: 1.15 | BD103: 1.14 | BE103: 1.14 | BF103: 1.13 | BG103: 1.13 | BH103: 1.13 | BI103: 1.13 | BJ103: 1.12 | BK103: 1.12 | BL103: 1.11 | BM103: 1.08 | BN103: 1.04 | BO103: 1.04 | BP103: 1.00 | BQ103: 0.99 | BR103: 1.00 | BS103: 1.00 | BT103: 1.00 | BU103: 1.00 | BV103: 0.99 | BW103: 0.99 | BX103: 0.98 | BY103: 1.00 | BZ103: 1.03 | CA103: 1.03 | CB103: 1.04
A104: 2627 | B104: Bautzen / Radibor | C104: 2627 | D104: 1.01 | E104: 0.98 | F104: 1.00 | G104: 1.00 | H104: 1.00 | I104: 1.01 | J104: 1.03 | K104: 1.03 | L104: 1.03 | M104: 1.06 | N104: 1.06 | O104: 1.03 | P104: 0.99 | Q104: 0.97 | R104: 0.96 | S104: 0.98 | T104: 0.98 | U104: 0.97 | V104: 0.97 | W104: 0.97 | X104: 0.97 | Y104: 0.94 | Z104: 0.96 | AA104: 0.97 | AB104: 0.98 | AC104: 1.04 | AD104: 1.01 | AE104: 0.96 | AF104: 1.01 | AG104: 1.04 | AH104: 1.04 | AI104: 1.04 | AJ104: 1.04 | AK104: 1.07 | AL104: 1.07 | AM104: 1.06 | AN104: 1.08 | AO104: 1.05 | AP104: 1.09 | AQ104: 1.15 | AR104: 1.11 | AS104: 1.06 | AT104: 1.07 | AU104: 1.07 | AV104: 1.07 | AW104: 1.06 | AX104: 1.06 | AY104: 1.07 | AZ104: 1.07 | BA104: 1.09 | BB104: 1.11 | BC104: 1.09 | BD104: 1.08 | BE104: 1.08 | BF104: 1.07 | BG104: 1.07 | BH104: 1.06 | BI104: 1.07 | BJ104: 1.07 | BK104: 1.06 | BL104: 1.05 | BM104: 1.03 | BN104: 0.99 | BO104: 0.99 | BP104: 0.96 | BQ104: 0.95 | BR104: 0.96 | BS104: 0.97 | BT104: 0.96 | BU104: 0.97 | BV104: 0.96 | BW104: 0.95 | BX104: 0.95 | BY104: 0.97 | BZ104: 1.00 | CA104: 0.99 | CB104: 1.00
A105: 2633 | B105: Bautzen / Göda | C105: 2633 | D105: 1.01 | E105: 0.99 | F105: 1.01 | G105: 1.00 | H105: 1.00 | I105: 1.02 | J105: 1.04 | K105: 1.04 | L105: 1.03 | M105: 1.06 | N105: 1.07 | O105: 1.03 | P105: 1.00 | Q105: 0.98 | R105: 0.97 | S105: 0.99 | T105: 0.98 | U105: 0.98 | V105: 0.98 | W105: 0.98 | X105: 0.98 | Y105: 0.95 | Z105: 0.97 | AA105: 0.98 | AB105: 0.99 | AC105: 1.05 | AD105: 1.01 | AE105: 0.97 | AF105: 1.02 | AG105: 1.04 | AH105: 1.04 | AI105: 1.05 | AJ105: 1.05 | AK105: 1.07 | AL105: 1.08 | AM105: 1.07 | AN105: 1.08 | AO105: 1.06 | AP105: 1.10 | AQ105: 1.16 | AR105: 1.12 | AS105: 1.07 | AT105: 1.08 | AU105: 1.07 | AV105: 1.08 | AW105: 1.07 | AX105: 1.07 | AY105: 1.07 | AZ105: 1.07 | BA105: 1.10 | BB105: 1.11 | BC105: 1.09 | BD105: 1.09 | BE105: 1.09 | BF105: 1.07 | BG105: 1.07 | BH105: 1.07 | BI105: 1.08 | BJ105: 1.07 | BK105: 1.07 | BL105: 1.06 | BM105: 1.04 | BN105: 1.00 | BO105: 0.99 | BP105: 0.97 | BQ105: 0.96 | BR105: 0.97 | BS105: 0.98 | BT105: 0.96 | BU105: 0.97 | BV105: 0.96 | BW105: 0.96 | BX105: 0.95 | BY105: 0.97 | BZ105: 1.00 | CA105: 1.00 | CB105: 1.01
A106: 2681 | B106: Bautzen / Kirschau | C106: 2681 | D106: 0.97 | E106: 0.95 | F106: 0.97 | G106: 0.96 | H106: 0.96 | I106: 0.98 | J106: 0.99 | K106: 0.99 | L106: 0.99 | M106: 1.01 | N106: 1.02 | O106: 0.99 | P106: 0.96 | Q106: 0.94 | R106: 0.93 | S106: 0.95 | T106: 0.94 | U106: 0.94 | V106: 0.94 | W106: 0.94 | X106: 0.94 | Y106: 0.91 | Z106: 0.93 | AA106: 0.94 | AB106: 0.95 | AC106: 1.00 | AD106: 0.97 | AE106: 0.92 | AF106: 0.97 | AG106: 1.00 | AH106: 0.99 | AI106: 1.00 | AJ106: 1.00 | AK106: 1.02 | AL106: 1.03 | AM106: 1.03 | AN106: 1.03 | AO106: 1.01 | AP106: 1.06 | AQ106: 1.11 | AR106: 1.07 | AS106: 1.02 | AT106: 1.03 | AU106: 1.03 | AV106: 1.03 | AW106: 1.02 | AX106: 1.02 | AY106: 1.02 | AZ106: 1.03 | BA106: 1.05 | BB106: 1.06 | BC106: 1.04 | BD106: 1.04 | BE106: 1.04 | BF106: 1.03 | BG106: 1.02 | BH106: 1.02 | BI106: 1.03 | BJ106: 1.02 | BK106: 1.02 | BL106: 1.01 | BM106: 0.99 | BN106: 0.96 | BO106: 0.95 | BP106: 0.92 | BQ106: 0.92 | BR106: 0.93 | BS106: 0.93 | BT106: 0.92 | BU106: 0.93 | BV106: 0.92 | BW106: 0.92 | BX106: 0.91 | BY106: 0.93 | BZ106: 0.95 | CA106: 0.95 | CB106: 0.96
A107: 2689 | B107: Bautzen / Sohland an der Spree | C107: 2689 | D107: 0.96 | E107: 0.94 | F107: 0.96 | G107: 0.95 | H107: 0.95 | I107: 0.96 | J107: 0.98 | K107: 0.98 | L107: 0.97 | M107: 1.00 | N107: 1.01 | O107: 0.98 | P107: 0.95 | Q107: 0.93 | R107: 0.92 | S107: 0.94 | T107: 0.93 | U107: 0.93 | V107: 0.93 | W107: 0.93 | X107: 0.93 | Y107: 0.90 | Z107: 0.92 | AA107: 0.93 | AB107: 0.94 | AC107: 0.99 | AD107: 0.96 | AE107: 0.91 | AF107: 0.96 | AG107: 0.98 | AH107: 0.98 | AI107: 0.99 | AJ107: 0.99 | AK107: 1.01 | AL107: 1.02 | AM107: 1.02 | AN107: 1.02 | AO107: 1.00 | AP107: 1.04 | AQ107: 1.09 | AR107: 1.06 | AS107: 1.01 | AT107: 1.02 | AU107: 1.01 | AV107: 1.02 | AW107: 1.01 | AX107: 1.01 | AY107: 1.01 | AZ107: 1.01 | BA107: 1.04 | BB107: 1.05 | BC107: 1.03 | BD107: 1.03 | BE107: 1.03 | BF107: 1.01 | BG107: 1.01 | BH107: 1.01 | BI107: 1.02 | BJ107: 1.01 | BK107: 1.01 | BL107: 1.00 | BM107: 0.98 | BN107: 0.95 | BO107: 0.94 | BP107: 0.92 | BQ107: 0.91 | BR107: 0.92 | BS107: 0.93 | BT107: 0.91 | BU107: 0.92 | BV107: 0.91 | BW107: 0.91 | BX107: 0.90 | BY107: 0.92 | BZ107: 0.95 | CA107: 0.94 | CB107: 0.95
A108: 2692 | B108: Bautzen / Obergurig | C108: 2692 | D108: 1.01 | E108: 0.98 | F108: 1.00 | G108: 0.99 | H108: 0.99 | I108: 1.01 | J108: 1.03 | K108: 1.03 | L108: 1.02 | M108: 1.05 | N108: 1.06 | O108: 1.02 | P108: 0.99 | Q108: 0.97 | R108: 0.96 | S108: 0.98 | T108: 0.97 | U108: 0.97 | V108: 0.97 | W108: 0.97 | X108: 0.97 | Y108: 0.94 | Z108: 0.96 | AA108: 0.97 | AB108: 0.98 | AC108: 1.04 | AD108: 1.00 | AE108: 0.96 | AF108: 1.01 | AG108: 1.03 | AH108: 1.03 | AI108: 1.04 | AJ108: 1.04 | AK108: 1.06 | AL108: 1.07 | AM108: 1.06 | AN108: 1.07 | AO108: 1.04 | AP108: 1.09 | AQ108: 1.15 | AR108: 1.11 | AS108: 1.05 | AT108: 1.07 | AU108: 1.06 | AV108: 1.07 | AW108: 1.06 | AX108: 1.06 | AY108: 1.07 | AZ108: 1.06 | BA108: 1.09 | BB108: 1.10 | BC108: 1.08 | BD108: 1.08 | BE108: 1.08 | BF108: 1.06 | BG108: 1.06 | BH108: 1.06 | BI108: 1.07 | BJ108: 1.06 | BK108: 1.06 | BL108: 1.05 | BM108: 1.03 | BN108: 0.99 | BO108: 0.99 | BP108: 0.96 | BQ108: 0.95 | BR108: 0.96 | BS108: 0.97 | BT108: 0.96 | BU108: 0.96 | BV108: 0.95 | BW108: 0.95 | BX108: 0.94 | BY108: 0.96 | BZ108: 0.99 | CA108: 0.99 | CB108: 1.00
A109: 2694 | B109: Bautzen / Großdubrau | C109: 2694 | D109: 1.03 | E109: 1.01 | F109: 1.03 | G109: 1.02 | H109: 1.02 | I109: 1.04 | J109: 1.06 | K109: 1.06 | L109: 1.05 | M109: 1.09 | N109: 1.09 | O109: 1.06 | P109: 1.02 | Q109: 1.00 | R109: 0.99 | S109: 1.01 | T109: 1.00 | U109: 0.99 | V109: 0.99 | W109: 0.99 | X109: 0.99 | Y109: 0.96 | Z109: 0.98 | AA109: 1.00 | AB109: 1.01 | AC109: 1.07 | AD109: 1.03 | AE109: 0.99 | AF109: 1.04 | AG109: 1.07 | AH109: 1.06 | AI109: 1.07 | AJ109: 1.07 | AK109: 1.10 | AL109: 1.10 | AM109: 1.09 | AN109: 1.11 | AO109: 1.08 | AP109: 1.12 | AQ109: 1.18 | AR109: 1.14 | AS109: 1.09 | AT109: 1.10 | AU109: 1.10 | AV109: 1.10 | AW109: 1.09 | AX109: 1.09 | AY109: 1.10 | AZ109: 1.10 | BA109: 1.12 | BB109: 1.14 | BC109: 1.12 | BD109: 1.11 | BE109: 1.11 | BF109: 1.10 | BG109: 1.09 | BH109: 1.09 | BI109: 1.10 | BJ109: 1.10 | BK109: 1.09 | BL109: 1.08 | BM109: 1.06 | BN109: 1.01 | BO109: 1.01 | BP109: 0.98 | BQ109: 0.98 | BR109: 0.99 | BS109: 0.99 | BT109: 0.98 | BU109: 0.99 | BV109: 0.98 | BW109: 0.98 | BX109: 0.97 | BY109: 0.99 | BZ109: 1.02 | CA109: 1.02 | CB109: 1.03
A110: 2699 | B110: Bautzen / Neschwitz | C110: 2699 | D110: 1.04 | E110: 1.01 | F110: 1.03 | G110: 1.02 | H110: 1.02 | I110: 1.04 | J110: 1.06 | K110: 1.07 | L110: 1.06 | M110: 1.09 | N110: 1.10 | O110: 1.06 | P110: 1.02 | Q110: 1.00 | R110: 0.99 | S110: 1.01 | T110: 1.00 | U110: 1.00 | V110: 1.00 | W110: 1.00 | X110: 1.00 | Y110: 0.97 | Z110: 0.99 | AA110: 1.00 | AB110: 1.01 | AC110: 1.07 | AD110: 1.04 | AE110: 0.99 | AF110: 1.05 | AG110: 1.07 | AH110: 1.07 | AI110: 1.07 | AJ110: 1.07 | AK110: 1.10 | AL110: 1.10 | AM110: 1.09 | AN110: 1.11 | AO110: 1.08 | AP110: 1.12 | AQ110: 1.18 | AR110: 1.14 | AS110: 1.09 | AT110: 1.10 | AU110: 1.10 | AV110: 1.10 | AW110: 1.09 | AX110: 1.09 | AY110: 1.10 | AZ110: 1.10 | BA110: 1.13 | BB110: 1.14 | BC110: 1.12 | BD110: 1.12 | BE110: 1.12 | BF110: 1.10 | BG110: 1.10 | BH110: 1.10 | BI110: 1.10 | BJ110: 1.10 | BK110: 1.10 | BL110: 1.09 | BM110: 1.06 | BN110: 1.02 | BO110: 1.02 | BP110: 0.99 | BQ110: 0.98 | BR110: 0.99 | BS110: 1.00 | BT110: 0.99 | BU110: 1.00 | BV110: 0.99 | BW110: 0.98 | BX110: 0.98 | BY110: 1.00 | BZ110: 1.03 | CA110: 1.03 | CB110: 1.03
A111: 2708 | B111: Löbau-Zittau / Kittlitz | C111: 2708 | D111: 0.96 | E111: 0.94 | F111: 0.96 | G111: 0.95 | H111: 0.95 | I111: 0.97 | J111: 0.98 | K111: 0.99 | L111: 0.98 | M111: 1.01 | N111: 1.01 | O111: 0.98 | P111: 0.95 | Q111: 0.93 | R111: 0.92 | S111: 0.94 | T111: 0.93 | U111: 0.93 | V111: 0.93 | W111: 0.93 | X111: 0.93 | Y111: 0.90 | Z111: 0.92 | AA111: 0.93 | AB111: 0.94 | AC111: 0.99 | AD111: 0.96 | AE111: 0.92 | AF111: 0.97 | AG111: 0.99 | AH111: 0.98 | AI111: 0.99 | AJ111: 0.99 | AK111: 1.01 | AL111: 1.02 | AM111: 1.02 | AN111: 1.03 | AO111: 1.00 | AP111: 1.05 | AQ111: 1.10 | AR111: 1.06 | AS111: 1.01 | AT111: 1.02 | AU111: 1.02 | AV111: 1.02 | AW111: 1.01 | AX111: 1.01 | AY111: 1.02 | AZ111: 1.02 | BA111: 1.04 | BB111: 1.05 | BC111: 1.03 | BD111: 1.03 | BE111: 1.03 | BF111: 1.02 | BG111: 1.01 | BH111: 1.01 | BI111: 1.02 | BJ111: 1.01 | BK111: 1.01 | BL111: 1.00 | BM111: 0.98 | BN111: 0.95 | BO111: 0.94 | BP111: 0.92 | BQ111: 0.91 | BR111: 0.92 | BS111: 0.93 | BT111: 0.92 | BU111: 0.92 | BV111: 0.91 | BW111: 0.91 | BX111: 0.90 | BY111: 0.92 | BZ111: 0.95 | CA111: 0.95 | CB111: 0.95
A112: 2727 | B112: Löbau-Zittau / Neugersdorf | C112: 2727 | D112: 0.94 | E112: 0.92 | F112: 0.93 | G112: 0.92 | H112: 0.92 | I112: 0.94 | J112: 0.95 | K112: 0.95 | L112: 0.94 | M112: 0.97 | N112: 0.97 | O112: 0.94 | P112: 0.92 | Q112: 0.90 | R112: 0.89 | S112: 0.91 | T112: 0.90 | U112: 0.90 | V112: 0.91 | W112: 0.90 | X112: 0.91 | Y112: 0.88 | Z112: 0.90 | AA112: 0.91 | AB112: 0.91 | AC112: 0.95 | AD112: 0.92 | AE112: 0.88 | AF112: 0.93 | AG112: 0.95 | AH112: 0.95 | AI112: 0.95 | AJ112: 0.95 | AK112: 0.97 | AL112: 0.98 | AM112: 0.98 | AN112: 0.99 | AO112: 0.96 | AP112: 1.01 | AQ112: 1.06 | AR112: 1.02 | AS112: 0.97 | AT112: 0.98 | AU112: 0.98 | AV112: 0.98 | AW112: 0.97 | AX112: 0.97 | AY112: 0.98 | AZ112: 0.98 | BA112: 1.00 | BB112: 1.01 | BC112: 1.00 | BD112: 1.00 | BE112: 1.00 | BF112: 0.98 | BG112: 0.98 | BH112: 0.98 | BI112: 0.98 | BJ112: 0.98 | BK112: 0.98 | BL112: 0.97 | BM112: 0.94 | BN112: 0.92 | BO112: 0.91 | BP112: 0.89 | BQ112: 0.88 | BR112: 0.89 | BS112: 0.90 | BT112: 0.88 | BU112: 0.89 | BV112: 0.88 | BW112: 0.88 | BX112: 0.87 | BY112: 0.89 | BZ112: 0.91 | CA112: 0.91 | CB112: 0.92
A113: 2730 | B113: Löbau-Zittau / Ebersbach/Sachsen | C113: 2730 | D113: 0.95 | E113: 0.93 | F113: 0.95 | G113: 0.94 | H113: 0.94 | I113: 0.95 | J113: 0.97 | K113: 0.97 | L113: 0.96 | M113: 0.99 | N113: 0.99 | O113: 0.96 | P113: 0.93 | Q113: 0.91 | R113: 0.91 | S113: 0.93 | T113: 0.92 | U113: 0.92 | V113: 0.92 | W113: 0.92 | X113: 0.92 | Y113: 0.89 | Z113: 0.91 | AA113: 0.92 | AB113: 0.92 | AC113: 0.97 | AD113: 0.94 | AE113: 0.90 | AF113: 0.95 | AG113: 0.97 | AH113: 0.96 | AI113: 0.97 | AJ113: 0.97 | AK113: 0.99 | AL113: 1.00 | AM113: 1.00 | AN113: 1.01 | AO113: 0.98 | AP113: 1.03 | AQ113: 1.08 | AR113: 1.04 | AS113: 0.99 | AT113: 1.00 | AU113: 1.00 | AV113: 1.00 | AW113: 0.99 | AX113: 0.99 | AY113: 1.00 | AZ113: 1.00 | BA113: 1.02 | BB113: 1.03 | BC113: 1.02 | BD113: 1.01 | BE113: 1.01 | BF113: 1.00 | BG113: 1.00 | BH113: 0.99 | BI113: 1.00 | BJ113: 1.00 | BK113: 0.99 | BL113: 0.99 | BM113: 0.96 | BN113: 0.93 | BO113: 0.93 | BP113: 0.90 | BQ113: 0.90 | BR113: 0.91 | BS113: 0.91 | BT113: 0.90 | BU113: 0.90 | BV113: 0.90 | BW113: 0.89 | BX113: 0.89 | BY113: 0.91 | BZ113: 0.93 | CA113: 0.93 | CB113: 0.94
A114: 2733 | B114: Bautzen / Cunewalde | C114: 2733 | D114: 0.97 | E114: 0.95 | F114: 0.97 | G114: 0.96 | H114: 0.96 | I114: 0.98 | J114: 0.99 | K114: 1.00 | L114: 0.99 | M114: 1.02 | N114: 1.02 | O114: 0.99 | P114: 0.96 | Q114: 0.94 | R114: 0.93 | S114: 0.95 | T114: 0.94 | U114: 0.94 | V114: 0.94 | W114: 0.94 | X114: 0.94 | Y114: 0.91 | Z114: 0.93 | AA114: 0.94 | AB114: 0.95 | AC114: 1.00 | AD114: 0.97 | AE114: 0.93 | AF114: 0.98 | AG114: 1.00 | AH114: 0.99 | AI114: 1.00 | AJ114: 1.00 | AK114: 1.02 | AL114: 1.03 | AM114: 1.03 | AN114: 1.04 | AO114: 1.01 | AP114: 1.06 | AQ114: 1.11 | AR114: 1.07 | AS114: 1.02 | AT114: 1.03 | AU114: 1.03 | AV114: 1.03 | AW114: 1.02 | AX114: 1.02 | AY114: 1.03 | AZ114: 1.03 | BA114: 1.05 | BB114: 1.06 | BC114: 1.05 | BD114: 1.04 | BE114: 1.04 | BF114: 1.03 | BG114: 1.02 | BH114: 1.02 | BI114: 1.03 | BJ114: 1.02 | BK114: 1.02 | BL114: 1.01 | BM114: 0.99 | BN114: 0.96 | BO114: 0.95 | BP114: 0.93 | BQ114: 0.92 | BR114: 0.93 | BS114: 0.94 | BT114: 0.92 | BU114: 0.93 | BV114: 0.92 | BW114: 0.92 | BX114: 0.91 | BY114: 0.93 | BZ114: 0.96 | CA114: 0.96 | CB114: 0.96
A115: 2736 | B115: Löbau-Zittau / Oppach | C115: 2736 | D115: 0.94 | E115: 0.92 | F115: 0.94 | G115: 0.93 | H115: 0.93 | I115: 0.95 | J115: 0.96 | K115: 0.96 | L115: 0.95 | M115: 0.98 | N115: 0.99 | O115: 0.96 | P115: 0.93 | Q115: 0.91 | R115: 0.90 | S115: 0.92 | T115: 0.91 | U115: 0.91 | V115: 0.91 | W115: 0.91 | X115: 0.91 | Y115: 0.89 | Z115: 0.90 | AA115: 0.91 | AB115: 0.92 | AC115: 0.97 | AD115: 0.93 | AE115: 0.90 | AF115: 0.94 | AG115: 0.96 | AH115: 0.96 | AI115: 0.96 | AJ115: 0.97 | AK115: 0.99 | AL115: 1.00 | AM115: 1.00 | AN115: 1.00 | AO115: 0.98 | AP115: 1.02 | AQ115: 1.07 | AR115: 1.04 | AS115: 0.99 | AT115: 1.00 | AU115: 0.99 | AV115: 1.00 | AW115: 0.98 | AX115: 0.98 | AY115: 0.99 | AZ115: 0.99 | BA115: 1.02 | BB115: 1.03 | BC115: 1.01 | BD115: 1.01 | BE115: 1.01 | BF115: 0.99 | BG115: 0.99 | BH115: 0.99 | BI115: 0.99 | BJ115: 0.99 | BK115: 0.99 | BL115: 0.98 | BM115: 0.96 | BN115: 0.93 | BO115: 0.92 | BP115: 0.90 | BQ115: 0.89 | BR115: 0.90 | BS115: 0.91 | BT115: 0.90 | BU115: 0.90 | BV115: 0.90 | BW115: 0.89 | BX115: 0.89 | BY115: 0.90 | BZ115: 0.93 | CA115: 0.93 | CB115: 0.93
A116: 2739 | B116: Löbau-Zittau / Eibau | C116: 2739 | D116: 0.95 | E116: 0.93 | F116: 0.95 | G116: 0.94 | H116: 0.94 | I116: 0.96 | J116: 0.97 | K116: 0.97 | L116: 0.96 | M116: 0.99 | N116: 1.00 | O116: 0.96 | P116: 0.94 | Q116: 0.92 | R116: 0.91 | S116: 0.93 | T116: 0.92 | U116: 0.92 | V116: 0.92 | W116: 0.92 | X116: 0.92 | Y116: 0.89 | Z116: 0.91 | AA116: 0.92 | AB116: 0.93 | AC116: 0.98 | AD116: 0.94 | AE116: 0.90 | AF116: 0.95 | AG116: 0.97 | AH116: 0.97 | AI116: 0.97 | AJ116: 0.98 | AK116: 1.00 | AL116: 1.00 | AM116: 1.01 | AN116: 1.01 | AO116: 0.99 | AP116: 1.03 | AQ116: 1.08 | AR116: 1.05 | AS116: 0.99 | AT116: 1.01 | AU116: 1.00 | AV116: 1.01 | AW116: 0.99 | AX116: 0.99 | AY116: 1.00 | AZ116: 1.00 | BA116: 1.03 | BB116: 1.04 | BC116: 1.02 | BD116: 1.02 | BE116: 1.02 | BF116: 1.00 | BG116: 1.00 | BH116: 1.00 | BI116: 1.00 | BJ116: 1.00 | BK116: 1.00 | BL116: 0.99 | BM116: 0.97 | BN116: 0.93 | BO116: 0.93 | BP116: 0.90 | BQ116: 0.90 | BR116: 0.91 | BS116: 0.91 | BT116: 0.90 | BU116: 0.91 | BV116: 0.90 | BW116: 0.90 | BX116: 0.89 | BY116: 0.91 | BZ116: 0.93 | CA116: 0.93 | CB116: 0.94
A117: 2742 | B117: Löbau-Zittau / Neusalza-Spremberg | C117: 2742 | D117: 0.96 | E117: 0.94 | F117: 0.96 | G117: 0.95 | H117: 0.95 | I117: 0.96 | J117: 0.98 | K117: 0.98 | L117: 0.97 | M117: 1.00 | N117: 1.00 | O117: 0.97 | P117: 0.94 | Q117: 0.92 | R117: 0.92 | S117: 0.94 | T117: 0.93 | U117: 0.93 | V117: 0.93 | W117: 0.93 | X117: 0.93 | Y117: 0.90 | Z117: 0.92 | AA117: 0.93 | AB117: 0.93 | AC117: 0.98 | AD117: 0.95 | AE117: 0.91 | AF117: 0.96 | AG117: 0.98 | AH117: 0.98 | AI117: 0.98 | AJ117: 0.99 | AK117: 1.01 | AL117: 1.01 | AM117: 1.01 | AN117: 1.02 | AO117: 0.99 | AP117: 1.04 | AQ117: 1.09 | AR117: 1.05 | AS117: 1.00 | AT117: 1.02 | AU117: 1.01 | AV117: 1.01 | AW117: 1.00 | AX117: 1.00 | AY117: 1.01 | AZ117: 1.01 | BA117: 1.03 | BB117: 1.04 | BC117: 1.03 | BD117: 1.02 | BE117: 1.03 | BF117: 1.01 | BG117: 1.01 | BH117: 1.01 | BI117: 1.01 | BJ117: 1.01 | BK117: 1.01 | BL117: 1.00 | BM117: 0.97 | BN117: 0.94 | BO117: 0.94 | BP117: 0.91 | BQ117: 0.91 | BR117: 0.92 | BS117: 0.92 | BT117: 0.91 | BU117: 0.92 | BV117: 0.91 | BW117: 0.91 | BX117: 0.90 | BY117: 0.92 | BZ117: 0.94 | CA117: 0.94 | CB117: 0.95
A118: 2747 | B118: Löbau-Zittau / Strahwalde | C118: 2747 | D118: 0.96 | E118: 0.94 | F118: 0.96 | G118: 0.95 | H118: 0.95 | I118: 0.96 | J118: 0.98 | K118: 0.98 | L118: 0.97 | M118: 1.00 | N118: 1.01 | O118: 0.97 | P118: 0.95 | Q118: 0.93 | R118: 0.92 | S118: 0.94 | T118: 0.93 | U118: 0.93 | V118: 0.93 | W118: 0.93 | X118: 0.93 | Y118: 0.90 | Z118: 0.92 | AA118: 0.93 | AB118: 0.93 | AC118: 0.98 | AD118: 0.95 | AE118: 0.91 | AF118: 0.96 | AG118: 0.98 | AH118: 0.98 | AI118: 0.98 | AJ118: 0.99 | AK118: 1.01 | AL118: 1.02 | AM118: 1.01 | AN118: 1.02 | AO118: 1.00 | AP118: 1.04 | AQ118: 1.09 | AR118: 1.05 | AS118: 1.00 | AT118: 1.02 | AU118: 1.01 | AV118: 1.02 | AW118: 1.00 | AX118: 1.00 | AY118: 1.01 | AZ118: 1.01 | BA118: 1.04 | BB118: 1.05 | BC118: 1.03 | BD118: 1.03 | BE118: 1.03 | BF118: 1.01 | BG118: 1.01 | BH118: 1.01 | BI118: 1.01 | BJ118: 1.01 | BK118: 1.01 | BL118: 1.00 | BM118: 0.97 | BN118: 0.94 | BO118: 0.94 | BP118: 0.91 | BQ118: 0.91 | BR118: 0.92 | BS118: 0.92 | BT118: 0.91 | BU118: 0.92 | BV118: 0.91 | BW118: 0.91 | BX118: 0.90 | BY118: 0.92 | BZ118: 0.94 | CA118: 0.94 | CB118: 0.95
A119: 2748 | B119: Löbau-Zittau / Bernstadt auf dem E | C119: 2748 | D119: 1.01 | E119: 0.98 | F119: 1.00 | G119: 0.99 | H119: 0.99 | I119: 1.01 | J119: 1.03 | K119: 1.03 | L119: 1.02 | M119: 1.05 | N119: 1.06 | O119: 1.02 | P119: 0.99 | Q119: 0.97 | R119: 0.96 | S119: 0.98 | T119: 0.97 | U119: 0.97 | V119: 0.97 | W119: 0.96 | X119: 0.97 | Y119: 0.94 | Z119: 0.96 | AA119: 0.97 | AB119: 0.98 | AC119: 1.04 | AD119: 1.00 | AE119: 0.96 | AF119: 1.01 | AG119: 1.03 | AH119: 1.03 | AI119: 1.04 | AJ119: 1.04 | AK119: 1.06 | AL119: 1.07 | AM119: 1.06 | AN119: 1.07 | AO119: 1.04 | AP119: 1.09 | AQ119: 1.14 | AR119: 1.10 | AS119: 1.05 | AT119: 1.07 | AU119: 1.06 | AV119: 1.07 | AW119: 1.05 | AX119: 1.05 | AY119: 1.07 | AZ119: 1.06 | BA119: 1.09 | BB119: 1.10 | BC119: 1.08 | BD119: 1.08 | BE119: 1.08 | BF119: 1.06 | BG119: 1.06 | BH119: 1.06 | BI119: 1.07 | BJ119: 1.06 | BK119: 1.06 | BL119: 1.05 | BM119: 1.02 | BN119: 0.98 | BO119: 0.98 | BP119: 0.95 | BQ119: 0.95 | BR119: 0.96 | BS119: 0.96 | BT119: 0.95 | BU119: 0.96 | BV119: 0.95 | BW119: 0.95 | BX119: 0.94 | BY119: 0.96 | BZ119: 0.99 | CA119: 0.99 | CB119: 1.00
A120: 2763 | B120: Löbau-Zittau / Zittau | C120: 2763 | D120: 1.00 | E120: 0.97 | F120: 0.99 | G120: 0.99 | H120: 0.99 | I120: 1.00 | J120: 1.02 | K120: 1.02 | L120: 1.01 | M120: 1.04 | N120: 1.04 | O120: 1.01 | P120: 0.98 | Q120: 0.96 | R120: 0.95 | S120: 0.97 | T120: 0.96 | U120: 0.96 | V120: 0.96 | W120: 0.96 | X120: 0.96 | Y120: 0.93 | Z120: 0.95 | AA120: 0.96 | AB120: 0.97 | AC120: 1.02 | AD120: 0.99 | AE120: 0.95 | AF120: 1.00 | AG120: 1.02 | AH120: 1.02 | AI120: 1.02 | AJ120: 1.02 | AK120: 1.05 | AL120: 1.05 | AM120: 1.05 | AN120: 1.06 | AO120: 1.03 | AP120: 1.08 | AQ120: 1.13 | AR120: 1.09 | AS120: 1.04 | AT120: 1.05 | AU120: 1.05 | AV120: 1.05 | AW120: 1.04 | AX120: 1.04 | AY120: 1.05 | AZ120: 1.05 | BA120: 1.07 | BB120: 1.09 | BC120: 1.07 | BD120: 1.07 | BE120: 1.07 | BF120: 1.05 | BG120: 1.05 | BH120: 1.05 | BI120: 1.05 | BJ120: 1.05 | BK120: 1.04 | BL120: 1.04 | BM120: 1.01 | BN120: 0.98 | BO120: 0.97 | BP120: 0.94 | BQ120: 0.94 | BR120: 0.95 | BS120: 0.95 | BT120: 0.94 | BU120: 0.95 | BV120: 0.94 | BW120: 0.94 | BX120: 0.93 | BY120: 0.95 | BZ120: 0.98 | CA120: 0.97 | CB120: 0.98
A121: 2779 | B121: Löbau-Zittau / Großschönau | C121: 2779 | D121: 0.97 | E121: 0.95 | F121: 0.97 | G121: 0.96 | H121: 0.96 | I121: 0.98 | J121: 0.99 | K121: 0.99 | L121: 0.99 | M121: 1.01 | N121: 1.02 | O121: 0.99 | P121: 0.96 | Q121: 0.94 | R121: 0.93 | S121: 0.95 | T121: 0.94 | U121: 0.94 | V121: 0.94 | W121: 0.94 | X121: 0.94 | Y121: 0.91 | Z121: 0.93 | AA121: 0.94 | AB121: 0.95 | AC121: 1.00 | AD121: 0.97 | AE121: 0.92 | AF121: 0.97 | AG121: 1.00 | AH121: 0.99 | AI121: 1.00 | AJ121: 1.00 | AK121: 1.02 | AL121: 1.03 | AM121: 1.03 | AN121: 1.04 | AO121: 1.01 | AP121: 1.06 | AQ121: 1.11 | AR121: 1.07 | AS121: 1.02 | AT121: 1.03 | AU121: 1.03 | AV121: 1.03 | AW121: 1.02 | AX121: 1.02 | AY121: 1.03 | AZ121: 1.03 | BA121: 1.05 | BB121: 1.06 | BC121: 1.04 | BD121: 1.04 | BE121: 1.04 | BF121: 1.03 | BG121: 1.02 | BH121: 1.02 | BI121: 1.03 | BJ121: 1.02 | BK121: 1.02 | BL121: 1.01 | BM121: 0.99 | BN121: 0.95 | BO121: 0.95 | BP121: 0.92 | BQ121: 0.92 | BR121: 0.93 | BS121: 0.93 | BT121: 0.92 | BU121: 0.93 | BV121: 0.92 | BW121: 0.92 | BX121: 0.91 | BY121: 0.93 | BZ121: 0.95 | CA121: 0.95 | CB121: 0.96
A122: 2782 | B122: Löbau-Zittau / Seifhennersdorf | C122: 2782 | D122: 0.96 | E122: 0.93 | F122: 0.95 | G122: 0.94 | H122: 0.94 | I122: 0.96 | J122: 0.97 | K122: 0.97 | L122: 0.97 | M122: 0.99 | N122: 1.00 | O122: 0.97 | P122: 0.94 | Q122: 0.92 | R122: 0.91 | S122: 0.93 | T122: 0.92 | U122: 0.92 | V122: 0.92 | W122: 0.92 | X122: 0.92 | Y122: 0.89 | Z122: 0.91 | AA122: 0.92 | AB122: 0.93 | AC122: 0.98 | AD122: 0.95 | AE122: 0.91 | AF122: 0.95 | AG122: 0.97 | AH122: 0.97 | AI122: 0.98 | AJ122: 0.98 | AK122: 1.00 | AL122: 1.01 | AM122: 1.01 | AN122: 1.02 | AO122: 0.99 | AP122: 1.04 | AQ122: 1.09 | AR122: 1.05 | AS122: 1.00 | AT122: 1.01 | AU122: 1.01 | AV122: 1.01 | AW122: 1.00 | AX122: 1.00 | AY122: 1.00 | AZ122: 1.00 | BA122: 1.03 | BB122: 1.04 | BC122: 1.02 | BD122: 1.02 | BE122: 1.02 | BF122: 1.00 | BG122: 1.00 | BH122: 1.00 | BI122: 1.01 | BJ122: 1.00 | BK122: 1.00 | BL122: 0.99 | BM122: 0.97 | BN122: 0.94 | BO122: 0.93 | BP122: 0.91 | BQ122: 0.90 | BR122: 0.91 | BS122: 0.92 | BT122: 0.90 | BU122: 0.91 | BV122: 0.90 | BW122: 0.90 | BX122: 0.89 | BY122: 0.91 | BZ122: 0.94 | CA122: 0.93 | CB122: 0.94
A123: 2785 | B123: Löbau-Zittau / Olbersdorf | C123: 2785 | D123: 0.99 | E123: 0.97 | F123: 0.99 | G123: 0.98 | H123: 0.98 | I123: 0.99 | J123: 1.01 | K123: 1.01 | L123: 1.00 | M123: 1.03 | N123: 1.04 | O123: 1.00 | P123: 0.97 | Q123: 0.95 | R123: 0.94 | S123: 0.96 | T123: 0.95 | U123: 0.95 | V123: 0.95 | W123: 0.95 | X123: 0.95 | Y123: 0.92 | Z123: 0.94 | AA123: 0.95 | AB123: 0.96 | AC123: 1.02 | AD123: 0.98 | AE123: 0.94 | AF123: 0.99 | AG123: 1.01 | AH123: 1.01 | AI123: 1.02 | AJ123: 1.02 | AK123: 1.04 | AL123: 1.05 | AM123: 1.04 | AN123: 1.05 | AO123: 1.03 | AP123: 1.07 | AQ123: 1.12 | AR123: 1.08 | AS123: 1.03 | AT123: 1.05 | AU123: 1.04 | AV123: 1.05 | AW123: 1.03 | AX123: 1.03 | AY123: 1.04 | AZ123: 1.04 | BA123: 1.07 | BB123: 1.08 | BC123: 1.06 | BD123: 1.06 | BE123: 1.06 | BF123: 1.04 | BG123: 1.04 | BH123: 1.04 | BI123: 1.05 | BJ123: 1.04 | BK123: 1.04 | BL123: 1.03 | BM123: 1.00 | BN123: 0.97 | BO123: 0.97 | BP123: 0.94 | BQ123: 0.93 | BR123: 0.94 | BS123: 0.95 | BT123: 0.94 | BU123: 0.94 | BV123: 0.93 | BW123: 0.93 | BX123: 0.92 | BY123: 0.94 | BZ123: 0.97 | CA123: 0.97 | CB123: 0.98
A124: 2788 | B124: Löbau-Zittau / Schlegel | C124: 2788 | D124: 1.03 | E124: 1.00 | F124: 1.02 | G124: 1.01 | H124: 1.01 | I124: 1.03 | J124: 1.05 | K124: 1.05 | L124: 1.04 | M124: 1.07 | N124: 1.08 | O124: 1.04 | P124: 1.01 | Q124: 0.98 | R124: 0.97 | S124: 0.99 | T124: 0.98 | U124: 0.98 | V124: 0.98 | W124: 0.98 | X124: 0.98 | Y124: 0.95 | Z124: 0.97 | AA124: 0.98 | AB124: 0.99 | AC124: 1.05 | AD124: 1.02 | AE124: 0.97 | AF124: 1.03 | AG124: 1.05 | AH124: 1.05 | AI124: 1.05 | AJ124: 1.05 | AK124: 1.08 | AL124: 1.08 | AM124: 1.08 | AN124: 1.09 | AO124: 1.06 | AP124: 1.11 | AQ124: 1.16 | AR124: 1.12 | AS124: 1.07 | AT124: 1.08 | AU124: 1.08 | AV124: 1.08 | AW124: 1.07 | AX124: 1.07 | AY124: 1.08 | AZ124: 1.08 | BA124: 1.11 | BB124: 1.12 | BC124: 1.10 | BD124: 1.10 | BE124: 1.10 | BF124: 1.08 | BG124: 1.08 | BH124: 1.08 | BI124: 1.08 | BJ124: 1.08 | BK124: 1.07 | BL124: 1.07 | BM124: 1.04 | BN124: 1.00 | BO124: 1.00 | BP124: 0.97 | BQ124: 0.96 | BR124: 0.97 | BS124: 0.98 | BT124: 0.97 | BU124: 0.97 | BV124: 0.96 | BW124: 0.96 | BX124: 0.95 | BY124: 0.97 | BZ124: 1.00 | CA124: 1.00 | CB124: 1.01
A125: 2791 | B125: Löbau-Zittau / Oderwitz | C125: 2791 | D125: 0.97 | E125: 0.95 | F125: 0.97 | G125: 0.96 | H125: 0.96 | I125: 0.98 | J125: 0.99 | K125: 0.99 | L125: 0.99 | M125: 1.01 | N125: 1.02 | O125: 0.99 | P125: 0.96 | Q125: 0.94 | R125: 0.93 | S125: 0.95 | T125: 0.94 | U125: 0.94 | V125: 0.94 | W125: 0.94 | X125: 0.94 | Y125: 0.91 | Z125: 0.93 | AA125: 0.94 | AB125: 0.95 | AC125: 1.00 | AD125: 0.97 | AE125: 0.92 | AF125: 0.97 | AG125: 1.00 | AH125: 0.99 | AI125: 1.00 | AJ125: 1.00 | AK125: 1.02 | AL125: 1.03 | AM125: 1.03 | AN125: 1.04 | AO125: 1.01 | AP125: 1.05 | AQ125: 1.11 | AR125: 1.07 | AS125: 1.02 | AT125: 1.03 | AU125: 1.03 | AV125: 1.03 | AW125: 1.02 | AX125: 1.02 | AY125: 1.03 | AZ125: 1.03 | BA125: 1.05 | BB125: 1.06 | BC125: 1.04 | BD125: 1.04 | BE125: 1.04 | BF125: 1.03 | BG125: 1.02 | BH125: 1.02 | BI125: 1.03 | BJ125: 1.02 | BK125: 1.02 | BL125: 1.01 | BM125: 0.99 | BN125: 0.95 | BO125: 0.95 | BP125: 0.92 | BQ125: 0.92 | BR125: 0.93 | BS125: 0.93 | BT125: 0.92 | BU125: 0.93 | BV125: 0.92 | BW125: 0.92 | BX125: 0.91 | BY125: 0.93 | BZ125: 0.95 | CA125: 0.95 | CB125: 0.96
A126: 2794 | B126: Löbau-Zittau / Leutersdorf | C126: 2794 | D126: 0.94 | E126: 0.92 | F126: 0.94 | G126: 0.93 | H126: 0.93 | I126: 0.95 | J126: 0.96 | K126: 0.96 | L126: 0.95 | M126: 0.98 | N126: 0.98 | O126: 0.95 | P126: 0.93 | Q126: 0.91 | R126: 0.90 | S126: 0.92 | T126: 0.91 | U126: 0.91 | V126: 0.91 | W126: 0.91 | X126: 0.91 | Y126: 0.88 | Z126: 0.90 | AA126: 0.91 | AB126: 0.92 | AC126: 0.96 | AD126: 0.93 | AE126: 0.89 | AF126: 0.94 | AG126: 0.96 | AH126: 0.96 | AI126: 0.96 | AJ126: 0.97 | AK126: 0.99 | AL126: 0.99 | AM126: 1.00 | AN126: 1.00 | AO126: 0.98 | AP126: 1.02 | AQ126: 1.07 | AR126: 1.04 | AS126: 0.98 | AT126: 1.00 | AU126: 0.99 | AV126: 1.00 | AW126: 0.98 | AX126: 0.98 | AY126: 0.99 | AZ126: 0.99 | BA126: 1.02 | BB126: 1.02 | BC126: 1.01 | BD126: 1.01 | BE126: 1.01 | BF126: 0.99 | BG126: 0.99 | BH126: 0.99 | BI126: 0.99 | BJ126: 0.99 | BK126: 0.99 | BL126: 0.98 | BM126: 0.95 | BN126: 0.92 | BO126: 0.92 | BP126: 0.90 | BQ126: 0.89 | BR126: 0.90 | BS126: 0.91 | BT126: 0.89 | BU126: 0.90 | BV126: 0.89 | BW126: 0.89 | BX126: 0.88 | BY126: 0.90 | BZ126: 0.92 | CA126: 0.92 | CB126: 0.93
A127: 2796 | B127: Löbau-Zittau / Jonsdorf | C127: 2796 | D127: 0.91 | E127: 0.89 | F127: 0.90 | G127: 0.90 | H127: 0.90 | I127: 0.91 | J127: 0.92 | K127: 0.92 | L127: 0.91 | M127: 0.94 | N127: 0.94 | O127: 0.92 | P127: 0.89 | Q127: 0.87 | R127: 0.87 | S127: 0.88 | T127: 0.88 | U127: 0.88 | V127: 0.88 | W127: 0.88 | X127: 0.88 | Y127: 0.85 | Z127: 0.87 | AA127: 0.88 | AB127: 0.88 | AC127: 0.92 | AD127: 0.89 | AE127: 0.86 | AF127: 0.90 | AG127: 0.92 | AH127: 0.92 | AI127: 0.92 | AJ127: 0.93 | AK127: 0.95 | AL127: 0.95 | AM127: 0.96 | AN127: 0.96 | AO127: 0.94 | AP127: 0.99 | AQ127: 1.03 | AR127: 1.00 | AS127: 0.95 | AT127: 0.96 | AU127: 0.95 | AV127: 0.95 | AW127: 0.94 | AX127: 0.94 | AY127: 0.95 | AZ127: 0.95 | BA127: 0.97 | BB127: 0.98 | BC127: 0.97 | BD127: 0.96 | BE127: 0.96 | BF127: 0.95 | BG127: 0.95 | BH127: 0.94 | BI127: 0.95 | BJ127: 0.95 | BK127: 0.95 | BL127: 0.94 | BM127: 0.91 | BN127: 0.89 | BO127: 0.89 | BP127: 0.86 | BQ127: 0.86 | BR127: 0.87 | BS127: 0.87 | BT127: 0.86 | BU127: 0.87 | BV127: 0.86 | BW127: 0.86 | BX127: 0.85 | BY127: 0.87 | BZ127: 0.89 | CA127: 0.89 | CB127: 0.89
A128: 2797 | B128: Löbau-Zittau / Oybin | C128: 2797 | D128: 0.92 | E128: 0.90 | F128: 0.92 | G128: 0.91 | H128: 0.91 | I128: 0.92 | J128: 0.94 | K128: 0.94 | L128: 0.93 | M128: 0.96 | N128: 0.96 | O128: 0.93 | P128: 0.91 | Q128: 0.89 | R128: 0.88 | S128: 0.90 | T128: 0.89 | U128: 0.89 | V128: 0.89 | W128: 0.89 | X128: 0.89 | Y128: 0.87 | Z128: 0.88 | AA128: 0.89 | AB128: 0.90 | AC128: 0.94 | AD128: 0.91 | AE128: 0.87 | AF128: 0.92 | AG128: 0.94 | AH128: 0.94 | AI128: 0.94 | AJ128: 0.95 | AK128: 0.97 | AL128: 0.97 | AM128: 0.98 | AN128: 0.98 | AO128: 0.96 | AP128: 1.00 | AQ128: 1.05 | AR128: 1.01 | AS128: 0.96 | AT128: 0.98 | AU128: 0.97 | AV128: 0.97 | AW128: 0.96 | AX128: 0.96 | AY128: 0.97 | AZ128: 0.97 | BA128: 0.99 | BB128: 1.00 | BC128: 0.99 | BD128: 0.98 | BE128: 0.98 | BF128: 0.97 | BG128: 0.96 | BH128: 0.96 | BI128: 0.97 | BJ128: 0.97 | BK128: 0.96 | BL128: 0.96 | BM128: 0.93 | BN128: 0.90 | BO128: 0.90 | BP128: 0.88 | BQ128: 0.87 | BR128: 0.88 | BS128: 0.89 | BT128: 0.88 | BU128: 0.88 | BV128: 0.88 | BW128: 0.87 | BX128: 0.87 | BY128: 0.88 | BZ128: 0.90 | CA128: 0.90 | CB128: 0.91
A129: 2799 | B129: Löbau-Zittau / Waltersdorf | C129: 2799 | D129: 0.91 | E129: 0.89 | F129: 0.91 | G129: 0.90 | H129: 0.90 | I129: 0.91 | J129: 0.93 | K129: 0.93 | L129: 0.92 | M129: 0.95 | N129: 0.95 | O129: 0.92 | P129: 0.90 | Q129: 0.88 | R129: 0.87 | S129: 0.89 | T129: 0.89 | U129: 0.88 | V129: 0.89 | W129: 0.88 | X129: 0.89 | Y129: 0.86 | Z129: 0.87 | AA129: 0.88 | AB129: 0.89 | AC129: 0.93 | AD129: 0.90 | AE129: 0.87 | AF129: 0.91 | AG129: 0.93 | AH129: 0.93 | AI129: 0.93 | AJ129: 0.94 | AK129: 0.96 | AL129: 0.96 | AM129: 0.97 | AN129: 0.97 | AO129: 0.95 | AP129: 0.99 | AQ129: 1.04 | AR129: 1.00 | AS129: 0.95 | AT129: 0.97 | AU129: 0.96 | AV129: 0.96 | AW129: 0.95 | AX129: 0.95 | AY129: 0.96 | AZ129: 0.96 | BA129: 0.98 | BB129: 0.99 | BC129: 0.97 | BD129: 0.97 | BE129: 0.97 | BF129: 0.96 | BG129: 0.95 | BH129: 0.95 | BI129: 0.96 | BJ129: 0.95 | BK129: 0.95 | BL129: 0.95 | BM129: 0.92 | BN129: 0.90 | BO129: 0.89 | BP129: 0.87 | BQ129: 0.87 | BR129: 0.88 | BS129: 0.88 | BT129: 0.87 | BU129: 0.87 | BV129: 0.87 | BW129: 0.86 | BX129: 0.86 | BY129: 0.87 | BZ129: 0.89 | CA129: 0.89 | CB129: 0.90
A130: 2826 | B130: Görlitz, Stadt / Görlitz | C130: 2826 | D130: 1.06 | E130: 1.03 | F130: 1.06 | G130: 1.05 | H130: 1.04 | I130: 1.06 | J130: 1.08 | K130: 1.08 | L130: 1.07 | M130: 1.10 | N130: 1.11 | O130: 1.07 | P130: 1.03 | Q130: 1.01 | R130: 1.00 | S130: 1.02 | T130: 1.01 | U130: 1.01 | V130: 1.01 | W130: 1.00 | X130: 1.01 | Y130: 0.98 | Z130: 1.00 | AA130: 1.02 | AB130: 1.03 | AC130: 1.08 | AD130: 1.05 | AE130: 1.00 | AF130: 1.06 | AG130: 1.08 | AH130: 1.08 | AI130: 1.08 | AJ130: 1.08 | AK130: 1.10 | AL130: 1.10 | AM130: 1.11 | AN130: 1.11 | AO130: 1.08 | AP130: 1.13 | AQ130: 1.20 | AR130: 1.15 | AS130: 1.09 | AT130: 1.11 | AU130: 1.11 | AV130: 1.11 | AW130: 1.10 | AX130: 1.10 | AY130: 1.11 | AZ130: 1.11 | BA130: 1.14 | BB130: 1.16 | BC130: 1.14 | BD130: 1.14 | BE130: 1.14 | BF130: 1.12 | BG130: 1.12 | BH130: 1.12 | BI130: 1.12 | BJ130: 1.11 | BK130: 1.11 | BL130: 1.10 | BM130: 1.07 | BN130: 1.03 | BO130: 1.03 | BP130: 0.99 | BQ130: 0.98 | BR130: 0.99 | BS130: 0.99 | BT130: 0.99 | BU130: 0.99 | BV130: 0.99 | BW130: 0.98 | BX130: 0.97 | BY130: 0.99 | BZ130: 1.02 | CA130: 1.02 | CB130: 1.03
A131: 2827 | B131: Görlitz, Stadt / Görlitz | C131: 2827 | D131: 1.02 | E131: 0.99 | F131: 1.01 | G131: 1.00 | H131: 1.00 | I131: 1.02 | J131: 1.04 | K131: 1.04 | L131: 1.03 | M131: 1.06 | N131: 1.06 | O131: 1.03 | P131: 1.00 | Q131: 0.98 | R131: 0.97 | S131: 0.98 | T131: 0.98 | U131: 0.97 | V131: 0.97 | W131: 0.97 | X131: 0.97 | Y131: 0.94 | Z131: 0.96 | AA131: 0.98 | AB131: 0.99 | AC131: 1.04 | AD131: 1.01 | AE131: 0.96 | AF131: 1.02 | AG131: 1.04 | AH131: 1.04 | AI131: 1.04 | AJ131: 1.04 | AK131: 1.06 | AL131: 1.07 | AM131: 1.07 | AN131: 1.08 | AO131: 1.05 | AP131: 1.10 | AQ131: 1.15 | AR131: 1.11 | AS131: 1.06 | AT131: 1.07 | AU131: 1.07 | AV131: 1.07 | AW131: 1.06 | AX131: 1.06 | AY131: 1.07 | AZ131: 1.07 | BA131: 1.10 | BB131: 1.11 | BC131: 1.09 | BD131: 1.09 | BE131: 1.09 | BF131: 1.07 | BG131: 1.07 | BH131: 1.07 | BI131: 1.07 | BJ131: 1.07 | BK131: 1.07 | BL131: 1.06 | BM131: 1.03 | BN131: 0.99 | BO131: 0.99 | BP131: 0.96 | BQ131: 0.95 | BR131: 0.96 | BS131: 0.97 | BT131: 0.96 | BU131: 0.96 | BV131: 0.96 | BW131: 0.95 | BX131: 0.95 | BY131: 0.97 | BZ131: 0.99 | CA131: 0.99 | CB131: 1.00
A132: 2828 | B132: Görlitz, Stadt / Görlitz | C132: 2828 | D132: 1.04 | E132: 1.01 | F132: 1.03 | G132: 1.02 | H132: 1.02 | I132: 1.04 | J132: 1.06 | K132: 1.06 | L132: 1.05 | M132: 1.08 | N132: 1.09 | O132: 1.05 | P132: 1.02 | Q132: 0.99 | R132: 0.98 | S132: 1.00 | T132: 1.00 | U132: 0.99 | V132: 0.99 | W132: 0.99 | X132: 0.99 | Y132: 0.96 | Z132: 0.98 | AA132: 1.00 | AB132: 1.01 | AC132: 1.06 | AD132: 1.03 | AE132: 0.98 | AF132: 1.04 | AG132: 1.06 | AH132: 1.06 | AI132: 1.06 | AJ132: 1.06 | AK132: 1.08 | AL132: 1.09 | AM132: 1.09 | AN132: 1.10 | AO132: 1.07 | AP132: 1.12 | AQ132: 1.17 | AR132: 1.13 | AS132: 1.08 | AT132: 1.09 | AU132: 1.09 | AV132: 1.09 | AW132: 1.08 | AX132: 1.08 | AY132: 1.09 | AZ132: 1.09 | BA132: 1.12 | BB132: 1.14 | BC132: 1.12 | BD132: 1.11 | BE132: 1.11 | BF132: 1.10 | BG132: 1.10 | BH132: 1.09 | BI132: 1.10 | BJ132: 1.09 | BK132: 1.09 | BL132: 1.08 | BM132: 1.05 | BN132: 1.01 | BO132: 1.01 | BP132: 0.98 | BQ132: 0.97 | BR132: 0.98 | BS132: 0.98 | BT132: 0.97 | BU132: 0.98 | BV132: 0.97 | BW132: 0.97 | BX132: 0.96 | BY132: 0.98 | BZ132: 1.01 | CA132: 1.01 | CB132: 1.02
A133: 2829 | B133: Niederschlesischer Oberlausitzkrei | C133: 2829 | D133: 1.00 | E133: 0.97 | F133: 1.00 | G133: 0.99 | H133: 0.99 | I133: 1.00 | J133: 1.03 | K133: 1.03 | L133: 1.02 | M133: 1.05 | N133: 1.05 | O133: 1.02 | P133: 0.99 | Q133: 0.97 | R133: 0.96 | S133: 0.97 | T133: 0.97 | U133: 0.96 | V133: 0.96 | W133: 0.96 | X133: 0.96 | Y133: 0.93 | Z133: 0.95 | AA133: 0.97 | AB133: 0.97 | AC133: 1.03 | AD133: 1.00 | AE133: 0.95 | AF133: 1.01 | AG133: 1.03 | AH133: 1.03 | AI133: 1.03 | AJ133: 1.03 | AK133: 1.06 | AL133: 1.06 | AM133: 1.06 | AN133: 1.07 | AO133: 1.04 | AP133: 1.08 | AQ133: 1.14 | AR133: 1.10 | AS133: 1.05 | AT133: 1.06 | AU133: 1.06 | AV133: 1.06 | AW133: 1.05 | AX133: 1.05 | AY133: 1.06 | AZ133: 1.06 | BA133: 1.08 | BB133: 1.10 | BC133: 1.08 | BD133: 1.07 | BE133: 1.07 | BF133: 1.06 | BG133: 1.06 | BH133: 1.05 | BI133: 1.06 | BJ133: 1.06 | BK133: 1.05 | BL133: 1.04 | BM133: 1.02 | BN133: 0.98 | BO133: 0.98 | BP133: 0.95 | BQ133: 0.95 | BR133: 0.96 | BS133: 0.96 | BT133: 0.95 | BU133: 0.96 | BV133: 0.95 | BW133: 0.95 | BX133: 0.94 | BY133: 0.96 | BZ133: 0.99 | CA133: 0.99 | CB133: 0.99
A134: 2894 | B134: Niederschlesischer Oberlausitzkrei | C134: 2894 | D134: 1.00 | E134: 0.97 | F134: 1.00 | G134: 0.99 | H134: 0.99 | I134: 1.00 | J134: 1.02 | K134: 1.02 | L134: 1.01 | M134: 1.04 | N134: 1.05 | O134: 1.02 | P134: 0.98 | Q134: 0.96 | R134: 0.95 | S134: 0.97 | T134: 0.97 | U134: 0.96 | V134: 0.96 | W134: 0.96 | X134: 0.96 | Y134: 0.93 | Z134: 0.95 | AA134: 0.96 | AB134: 0.97 | AC134: 1.03 | AD134: 1.00 | AE134: 0.95 | AF134: 1.00 | AG134: 1.03 | AH134: 1.02 | AI134: 1.03 | AJ134: 1.03 | AK134: 1.05 | AL134: 1.06 | AM134: 1.05 | AN134: 1.07 | AO134: 1.04 | AP134: 1.08 | AQ134: 1.14 | AR134: 1.10 | AS134: 1.05 | AT134: 1.06 | AU134: 1.06 | AV134: 1.06 | AW134: 1.05 | AX134: 1.05 | AY134: 1.06 | AZ134: 1.06 | BA134: 1.08 | BB134: 1.10 | BC134: 1.08 | BD134: 1.07 | BE134: 1.07 | BF134: 1.05 | BG134: 1.05 | BH134: 1.05 | BI134: 1.06 | BJ134: 1.05 | BK134: 1.05 | BL134: 1.04 | BM134: 1.02 | BN134: 0.98 | BO134: 0.98 | BP134: 0.95 | BQ134: 0.94 | BR134: 0.95 | BS134: 0.96 | BT134: 0.95 | BU134: 0.95 | BV134: 0.95 | BW134: 0.94 | BX134: 0.94 | BY134: 0.96 | BZ134: 0.98 | CA134: 0.98 | CB134: 0.99
A135: =C135 -> 2899 | B135: Löbau-Zittau / Ostritz | C135: 2899 | D135: 1.01 | E135: 0.98 | F135: 1.00 | G135: 1.00 | H135: 1.00 | I135: 1.01 | J135: 1.03 | K135: 1.03 | L135: 1.02 | M135: 1.05 | N135: 1.06 | O135: 1.03 | P135: 0.99 | Q135: 0.97 | R135: 0.96 | S135: 0.98 | T135: 0.97 | U135: 0.97 | V135: 0.97 | W135: 0.97 | X135: 0.97 | Y135: 0.94 | Z135: 0.96 | AA135: 0.97 | AB135: 0.98 | AC135: 1.04 | AD135: 1.00 | AE135: 0.96 | AF135: 1.01 | AG135: 1.04 | AH135: 1.03 | AI135: 1.04 | AJ135: 1.04 | AK135: 1.06 | AL135: 1.07 | AM135: 1.06 | AN135: 1.08 | AO135: 1.05 | AP135: 1.09 | AQ135: 1.15 | AR135: 1.11 | AS135: 1.06 | AT135: 1.07 | AU135: 1.07 | AV135: 1.07 | AW135: 1.06 | AX135: 1.06 | AY135: 1.07 | AZ135: 1.07 | BA135: 1.09 | BB135: 1.11 | BC135: 1.09 | BD135: 1.08 | BE135: 1.08 | BF135: 1.06 | BG135: 1.06 | BH135: 1.06 | BI135: 1.07 | BJ135: 1.06 | BK135: 1.06 | BL135: 1.05 | BM135: 1.02 | BN135: 0.99 | BO135: 0.98 | BP135: 0.95 | BQ135: 0.95 | BR135: 0.96 | BS135: 0.96 | BT135: 0.95 | BU135: 0.96 | BV135: 0.95 | BW135: 0.95 | BX135: 0.94 | BY135: 0.96 | BZ135: 0.99 | CA135: 0.99 | CB135: 1.00
A136: 2906 | B136: Niederschlesischer Oberlausitzkrei | C136: 2906 | D136: 1.03 | E136: 1.00 | F136: 1.03 | G136: 1.02 | H136: 1.02 | I136: 1.04 | J136: 1.06 | K136: 1.06 | L136: 1.05 | M136: 1.08 | N136: 1.09 | O136: 1.05 | P136: 1.02 | Q136: 1.00 | R136: 0.98 | S136: 1.00 | T136: 1.00 | U136: 0.99 | V136: 0.99 | W136: 0.99 | X136: 0.99 | Y136: 0.96 | Z136: 0.98 | AA136: 1.00 | AB136: 1.01 | AC136: 1.07 | AD136: 1.03 | AE136: 0.98 | AF136: 1.04 | AG136: 1.07 | AH136: 1.06 | AI136: 1.07 | AJ136: 1.07 | AK136: 1.09 | AL136: 1.10 | AM136: 1.09 | AN136: 1.10 | AO136: 1.07 | AP136: 1.12 | AQ136: 1.18 | AR136: 1.14 | AS136: 1.09 | AT136: 1.10 | AU136: 1.09 | AV136: 1.10 | AW136: 1.09 | AX136: 1.09 | AY136: 1.10 | AZ136: 1.10 | BA136: 1.12 | BB136: 1.14 | BC136: 1.12 | BD136: 1.11 | BE136: 1.11 | BF136: 1.09 | BG136: 1.09 | BH136: 1.09 | BI136: 1.10 | BJ136: 1.09 | BK136: 1.09 | BL136: 1.08 | BM136: 1.05 | BN136: 1.01 | BO136: 1.01 | BP136: 0.98 | BQ136: 0.98 | BR136: 0.99 | BS136: 0.99 | BT136: 0.98 | BU136: 0.99 | BV136: 0.98 | BW136: 0.98 | BX136: 0.97 | BY136: 0.99 | BZ136: 1.02 | CA136: 1.02 | CB136: 1.03
A137: 2923 | B137: Niederschlesischer Oberlausitzkrei | C137: 2923 | D137: 1.03 | E137: 1.00 | F137: 1.02 | G137: 1.01 | H137: 1.01 | I137: 1.03 | J137: 1.05 | K137: 1.05 | L137: 1.05 | M137: 1.08 | N137: 1.08 | O137: 1.05 | P137: 1.01 | Q137: 0.99 | R137: 0.98 | S137: 1.00 | T137: 0.99 | U137: 0.99 | V137: 0.99 | W137: 0.98 | X137: 0.99 | Y137: 0.96 | Z137: 0.98 | AA137: 0.99 | AB137: 1.00 | AC137: 1.06 | AD137: 1.03 | AE137: 0.98 | AF137: 1.03 | AG137: 1.06 | AH137: 1.06 | AI137: 1.06 | AJ137: 1.06 | AK137: 1.09 | AL137: 1.09 | AM137: 1.08 | AN137: 1.10 | AO137: 1.07 | AP137: 1.11 | AQ137: 1.17 | AR137: 1.13 | AS137: 1.08 | AT137: 1.09 | AU137: 1.09 | AV137: 1.09 | AW137: 1.08 | AX137: 1.08 | AY137: 1.09 | AZ137: 1.09 | BA137: 1.11 | BB137: 1.13 | BC137: 1.11 | BD137: 1.10 | BE137: 1.10 | BF137: 1.09 | BG137: 1.08 | BH137: 1.08 | BI137: 1.09 | BJ137: 1.09 | BK137: 1.08 | BL137: 1.07 | BM137: 1.05 | BN137: 1.00 | BO137: 1.00 | BP137: 0.97 | BQ137: 0.97 | BR137: 0.98 | BS137: 0.98 | BT137: 0.97 | BU137: 0.98 | BV137: 0.97 | BW137: 0.97 | BX137: 0.96 | BY137: 0.98 | BZ137: 1.02 | CA137: 1.01 | CB137: 1.02
A138: 2929 | B138: Niederschlesischer Oberlausitzkrei | C138: 2929 | D138: 1.03 | E138: 1.00 | F138: 1.02 | G138: 1.02 | H138: 1.02 | I138: 1.03 | J138: 1.06 | K138: 1.06 | L138: 1.05 | M138: 1.08 | N138: 1.09 | O138: 1.05 | P138: 1.02 | Q138: 1.00 | R138: 0.98 | S138: 1.00 | T138: 1.00 | U138: 0.99 | V138: 0.99 | W138: 0.99 | X138: 0.99 | Y138: 0.96 | Z138: 0.98 | AA138: 0.99 | AB138: 1.01 | AC138: 1.06 | AD138: 1.03 | AE138: 0.98 | AF138: 1.04 | AG138: 1.06 | AH138: 1.06 | AI138: 1.06 | AJ138: 1.07 | AK138: 1.09 | AL138: 1.10 | AM138: 1.09 | AN138: 1.10 | AO138: 1.07 | AP138: 1.11 | AQ138: 1.17 | AR138: 1.13 | AS138: 1.08 | AT138: 1.10 | AU138: 1.09 | AV138: 1.10 | AW138: 1.08 | AX138: 1.08 | AY138: 1.10 | AZ138: 1.10 | BA138: 1.12 | BB138: 1.14 | BC138: 1.12 | BD138: 1.11 | BE138: 1.11 | BF138: 1.09 | BG138: 1.09 | BH138: 1.09 | BI138: 1.09 | BJ138: 1.09 | BK138: 1.09 | BL138: 1.08 | BM138: 1.05 | BN138: 1.01 | BO138: 1.00 | BP138: 0.98 | BQ138: 0.97 | BR138: 0.98 | BS138: 0.99 | BT138: 0.98 | BU138: 0.99 | BV138: 0.98 | BW138: 0.97 | BX138: 0.97 | BY138: 0.99 | BZ138: 1.02 | CA138: 1.02 | CB138: 1.03
A139: 2943 | B139: Niederschlesischer Oberlausitzkrei | C139: 2943 | D139: 1.04 | E139: 1.01 | F139: 1.03 | G139: 1.02 | H139: 1.02 | I139: 1.05 | J139: 1.07 | K139: 1.07 | L139: 1.06 | M139: 1.10 | N139: 1.10 | O139: 1.06 | P139: 1.03 | Q139: 1.01 | R139: 0.99 | S139: 1.01 | T139: 1.01 | U139: 1.00 | V139: 1.00 | W139: 1.00 | X139: 1.00 | Y139: 0.97 | Z139: 0.99 | AA139: 1.01 | AB139: 1.02 | AC139: 1.08 | AD139: 1.04 | AE139: 0.99 | AF139: 1.05 | AG139: 1.08 | AH139: 1.07 | AI139: 1.08 | AJ139: 1.08 | AK139: 1.10 | AL139: 1.11 | AM139: 1.10 | AN139: 1.11 | AO139: 1.08 | AP139: 1.13 | AQ139: 1.19 | AR139: 1.15 | AS139: 1.10 | AT139: 1.11 | AU139: 1.11 | AV139: 1.11 | AW139: 1.10 | AX139: 1.10 | AY139: 1.11 | AZ139: 1.11 | BA139: 1.13 | BB139: 1.15 | BC139: 1.13 | BD139: 1.12 | BE139: 1.12 | BF139: 1.10 | BG139: 1.10 | BH139: 1.10 | BI139: 1.11 | BJ139: 1.10 | BK139: 1.10 | BL139: 1.09 | BM139: 1.06 | BN139: 1.02 | BO139: 1.02 | BP139: 0.99 | BQ139: 0.98 | BR139: 0.99 | BS139: 1.00 | BT139: 0.99 | BU139: 1.00 | BV139: 0.99 | BW139: 0.99 | BX139: 0.98 | BY139: 1.00 | BZ139: 1.03 | CA139: 1.03 | CB139: 1.04
A140: 2953 | B140: Niederschlesischer Oberlausitzkrei | C140: 2953 | D140: 1.03 | E140: 1.01 | F140: 1.03 | G140: 1.02 | H140: 1.02 | I140: 1.04 | J140: 1.06 | K140: 1.07 | L140: 1.06 | M140: 1.09 | N140: 1.10 | O140: 1.06 | P140: 1.02 | Q140: 1.00 | R140: 0.99 | S140: 1.01 | T140: 1.00 | U140: 1.00 | V140: 1.00 | W140: 0.99 | X140: 1.00 | Y140: 0.97 | Z140: 0.99 | AA140: 1.00 | AB140: 1.01 | AC140: 1.07 | AD140: 1.04 | AE140: 0.99 | AF140: 1.04 | AG140: 1.07 | AH140: 1.07 | AI140: 1.07 | AJ140: 1.07 | AK140: 1.10 | AL140: 1.10 | AM140: 1.09 | AN140: 1.10 | AO140: 1.08 | AP140: 1.12 | AQ140: 1.18 | AR140: 1.14 | AS140: 1.09 | AT140: 1.10 | AU140: 1.10 | AV140: 1.10 | AW140: 1.09 | AX140: 1.09 | AY140: 1.10 | AZ140: 1.10 | BA140: 1.13 | BB140: 1.14 | BC140: 1.12 | BD140: 1.11 | BE140: 1.11 | BF140: 1.10 | BG140: 1.10 | BH140: 1.09 | BI140: 1.10 | BJ140: 1.10 | BK140: 1.09 | BL140: 1.08 | BM140: 1.06 | BN140: 1.01 | BO140: 1.01 | BP140: 0.98 | BQ140: 0.98 | BR140: 0.99 | BS140: 0.99 | BT140: 0.98 | BU140: 0.99 | BV140: 0.98 | BW140: 0.98 | BX140: 0.97 | BY140: 1.00 | BZ140: 1.03 | CA140: 1.03 | CB140: 1.03
A141: 2956 | B141: Niederschlesischer Oberlausitzkrei | C141: 2956 | D141: 1.04 | E141: 1.01 | F141: 1.03 | G141: 1.02 | H141: 1.02 | I141: 1.04 | J141: 1.07 | K141: 1.07 | L141: 1.06 | M141: 1.09 | N141: 1.10 | O141: 1.06 | P141: 1.02 | Q141: 1.00 | R141: 0.99 | S141: 1.01 | T141: 1.00 | U141: 1.00 | V141: 1.00 | W141: 1.00 | X141: 1.00 | Y141: 0.97 | Z141: 0.99 | AA141: 1.00 | AB141: 1.01 | AC141: 1.07 | AD141: 1.04 | AE141: 0.99 | AF141: 1.05 | AG141: 1.07 | AH141: 1.07 | AI141: 1.07 | AJ141: 1.07 | AK141: 1.10 | AL141: 1.10 | AM141: 1.09 | AN141: 1.11 | AO141: 1.08 | AP141: 1.12 | AQ141: 1.18 | AR141: 1.14 | AS141: 1.09 | AT141: 1.10 | AU141: 1.10 | AV141: 1.11 | AW141: 1.09 | AX141: 1.09 | AY141: 1.11 | AZ141: 1.10 | BA141: 1.13 | BB141: 1.15 | BC141: 1.13 | BD141: 1.12 | BE141: 1.12 | BF141: 1.10 | BG141: 1.10 | BH141: 1.10 | BI141: 1.10 | BJ141: 1.10 | BK141: 1.10 | BL141: 1.09 | BM141: 1.06 | BN141: 1.02 | BO141: 1.01 | BP141: 0.98 | BQ141: 0.98 | BR141: 0.99 | BS141: 1.00 | BT141: 0.99 | BU141: 0.99 | BV141: 0.98 | BW141: 0.98 | BX141: 0.97 | BY141: 1.00 | BZ141: 1.03 | CA141: 1.03 | CB141: 1.03
A142: 2957 | B142: Niederschlesischer Oberlausitzkrei | C142: 2957 | D142: 1.05 | E142: 1.02 | F142: 1.04 | G142: 1.03 | H142: 1.03 | I142: 1.05 | J142: 1.08 | K142: 1.08 | L142: 1.07 | M142: 1.10 | N142: 1.11 | O142: 1.07 | P142: 1.03 | Q142: 1.01 | R142: 1.00 | S142: 1.02 | T142: 1.01 | U142: 1.01 | V142: 1.01 | W142: 1.00 | X142: 1.01 | Y142: 0.98 | Z142: 1.00 | AA142: 1.01 | AB142: 1.02 | AC142: 1.08 | AD142: 1.05 | AE142: 1.00 | AF142: 1.06 | AG142: 1.08 | AH142: 1.08 | AI142: 1.08 | AJ142: 1.09 | AK142: 1.11 | AL142: 1.11 | AM142: 1.10 | AN142: 1.12 | AO142: 1.09 | AP142: 1.13 | AQ142: 1.20 | AR142: 1.15 | AS142: 1.10 | AT142: 1.12 | AU142: 1.11 | AV142: 1.12 | AW142: 1.10 | AX142: 1.10 | AY142: 1.12 | AZ142: 1.11 | BA142: 1.14 | BB142: 1.16 | BC142: 1.14 | BD142: 1.13 | BE142: 1.13 | BF142: 1.11 | BG142: 1.11 | BH142: 1.11 | BI142: 1.11 | BJ142: 1.11 | BK142: 1.11 | BL142: 1.10 | BM142: 1.07 | BN142: 1.03 | BO142: 1.02 | BP142: 0.99 | BQ142: 0.99 | BR142: 1.00 | BS142: 1.00 | BT142: 1.00 | BU142: 1.00 | BV142: 0.99 | BW142: 0.99 | BX142: 0.98 | BY142: 1.01 | BZ142: 1.04 | CA142: 1.04 | CB142: 1.05
A143: 2959 | B143: Niederschlesischer Oberlausitzkrei | C143: 2959 | D143: 1.04 | E143: 1.01 | F143: 1.03 | G143: 1.02 | H143: 1.02 | I143: 1.04 | J143: 1.07 | K143: 1.07 | L143: 1.06 | M143: 1.09 | N143: 1.10 | O143: 1.06 | P143: 1.03 | Q143: 1.01 | R143: 0.99 | S143: 1.01 | T143: 1.01 | U143: 1.00 | V143: 1.00 | W143: 1.00 | X143: 1.00 | Y143: 0.97 | Z143: 0.99 | AA143: 1.01 | AB143: 1.02 | AC143: 1.08 | AD143: 1.04 | AE143: 0.99 | AF143: 1.05 | AG143: 1.07 | AH143: 1.07 | AI143: 1.07 | AJ143: 1.08 | AK143: 1.10 | AL143: 1.10 | AM143: 1.09 | AN143: 1.11 | AO143: 1.08 | AP143: 1.12 | AQ143: 1.19 | AR143: 1.14 | AS143: 1.09 | AT143: 1.11 | AU143: 1.10 | AV143: 1.11 | AW143: 1.10 | AX143: 1.09 | AY143: 1.11 | AZ143: 1.10 | BA143: 1.13 | BB143: 1.15 | BC143: 1.13 | BD143: 1.12 | BE143: 1.12 | BF143: 1.10 | BG143: 1.10 | BH143: 1.10 | BI143: 1.10 | BJ143: 1.10 | BK143: 1.10 | BL143: 1.09 | BM143: 1.06 | BN143: 1.02 | BO143: 1.02 | BP143: 0.99 | BQ143: 0.98 | BR143: 0.99 | BS143: 1.00 | BT143: 0.99 | BU143: 1.00 | BV143: 0.99 | BW143: 0.98 | BX143: 0.98 | BY143: 1.00 | BZ143: 1.03 | CA143: 1.03 | CB143: 1.04
A144: 2977 | B144: Hoyerswerda, Stadt / Hoyerswerda | C144: 2977 | D144: 1.09 | E144: 1.07 | F144: 1.09 | G144: 1.08 | H144: 1.08 | I144: 1.09 | J144: 1.12 | K144: 1.12 | L144: 1.11 | M144: 1.15 | N144: 1.15 | O144: 1.11 | P144: 1.07 | Q144: 1.05 | R144: 1.04 | S144: 1.06 | T144: 1.05 | U144: 1.05 | V144: 1.04 | W144: 1.04 | X144: 1.05 | Y144: 1.01 | Z144: 1.04 | AA144: 1.06 | AB144: 1.07 | AC144: 1.13 | AD144: 1.09 | AE144: 1.04 | AF144: 1.10 | AG144: 1.13 | AH144: 1.12 | AI144: 1.12 | AJ144: 1.12 | AK144: 1.15 | AL144: 1.15 | AM144: 1.14 | AN144: 1.16 | AO144: 1.13 | AP144: 1.17 | AQ144: 1.24 | AR144: 1.19 | AS144: 1.14 | AT144: 1.15 | AU144: 1.15 | AV144: 1.16 | AW144: 1.15 | AX144: 1.15 | AY144: 1.16 | AZ144: 1.16 | BA144: 1.19 | BB144: 1.20 | BC144: 1.18 | BD144: 1.18 | BE144: 1.18 | BF144: 1.17 | BG144: 1.16 | BH144: 1.16 | BI144: 1.16 | BJ144: 1.16 | BK144: 1.16 | BL144: 1.15 | BM144: 1.12 | BN144: 1.07 | BO144: 1.07 | BP144: 1.03 | BQ144: 1.03 | BR144: 1.03 | BS144: 1.04 | BT144: 1.03 | BU144: 1.04 | BV144: 1.03 | BW144: 1.02 | BX144: 1.02 | BY144: 1.04 | BZ144: 1.07 | CA144: 1.07 | CB144: 1.08
